Workbook

Sheet Disclaimer
B2: =+Cover!D26 -> CAV - Sistema tariffario CIPE
B3: Disclaimer
B5: =+Cover!D30 -> 2019-07-31
B7: This financial model (“Model”) has been developed by PricewaterhouseCoopers Advisory. Each recipient must read this PricewaterhouseCoopers Advisory Model Disclaimer (“Disclaimer”) before reviewing the Model or any information contained in the Model. By accepting receipt of the Model, each recipient acknowledges and agrees that the Model is provided to the recipient on the express understanding that: 1. The model contains information that is strictly confidential. The recipient agrees not to directly or indirectly disclose to any other person, copy, use, publish or record in any form the whole or any part of the Model or any information contained in the Model, without the prior written consent of PricewaterhouseCoopers Advisory. 2. The recipient agrees to use the Model only for the purpose of analysing the economics associated with the Buyer to which the Model relates ("Project"). The Model must not be used for any other purpose or by any other person. 3. The information contained in the Model, including the assumptions upon which the Model is based, has been provided to the Buyer from third party sources and/or available from public sources. PricewaterhouseCoopers Advisory provides the Model to you without endorsement or recommendation. PricewaterhouseCoopers Advisory has not verified the fairness, accuracy, reliability and completeness of the Model, including any of the information or calculations contained in the Model or the assumptions upon which it is based. Neither PricewaterhouseCoopers Advisory, its related bodies corporate or its affiliates or any of their or its directors, officers, employees or agents (“PricewaterhouseCoopers Advisory Parties”) assume any responsibility for the information or calculations contained in the Model, including the assumptions upon which the Model is based, or make any warranties or representations regarding the fairness, accuracy, reliability, reasonableness or completeness of the Model or that information, calculations or those assumptions nor any warranties or representations that any PricewaterhouseCoopers Advisory Party will update any information or correct any error or omission in the Model which may become apparent after the Model has been provided to you. 4. The Model may contain certain projections, forecasts and forward looking statements ("Projections") which may or may not prove to be correct. The recipient acknowledges that these Projections are speculative, subject to various risks and uncertainties, that actual future results may vary from the Projections and that circumstances may change and the contents of the Model, and the information and calculations contained therein (including assumptions upon which it is based) may become outdated as a result. 5. No audit of the Model or the information or calculations contained in the Model or the assumptions upon which it is based has been undertaken by an independent third party. 6. By retaining and using the Model, the recipient represents to PricewaterhouseCoopers Advisory that the recipient is capable of making its own independent assessment as to the validity of the assumptions, data, calculations and results contained in the Model and the economic, financial, regulatory, legal, taxation, stamp duty and accounting implications of those assumptions, data, calculations and results and is not relying on any recommendation or statement by PricewaterhouseCoopers Advisory or any other PricewaterhouseCoopers Advisory Parties. 7. The recipient acknowledges that, to the maximum extent permitted by law, PricewaterhouseCoopers Advisory and each other PricewaterhouseCoopers Advisory Parties: a. do not assume responsibility to the recipient or to any other person; and b. exclude and disclaim all liability (whether direct, indirect or consequential) to the recipient or to any other person, 8. Each person who receives this Model does so on the basis of the matters outlined above and on condition that it agrees that: a. it shall not seek to sue or hold PricewaterhouseCoopers Advisory or any other PricewaterhouseCoopers Advisory Parties liable in any such respect for the development, provision, distribution, use or misuse of this Model; and b. it indemnifies each PricewaterhouseCoopers Advisory Parties against any loss or damage of any kind howsoever arising as a result of any failure by the recipient to use the Model in accordance with the terms of this Disclaimer

Sheet Cover
B2: =+D26 -> CAV - Sistema tariffario CIPE
B3: Cover
B26: Project Name | D26: CAV - Sistema tariffario CIPE
B27: Client | D27: CAV S.p.A. - Concessioni Autostradali Venete
B28: Advisor | D28: PwC
B29: Version | D29: Final
B30: Data | D30: 2019-07-31

Sheet Dashboard
B2: =+Cover!D26 -> CAV - Sistema tariffario CIPE
B3: Dashboard
B6: Macro
C8: Run PFR CIPE
C9: Run Isopedaggio
C11: Run deduzione
C12: ACE CIPE
B15: Check
C17: Model Check | D17: =+D19+D26+D29 -> 0
C19: Macro Check | D19: =+SUM(D21:D22) -> 0
C21: PFR CIPE | D21: =+Check_CIPE -> 0
C22: Isopedaggio CIPE | D22: =+Check_isopedaggio_cipe -> 0
C24: Output check | D24: =+SUM(D26:D27) -> 0
C26: PEF CIPE | D26: =+PEF_CIPE!F7 -> 0
C27: PFR CIPE | D27: =+'PFR CIPE'!F7 -> 0
C29: Working check | D29: =+SUM(D31:D34) -> 0
C31: Input sheet | D31: =+Input!F7 -> 0
C32: Working sheet | D32: =+Working!F7 -> 0
C33: Y CIPE sheet | D33: =+Prospetti_CIPE!F7 -> 0
C34: Actual sheet | D34: =+Actual!F7 -> 0
B38: CODE
C40: Input | D40: 1000
C42: Flag formula | D42: 1
C44: Calculated | D44: 1000
C46: Link
C47: Link to other sheet | D47: 1000
C48: Link within sheet | D48: 1000 | F48: Sensitivity Panel - Aggiornamento PFR CIPE
C49: Scenario linked Input | D49: 1000
F50: SCENARIO
C51: Locked cell | D51: 1000 | F51: Selected scenario | H51: 2 | I51: 1 | J51: 2 | K51: 3 | L51: 4 | M51: 5 | N51: 6
F52: Scenario name | H52: =+OFFSET(I52,,$H$51-1) -> Aggiornamento ex 39/2017 CIPE | I52: Aggiornamento + efficientamento X | J52: Aggiornamento ex 39/2017 CIPE | K52: Aggiornamento Volumi+Inflazione | L52: Aggiornamento Volumi | M52: Aggiornamento Inflazione | N52: Aggiornamento Investimenti
C53: Check
C54: Positive check | D54: 0 | F54: Sensitivity Aggiornamento PFR CIPE
C55: Negative check | D55: 1 | F55: Volumi Traffico | H55: =+OFFSET(I55,,$H$51-1) -> 1 | I55: 1 | J55: 1 | K55: 1 | L55: 1 | M55: 0 | N55: 0
F56: Inflazione | H56: =+OFFSET(I56,,$H$51-1) -> 1 | I56: 1 | J56: 1 | K56: 1 | L56: 0 | M56: 1 | N56: 0
C57: Macro Accuracy | D57: 2 | F57: Costi ammessi | H57: =+OFFSET(I57,,$H$51-1) -> 1 | I57: 1 | J57: 1 | K57: 0 | L57: 0 | M57: 0 | N57: 0
F58: Efficientamento Costi (5,13%) | H58: =+OFFSET(I58,,$H$51-1) -> 0 | I58: 1 | J58: 0 | K58: 0 | L58: 0 | M58: 0 | N58: 0
F61: OUTPUT - Aggiornamento PFR CIPE
F63: SCENARIO
F64: Selected number | H64: =+H51 -> 2 | I64: =+I51 -> 1 | J64: 2 | K64: 3 | L64: 4 | M64: 5 | N64: 6
F65: Scenario name | H65: Aggiornamento ex 39/2017 CIPE | I65: Aggiornamento + efficientamento X | J65: Aggiornamento ex 39/2017 CIPE | K65: Aggiornamento Volumi+Inflazione | L65: Aggiornamento Volumi | M65: Aggiornamento Inflazione | N65: Aggiornamento Investimenti
F67: PFR CIPE | G67: Unit
F68: Delta tariffa 1° anno | G68: % | H68: =+'PFR CIPE'!P413 -> 0.0092
F69: Delta tariffa 2°/5° anno | G69: % | H69: =+'PFR CIPE'!Q413 -> 0.01226924272
F70: Delta tariffa dal 6° anno | G70: % | H70: =+'PFR CIPE'!U413 -> 0.0005710800112
F71: PF X | G71: % | H71: =+FattoreX_CIPE -> -0.005028919989
F72: PF K | G72: % | H72: =+FattoreK_CIPE -> 0.01169816271
F73: TIR lett. B ART | G73: % | H73: =+#REF! -> 
F74: TIR "Anas" | G74: % | H74: =+'PFR CIPE'!E429 -> 0.1308200383
F77: OUTPUT - Tariffe e Covenant
F79: ANNO | H79: ='PFR CIPE'!O7 -> 2019 | I79: ='PFR CIPE'!P7 -> 2020 | J79: ='PFR CIPE'!Q7 -> 2021 | K79: ='PFR CIPE'!R7 -> 2022 | L79: ='PFR CIPE'!S7 -> 2023 | M79: ='PFR CIPE'!T7 -> 2024 | N79: ='PFR CIPE'!U7 -> 2025 | O79: ='PFR CIPE'!V7 -> 2026 | P79: ='PFR CIPE'!W7 -> 2027 | Q79: ='PFR CIPE'!X7 -> 2028 | R79: ='PFR CIPE'!Y7 -> 2029 | S79: ='PFR CIPE'!Z7 -> 2030 | T79: ='PFR CIPE'!AA7 -> 2031 | U79: ='PFR CIPE'!AB7 -> 2032
F80: Sistema Tariffario CIPE | H80: =SUMIFS(Working!$N$116:$AQ$116,Working!$N$7:$AQ$7,H$79,Working!$N$9:$AQ$9,"12") -> 0.07789839984 | I80: =SUMIFS(Working!$N$116:$AQ$116,Working!$N$7:$AQ$7,I$79,Working!$N$9:$AQ$9,"12") -> 0.08433615205 | J80: =SUMIFS(Working!$N$116:$AQ$116,Working!$N$7:$AQ$7,J$79,Working!$N$9:$AQ$9,"12") -> 0.08035126409 | K80: =SUMIFS(Working!$N$116:$AQ$116,Working!$N$7:$AQ$7,K$79,Working!$N$9:$AQ$9,"12") -> 0.08060097478 | L80: =SUMIFS(Working!$N$116:$AQ$116,Working!$N$7:$AQ$7,L$79,Working!$N$9:$AQ$9,"12") -> 0.08126642408 | M80: =SUMIFS(Working!$N$116:$AQ$116,Working!$N$7:$AQ$7,M$79,Working!$N$9:$AQ$9,"12") -> 0.08211770644 | N80: =SUMIFS(Working!$N$116:$AQ$116,Working!$N$7:$AQ$7,N$79,Working!$N$9:$AQ$9,"12") -> 0.08217190151 | O80: =SUMIFS(Working!$N$116:$AQ$116,Working!$N$7:$AQ$7,O$79,Working!$N$9:$AQ$9,"12") -> 0.08224413026 | P80: =SUMIFS(Working!$N$116:$AQ$116,Working!$N$7:$AQ$7,P$79,Working!$N$9:$AQ$9,"12") -> 0.0823203939 | Q80: =SUMIFS(Working!$N$116:$AQ$116,Working!$N$7:$AQ$7,Q$79,Working!$N$9:$AQ$9,"12") -> 0.08240563569 | R80: =SUMIFS(Working!$N$116:$AQ$116,Working!$N$7:$AQ$7,R$79,Working!$N$9:$AQ$9,"12") -> 0.08248949772 | S80: =SUMIFS(Working!$N$116:$AQ$116,Working!$N$7:$AQ$7,S$79,Working!$N$9:$AQ$9,"12") -> 0.08257332951 | T80: =SUMIFS(Working!$N$116:$AQ$116,Working!$N$7:$AQ$7,T$79,Working!$N$9:$AQ$9,"12") -> 0.08265712984 | U80: =SUMIFS(Working!$N$116:$AQ$116,Working!$N$7:$AQ$7,U$79,Working!$N$9:$AQ$9,"12") -> 0.08274089752
F116: Sistema CIPE | G116: Blocco dei dividendi | H116: Evento di default | I116: =I79 -> 2020 | J116: =J79 -> 2021 | K116: 2022 | L116: 2023 | M116: 2024 | N116: 2025 | O116: 2026 | P116: 2027 | Q116: 2028 | R116: 2029 | S116: 2030 | T116: 2031 | U116: 2032
F118: Historic DSCR | G118: 1.3 | H118: 1.05 | I118: =SUMIFS(Covenant_CIPE!$R$16:$AQ$16,Covenant_CIPE!$R$7:$AQ$7,I$116,Covenant_CIPE!$R$9:$AQ$9,"12") -> 0.8 | J118: =SUMIFS(Covenant_CIPE!$R$16:$AQ$16,Covenant_CIPE!$R$7:$AQ$7,J$116,Covenant_CIPE!$R$9:$AQ$9,"12") -> 1.23 | K118: =SUMIFS(Covenant_CIPE!$R$16:$AQ$16,Covenant_CIPE!$R$7:$AQ$7,K$116,Covenant_CIPE!$R$9:$AQ$9,"12") -> 1.07 | L118: =SUMIFS(Covenant_CIPE!$R$16:$AQ$16,Covenant_CIPE!$R$7:$AQ$7,L$116,Covenant_CIPE!$R$9:$AQ$9,"12") -> 1.42 | M118: =SUMIFS(Covenant_CIPE!$R$16:$AQ$16,Covenant_CIPE!$R$7:$AQ$7,M$116,Covenant_CIPE!$R$9:$AQ$9,"12") -> 1.63 | N118: =SUMIFS(Covenant_CIPE!$R$16:$AQ$16,Covenant_CIPE!$R$7:$AQ$7,N$116,Covenant_CIPE!$R$9:$AQ$9,"12") -> 1.4 | O118: =SUMIFS(Covenant_CIPE!$R$16:$AQ$16,Covenant_CIPE!$R$7:$AQ$7,O$116,Covenant_CIPE!$R$9:$AQ$9,"12") -> 1.41 | P118: =SUMIFS(Covenant_CIPE!$R$16:$AQ$16,Covenant_CIPE!$R$7:$AQ$7,P$116,Covenant_CIPE!$R$9:$AQ$9,"12") -> 1.55 | Q118: =SUMIFS(Covenant_CIPE!$R$16:$AQ$16,Covenant_CIPE!$R$7:$AQ$7,Q$116,Covenant_CIPE!$R$9:$AQ$9,"12") -> 1.56 | R118: =SUMIFS(Covenant_CIPE!$R$16:$AQ$16,Covenant_CIPE!$R$7:$AQ$7,R$116,Covenant_CIPE!$R$9:$AQ$9,"12") -> 1.59 | S118: =SUMIFS(Covenant_CIPE!$R$16:$AQ$16,Covenant_CIPE!$R$7:$AQ$7,S$116,Covenant_CIPE!$R$9:$AQ$9,"12") -> 1.85 | T118: =SUMIFS(Covenant_CIPE!$R$16:$AQ$16,Covenant_CIPE!$R$7:$AQ$7,T$116,Covenant_CIPE!$R$9:$AQ$9,"12") -> 0 | U118: =SUMIFS(Covenant_CIPE!$R$16:$AQ$16,Covenant_CIPE!$R$7:$AQ$7,U$116,Covenant_CIPE!$R$9:$AQ$9,"12") -> 0
F119: Projected DSCR | G119: 1.3 | H119: 1.05 | I119: =SUMIFS(Covenant_CIPE!$R$23:$AQ$23,Covenant_CIPE!$R$7:$AQ$7,I$116,Covenant_CIPE!$R$9:$AQ$9,"12") -> 1.23 | J119: =SUMIFS(Covenant_CIPE!$R$23:$AQ$23,Covenant_CIPE!$R$7:$AQ$7,J$116,Covenant_CIPE!$R$9:$AQ$9,"12") -> 1.07 | K119: =SUMIFS(Covenant_CIPE!$R$23:$AQ$23,Covenant_CIPE!$R$7:$AQ$7,K$116,Covenant_CIPE!$R$9:$AQ$9,"12") -> 1.42 | L119: =SUMIFS(Covenant_CIPE!$R$23:$AQ$23,Covenant_CIPE!$R$7:$AQ$7,L$116,Covenant_CIPE!$R$9:$AQ$9,"12") -> 1.63 | M119: =SUMIFS(Covenant_CIPE!$R$23:$AQ$23,Covenant_CIPE!$R$7:$AQ$7,M$116,Covenant_CIPE!$R$9:$AQ$9,"12") -> 1.4 | N119: =SUMIFS(Covenant_CIPE!$R$23:$AQ$23,Covenant_CIPE!$R$7:$AQ$7,N$116,Covenant_CIPE!$R$9:$AQ$9,"12") -> 1.41 | O119: =SUMIFS(Covenant_CIPE!$R$23:$AQ$23,Covenant_CIPE!$R$7:$AQ$7,O$116,Covenant_CIPE!$R$9:$AQ$9,"12") -> 1.55 | P119: =SUMIFS(Covenant_CIPE!$R$23:$AQ$23,Covenant_CIPE!$R$7:$AQ$7,P$116,Covenant_CIPE!$R$9:$AQ$9,"12") -> 1.56 | Q119: =SUMIFS(Covenant_CIPE!$R$23:$AQ$23,Covenant_CIPE!$R$7:$AQ$7,Q$116,Covenant_CIPE!$R$9:$AQ$9,"12") -> 1.59 | R119: =SUMIFS(Covenant_CIPE!$R$23:$AQ$23,Covenant_CIPE!$R$7:$AQ$7,R$116,Covenant_CIPE!$R$9:$AQ$9,"12") -> 1.85 | S119: =SUMIFS(Covenant_CIPE!$R$23:$AQ$23,Covenant_CIPE!$R$7:$AQ$7,S$116,Covenant_CIPE!$R$9:$AQ$9,"12") -> 0 | T119: =SUMIFS(Covenant_CIPE!$R$23:$AQ$23,Covenant_CIPE!$R$7:$AQ$7,T$116,Covenant_CIPE!$R$9:$AQ$9,"12") -> 0 | U119: =SUMIFS(Covenant_CIPE!$R$23:$AQ$23,Covenant_CIPE!$R$7:$AQ$7,U$116,Covenant_CIPE!$R$9:$AQ$9,"12") -> 0
F120: Projected BLCR | G120: 1.4 | H120: 1.15 | I120: =SUMIFS(Covenant_CIPE!$R$30:$AQ$30,Covenant_CIPE!$R$7:$AQ$7,I$116,Covenant_CIPE!$R$9:$AQ$9,"12") -> 1.51 | J120: =SUMIFS(Covenant_CIPE!$R$30:$AQ$30,Covenant_CIPE!$R$7:$AQ$7,J$116,Covenant_CIPE!$R$9:$AQ$9,"12") -> 1.55 | K120: =SUMIFS(Covenant_CIPE!$R$30:$AQ$30,Covenant_CIPE!$R$7:$AQ$7,K$116,Covenant_CIPE!$R$9:$AQ$9,"12") -> 1.62 | L120: =SUMIFS(Covenant_CIPE!$R$30:$AQ$30,Covenant_CIPE!$R$7:$AQ$7,L$116,Covenant_CIPE!$R$9:$AQ$9,"12") -> 1.64 | M120: =SUMIFS(Covenant_CIPE!$R$30:$AQ$30,Covenant_CIPE!$R$7:$AQ$7,M$116,Covenant_CIPE!$R$9:$AQ$9,"12") -> 1.64 | N120: =SUMIFS(Covenant_CIPE!$R$30:$AQ$30,Covenant_CIPE!$R$7:$AQ$7,N$116,Covenant_CIPE!$R$9:$AQ$9,"12") -> 1.69 | O120: =SUMIFS(Covenant_CIPE!$R$30:$AQ$30,Covenant_CIPE!$R$7:$AQ$7,O$116,Covenant_CIPE!$R$9:$AQ$9,"12") -> 1.77 | P120: =SUMIFS(Covenant_CIPE!$R$30:$AQ$30,Covenant_CIPE!$R$7:$AQ$7,P$116,Covenant_CIPE!$R$9:$AQ$9,"12") -> 1.84 | Q120: =SUMIFS(Covenant_CIPE!$R$30:$AQ$30,Covenant_CIPE!$R$7:$AQ$7,Q$116,Covenant_CIPE!$R$9:$AQ$9,"12") -> 1.98 | R120: =SUMIFS(Covenant_CIPE!$R$30:$AQ$30,Covenant_CIPE!$R$7:$AQ$7,R$116,Covenant_CIPE!$R$9:$AQ$9,"12") -> 2.41 | S120: =SUMIFS(Covenant_CIPE!$R$30:$AQ$30,Covenant_CIPE!$R$7:$AQ$7,S$116,Covenant_CIPE!$R$9:$AQ$9,"12") -> 0 | T120: =SUMIFS(Covenant_CIPE!$R$30:$AQ$30,Covenant_CIPE!$R$7:$AQ$7,T$116,Covenant_CIPE!$R$9:$AQ$9,"12") -> 0 | U120: =SUMIFS(Covenant_CIPE!$R$30:$AQ$30,Covenant_CIPE!$R$7:$AQ$7,U$116,Covenant_CIPE!$R$9:$AQ$9,"12") -> 0
B139: END OF SHEET

Sheet A >>

Sheet PEF_CIPE
B2: =+Cover!D26 -> CAV - Sistema tariffario CIPE
B3: PEF_CIPE
I5: Starting date | N5: =+Input!$N$5 -> 2018-01-01 | O5: =+N6+1 -> 2019-01-01 | P5: =+O6+1 -> 2020-01-01 | Q5: 2021-01-01 | R5: 2022-01-01 | S5: 2023-01-01 | T5: 2024-01-01 | U5: 2025-01-01 | V5: 2026-01-01 | W5: 2027-01-01 | X5: 2028-01-01 | Y5: 2029-01-01 | Z5: 2030-01-01 | AA5: 2031-01-01 | AB5: 2032-01-01 | AG5: 1900-01-01
I6: Ending date | N6: =+EOMONTH(N5,11) -> 2018-12-31 | O6: =+EOMONTH(O5,11) -> 2019-12-31 | P6: 2020-12-31 | Q6: 2021-12-31 | R6: 2022-12-31 | S6: 2023-12-31 | T6: 2024-12-31 | U6: 2025-12-31 | V6: 2026-12-31 | W6: 2027-12-31 | X6: 2028-12-31 | Y6: 2029-12-31 | Z6: 2030-12-31 | AA6: 2031-12-31 | AB6: 2032-12-31 | AG6: =+EOMONTH(#REF!,Input!$E$28-1) ->  | AH6: =+EOMONTH(#REF!,Input!$E$28-1) ->  | AI6: =+EOMONTH(#REF!,Input!$E$28-1) ->  | AJ6: =+EOMONTH(#REF!,Input!$E$28-1) ->  | AK6: =+EOMONTH(#REF!,Input!$E$28-1) ->  | AL6: =+EOMONTH(#REF!,Input!$E$28-1) ->  | AM6: =+EOMONTH(#REF!,Input!$E$28-1) ->  | AN6: =+EOMONTH(#REF!,Input!$E$28-1) ->  | AO6: =+EOMONTH(#REF!,Input!$E$28-1) ->  | AP6: =+EOMONTH(#REF!,Input!$E$28-1) -> 
E7: sheet check | F7: =+SUM(G7:G256) -> 0 | I7: Year | N7: =YEAR(N6) -> 2018 | O7: 2019 | P7: 2020 | Q7: 2021 | R7: 2022 | S7: 2023 | T7: 2024 | U7: 2025 | V7: 2026 | W7: 2027 | X7: 2028 | Y7: 2029 | Z7: 2030 | AA7: 2031 | AB7: 2032
I8: Days (in period) | N8: =N6-N5+1 -> 365 | O8: 365 | P8: 366 | Q8: 365 | R8: 365 | S8: 365 | T8: 366 | U8: 365 | V8: 365 | W8: 365 | X8: 366 | Y8: 365 | Z8: 365 | AA8: 365 | AB8: 366
I9: Month | N9: =MONTH(N6) -> 12 | O9: 12 | P9: 12 | Q9: 12 | R9: 12 | S9: 12 | T9: 12 | U9: 12 | V9: 12 | W9: 12 | X9: 12 | Y9: 12 | Z9: 12 | AA9: 12 | AB9: 12
I10: Period counter | N10: =M10+1 -> 1 | O10: 2 | P10: 3 | Q10: 4 | R10: 5 | S10: 6 | T10: 7 | U10: 8 | V10: 9 | W10: 10 | X10: 11 | Y10: 12 | Z10: 13 | AA10: 14 | AB10: 15 | AG10: 1 | AH10: 2 | AI10: 3 | AJ10: 4 | AK10: 5 | AL10: 6 | AM10: 7 | AN10: 8 | AO10: 9 | AP10: 10
I11: End of year | N11: =1*(N9=12) -> 1 | O11: =1*(O9=12) -> 1 | P11: 1 | Q11: 1 | R11: 1 | S11: 1 | T11: 1 | U11: 1 | V11: 1 | W11: 1 | X11: 1 | Y11: 1 | Z11: 1 | AA11: 1 | AB11: 1
I12: End of semester | N12: =1*OR(N9=6,N9=12) -> 1 | O12: =1*OR(O9=6,O9=12) -> 1 | P12: 1 | Q12: 1 | R12: 1 | S12: 1 | T12: 1 | U12: 1 | V12: 1 | W12: 1 | X12: 1 | Y12: 1 | Z12: 1 | AA12: 1 | AB12: 1
I13: Fraction of year | N13: =+N8/ROUND(Input!$E$23,1) -> 1.013888889 | O13: =+O8/ROUND(Input!$E$23,1) -> 1.013888889 | P13: =+P8/ROUND(Input!$E$23,1) -> 1.016666667 | Q13: =+Q8/ROUND(Input!$E$23,1) -> 1.013888889 | R13: =+R8/ROUND(Input!$E$23,1) -> 1.013888889 | S13: =+S8/ROUND(Input!$E$23,1) -> 1.013888889 | T13: =+T8/ROUND(Input!$E$23,1) -> 1.016666667 | U13: =+U8/ROUND(Input!$E$23,1) -> 1.013888889 | V13: =+V8/ROUND(Input!$E$23,1) -> 1.013888889 | W13: =+W8/ROUND(Input!$E$23,1) -> 1.013888889 | X13: =+X8/ROUND(Input!$E$23,1) -> 1.016666667 | Y13: =+Y8/ROUND(Input!$E$23,1) -> 1.013888889 | Z13: =+Z8/ROUND(Input!$E$23,1) -> 1.013888889 | AA13: =+AA8/ROUND(Input!$E$23,1) -> 1.013888889 | AB13: =+AB8/ROUND(Input!$E$23,1) -> 1.016666667 | AG13: =+AG8/ROUND(Input!$E$23,1) ->  | AH13: =+AH8/ROUND(Input!$E$23,1) ->  | AI13: =+AI8/ROUND(Input!$E$23,1) ->  | AJ13: =+AJ8/ROUND(Input!$E$23,1) ->  | AK13: =+AK8/ROUND(Input!$E$23,1) ->  | AL13: =+AL8/ROUND(Input!$E$23,1) ->  | AM13: =+AM8/ROUND(Input!$E$23,1) ->  | AN13: =+AN8/ROUND(Input!$E$23,1) ->  | AO13: =+AO8/ROUND(Input!$E$23,1) ->  | AP13: =+AP8/ROUND(Input!$E$23,1) -> 
B16: 1 | C16: Tabella 1 - CONTO FINANZIARIO | D16: Unit | E16: Codice Dicoter | G16: Check | I16: Tot. 2020/32
C18: Area Operativa
C20: Utile (Perdita) netto di esercizio | D20: €'000 | E20: 1.1 | I20: =+SUM(P20:AB20) -> 480910.3451 | N20: =+Prospetti_CIPE!N56 -> 23364.62742 | O20: =+Prospetti_CIPE!O56 -> 27003.02044 | P20: =+Prospetti_CIPE!P56 -> 1187.656664 | Q20: =+Prospetti_CIPE!Q56 -> 24872.44155 | R20: =+Prospetti_CIPE!R56 -> 31578.31741 | S20: =+Prospetti_CIPE!S56 -> 34725.73088 | T20: =+Prospetti_CIPE!T56 -> 38379.44831 | U20: =+Prospetti_CIPE!U56 -> 39689.97785 | V20: =+Prospetti_CIPE!V56 -> 39663.97285 | W20: =+Prospetti_CIPE!W56 -> 40261.93808 | X20: =+Prospetti_CIPE!X56 -> 41700.73087 | Y20: =+Prospetti_CIPE!Y56 -> 42946.26753 | Z20: =+Prospetti_CIPE!Z56 -> 44614.48984 | AA20: =+Prospetti_CIPE!AA56 -> 44871.93919 | AB20: =+Prospetti_CIPE!AB56 -> 56417.43406
C21: Accantonamenti e ammortamenti | D21: €'000 | E21: 1.2 | I21: =+SUM(P21:AB21) -> 644581.8324 | N21: =-SUM(Prospetti_CIPE!N35:N39) -> 44666.36582 | O21: =-SUM(Prospetti_CIPE!O35:O39) -> 40876.52068 | P21: =-SUM(Prospetti_CIPE!P35:P39) -> 41666.16758 | Q21: =-SUM(Prospetti_CIPE!Q35:Q39) -> 46704.33711 | R21: =-SUM(Prospetti_CIPE!R35:R39) -> 46761.55312 | S21: =-SUM(Prospetti_CIPE!S35:S39) -> 48102.42146 | T21: =-SUM(Prospetti_CIPE!T35:T39) -> 48095.90045 | U21: =-SUM(Prospetti_CIPE!U35:U39) -> 49089.44608 | V21: =-SUM(Prospetti_CIPE!V35:V39) -> 51368.21011 | W21: =-SUM(Prospetti_CIPE!W35:W39) -> 52701.55644 | X21: =-SUM(Prospetti_CIPE!X35:X39) -> 53407.75212 | Y21: =-SUM(Prospetti_CIPE!Y35:Y39) -> 54250.77025 | Z21: =-SUM(Prospetti_CIPE!Z35:Z39) -> 54433.08038 | AA21: =-SUM(Prospetti_CIPE!AA35:AA39) -> 56150.76406 | AB21: =-SUM(Prospetti_CIPE!AB35:AB39) -> 41849.87326
C22: Quota TFR maturata nell'esercizio | D22: €'000 | E22: 1.3 | I22: 0
C23: Autofinanziamento | D23: €'000 | E23: 1.4 | I23: 1125492.177 | N23: =+SUM(N20:N22) -> 68030.99324 | O23: =+SUM(O20:O22) -> 67879.54112 | P23: 42853.82424 | Q23: 71576.77866 | R23: 78339.87053 | S23: 82828.15234 | T23: 86475.34876 | U23: 88779.42393 | V23: 91032.18296 | W23: 92963.49452 | X23: 95108.48299 | Y23: 97197.03777 | Z23: 99047.57022 | AA23: 101022.7032 | AB23: 98267.30732
C25: Variazione capitale circolante netto operativo | D25: €'000 | E25: 1.5 | I25: =+SUM(P25:AB25) -> 18199.63878 | N25: =+Prospetti_CIPE!N122 -> 0 | O25: =+Prospetti_CIPE!O122 -> 54100.00512 | P25: =+Prospetti_CIPE!P122 -> 5108.619423 | Q25: =+Prospetti_CIPE!Q122 -> 5560.627327 | R25: =+Prospetti_CIPE!R122 -> -8396.975638 | S25: =+Prospetti_CIPE!S122 -> -1680.746651 | T25: =+Prospetti_CIPE!T122 -> -1061.455876 | U25: =+Prospetti_CIPE!U122 -> -2224.641022 | V25: =+Prospetti_CIPE!V122 -> 852.1022483 | W25: =+Prospetti_CIPE!W122 -> -67.57243659 | X25: =+Prospetti_CIPE!X122 -> 220.6733488 | Y25: =+Prospetti_CIPE!Y122 -> -153.8924068 | Z25: =+Prospetti_CIPE!Z122 -> -25.01618877 | AA25: =+Prospetti_CIPE!AA122 -> -302.932291 | AB25: =+Prospetti_CIPE!AB122 -> 20370.84894
C26: Flusso di liquidità della gestione corrente | D26: €'000 | E26: 1.6 | I26: 1143691.816 | N26: =+N23+N25 -> 68030.99324 | O26: =+O23+O25 -> 121979.5462 | P26: =+P23+P25 -> 47962.44367 | Q26: 77137.40599 | R26: 69942.89489 | S26: 81147.40569 | T26: 85413.89289 | U26: 86554.78291 | V26: 91884.28521 | W26: 92895.92208 | X26: 95329.15633 | Y26: 97043.14537 | Z26: 99022.55403 | AA26: 100719.771 | AB26: 118638.1563
C28: Costi capitalizzati | D28: €'000 | E28: 1.7 | I28: =+SUM(P28:AB28) -> 0
C29: Investimenti in beni reversibili | D29: €'000 | E29: 1.8 | I29: -64826 | N29: =+Prospetti_CIPE!N124 -> 0 | O29: =+Prospetti_CIPE!O124 -> -5772.71277 | P29: =+Prospetti_CIPE!P124 -> -4786 | Q29: =+Prospetti_CIPE!Q124 -> -3280 | R29: =+Prospetti_CIPE!R124 -> -7170 | S29: =+Prospetti_CIPE!S124 -> -5236 | T29: =+Prospetti_CIPE!T124 -> -1960 | U29: =+Prospetti_CIPE!U124 -> -14658 | V29: =+Prospetti_CIPE!V124 -> -16191 | W29: =+Prospetti_CIPE!W124 -> -2595 | X29: =+Prospetti_CIPE!X124 -> -1790 | Y29: =+Prospetti_CIPE!Y124 -> -1790 | Z29: =+Prospetti_CIPE!Z124 -> -1790 | AA29: =+Prospetti_CIPE!AA124 -> -1790 | AB29: =+Prospetti_CIPE!AB124 -> -1790
C30: Contributi in conto capitale | D30: €'000 | E30: 1.9 | I30: 0
C31: Investimenti in beni non reversibili | D31: €'000 | E31: 1.10;1.18 | I31: -6023.942 | N31: =+Prospetti_CIPE!N125 -> 0 | O31: =+Prospetti_CIPE!O125 -> -408.2754 | P31: =+Prospetti_CIPE!P125 -> -775 | Q31: =+Prospetti_CIPE!Q125 -> -825 | R31: =+Prospetti_CIPE!R125 -> -425 | S31: =+Prospetti_CIPE!S125 -> -425 | T31: =+Prospetti_CIPE!T125 -> -425 | U31: =+Prospetti_CIPE!U125 -> -425 | V31: =+Prospetti_CIPE!V125 -> -425 | W31: =+Prospetti_CIPE!W125 -> -425 | X31: =+Prospetti_CIPE!X125 -> -425 | Y31: =+Prospetti_CIPE!Y125 -> -425 | Z31: =+Prospetti_CIPE!Z125 -> -425 | AA31: =+Prospetti_CIPE!AA125 -> -425 | AB31: =+Prospetti_CIPE!AB125 -> -173.942
C32: Investimenti per immobilizzazioni immateriali | D32: €'000 | E32: 1.11 | I32: -3150 | N32: =+Prospetti_CIPE!N126 -> 0 | O32: =+Prospetti_CIPE!O126 -> -80.80164 | P32: =+Prospetti_CIPE!P126 -> -1050 | Q32: =+Prospetti_CIPE!Q126 -> -1050 | R32: =+Prospetti_CIPE!R126 -> -1050 | S32: =+Prospetti_CIPE!S126 -> 0 | T32: =+Prospetti_CIPE!T126 -> 0 | U32: =+Prospetti_CIPE!U126 -> 0 | V32: =+Prospetti_CIPE!V126 -> 0 | W32: =+Prospetti_CIPE!W126 -> 0 | X32: =+Prospetti_CIPE!X126 -> 0 | Y32: =+Prospetti_CIPE!Y126 -> 0 | Z32: =+Prospetti_CIPE!Z126 -> 0 | AA32: =+Prospetti_CIPE!AA126 -> 0 | AB32: =+Prospetti_CIPE!AB126 -> 0
C33: Saldo altri flussi gestione operativa | D33: €'000 | E33: 1.12 | I33: 72458.96488 | O33: =+Prospetti_CIPE!O128+Prospetti_CIPE!O129+Prospetti_CIPE!O142+Prospetti_CIPE!O143 -> -2634.709 | P33: =+Prospetti_CIPE!P128+Prospetti_CIPE!P129+Prospetti_CIPE!P142+Prospetti_CIPE!P143 -> 5448.352709 | Q33: =+Prospetti_CIPE!Q128+Prospetti_CIPE!Q129+Prospetti_CIPE!Q142+Prospetti_CIPE!Q143 -> 1206.045543 | R33: =+Prospetti_CIPE!R128+Prospetti_CIPE!R129+Prospetti_CIPE!R142+Prospetti_CIPE!R143 -> 10914.01429 | S33: =+Prospetti_CIPE!S128+Prospetti_CIPE!S129+Prospetti_CIPE!S142+Prospetti_CIPE!S143 -> 11139.10863 | T33: =+Prospetti_CIPE!T128+Prospetti_CIPE!T129+Prospetti_CIPE!T142+Prospetti_CIPE!T143 -> 671.4795063 | U33: =+Prospetti_CIPE!U128+Prospetti_CIPE!U129+Prospetti_CIPE!U142+Prospetti_CIPE!U143 -> 5406.409282 | V33: =+Prospetti_CIPE!V128+Prospetti_CIPE!V129+Prospetti_CIPE!V142+Prospetti_CIPE!V143 -> -2386.186844 | W33: =+Prospetti_CIPE!W128+Prospetti_CIPE!W129+Prospetti_CIPE!W142+Prospetti_CIPE!W143 -> -60.45184952 | X33: =+Prospetti_CIPE!X128+Prospetti_CIPE!X129+Prospetti_CIPE!X142+Prospetti_CIPE!X143 -> 730.8144508 | Y33: =+Prospetti_CIPE!Y128+Prospetti_CIPE!Y129+Prospetti_CIPE!Y142+Prospetti_CIPE!Y143 -> -656.622193 | Z33: =+Prospetti_CIPE!Z128+Prospetti_CIPE!Z129+Prospetti_CIPE!Z142+Prospetti_CIPE!Z143 -> 40046.00136 | AA33: =+Prospetti_CIPE!AA128+Prospetti_CIPE!AA129+Prospetti_CIPE!AA142+Prospetti_CIPE!AA143 -> 0 | AB33: =+Prospetti_CIPE!AB128+Prospetti_CIPE!AB129+Prospetti_CIPE!AB142+Prospetti_CIPE!AB143 -> 0
C34: Flusso di liquidità della gestione operativa | D34: €'000 | E34: 1.13 | I34: 1142150.839 | N34: =+SUM(N26:N33) -> 68030.99324 | O34: =+SUM(O26:O33) -> 113083.0474 | P34: =+SUM(P26:P33) -> 46799.79638 | Q34: =+SUM(Q26:Q33) -> 73188.45153 | R34: 72211.90918 | S34: 86625.51432 | T34: 83700.37239 | U34: 76878.19219 | V34: 72882.09836 | W34: 89815.47024 | X34: 93844.97079 | Y34: 94171.52317 | Z34: 136853.5554 | AA34: 98504.77096 | AB34: 116674.2143
C36: Area Finanziaria
C38: Apporto degli azionisti | D38: €'000 | E38: 1.14 | I38: =+SUM(P38:AB38) -> 0 | O38: =+Prospetti_CIPE!O147 -> 0 | P38: =+Prospetti_CIPE!P147 -> 0 | Q38: =+Prospetti_CIPE!Q147 -> 0 | R38: =+Prospetti_CIPE!R147 -> 0 | S38: =+Prospetti_CIPE!S147 -> 0 | T38: =+Prospetti_CIPE!T147 -> 0 | U38: =+Prospetti_CIPE!U147 -> 0 | V38: =+Prospetti_CIPE!V147 -> 0 | W38: =+Prospetti_CIPE!W147 -> 0 | X38: =+Prospetti_CIPE!X147 -> 0 | Y38: =+Prospetti_CIPE!Y147 -> 0 | Z38: =+Prospetti_CIPE!Z147 -> 0 | AA38: =+Prospetti_CIPE!AA147 -> 0 | AB38: =+Prospetti_CIPE!AB147 -> 0
C39: Accensione nuovi prestiti | D39: €'000 | E39: 1.15 | I39: 0
C40: Variazione posizione verso FCG | D40: €'000 | E40: 1.16 | I40: 0
C41: Variazione posizione verso ANAS | D41: €'000 | E41: 1.17 | I41: 0
C42: Variazione delle immobilizzazioni finanziarie | D42: €'000 | E42: 1.18 | I42: 0
C43: Utili distribuiti | D43: €'000 | E43: 1.19 | I43: -646375.3565 | O43: =+Prospetti_CIPE!O148+Prospetti_CIPE!O149 -> 0 | P43: =+Prospetti_CIPE!P148+Prospetti_CIPE!P149 -> 0 | Q43: =+Prospetti_CIPE!Q148+Prospetti_CIPE!Q149 -> 0 | R43: =+Prospetti_CIPE!R148+Prospetti_CIPE!R149 -> 0 | S43: =+Prospetti_CIPE!S148+Prospetti_CIPE!S149 -> -145663.2709 | T43: =+Prospetti_CIPE!T148+Prospetti_CIPE!T149 -> -34968.72998 | U43: =+Prospetti_CIPE!U148+Prospetti_CIPE!U149 -> -30748.69817 | V43: =+Prospetti_CIPE!V148+Prospetti_CIPE!V149 -> -23882.72275 | W43: =+Prospetti_CIPE!W148+Prospetti_CIPE!W149 -> -25604.06757 | X43: =+Prospetti_CIPE!X148+Prospetti_CIPE!X149 -> -34378.90851 | Y43: =+Prospetti_CIPE!Y148+Prospetti_CIPE!Y149 -> -34396.73593 | Z43: =+Prospetti_CIPE!Z148+Prospetti_CIPE!Z149 -> -37394.11079 | AA43: =+Prospetti_CIPE!AA148+Prospetti_CIPE!AA149 -> -112128.5652 | AB43: =+Prospetti_CIPE!AB148+Prospetti_CIPE!AB149 -> -167209.5467
C44: Rimborso prestiti consolidati | D44: €'000 | E44: 1.20 | I44: 0
C45: Rimborso nuovi prestiti a medio lungo termine | D45: €'000 | E45: 1.21 | I45: -632559.5997 | O45: =IF(O183<N183,(O183-N183+SUMIF(Input!$N$7:$AQ$7,O7,Input!$N$312:$AQ$312)),0) -> -64054.93678 | P45: =IF(P183<O183,(P183-O183+SUMIF(Input!$N$7:$AQ$7,P7,Input!$N$312:$AQ$312)),0) -> -64723.39997 | Q45: =IF(Q183<P183,(Q183-P183+SUMIF(Input!$N$7:$AQ$7,Q7,Input!$N$312:$AQ$312)),0) -> -60407.39997 | R45: =IF(R183<Q183,(R183-Q183+SUMIF(Input!$N$7:$AQ$7,R7,Input!$N$312:$AQ$312)),0) -> -65237.99996 | S45: =IF(S183<R183,(S183-R183+SUMIF(Input!$N$7:$AQ$7,S7,Input!$N$312:$AQ$312)),0) -> -55302.89997 | T45: =IF(T183<S183,(T183-S183+SUMIF(Input!$N$7:$AQ$7,T7,Input!$N$312:$AQ$312)),0) -> -49799.99997 | U45: =IF(U183<T183,(U183-T183+SUMIF(Input!$N$7:$AQ$7,U7,Input!$N$312:$AQ$312)),0) -> -53119.99997 | V45: =IF(V183<U183,(V183-U183+SUMIF(Input!$N$7:$AQ$7,V7,Input!$N$312:$AQ$312)),0) -> -52530.69997 | W45: =IF(W183<V183,(W183-V183+SUMIF(Input!$N$7:$AQ$7,W7,Input!$N$312:$AQ$312)),0) -> -56921.39997 | X45: =IF(X183<W183,(X183-W183+SUMIF(Input!$N$7:$AQ$7,X7,Input!$N$312:$AQ$312)),0) -> -58871.89997 | Y45: =IF(Y183<X183,(Y183-X183+SUMIF(Input!$N$7:$AQ$7,Y7,Input!$N$312:$AQ$312)),0) -> -59046.19997 | Z45: =IF(Z183<Y183,(Z183-Y183+SUMIF(Input!$N$7:$AQ$7,Z7,Input!$N$312:$AQ$312)),0) -> -56597.69997 | AA45: =IF(AA183<Z183,(AA183-Z183+SUMIF(Input!$N$7:$AQ$7,AA7,Input!$N$312:$AQ$312)),0) -> 0 | AB45: =IF(AB183<AA183,(AB183-AA183+SUMIF(Input!$N$7:$AQ$7,AB7,Input!$N$312:$AQ$312)),0) -> 0
C46: Flusso di liquidita' della gestione finanziaria | D46: €'000 | E46: 1.22 | I46: -1278934.956 | N46: =+SUM(N38:N45) -> 0 | O46: =+SUM(O38:O45) -> -64054.93678 | P46: -64723.39997 | Q46: =+SUM(Q38:Q45) -> -60407.39997 | R46: -65237.99996 | S46: -200966.1709 | T46: -84768.72996 | U46: -83868.69815 | V46: -76413.42272 | W46: -82525.46754 | X46: -93250.80848 | Y46: -93442.9359 | Z46: -93991.81076 | AA46: -112128.5652 | AB46: -167209.5467
C48: Variazione posizione finanziaria a breve | D48: €'000 | E48: 1.23 | I48: =+SUM(P48:AB48) -> -136784.117 | N48: =+N46+N34 -> 68030.99324 | O48: =+O46+O34 -> 49028.11065 | P48: =+P46+P34 -> -17923.60359 | Q48: 12781.05156 | R48: 6973.909212 | S48: -114340.6566 | T48: -1068.357562 | U48: -6990.505952 | V48: -3531.324362 | W48: 7290.002698 | X48: 594.162308 | Y48: 728.5872776 | Z48: 42861.74463 | AA48: -13623.79424 | AB48: -50535.33242
B52: 2 | C52: Tabella 2 - CONTO ECONOMICO | D52: Unit | E52: Codice Dicoter | I52: Tot. 2020/32
C54: Ricavi
C56: Ricavi da pedaggi | D56: €'000 | E56: 2.1 | I56: =+SUM(P56:AB56) -> 2040349.414 | N56: =+Prospetti_CIPE!N18 -> 139908.73 | O56: =+Prospetti_CIPE!O18 -> 144151.1578 | P56: =+Prospetti_CIPE!P18 -> 109033.304 | Q56: =+Prospetti_CIPE!Q18 -> 142691.312 | R56: =+Prospetti_CIPE!R18 -> 149681.1899 | S56: =+Prospetti_CIPE!S18 -> 154413.1516 | T56: =+Prospetti_CIPE!T18 -> 158651.747 | U56: =+Prospetti_CIPE!U18 -> 160404.1391 | V56: =+Prospetti_CIPE!V18 -> 161972.4274 | W56: =+Prospetti_CIPE!W18 -> 163509.8728 | X56: =+Prospetti_CIPE!X18 -> 164980.2442 | Y56: =+Prospetti_CIPE!Y18 -> 166485.2466 | Z56: =+Prospetti_CIPE!Z18 -> 167994.4217 | AA56: =+Prospetti_CIPE!AA18 -> 169507.6297 | AB56: =+Prospetti_CIPE!AB18 -> 171024.7284
C57: Proventi netti da subconcessioni e attività collaterali | D57: €'000 | E57: 2.2 | I57: 59133.90941 | N57: =+Prospetti_CIPE!N19 -> 4379.16641 | O57: =+Prospetti_CIPE!O19 -> 4300.07978 | P57: =+Prospetti_CIPE!P19 -> 4334.480418 | Q57: =+Prospetti_CIPE!Q19 -> 4369.156262 | R57: =+Prospetti_CIPE!R19 -> 4404.109512 | S57: =+Prospetti_CIPE!S19 -> 4439.342388 | T57: =+Prospetti_CIPE!T19 -> 4474.857127 | U57: =+Prospetti_CIPE!U19 -> 4510.655984 | V57: =+Prospetti_CIPE!V19 -> 4546.741232 | W57: =+Prospetti_CIPE!W19 -> 4583.115162 | X57: =+Prospetti_CIPE!X19 -> 4619.780083 | Y57: =+Prospetti_CIPE!Y19 -> 4656.738324 | Z57: =+Prospetti_CIPE!Z19 -> 4693.99223 | AA57: =+Prospetti_CIPE!AA19 -> 4731.544168 | AB57: =+Prospetti_CIPE!AB19 -> 4769.396521
C58: Altri proventi | D58: €'000 | E58: 2.3 | I58: 44778.06041 | N58: =+Prospetti_CIPE!N20 -> 4238.03156 | O58: =+Prospetti_CIPE!O20 -> 3256.15597 | P58: =+Prospetti_CIPE!P20 -> 3282.205218 | Q58: =+Prospetti_CIPE!Q20 -> 3308.46286 | R58: =+Prospetti_CIPE!R20 -> 3334.930562 | S58: =+Prospetti_CIPE!S20 -> 3361.610007 | T58: =+Prospetti_CIPE!T20 -> 3388.502887 | U58: =+Prospetti_CIPE!U20 -> 3415.61091 | V58: =+Prospetti_CIPE!V20 -> 3442.935797 | W58: =+Prospetti_CIPE!W20 -> 3470.479284 | X58: =+Prospetti_CIPE!X20 -> 3498.243118 | Y58: =+Prospetti_CIPE!Y20 -> 3526.229063 | Z58: =+Prospetti_CIPE!Z20 -> 3554.438895 | AA58: =+Prospetti_CIPE!AA20 -> 3582.874407 | AB58: =+Prospetti_CIPE!AB20 -> 3611.537402
C59: Ricavi lavori c/terzi | D59: €'000 | E59: 2.4 | I59: 0
C60: Totale | D60: €'000 | E60: 2.5 | I60: 2144261.384 | N60: =+SUM(N56:N59) -> 148525.928 | O60: =+SUM(O56:O59) -> 151707.3935 | P60: 116649.9896 | Q60: 150368.9311 | R60: 157420.23 | S60: 162214.104 | T60: 166515.107 | U60: 168330.406 | V60: 169962.1044 | W60: 171563.4673 | X60: 173098.2674 | Y60: 174668.214 | Z60: 176242.8529 | AA60: 177822.0482 | AB60: 179405.6623
C62: Costi Operativi
C64: Costi di produzione
C65: Personale addetto alla riscossione | D65: €'000 | E65: 2.6.1 | I65: =+SUM(P65:AB65) -> -283420.9621 | N65: =+Prospetti_CIPE!N26 -> -19244.48014 | O65: =+Prospetti_CIPE!O26 -> -18541.29844 | P65: =+Prospetti_CIPE!P26 -> -19348.31574 | Q65: =+Prospetti_CIPE!Q26 -> -20580.96124 | R65: =+Prospetti_CIPE!R26 -> -21264.29203 | S65: =+Prospetti_CIPE!S26 -> -21434.40637 | T65: =+Prospetti_CIPE!T26 -> -21605.88162 | U65: =+Prospetti_CIPE!U26 -> -21778.72867 | V65: =+Prospetti_CIPE!V26 -> -21952.9585 | W65: =+Prospetti_CIPE!W26 -> -22128.58217 | X65: =+Prospetti_CIPE!X26 -> -22305.61083 | Y65: =+Prospetti_CIPE!Y26 -> -22484.05572 | Z65: =+Prospetti_CIPE!Z26 -> -22663.92816 | AA65: =+Prospetti_CIPE!AA26 -> -22845.23959 | AB65: =+Prospetti_CIPE!AB26 -> -23028.0015
C66: Personale addetto alla sicurezza | D66: €'000 | E66: 2.6.2 | I66: 0
C67: Personale addetto alla manutenzione | D67: €'000 | E67: 2.6.3 | I67: 0
C68: Personale addetto alla direzione lavori | D68: €'000 | E68: 2.6.4 | I68: 0
C69: Costi manutenzione e rinnovi | D69: €'000 | E69: 2.7 | I69: -214219.8046 | N69: =+Prospetti_CIPE!N25 -> -14540.74192 | O69: =+Prospetti_CIPE!O25 -> -18420.78954 | P69: =+Prospetti_CIPE!P25 -> -19207.4361 | Q69: =+Prospetti_CIPE!Q25 -> -15281.39542 | R69: =+Prospetti_CIPE!R25 -> -15710.90433 | S69: =+Prospetti_CIPE!S25 -> -15526.87575 | T69: =+Prospetti_CIPE!T25 -> -15921.65849 | U69: =+Prospetti_CIPE!U25 -> -15776.29948 | V69: =+Prospetti_CIPE!V25 -> -15902.50988 | W69: =+Prospetti_CIPE!W25 -> -16508.28357 | X69: =+Prospetti_CIPE!X25 -> -16496.38727 | Y69: =+Prospetti_CIPE!Y25 -> -16628.35837 | Z69: =+Prospetti_CIPE!Z25 -> -17045.20275 | AA69: =+Prospetti_CIPE!AA25 -> -16895.47632 | AB69: =+Prospetti_CIPE!AB25 -> -17319.01689
C70: Costi lavori c/terzi | D70: €'000 | E70: 2.8 | I70: 0
C71: Prestazioni di servizi | D71: €'000 | E71: 2.9 | I71: 0
C72: Canoni di concessione | D72: €'000 | E72: 2.10 | I72: -50151.06413 | N72: =+Prospetti_CIPE!N27+Prospetti_CIPE!N28 -> -3445.39284 | O72: =+Prospetti_CIPE!O27+Prospetti_CIPE!O28 -> -3545.62939 | P72: =+Prospetti_CIPE!P27+Prospetti_CIPE!P28 -> -2703.488905 | Q72: =+Prospetti_CIPE!Q27+Prospetti_CIPE!Q28 -> -3511.974612 | R72: =+Prospetti_CIPE!R27+Prospetti_CIPE!R28 -> -3680.430748 | S72: =+Prospetti_CIPE!S27+Prospetti_CIPE!S28 -> -3794.702487 | T72: =+Prospetti_CIPE!T27+Prospetti_CIPE!T28 -> -3897.13907 | U72: =+Prospetti_CIPE!U27+Prospetti_CIPE!U28 -> -3939.912458 | V72: =+Prospetti_CIPE!V27+Prospetti_CIPE!V28 -> -3978.273082 | W72: =+Prospetti_CIPE!W27+Prospetti_CIPE!W28 -> -4015.899251 | X72: =+Prospetti_CIPE!X27+Prospetti_CIPE!X28 -> -4051.921464 | Y72: =+Prospetti_CIPE!Y27+Prospetti_CIPE!Y28 -> -4088.780685 | Z72: =+Prospetti_CIPE!Z27+Prospetti_CIPE!Z28 -> -4125.745966 | AA72: =+Prospetti_CIPE!AA27+Prospetti_CIPE!AA28 -> -4162.813995 | AB72: =+Prospetti_CIPE!AB27+Prospetti_CIPE!AB28 -> -4199.981412
C73: Acquisti di materie e beni di consumo | D73: €'000 | E73: 2.11.1 | I73: -6397.223477 | N73: =+Prospetti_CIPE!N23-N74 -> -462.77352 | O73: =+Prospetti_CIPE!O23-O74 -> -505.45194 | P73: =+Prospetti_CIPE!P23-P74 -> -468.9126792 | Q73: =+Prospetti_CIPE!Q23-Q74 -> -472.6639806 | R73: =+Prospetti_CIPE!R23-R74 -> -476.4452925 | S73: =+Prospetti_CIPE!S23-S74 -> -480.2568548 | T73: =+Prospetti_CIPE!T23-T74 -> -484.0989097 | U73: =+Prospetti_CIPE!U23-U74 -> -487.9717009 | V73: =+Prospetti_CIPE!V23-V74 -> -491.8754745 | W73: =+Prospetti_CIPE!W23-W74 -> -495.8104783 | X73: =+Prospetti_CIPE!X23-X74 -> -499.7769622 | Y73: =+Prospetti_CIPE!Y23-Y74 -> -503.7751779 | Z73: =+Prospetti_CIPE!Z23-Z74 -> -507.8053793 | AA73: =+Prospetti_CIPE!AA23-AA74 -> -511.8678223 | AB73: =+Prospetti_CIPE!AB23-AB74 -> -515.9627649
C74: Variazione delle rimanenze | D74: €'000 | E74: 2.11.2 | I74: 0 | N74: =+Actual!N211 -> 137.50603 | O74: =+Prospetti_CIPE!O81-Prospetti_CIPE!N81 -> 40.26079 | P74: =+Prospetti_CIPE!P81-Prospetti_CIPE!O81 -> 0 | Q74: =+Prospetti_CIPE!Q81-Prospetti_CIPE!P81 -> 0 | R74: =+Prospetti_CIPE!R81-Prospetti_CIPE!Q81 -> 0 | S74: =+Prospetti_CIPE!S81-Prospetti_CIPE!R81 -> 0 | T74: =+Prospetti_CIPE!T81-Prospetti_CIPE!S81 -> 0 | U74: =+Prospetti_CIPE!U81-Prospetti_CIPE!T81 -> 0 | V74: =+Prospetti_CIPE!V81-Prospetti_CIPE!U81 -> 0 | W74: =+Prospetti_CIPE!W81-Prospetti_CIPE!V81 -> 0 | X74: =+Prospetti_CIPE!X81-Prospetti_CIPE!W81 -> 0 | Y74: =+Prospetti_CIPE!Y81-Prospetti_CIPE!X81 -> 0 | Z74: =+Prospetti_CIPE!Z81-Prospetti_CIPE!Y81 -> 0 | AA74: =+Prospetti_CIPE!AA81-Prospetti_CIPE!Z81 -> 0 | AB74: =+Prospetti_CIPE!AB81-Prospetti_CIPE!AA81 -> 0
C75: Altri costi di produzione | D75: €'000 | E75: 2.11.3 | I75: 0 | N75: =+Prospetti_CIPE!N29 -> 0 | O75: =+Prospetti_CIPE!O29 -> 0 | P75: =+Prospetti_CIPE!P29 -> 0 | Q75: =+Prospetti_CIPE!Q29 -> 0 | R75: =+Prospetti_CIPE!R29 -> 0 | S75: =+Prospetti_CIPE!S29 -> 0 | T75: =+Prospetti_CIPE!T29 -> 0 | U75: =+Prospetti_CIPE!U29 -> 0 | V75: =+Prospetti_CIPE!V29 -> 0 | W75: =+Prospetti_CIPE!W29 -> 0 | X75: =+Prospetti_CIPE!X29 -> 0 | Y75: =+Prospetti_CIPE!Y29 -> 0 | Z75: =+Prospetti_CIPE!Z29 -> 0 | AA75: =+Prospetti_CIPE!AA29 -> 0 | AB75: =+Prospetti_CIPE!AB29 -> 0
I76: 0
C77: Costi commerciali | I77: 0
C78: Costi personale | D78: €'000 | E78: 2.12 | I78: 0
C79: Prestazioni di servizi | D79: €'000 | E79: 2.13 | I79: 0
C80: Altri costi commerciali | D80: €'000 | E80: 2.14 | I80: 0
I81: 0
C82: Costi amministrativi e generali | I82: 0
C83: Personale | D83: €'000 | E83: 2.15 | I83: 0
C84: Prestazioni di servizi | D84: €'000 | E84: 2.16 | I84: -190441.3902 | N84: =+Prospetti_CIPE!N24 -> -12463.4589 | O84: =+Prospetti_CIPE!O24 -> -13848.4531 | P84: =+Prospetti_CIPE!P24 -> -13959.24072 | Q84: =+Prospetti_CIPE!Q24 -> -14070.91465 | R84: =+Prospetti_CIPE!R24 -> -14183.48197 | S84: =+Prospetti_CIPE!S24 -> -14296.94982 | T84: =+Prospetti_CIPE!T24 -> -14411.32542 | U84: =+Prospetti_CIPE!U24 -> -14526.61603 | V84: =+Prospetti_CIPE!V24 -> -14642.82895 | W84: =+Prospetti_CIPE!W24 -> -14759.97159 | X84: =+Prospetti_CIPE!X24 -> -14878.05136 | Y84: =+Prospetti_CIPE!Y24 -> -14997.07577 | Z84: =+Prospetti_CIPE!Z24 -> -15117.05238 | AA84: =+Prospetti_CIPE!AA24 -> -15237.98879 | AB84: =+Prospetti_CIPE!AB24 -> -15359.8927
C85: Altri costi amministrativi e generali | D85: €'000 | E85: 2.17 | I85: 0
C86: (Costi capitalizzati; spese del personale) | D86: €'000 | E86: 2.18.1 | I86: 0
C87: (Costi capitalizzati. Costi materiali) | D87: €'000 | E87: 2.18.2 | I87: 0
C88: (Costi capitalizzati. Costi per servizi) | D88: €'000 | E88: 2.18.3 | I88: 0
I89: 0
C90: Fondo rinnovi | I90: 0
C91: Utilizzo | D91: €'000 | E91: 2.19 | I91: 214219.8046 | N91: =-SUMIF(Working!$N$7:$AQ$7,N$7,Working!$N$512:$AQ$512) -> 13868.95826 | O91: =-SUMIF(Working!$N$7:$AQ$7,O$7,Working!$N$512:$AQ$512) -> 17754.76407 | P91: =-SUMIF(Working!$N$7:$AQ$7,P$7,Working!$N$512:$AQ$512) -> 19207.4361 | Q91: =-SUMIF(Working!$N$7:$AQ$7,Q$7,Working!$N$512:$AQ$512) -> 15281.39542 | R91: =-SUMIF(Working!$N$7:$AQ$7,R$7,Working!$N$512:$AQ$512) -> 15710.90433 | S91: =-SUMIF(Working!$N$7:$AQ$7,S$7,Working!$N$512:$AQ$512) -> 15526.87575 | T91: =-SUMIF(Working!$N$7:$AQ$7,T$7,Working!$N$512:$AQ$512) -> 15921.65849 | U91: =-SUMIF(Working!$N$7:$AQ$7,U$7,Working!$N$512:$AQ$512) -> 15776.29948 | V91: =-SUMIF(Working!$N$7:$AQ$7,V$7,Working!$N$512:$AQ$512) -> 15902.50988 | W91: =-SUMIF(Working!$N$7:$AQ$7,W$7,Working!$N$512:$AQ$512) -> 16508.28357 | X91: =-SUMIF(Working!$N$7:$AQ$7,X$7,Working!$N$512:$AQ$512) -> 16496.38727 | Y91: =-SUMIF(Working!$N$7:$AQ$7,Y$7,Working!$N$512:$AQ$512) -> 16628.35837 | Z91: =-SUMIF(Working!$N$7:$AQ$7,Z$7,Working!$N$512:$AQ$512) -> 17045.20275 | AA91: =-SUMIF(Working!$N$7:$AQ$7,AA$7,Working!$N$512:$AQ$512) -> 16895.47632 | AB91: =-SUMIF(Working!$N$7:$AQ$7,AB$7,Working!$N$512:$AQ$512) -> 17319.01689
C92: Accantonamento | D92: €'000 | E92: 2.20 | I92: -195012.3685 | N92: =-SUMIF(Working!$N$7:$AQ$7,N$7,Working!$N$511:$AQ$511) -> -13046.85722 | O92: =-SUMIF(Working!$N$7:$AQ$7,O$7,Working!$N$511:$AQ$511) -> -13047.168 | P92: =-SUMIF(Working!$N$7:$AQ$7,P$7,Working!$N$511:$AQ$511) -> -15281.39542 | Q92: =-SUMIF(Working!$N$7:$AQ$7,Q$7,Working!$N$511:$AQ$511) -> -15710.90433 | R92: =-SUMIF(Working!$N$7:$AQ$7,R$7,Working!$N$511:$AQ$511) -> -15526.87575 | S92: =-SUMIF(Working!$N$7:$AQ$7,S$7,Working!$N$511:$AQ$511) -> -15921.65849 | T92: =-SUMIF(Working!$N$7:$AQ$7,T$7,Working!$N$511:$AQ$511) -> -15776.29948 | U92: =-SUMIF(Working!$N$7:$AQ$7,U$7,Working!$N$511:$AQ$511) -> -15902.50988 | V92: =-SUMIF(Working!$N$7:$AQ$7,V$7,Working!$N$511:$AQ$511) -> -16508.28357 | W92: =-SUMIF(Working!$N$7:$AQ$7,W$7,Working!$N$511:$AQ$511) -> -16496.38727 | X92: =-SUMIF(Working!$N$7:$AQ$7,X$7,Working!$N$511:$AQ$511) -> -16628.35837 | Y92: =-SUMIF(Working!$N$7:$AQ$7,Y$7,Working!$N$511:$AQ$511) -> -17045.20275 | Z92: =-SUMIF(Working!$N$7:$AQ$7,Z$7,Working!$N$511:$AQ$511) -> -16895.47632 | AA92: =-SUMIF(Working!$N$7:$AQ$7,AA$7,Working!$N$511:$AQ$511) -> -17319.01689 | AB92: =-SUMIF(Working!$N$7:$AQ$7,AB$7,Working!$N$511:$AQ$511) -> 0
I93: 0
C94: Altri accantonamenti e svalutazioni | D94: €'000 | E94: 2.21 | I94: 0 | N94: =+Prospetti_CIPE!N39 -> -239.39048 | O94: =+Prospetti_CIPE!O39 -> -3.5 | P94: =+Prospetti_CIPE!P39 -> 0 | Q94: =+Prospetti_CIPE!Q39 -> 0 | R94: =+Prospetti_CIPE!R39 -> 0 | S94: =+Prospetti_CIPE!S39 -> 0 | T94: =+Prospetti_CIPE!T39 -> 0 | U94: =+Prospetti_CIPE!U39 -> 0 | V94: =+Prospetti_CIPE!V39 -> 0 | W94: =+Prospetti_CIPE!W39 -> 0 | X94: =+Prospetti_CIPE!X39 -> 0 | Y94: =+Prospetti_CIPE!Y39 -> 0 | Z94: =+Prospetti_CIPE!Z39 -> 0 | AA94: =+Prospetti_CIPE!AA39 -> 0 | AB94: =+Prospetti_CIPE!AB39 -> 0
C95: Totale Costi Operativi | D95: €'000 | E95: 2.22 | I95: -725423.0084 | N95: =+SUM(N65:N94) -> -49436.63073 | O95: =+SUM(O65:O94) -> -50117.26555 | P95: -51761.35346 | Q95: -54347.41882 | R95: -55131.52579 | S95: -55927.97403 | T95: -56174.7445 | U95: -56635.73873 | V95: -57574.21958 | W95: -57896.65075 | X95: -58363.71898 | Y95: -59118.89011 | Z95: -59310.0082 | AA95: -60076.92709 | AB95: -43103.83838
C97: Margine operativo lordo (02.05 - 02.22) | D97: €'000 | E97: 2.23 | I97: =+SUM(P97:AB97) -> 1418838.376 | N97: =+N95+N60 -> 99089.29724 | O97: =+O95+O60 -> 101590.128 | P97: 64888.63618 | Q97: 96021.51226 | R97: 102288.7042 | S97: 106286.13 | T97: 110340.3625 | U97: 111694.6673 | V97: 112387.8848 | W97: 113666.8165 | X97: 114734.5485 | Y97: 115549.3239 | Z97: 116932.8447 | AA97: 117745.1212 | AB97: 136301.8239
C99: Ammortamenti
C101: Ammortamento finanziario | D101: €'000 | E101: 2.24 | I101: =+SUM(P101:AB101) -> -653373.3516 | N101: =+Prospetti_CIPE!N35 -> -44780.915 | O101: =+Prospetti_CIPE!O35 -> -44993.15227 | P101: =+Prospetti_CIPE!P35 -> -45338.96003 | Q101: =+Prospetti_CIPE!Q35 -> -45733.75436 | R101: =+Prospetti_CIPE!R35 -> -46128.95403 | S101: =+Prospetti_CIPE!S35 -> -46795.95779 | T101: =+Prospetti_CIPE!T35 -> -47282.28321 | U101: =+Prospetti_CIPE!U35 -> -47951.03027 | V101: =+Prospetti_CIPE!V35 -> -50109.36104 | W101: =+Prospetti_CIPE!W35 -> -52199.29635 | X101: =+Prospetti_CIPE!X35 -> -52676.19534 | Y101: =+Prospetti_CIPE!Y35 -> -53127.24693 | Z101: =+Prospetti_CIPE!Z35 -> -53732.43741 | AA101: =+Prospetti_CIPE!AA35 -> -54657.27074 | AB101: =+Prospetti_CIPE!AB35 -> -57640.60407
C102: Ammortamento tecnico beni reversibili | D102: €'000 | E102: 2.25 | I102: 0
C103: Ammortamento tecnico beni non reversibili materiali | D103: €'000 | E103: 2.26 | I103: -7225.51608 | N103: =+Prospetti_CIPE!N36 -> -375.22038 | O103: =+Prospetti_CIPE!O36 -> -486.64137 | P103: =+Prospetti_CIPE!P36 -> -107.8473908 | Q103: =+Prospetti_CIPE!Q36 -> -173.57384 | R103: =+Prospetti_CIPE!R36 -> -239.1276703 | S103: =+Prospetti_CIPE!S36 -> -281.6809284 | T103: =+Prospetti_CIPE!T36 -> -328.9762501 | U103: =+Prospetti_CIPE!U36 -> -382.2054167 | V103: =+Prospetti_CIPE!V36 -> -443.0753801 | W103: =+Prospetti_CIPE!W36 -> -514.1563824 | X103: =+Prospetti_CIPE!X36 -> -599.5856754 | Y103: =+Prospetti_CIPE!Y36 -> -706.6789293 | Z103: =+Prospetti_CIPE!Z36 -> -850.3694055 | AA103: =+Prospetti_CIPE!AA36 -> -1069.952739 | AB103: =+Prospetti_CIPE!AB36 -> -1528.286072
C104: Ammortamento immobilizzazioni immateriali | D104: €'000 | E104: 2.27 | I104: -3190.40084 | N104: =+Prospetti_CIPE!N37 -> -92.941 | O104: =+Prospetti_CIPE!O37 -> -100.82311 | P104: =+Prospetti_CIPE!P37 -> -145.40084 | Q104: =+Prospetti_CIPE!Q37 -> -367.5 | R104: =+Prospetti_CIPE!R37 -> -577.5 | S104: =+Prospetti_CIPE!S37 -> -630 | T104: =+Prospetti_CIPE!T37 -> -630 | U104: =+Prospetti_CIPE!U37 -> -630 | V104: =+Prospetti_CIPE!V37 -> -210 | W104: =+Prospetti_CIPE!W37 -> 0 | X104: =+Prospetti_CIPE!X37 -> 0 | Y104: =+Prospetti_CIPE!Y37 -> 0 | Z104: =+Prospetti_CIPE!Z37 -> 0 | AA104: =+Prospetti_CIPE!AA37 -> 0 | AB104: =+Prospetti_CIPE!AB37 -> 0
C105: Totale Ammortamenti | D105: €'000 | E105: 2.28 | I105: -663789.2685 | N105: =+SUM(N101:N104) -> -45249.07638 | O105: -45580.61675 | P105: -45592.20826 | Q105: -46274.8282 | R105: -46945.5817 | S105: -47707.63872 | T105: -48241.25946 | U105: -48963.23569 | V105: -50762.43642 | W105: -52713.45274 | X105: -53275.78102 | Y105: -53833.92586 | Z105: -54582.80681 | AA105: -55727.22348 | AB105: -59168.89015
C107: Risultato operativo (2.23 - 2.28) | D107: €'000 | E107: 2.29 | I107: =+SUM(P107:AB107) -> 755049.1073 | N107: =+N97+N105 -> 53840.22086 | O107: 56009.51121 | P107: 19296.42792 | Q107: 49746.68406 | R107: 55343.1225 | S107: 58578.49128 | T107: 62099.10302 | U107: 62731.43159 | V107: 61625.4484 | W107: 60953.36377 | X107: 61458.76744 | Y107: 61715.39803 | Z107: 62350.03785 | AA107: 62017.89767 | AB107: 77132.93377
C109: Oneri e proventi finanziari:
C110: Oneri finanziari su prestiti consolidati con garanzia dello Stato (Debito v/Friulia) | D110: €'000 | E110: 2.30 | I110: =+SUM(P110:AB110) -> 0
C111: Oneri finanziari su prestiti consolidati senza garanzia dello Stato | D111: €'000 | E111: 2.31 | I111: 0
C112: Oneri rimodulazione F.C.G. | D112: €'000 | E112: 2.32 | I112: 0
C113: Costi dei nuovi finanziamenti a medio-lungo termine | D113: €'000 | E113: 2.33 | I113: -87632.732 | N113: =+Prospetti_CIPE!N44 -> -17737.263 | O113: =+Prospetti_CIPE!O44 -> -16484.989 | P113: =+Prospetti_CIPE!P44 -> -15024.599 | Q113: =+Prospetti_CIPE!Q44 -> -13502.524 | R113: =+Prospetti_CIPE!R44 -> -12012.087 | S113: =+Prospetti_CIPE!S44 -> -10464.927 | T113: =+Prospetti_CIPE!T44 -> -9193.645 | U113: =+Prospetti_CIPE!U44 -> -7960.346 | V113: =+Prospetti_CIPE!V44 -> -6668.436 | W113: =+Prospetti_CIPE!W44 -> -5350.332 | X113: =+Prospetti_CIPE!X44 -> -3944.352 | Y113: =+Prospetti_CIPE!Y44 -> -2493.294 | Z113: =+Prospetti_CIPE!Z44 -> -1018.19 | AA113: =+Prospetti_CIPE!AA44 -> 0 | AB113: =+Prospetti_CIPE!AB44 -> 0
C114: Proventi (oneri) finanziari netti a breve termine | D114: €'000 | E114: 2.34 | I114: 0
C115: Proventi (oneri) netti da immobilizzazioni finanziarie | D115: €'000 | E115: 2.35 | I115: 0
C116: Altri proventi (oneri) finanziari netti | D116: €'000 | E116: 2.36 | I116: 0 | N116: =+Prospetti_CIPE!N45+Prospetti_CIPE!N46+Prospetti_CIPE!N47 -> -3049.25844 | O116: =+Prospetti_CIPE!O45+Prospetti_CIPE!O46+Prospetti_CIPE!O47 -> -102.14177 | P116: =+Prospetti_CIPE!P45+Prospetti_CIPE!P46+Prospetti_CIPE!P47 -> 0 | Q116: =+Prospetti_CIPE!Q45+Prospetti_CIPE!Q46+Prospetti_CIPE!Q47 -> 0 | R116: =+Prospetti_CIPE!R45+Prospetti_CIPE!R46+Prospetti_CIPE!R47 -> 0 | S116: =+Prospetti_CIPE!S45+Prospetti_CIPE!S46+Prospetti_CIPE!S47 -> 0 | T116: =+Prospetti_CIPE!T45+Prospetti_CIPE!T46+Prospetti_CIPE!T47 -> 0 | U116: =+Prospetti_CIPE!U45+Prospetti_CIPE!U46+Prospetti_CIPE!U47 -> 0 | V116: =+Prospetti_CIPE!V45+Prospetti_CIPE!V46+Prospetti_CIPE!V47 -> 0 | W116: =+Prospetti_CIPE!W45+Prospetti_CIPE!W46+Prospetti_CIPE!W47 -> 0 | X116: =+Prospetti_CIPE!X45+Prospetti_CIPE!X46+Prospetti_CIPE!X47 -> 0 | Y116: =+Prospetti_CIPE!Y45+Prospetti_CIPE!Y46+Prospetti_CIPE!Y47 -> 0 | Z116: =+Prospetti_CIPE!Z45+Prospetti_CIPE!Z46+Prospetti_CIPE!Z47 -> 0 | AA116: =+Prospetti_CIPE!AA45+Prospetti_CIPE!AA46+Prospetti_CIPE!AA47 -> 0 | AB116: =+Prospetti_CIPE!AB45+Prospetti_CIPE!AB46+Prospetti_CIPE!AB47 -> 0
C117: (Costi capitalizzati. Oneri finanziari) | D117: €'000 | E117: 2.37 | I117: 0
C118: Totale Oneri e proventi finanziari | D118: €'000 | E118: 2.38 | I118: -87632.732 | N118: =+SUM(N110:N117) -> -20786.52144 | O118: =+SUM(O110:O117) -> -16587.13077 | P118: -15024.599 | Q118: -13502.524 | R118: -12012.087 | S118: -10464.927 | T118: -9193.645 | U118: -7960.346 | V118: -6668.436 | W118: -5350.332 | X118: -3944.352 | Y118: -2493.294 | Z118: -1018.19 | AA118: 0 | AB118: 0
C120: Proventi e oneri straordinari | D120: €'000 | E120: 2.39 | I120: =+SUM(P120:AB120) -> 0
C122: Risultato prima delle imposte (2.29 + 2.38 + 2.39) | D122: €'000 | E122: 2.40 | I122: =+SUM(P122:AB122) -> 667416.3753 | N122: =+N107+N118 -> 33053.69942 | O122: =+O107+O118 -> 39422.38044 | P122: 4271.82892 | Q122: 36244.16006 | R122: 43331.0355 | S122: 48113.56428 | T122: 52905.45802 | U122: 54771.08559 | V122: 54957.0124 | W122: 55603.03177 | X122: 57514.41544 | Y122: 59222.10403 | Z122: 61331.84785 | AA122: 62017.89767 | AB122: 77132.93377
C124: Imposte sul reddito di esercizio | D124: €'000 | E124: 2.41 | I124: =+SUM(P124:AB124) -> -186506.0302 | N124: =+Prospetti_CIPE!N52+Prospetti_CIPE!N53+Prospetti_CIPE!N54 -> -9689.072 | O124: =+Prospetti_CIPE!O52+Prospetti_CIPE!O53+Prospetti_CIPE!O54 -> -12419.36 | P124: =+Prospetti_CIPE!P52+Prospetti_CIPE!P53+Prospetti_CIPE!P54 -> -3084.172256 | Q124: =+Prospetti_CIPE!Q52+Prospetti_CIPE!Q53+Prospetti_CIPE!Q54 -> -11371.71851 | R124: =+Prospetti_CIPE!R52+Prospetti_CIPE!R53+Prospetti_CIPE!R54 -> -11752.71809 | S124: =+Prospetti_CIPE!S52+Prospetti_CIPE!S53+Prospetti_CIPE!S54 -> -13387.8334 | T124: =+Prospetti_CIPE!T52+Prospetti_CIPE!T53+Prospetti_CIPE!T54 -> -14526.00971 | U124: =+Prospetti_CIPE!U52+Prospetti_CIPE!U53+Prospetti_CIPE!U54 -> -15081.10774 | V124: =+Prospetti_CIPE!V52+Prospetti_CIPE!V53+Prospetti_CIPE!V54 -> -15293.03955 | W124: =+Prospetti_CIPE!W52+Prospetti_CIPE!W53+Prospetti_CIPE!W54 -> -15341.09368 | X124: =+Prospetti_CIPE!X52+Prospetti_CIPE!X53+Prospetti_CIPE!X54 -> -15813.68458 | Y124: =+Prospetti_CIPE!Y52+Prospetti_CIPE!Y53+Prospetti_CIPE!Y54 -> -16275.8365 | Z124: =+Prospetti_CIPE!Z52+Prospetti_CIPE!Z53+Prospetti_CIPE!Z54 -> -16717.35801 | AA124: =+Prospetti_CIPE!AA52+Prospetti_CIPE!AA53+Prospetti_CIPE!AA54 -> -17145.95848 | AB124: =+Prospetti_CIPE!AB52+Prospetti_CIPE!AB53+Prospetti_CIPE!AB54 -> -20715.49971
C126: Utile (Perdita) di esercizio (2.40 - 2.41) | D126: €'000 | E126: 2.42 | G126: =+SUM(N126:AB126)-Prospetti_CIPE!I56 -> 0 | I126: =+SUM(P126:AB126) -> 480910.3451 | N126: =+SUM(N124,N122) -> 23364.62742 | O126: =+SUM(O124,O122) -> 27003.02044 | P126: 1187.656664 | Q126: =+SUM(Q124,Q122) -> 24872.44155 | R126: 31578.31741 | S126: 34725.73088 | T126: 38379.44831 | U126: 39689.97785 | V126: 39663.97285 | W126: 40261.93808 | X126: 41700.73087 | Y126: 42946.26753 | Z126: 44614.48984 | AA126: 44871.93919 | AB126: 56417.43406
B130: 3 | C130: Tabella 3 - CONTO DEGLI INVESTIMENTI | D130: Unit | E130: Codice Dicoter | I130: Tot. 2020/32
C132: Immobilizzazioni in beni reversibili
C134: Opere in esercizio | D134: €'000 | E134: 3.1 | I134: =+SUM(P134:AB134) -> 17578459.79 | N134: =+INDEX(Working!$N$202:$AQ$202,,MATCH(N$6,Working!$N$6:$AQ$6,0))-INDEX(Working!$N$182:$AQ$182,,MATCH(N$6,Working!$N$6:$AQ$6,0)) -> 1306157.98 | O134: =+INDEX(Working!$N$202:$AQ$202,,MATCH(O$6,Working!$N$6:$AQ$6,0))-INDEX(Working!$N$182:$AQ$182,,MATCH(O$6,Working!$N$6:$AQ$6,0)) -> 1311339.436 | P134: =+INDEX(Working!$N$202:$AQ$202,,MATCH(P$6,Working!$N$6:$AQ$6,0))-INDEX(Working!$N$182:$AQ$182,,MATCH(P$6,Working!$N$6:$AQ$6,0)) -> 1316608.476 | Q134: =+INDEX(Working!$N$202:$AQ$202,,MATCH(Q$6,Working!$N$6:$AQ$6,0))-INDEX(Working!$N$182:$AQ$182,,MATCH(Q$6,Working!$N$6:$AQ$6,0)) -> 1319996.693 | R134: =+INDEX(Working!$N$202:$AQ$202,,MATCH(R$6,Working!$N$6:$AQ$6,0))-INDEX(Working!$N$182:$AQ$182,,MATCH(R$6,Working!$N$6:$AQ$6,0)) -> 1327166.693 | S134: =+INDEX(Working!$N$202:$AQ$202,,MATCH(S$6,Working!$N$6:$AQ$6,0))-INDEX(Working!$N$182:$AQ$182,,MATCH(S$6,Working!$N$6:$AQ$6,0)) -> 1332402.693 | T134: =+INDEX(Working!$N$202:$AQ$202,,MATCH(T$6,Working!$N$6:$AQ$6,0))-INDEX(Working!$N$182:$AQ$182,,MATCH(T$6,Working!$N$6:$AQ$6,0)) -> 1334362.693 | U134: =+INDEX(Working!$N$202:$AQ$202,,MATCH(U$6,Working!$N$6:$AQ$6,0))-INDEX(Working!$N$182:$AQ$182,,MATCH(U$6,Working!$N$6:$AQ$6,0)) -> 1349020.693 | V134: =+INDEX(Working!$N$202:$AQ$202,,MATCH(V$6,Working!$N$6:$AQ$6,0))-INDEX(Working!$N$182:$AQ$182,,MATCH(V$6,Working!$N$6:$AQ$6,0)) -> 1365211.693 | W134: =+INDEX(Working!$N$202:$AQ$202,,MATCH(W$6,Working!$N$6:$AQ$6,0))-INDEX(Working!$N$182:$AQ$182,,MATCH(W$6,Working!$N$6:$AQ$6,0)) -> 1367806.693 | X134: =+INDEX(Working!$N$202:$AQ$202,,MATCH(X$6,Working!$N$6:$AQ$6,0))-INDEX(Working!$N$182:$AQ$182,,MATCH(X$6,Working!$N$6:$AQ$6,0)) -> 1369596.693 | Y134: =+INDEX(Working!$N$202:$AQ$202,,MATCH(Y$6,Working!$N$6:$AQ$6,0))-INDEX(Working!$N$182:$AQ$182,,MATCH(Y$6,Working!$N$6:$AQ$6,0)) -> 1371386.693 | Z134: =+INDEX(Working!$N$202:$AQ$202,,MATCH(Z$6,Working!$N$6:$AQ$6,0))-INDEX(Working!$N$182:$AQ$182,,MATCH(Z$6,Working!$N$6:$AQ$6,0)) -> 1373176.693 | AA134: =+INDEX(Working!$N$202:$AQ$202,,MATCH(AA$6,Working!$N$6:$AQ$6,0))-INDEX(Working!$N$182:$AQ$182,,MATCH(AA$6,Working!$N$6:$AQ$6,0)) -> 1374966.693 | AB134: =+INDEX(Working!$N$202:$AQ$202,,MATCH(AB$6,Working!$N$6:$AQ$6,0))-INDEX(Working!$N$182:$AQ$182,,MATCH(AB$6,Working!$N$6:$AQ$6,0)) -> 1376756.693
C135: Opere in corso | D135: €'000 | E135: 3.2 | I135: 108.217 | N135: =INDEX(Working!$N$182:$AQ$182,,MATCH(N$6,Working!$N$6:$AQ$6,0)) -> 0 | O135: =INDEX(Working!$N$182:$AQ$182,,MATCH(O$6,Working!$N$6:$AQ$6,0)) -> 591.25684 | P135: =INDEX(Working!$N$182:$AQ$182,,MATCH(P$6,Working!$N$6:$AQ$6,0)) -> 108.217 | Q135: =INDEX(Working!$N$182:$AQ$182,,MATCH(Q$6,Working!$N$6:$AQ$6,0)) -> 0 | R135: =INDEX(Working!$N$182:$AQ$182,,MATCH(R$6,Working!$N$6:$AQ$6,0)) -> 0 | S135: =INDEX(Working!$N$182:$AQ$182,,MATCH(S$6,Working!$N$6:$AQ$6,0)) -> 0 | T135: =INDEX(Working!$N$182:$AQ$182,,MATCH(T$6,Working!$N$6:$AQ$6,0)) -> 0 | U135: =INDEX(Working!$N$182:$AQ$182,,MATCH(U$6,Working!$N$6:$AQ$6,0)) -> 0 | V135: =INDEX(Working!$N$182:$AQ$182,,MATCH(V$6,Working!$N$6:$AQ$6,0)) -> 0 | W135: =INDEX(Working!$N$182:$AQ$182,,MATCH(W$6,Working!$N$6:$AQ$6,0)) -> 0 | X135: =INDEX(Working!$N$182:$AQ$182,,MATCH(X$6,Working!$N$6:$AQ$6,0)) -> 0 | Y135: =INDEX(Working!$N$182:$AQ$182,,MATCH(Y$6,Working!$N$6:$AQ$6,0)) -> 0 | Z135: =INDEX(Working!$N$182:$AQ$182,,MATCH(Z$6,Working!$N$6:$AQ$6,0)) -> 0 | AA135: =INDEX(Working!$N$182:$AQ$182,,MATCH(AA$6,Working!$N$6:$AQ$6,0)) -> 0 | AB135: =INDEX(Working!$N$182:$AQ$182,,MATCH(AB$6,Working!$N$6:$AQ$6,0)) -> 0
C136: Nuove opere | D136: €'000 | E136: 3.3 | I136: 0
C137: Oneri finanziari capitalizzati su prestiti consolidati | D137: €'000 | E137: 3.4 | I137: 0
C138: Oneri finanziari capitalizzati su nuovi prestiti | D138: €'000 | E138: 3.5 | I138: 0
C139: Oneri diversi capitalizzati | D139: €'000 | E139: 3.6 | I139: 0
C140: Fondo ammortamento tecnico | D140: €'000 | E140: 3.7 | I140: 0
C141: Fondo ammortamento finanziario | D141: €'000 | E141: 3.7bis | I141: -13794725.57 | N141: =INDEX(Working!$N$203:$AQ$203,,MATCH(N$6,Working!$N$6:$AQ$6,0)) -> -678390.19 | O141: =INDEX(Working!$N$203:$AQ$203,,MATCH(O$6,Working!$N$6:$AQ$6,0)) -> -723383.3418 | P141: =INDEX(Working!$N$203:$AQ$203,,MATCH(P$6,Working!$N$6:$AQ$6,0)) -> -768722.3019 | Q141: =INDEX(Working!$N$203:$AQ$203,,MATCH(Q$6,Working!$N$6:$AQ$6,0)) -> -814456.0562 | R141: =INDEX(Working!$N$203:$AQ$203,,MATCH(R$6,Working!$N$6:$AQ$6,0)) -> -860585.0103 | S141: =INDEX(Working!$N$203:$AQ$203,,MATCH(S$6,Working!$N$6:$AQ$6,0)) -> -907380.9681 | T141: =INDEX(Working!$N$203:$AQ$203,,MATCH(T$6,Working!$N$6:$AQ$6,0)) -> -954663.2513 | U141: =INDEX(Working!$N$203:$AQ$203,,MATCH(U$6,Working!$N$6:$AQ$6,0)) -> -1002614.282 | V141: =INDEX(Working!$N$203:$AQ$203,,MATCH(V$6,Working!$N$6:$AQ$6,0)) -> -1052723.643 | W141: =INDEX(Working!$N$203:$AQ$203,,MATCH(W$6,Working!$N$6:$AQ$6,0)) -> -1104922.939 | X141: =INDEX(Working!$N$203:$AQ$203,,MATCH(X$6,Working!$N$6:$AQ$6,0)) -> -1157599.134 | Y141: =INDEX(Working!$N$203:$AQ$203,,MATCH(Y$6,Working!$N$6:$AQ$6,0)) -> -1210726.381 | Z141: =INDEX(Working!$N$203:$AQ$203,,MATCH(Z$6,Working!$N$6:$AQ$6,0)) -> -1264458.819 | AA141: =INDEX(Working!$N$203:$AQ$203,,MATCH(AA$6,Working!$N$6:$AQ$6,0)) -> -1319116.089 | AB141: =INDEX(Working!$N$203:$AQ$203,,MATCH(AB$6,Working!$N$6:$AQ$6,0)) -> -1376756.693
C142: Totale immobilizzazioni reversibili nette | D142: €'000 | E142: 3.8 | I142: 3783842.443 | N142: =+SUM(N134:N141) -> 627767.7898 | O142: =+SUM(O134:O141) -> 588547.3513 | P142: 547994.3913 | Q142: 505540.6369 | R142: 466581.6829 | S142: 425021.7251 | T142: 379699.4419 | U142: 346406.4116 | V142: 312488.0506 | W142: 262883.7542 | X142: 211997.5589 | Y142: 160660.3119 | Z142: 108717.8745 | AA142: 55850.60377 | AB142: -0.0003000006545
C144: Immobilizzazioni in beni non reversibili
C146: Immobilizzazioni tecniche non reversibili | D146: €'000 | E146: 3.9 | I146: =+SUM(P146:AB146) -> 96920.08482 | N146: =+INDEX(Working!$N$248:$AQ$248,,MATCH(N$6,Working!$N$6:$AQ$6,0)) -> 3373.05 | O146: =+INDEX(Working!$N$248:$AQ$248,,MATCH(O$6,Working!$N$6:$AQ$6,0)) -> 3780.39114 | P146: =+INDEX(Working!$N$248:$AQ$248,,MATCH(P$6,Working!$N$6:$AQ$6,0)) -> 4555.39114 | Q146: =+INDEX(Working!$N$248:$AQ$248,,MATCH(Q$6,Working!$N$6:$AQ$6,0)) -> 5380.39114 | R146: =+INDEX(Working!$N$248:$AQ$248,,MATCH(R$6,Working!$N$6:$AQ$6,0)) -> 5805.39114 | S146: =+INDEX(Working!$N$248:$AQ$248,,MATCH(S$6,Working!$N$6:$AQ$6,0)) -> 6230.39114 | T146: =+INDEX(Working!$N$248:$AQ$248,,MATCH(T$6,Working!$N$6:$AQ$6,0)) -> 6655.39114 | U146: =+INDEX(Working!$N$248:$AQ$248,,MATCH(U$6,Working!$N$6:$AQ$6,0)) -> 7080.39114 | V146: =+INDEX(Working!$N$248:$AQ$248,,MATCH(V$6,Working!$N$6:$AQ$6,0)) -> 7505.39114 | W146: =+INDEX(Working!$N$248:$AQ$248,,MATCH(W$6,Working!$N$6:$AQ$6,0)) -> 7930.39114 | X146: =+INDEX(Working!$N$248:$AQ$248,,MATCH(X$6,Working!$N$6:$AQ$6,0)) -> 8355.39114 | Y146: =+INDEX(Working!$N$248:$AQ$248,,MATCH(Y$6,Working!$N$6:$AQ$6,0)) -> 8780.39114 | Z146: =+INDEX(Working!$N$248:$AQ$248,,MATCH(Z$6,Working!$N$6:$AQ$6,0)) -> 9205.39114 | AA146: =+INDEX(Working!$N$248:$AQ$248,,MATCH(AA$6,Working!$N$6:$AQ$6,0)) -> 9630.39114 | AB146: =+INDEX(Working!$N$248:$AQ$248,,MATCH(AB$6,Working!$N$6:$AQ$6,0)) -> 9805.39114
C147: Fondo ammortamento tecnico beni non reversibili | D147: €'000 | E147: 3.10 | I147: -66719.331 | N147: =+INDEX(Working!$N$249:$AQ$249,,MATCH(N$6,Working!$N$6:$AQ$6,0)) -> -2094.16795 | O147: =+INDEX(Working!$N$249:$AQ$249,,MATCH(O$6,Working!$N$6:$AQ$6,0)) -> -2579.87506 | P147: =+INDEX(Working!$N$249:$AQ$249,,MATCH(P$6,Working!$N$6:$AQ$6,0)) -> -2687.722451 | Q147: =+INDEX(Working!$N$249:$AQ$249,,MATCH(Q$6,Working!$N$6:$AQ$6,0)) -> -2861.296291 | R147: =+INDEX(Working!$N$249:$AQ$249,,MATCH(R$6,Working!$N$6:$AQ$6,0)) -> -3100.423961 | S147: =+INDEX(Working!$N$249:$AQ$249,,MATCH(S$6,Working!$N$6:$AQ$6,0)) -> -3382.10489 | T147: =+INDEX(Working!$N$249:$AQ$249,,MATCH(T$6,Working!$N$6:$AQ$6,0)) -> -3711.08114 | U147: =+INDEX(Working!$N$249:$AQ$249,,MATCH(U$6,Working!$N$6:$AQ$6,0)) -> -4093.286556 | V147: =+INDEX(Working!$N$249:$AQ$249,,MATCH(V$6,Working!$N$6:$AQ$6,0)) -> -4536.361936 | W147: =+INDEX(Working!$N$249:$AQ$249,,MATCH(W$6,Working!$N$6:$AQ$6,0)) -> -5050.518319 | X147: =+INDEX(Working!$N$249:$AQ$249,,MATCH(X$6,Working!$N$6:$AQ$6,0)) -> -5650.103994 | Y147: =+INDEX(Working!$N$249:$AQ$249,,MATCH(Y$6,Working!$N$6:$AQ$6,0)) -> -6356.782923 | Z147: =+INDEX(Working!$N$249:$AQ$249,,MATCH(Z$6,Working!$N$6:$AQ$6,0)) -> -7207.152329 | AA147: =+INDEX(Working!$N$249:$AQ$249,,MATCH(AA$6,Working!$N$6:$AQ$6,0)) -> -8277.105068 | AB147: =+INDEX(Working!$N$249:$AQ$249,,MATCH(AB$6,Working!$N$6:$AQ$6,0)) -> -9805.39114
C148: Totale immobilizzazioni non reversibili nette | D148: €'000 | E148: 3.11 | I148: 30200.75382 | N148: =+SUM(N146:N147) -> 1278.88205 | O148: =+SUM(O146:O147) -> 1200.51608 | P148: 1867.668689 | Q148: 2519.094849 | R148: 2704.967179 | S148: 2848.28625 | T148: 2944.31 | U148: 2987.104584 | V148: 2969.029204 | W148: 2879.872821 | X148: 2705.287146 | Y148: 2423.608217 | Z148: 1998.238811 | AA148: 1353.286072 | AB148: 0
C150: Immobilizzazioni immateriali nette | D150: €'000 | E150: 3.12 | I150: =+SUM(P150:AB150) -> 7192.5 | N150: =+Prospetti_CIPE!N68 -> 60.42231 | O150: =+Prospetti_CIPE!O68 -> 40.40084 | P150: =+Prospetti_CIPE!P68 -> 945 | Q150: =+Prospetti_CIPE!Q68 -> 1627.5 | R150: =+Prospetti_CIPE!R68 -> 2100 | S150: =+Prospetti_CIPE!S68 -> 1470 | T150: =+Prospetti_CIPE!T68 -> 840 | U150: =+Prospetti_CIPE!U68 -> 210 | V150: =+Prospetti_CIPE!V68 -> 0 | W150: =+Prospetti_CIPE!W68 -> 0 | X150: =+Prospetti_CIPE!X68 -> 0 | Y150: =+Prospetti_CIPE!Y68 -> 0 | Z150: =+Prospetti_CIPE!Z68 -> 0 | AA150: =+Prospetti_CIPE!AA68 -> 0 | AB150: =+Prospetti_CIPE!AB68 -> 0
C151: Immobilizzazioni finanziarie | D151: €'000 | E151: 3.13 | I151: 12.696 | N151: =+Prospetti_CIPE!N69 -> 1.058 | O151: =+Prospetti_CIPE!O69 -> 1.058 | P151: =+Prospetti_CIPE!P69 -> 1.058 | Q151: =+Prospetti_CIPE!Q69 -> 1.058 | R151: =+Prospetti_CIPE!R69 -> 1.058 | S151: =+Prospetti_CIPE!S69 -> 1.058 | T151: =+Prospetti_CIPE!T69 -> 1.058 | U151: =+Prospetti_CIPE!U69 -> 1.058 | V151: =+Prospetti_CIPE!V69 -> 1.058 | W151: =+Prospetti_CIPE!W69 -> 1.058 | X151: =+Prospetti_CIPE!X69 -> 1.058 | Y151: =+Prospetti_CIPE!Y69 -> 1.058 | Z151: =+Prospetti_CIPE!Z69 -> 1.058 | AA151: =+Prospetti_CIPE!AA69 -> 1.058 | AB151: =+Prospetti_CIPE!AB69 -> 0
C152: Capitale circolante netto operativo | D152: €'000 | E152: 3.14 | I152: 156967.671 | N152: =+SUM(Prospetti_CIPE!N80:N84,Prospetti_CIPE!N89:N91,Prospetti_CIPE!N93) -> 67934.78976 | O152: =+SUM(Prospetti_CIPE!O80:O84,Prospetti_CIPE!O89:O91,Prospetti_CIPE!O93) -> 13849.51535 | P152: =+SUM(Prospetti_CIPE!P80:P84,Prospetti_CIPE!P89:P91,Prospetti_CIPE!P93) -> 8680.821618 | Q152: =+SUM(Prospetti_CIPE!Q80:Q84,Prospetti_CIPE!Q89:Q91,Prospetti_CIPE!Q93) -> 3131.613215 | R152: =+SUM(Prospetti_CIPE!R80:R84,Prospetti_CIPE!R89:R91,Prospetti_CIPE!R93) -> 11538.94402 | S152: =+SUM(Prospetti_CIPE!S80:S84,Prospetti_CIPE!S89:S91,Prospetti_CIPE!S93) -> 13222.9447 | T152: =+SUM(Prospetti_CIPE!T80:T84,Prospetti_CIPE!T89:T91,Prospetti_CIPE!T93) -> 14287.03407 | U152: =+SUM(Prospetti_CIPE!U80:U84,Prospetti_CIPE!U89:U91,Prospetti_CIPE!U93) -> 16514.27147 | V152: =+SUM(Prospetti_CIPE!V80:V84,Prospetti_CIPE!V89:V91,Prospetti_CIPE!V93) -> 15664.78114 | W152: =+SUM(Prospetti_CIPE!W80:W84,Prospetti_CIPE!W89:W91,Prospetti_CIPE!W93) -> 15734.98591 | X152: =+SUM(Prospetti_CIPE!X80:X84,Prospetti_CIPE!X89:X91,Prospetti_CIPE!X93) -> 15516.96591 | Y152: =+SUM(Prospetti_CIPE!Y80:Y84,Prospetti_CIPE!Y89:Y91,Prospetti_CIPE!Y93) -> 15673.53289 | Z152: =+SUM(Prospetti_CIPE!Z80:Z84,Prospetti_CIPE!Z89:Z91,Prospetti_CIPE!Z93) -> 15701.24505 | AA152: =+SUM(Prospetti_CIPE!AA80:AA84,Prospetti_CIPE!AA89:AA91,Prospetti_CIPE!AA93) -> 16006.89488 | AB152: =+SUM(Prospetti_CIPE!AB80:AB84,Prospetti_CIPE!AB89:AB91,Prospetti_CIPE!AB93) -> -4706.363887
C153: Altri impieghi netti correnti | D153: €'000 | E153: 3.15 | I153: 471826.0099 | N153: =+Prospetti_CIPE!N74+Prospetti_CIPE!N75+Prospetti_CIPE!N76 -> 69824.25588 | O153: =+Prospetti_CIPE!O74+Prospetti_CIPE!O75+Prospetti_CIPE!O76 -> 72458.96488 | P153: =+Prospetti_CIPE!P74+Prospetti_CIPE!P75+Prospetti_CIPE!P76 -> 67010.61217 | Q153: =+Prospetti_CIPE!Q74+Prospetti_CIPE!Q75+Prospetti_CIPE!Q76 -> 65804.56663 | R153: =+Prospetti_CIPE!R74+Prospetti_CIPE!R75+Prospetti_CIPE!R76 -> 54890.55234 | S153: =+Prospetti_CIPE!S74+Prospetti_CIPE!S75+Prospetti_CIPE!S76 -> 43751.44371 | T153: =+Prospetti_CIPE!T74+Prospetti_CIPE!T75+Prospetti_CIPE!T76 -> 43079.96421 | U153: =+Prospetti_CIPE!U74+Prospetti_CIPE!U75+Prospetti_CIPE!U76 -> 37673.55493 | V153: =+Prospetti_CIPE!V74+Prospetti_CIPE!V75+Prospetti_CIPE!V76 -> 40059.74177 | W153: =+Prospetti_CIPE!W74+Prospetti_CIPE!W75+Prospetti_CIPE!W76 -> 40120.19362 | X153: =+Prospetti_CIPE!X74+Prospetti_CIPE!X75+Prospetti_CIPE!X76 -> 39389.37917 | Y153: =+Prospetti_CIPE!Y74+Prospetti_CIPE!Y75+Prospetti_CIPE!Y76 -> 40046.00136 | Z153: =+Prospetti_CIPE!Z74+Prospetti_CIPE!Z75+Prospetti_CIPE!Z76 -> 0 | AA153: =+Prospetti_CIPE!AA74+Prospetti_CIPE!AA75+Prospetti_CIPE!AA76 -> 0 | AB153: =+Prospetti_CIPE!AB74+Prospetti_CIPE!AB75+Prospetti_CIPE!AB76 -> 0
C155: Totale Impieghi | D155: €'000 | E155: 3.16 | I155: =+SUM(P155:AB155) -> 4450042.074 | N155: =+N142+N148+SUM(N150:N153) -> 766867.1978 | O155: 676097.8064 | P155: 626499.5517 | Q155: 578624.4696 | R155: 537817.2044 | S155: 486315.4577 | T155: 440851.8081 | U155: 403792.4006 | V155: 371182.6607 | W155: 321619.8645 | X155: 269610.2491 | Y155: 218804.5124 | Z155: 126418.4164 | AA155: 73211.84273 | AB155: -4706.364187
B159: 4 | C159: Tabella 4 - CONTO DEI FINANZIAMENTI | D159: Unit | E159: Codice Dicoter | I159: Tot. 2020/32
C161: Patrimonio netto
C163: Capitale sociale | D163: €'000 | E163: 4.1 | F163: =SUM(F164:F165) -> 646775.3569 | I163: =+SUM(P163:AB163) -> 26000 | N163: =+Prospetti_CIPE!N104 -> 2000 | O163: =+Prospetti_CIPE!O104 -> 2000 | P163: =+Prospetti_CIPE!P104 -> 2000 | Q163: =+Prospetti_CIPE!Q104 -> 2000 | R163: =+Prospetti_CIPE!R104 -> 2000 | S163: =+Prospetti_CIPE!S104 -> 2000 | T163: =+Prospetti_CIPE!T104 -> 2000 | U163: =+Prospetti_CIPE!U104 -> 2000 | V163: =+Prospetti_CIPE!V104 -> 2000 | W163: =+Prospetti_CIPE!W104 -> 2000 | X163: =+Prospetti_CIPE!X104 -> 2000 | Y163: =+Prospetti_CIPE!Y104 -> 2000 | Z163: =+Prospetti_CIPE!Z104 -> 2000 | AA163: =+Prospetti_CIPE!AA104 -> 2000 | AB163: =+Prospetti_CIPE!AB104 -> 2000
C164: Riserve e utili (perdite) a nuovo | D164: €'000 | E164: 4.2 | F164: =P164 -> 165865.0119 | I164: 1375035.422 | N164: =+Prospetti_CIPE!N105+Prospetti_CIPE!N106 -> 115497.364 | O164: =+Prospetti_CIPE!O105+Prospetti_CIPE!O106 -> 138861.9914 | P164: =+Prospetti_CIPE!P105+Prospetti_CIPE!P106 -> 165865.0119 | Q164: =+Prospetti_CIPE!Q105+Prospetti_CIPE!Q106 -> 167052.6685 | R164: =+Prospetti_CIPE!R105+Prospetti_CIPE!R106 -> 191925.1101 | S164: =+Prospetti_CIPE!S105+Prospetti_CIPE!S106 -> 77840.15653 | T164: =+Prospetti_CIPE!T105+Prospetti_CIPE!T106 -> 77597.15743 | U164: =+Prospetti_CIPE!U105+Prospetti_CIPE!U106 -> 85227.90757 | V164: =+Prospetti_CIPE!V105+Prospetti_CIPE!V106 -> 101035.1627 | W164: =+Prospetti_CIPE!W105+Prospetti_CIPE!W106 -> 115095.0679 | X164: =+Prospetti_CIPE!X105+Prospetti_CIPE!X106 -> 120978.0975 | Y164: =+Prospetti_CIPE!Y105+Prospetti_CIPE!Y106 -> 128282.0925 | Z164: =+Prospetti_CIPE!Z105+Prospetti_CIPE!Z106 -> 133834.2492 | AA164: =+Prospetti_CIPE!AA105+Prospetti_CIPE!AA106 -> 66320.17384 | AB164: =+Prospetti_CIPE!AB105+Prospetti_CIPE!AB106 -> -56017.43364
C165: Utile (perdita) di esercizio | D165: €'000 | E165: 4.3 | F165: =I165 -> 480910.3451 | I165: 480910.3451 | N165: =+Prospetti_CIPE!N107 -> 23364.62742 | O165: =+Prospetti_CIPE!O107 -> 27003.02044 | P165: =+Prospetti_CIPE!P107 -> 1187.656664 | Q165: =+Prospetti_CIPE!Q107 -> 24872.44155 | R165: =+Prospetti_CIPE!R107 -> 31578.31741 | S165: =+Prospetti_CIPE!S107 -> 34725.73088 | T165: =+Prospetti_CIPE!T107 -> 38379.44831 | U165: =+Prospetti_CIPE!U107 -> 39689.97785 | V165: =+Prospetti_CIPE!V107 -> 39663.97285 | W165: =+Prospetti_CIPE!W107 -> 40261.93808 | X165: =+Prospetti_CIPE!X107 -> 41700.73087 | Y165: =+Prospetti_CIPE!Y107 -> 42946.26753 | Z165: =+Prospetti_CIPE!Z107 -> 44614.48984 | AA165: =+Prospetti_CIPE!AA107 -> 44871.93919 | AB165: =+Prospetti_CIPE!AB107 -> 56417.43406
C166: Totale | D166: €'000 | E166: 4.4 | I166: 1881945.767 | N166: =+SUM(N163:N165) -> 140861.9914 | O166: =+SUM(O163:O165) -> 167865.0119 | P166: =+SUM(P163:P165) -> 169052.6685 | Q166: 193925.1101 | R166: 225503.4275 | S166: 114565.8874 | T166: 117976.6057 | U166: 126917.8854 | V166: 142699.1355 | W166: 157357.006 | X166: 164678.8284 | Y166: 173228.36 | Z166: 180448.739 | AA166: 113192.113 | AB166: 2400.00042
C168: Contibuto conto impianti | D168: €'000 | E168: 4.5 | I168: =+SUM(P168:AB168) -> 0
C170: Fondo per rischi ed oneri
C172: Fondo rinnovo beni reversibili | D172: €'000 | E172: 4.6 | I172: =+SUM(P172:AB172) -> 137425.9749 | N172: =-Prospetti_CIPE!N99 -> 19116.16603 | O172: =-Prospetti_CIPE!O99 -> 14408.56996 | P172: =-Prospetti_CIPE!P99 -> 10482.52928 | Q172: =-Prospetti_CIPE!Q99 -> 10912.03819 | R172: =-Prospetti_CIPE!R99 -> 10728.00961 | S172: =-Prospetti_CIPE!S99 -> 11122.79235 | T172: =-Prospetti_CIPE!T99 -> 10977.43334 | U172: =-Prospetti_CIPE!U99 -> 11103.64374 | V172: =-Prospetti_CIPE!V99 -> 11709.41743 | W172: =-Prospetti_CIPE!W99 -> 11697.52113 | X172: =-Prospetti_CIPE!X99 -> 11829.49223 | Y172: =-Prospetti_CIPE!Y99 -> 12246.33662 | Z172: =-Prospetti_CIPE!Z99 -> 12096.61018 | AA172: =-Prospetti_CIPE!AA99 -> 12520.15075 | AB172: =-Prospetti_CIPE!AB99 -> 0
C173: Fondo trattamento fine rapporto | D173: €'000 | E173: 4.7 | I173: 3907.262274 | N173: =-Prospetti_CIPE!N92 -> 341.50975 | O173: =-Prospetti_CIPE!O92 -> 356.24046 | P173: =-Prospetti_CIPE!P92 -> 296.1661513 | Q173: =-Prospetti_CIPE!Q92 -> 307.5850745 | R173: =-Prospetti_CIPE!R92 -> 317.9402429 | S173: =-Prospetti_CIPE!S92 -> 321.1942688 | T173: =-Prospetti_CIPE!T92 -> 323.8277683 | U173: =-Prospetti_CIPE!U92 -> 326.4241455 | V173: =-Prospetti_CIPE!V92 -> 329.0360566 | W173: =-Prospetti_CIPE!W92 -> 331.6683917 | X173: =-Prospetti_CIPE!X92 -> 334.3217431 | Y173: =-Prospetti_CIPE!Y92 -> 336.9963175 | Z173: =-Prospetti_CIPE!Z92 -> 339.692288 | AA173: =-Prospetti_CIPE!AA92 -> 342.4098263 | AB173: =-Prospetti_CIPE!AB92 -> 0
C174: Altri fondi | D174: €'000 | E174: 4.8 | I174: 0 | N174: =-+Prospetti_CIPE!N98 -> 150 | O174: =-+Prospetti_CIPE!O98 -> 0 | P174: =-+Prospetti_CIPE!P98 -> 0 | Q174: =-+Prospetti_CIPE!Q98 -> 0 | R174: =-+Prospetti_CIPE!R98 -> 0 | S174: =-+Prospetti_CIPE!S98 -> 0 | T174: =-+Prospetti_CIPE!T98 -> 0 | U174: =-+Prospetti_CIPE!U98 -> 0 | V174: =-+Prospetti_CIPE!V98 -> 0 | W174: =-+Prospetti_CIPE!W98 -> 0 | X174: =-+Prospetti_CIPE!X98 -> 0 | Y174: =-+Prospetti_CIPE!Y98 -> 0 | Z174: =-+Prospetti_CIPE!Z98 -> 0 | AA174: =-+Prospetti_CIPE!AA98 -> 0 | AB174: =-+Prospetti_CIPE!AB98 -> 0
C175: Totale | D175: €'000 | E175: 4.9 | I175: 141333.2371 | N175: =+SUM(N172:N174) -> 19607.67578 | O175: =+SUM(O172:O174) -> 14764.81042 | P175: 10778.69543 | Q175: 11219.62327 | R175: 11045.94985 | S175: 11443.98662 | T175: 11301.26111 | U175: 11430.06789 | V175: 12038.45349 | W175: 12029.18952 | X175: 12163.81397 | Y175: 12583.33293 | Z175: 12436.30246 | AA175: 12862.56058 | AB175: 0
C177: Debiti finanziari netti
C179: Prestiti consolidati con garanzia dello Stato | D179: €'000 | E179: 4.10 | I179: =+SUM(P179:AB179) -> 0
C180: Prestiti consolidati senza garanzia dello Stato | D180: €'000 | E180: 4.11 | I180: 0
C181: Fondo Centrale Garanzia | D181: €'000 | E181: 4.12 | I181: 0
C182: ANAS | D182: €'000 | E182: 4.13 | I182: 0
C183: Prestiti da contrarre a medio lungo termine | D183: €'000 | E183: 4.14 | I183: 3063066.607 | N183: =-Prospetti_CIPE!N94-Prospetti_CIPE!N95 -> 682446.6439 | O183: =-Prospetti_CIPE!O94-Prospetti_CIPE!O95 -> 620456.8677 | P183: =-Prospetti_CIPE!P94-Prospetti_CIPE!P95 -> 557743.6667 | Q183: =-Prospetti_CIPE!Q94-Prospetti_CIPE!Q95 -> 499160.6907 | R183: =-Prospetti_CIPE!R94-Prospetti_CIPE!R95 -> 435551.4778 | S183: =-Prospetti_CIPE!S94-Prospetti_CIPE!S95 -> 381691.4048 | T183: =-Prospetti_CIPE!T94-Prospetti_CIPE!T95 -> 333166.8498 | U183: =-Prospetti_CIPE!U94-Prospetti_CIPE!U95 -> 281167.9958 | V183: =-Prospetti_CIPE!V94-Prospetti_CIPE!V95 -> 229578.7319 | W183: =-Prospetti_CIPE!W94-Prospetti_CIPE!W95 -> 173426.0639 | X183: =-Prospetti_CIPE!X94-Prospetti_CIPE!X95 -> 115128.7159 | Y183: =-Prospetti_CIPE!Y94-Prospetti_CIPE!Y95 -> 56451.00997 | Z183: =-Prospetti_CIPE!Z94-Prospetti_CIPE!Z95 -> 0 | AA183: =-Prospetti_CIPE!AA94-Prospetti_CIPE!AA95 -> 0 | AB183: =-Prospetti_CIPE!AB94-Prospetti_CIPE!AB95 -> 0
C184: Saldo posizione finanziaria a breve | D184: €'000 | E184: 4.15 | I184: -636303.5203 | N184: =-Prospetti_CIPE!N77 -> -76049.111 | O184: =-Prospetti_CIPE!O77 -> -126988.8822 | P184: =-Prospetti_CIPE!P77 -> -111075.4776 | Q184: =-Prospetti_CIPE!Q77 -> -125680.9531 | R184: =-Prospetti_CIPE!R77 -> -134283.6493 | S184: =-Prospetti_CIPE!S77 -> -21385.81975 | T184: =-Prospetti_CIPE!T77 -> -21592.90719 | U184: =-Prospetti_CIPE!U77 -> -15723.54723 | V184: =-Prospetti_CIPE!V77 -> -13133.65887 | W184: =-Prospetti_CIPE!W77 -> -21192.39357 | X184: =-Prospetti_CIPE!X77 -> -22361.10788 | Y184: =-Prospetti_CIPE!Y77 -> -23458.18916 | Z184: =-Prospetti_CIPE!Z77 -> -66466.62378 | AA184: =-Prospetti_CIPE!AA77 -> -52842.82954 | AB184: =-Prospetti_CIPE!AB77 -> -7106.363267
C185: Totale | D185: €'000 | E185: 4.16 | I185: 2426763.087 | N185: =+SUM(N179:N184) -> 606397.5329 | O185: =+SUM(O179:O184) -> 493467.9855 | P185: 446668.1891 | Q185: 373479.7376 | R185: 301267.8284 | S185: 360305.585 | T185: 311573.9426 | U185: 265444.4486 | V185: 216445.073 | W185: 152233.6703 | X185: 92767.60806 | Y185: 32992.82081 | Z185: -66466.62378 | AA185: -52842.82954 | AB185: -7106.363267
C187: Totale Fonti | D187: €'000 | E187: 4.17 | I187: =+SUM(P187:AB187) -> 4450042.091 | N187: =+N185+N175+N168+N166 -> 766867.2001 | O187: =+O185+O175+O168+O166 -> 676097.8078 | P187: 626499.5531 | Q187: 578624.4709 | R187: 537817.2057 | S187: 486315.4591 | T187: 440851.8095 | U187: 403792.4019 | V187: 371182.662 | W187: 321619.8659 | X187: 269610.2504 | Y187: 218804.5137 | Z187: 126418.4177 | AA187: 73211.84407 | AB187: -4706.362847
G189: =+SUM(N189:AB189) -> 0 | N189: =+ROUND(N187-N155,2) -> 0 | O189: =+ROUND(O187-O155,2) -> 0 | P189: 0 | Q189: 0 | R189: 0 | S189: 0 | T189: 0 | U189: 0 | V189: 0 | W189: 0 | X189: 0 | Y189: 0 | Z189: 0 | AA189: 0 | AB189: 0
B191: 5 | C191: Tabella 5 - CONTO DEL FABBISOGNO FINANZIARIO ANNUO E RELATIVA COPERTURA | D191: Unit | E191: Codice Dicoter | I191: Tot. 2020/32 | N191: 2018-12-31 | O191: 2019-12-31 | P191: 2020-12-31 | Q191: 2021-12-31 | R191: 2022-12-31 | S191: 2023-12-31 | T191: 2024-12-31 | U191: 2025-12-31 | V191: 2026-12-31 | W191: 2027-12-31 | X191: 2028-12-31 | Y191: 2029-12-31 | Z191: 2030-12-31 | AA191: 2031-12-31 | AB191: 2032-12-31
C193: Fabbisogno netto
C195: Investimenti in immobilizzazioni materiali e immateriali | D195: €'000 | E195: 5.1 ; 5.2 | I195: =+SUM(P195:AB195) -> -73999.942 | O195: =+O29+O31+O32 -> -6261.78981 | P195: -6611 | Q195: -5155 | R195: -8645 | S195: -5661 | T195: -2385 | U195: -15083 | V195: -16616 | W195: -3020 | X195: -2215 | Y195: -2215 | Z195: -2215 | AA195: -2215 | AB195: -1963.942
C196: Variazione del cap. circ. netto operativo e altri impieghi correnti | D196: €'000 | E196: 5.3 | I196: 18199.63878 | O196: =+O25 -> 54100.00512 | P196: 5108.619423 | Q196: 5560.627327 | R196: -8396.975638 | S196: -1680.746651 | T196: -1061.455876 | U196: -2224.641022 | V196: 852.1022483 | W196: -67.57243659 | X196: 220.6733488 | Y196: -153.8924068 | Z196: -25.01618877 | AA196: -302.932291 | AB196: 20370.84894
C197: Rimborso debiti in scadenza | D197: €'000 | E197: 5.4 | I197: -632559.5997 | O197: =+O45 -> -64054.93678 | P197: -64723.39997 | Q197: -60407.39997 | R197: -65237.99996 | S197: -55302.89997 | T197: -49799.99997 | U197: -53119.99997 | V197: -52530.69997 | W197: -56921.39997 | X197: -58871.89997 | Y197: -59046.19997 | Z197: -56597.69997 | AA197: 0 | AB197: 0
C198: Saldo altri fabbisogni | D198: €'000 | E198: 5.5 | I198: -573916.3916 | O198: =+O43+O33 -> -2634.709 | P198: =+P43+P33 -> 5448.352709 | Q198: 1206.045543 | R198: 10914.01429 | S198: -134524.1623 | T198: -34297.25048 | U198: -25342.28889 | V198: -26268.9096 | W198: -25664.51942 | X198: -33648.09406 | Y198: -35053.35812 | Z198: 2651.890568 | AA198: -112128.5652 | AB198: -167209.5467
C199: Totale | D199: €'000 | E199: 5.6 | I199: -1262276.295 | N199: =+SUM(N195:N198) -> 0 | O199: =+SUM(O195:O198) -> -18851.43047 | P199: =+SUM(P195:P198) -> -60777.42783 | Q199: -58795.7271 | R199: -71365.96131 | S199: -197168.8089 | T199: -87543.70633 | U199: -95769.92989 | V199: -94563.50732 | W199: -85673.49182 | X199: -94514.32068 | Y199: -96468.4505 | Z199: -56185.82559 | AA199: -114646.4975 | AB199: -148802.6397
C201: Contributi in conto capitale | D201: €'000 | E201: 5.7 | I201: 0
C202: Autofinanziamento | D202: €'000 | E202: 5.8 | I202: 1125492.177 | N202: =+N23 -> 68030.99324 | O202: 67879.54112 | P202: 42853.82424 | Q202: 71576.77866 | R202: 78339.87053 | S202: 82828.15234 | T202: 86475.34876 | U202: 88779.42393 | V202: 91032.18296 | W202: 92963.49452 | X202: 95108.48299 | Y202: 97197.03777 | Z202: 99047.57022 | AA202: 101022.7032 | AB202: 98267.30732
C204: Totale fabbisogno netto | D204: €'000 | E204: 5.9 | I204: -136784.117 | N204: =+N199+N202 -> 68030.99324 | O204: =+O199+O202 -> 49028.11065 | P204: =+P199+P202 -> -17923.60359 | Q204: =+Q199+Q202 -> 12781.05156 | R204: 6973.909212 | S204: -114340.6566 | T204: -1068.357562 | U204: -6990.505952 | V204: -3531.324362 | W204: 7290.002698 | X204: 594.162308 | Y204: 728.5872776 | Z204: 42861.74463 | AA204: -13623.79424 | AB204: -50535.33242
C206: Copertura
C208: Apporti degli azionisti in c/capitale | D208: €'000 | E208: 5.10 | I208: =+SUM(P208:AB208) -> 0 | N208: =+Prospetti_CIPE!O147 -> 0 | O208: =+Prospetti_CIPE!P147 -> 0 | P208: =+Prospetti_CIPE!Q147 -> 0 | Q208: =+Prospetti_CIPE!R147 -> 0 | R208: =+Prospetti_CIPE!S147 -> 0 | S208: =+Prospetti_CIPE!T147 -> 0 | T208: =+Prospetti_CIPE!U147 -> 0 | U208: =+Prospetti_CIPE!V147 -> 0 | V208: =+Prospetti_CIPE!W147 -> 0 | W208: =+Prospetti_CIPE!X147 -> 0 | X208: =+Prospetti_CIPE!Y147 -> 0 | Y208: =+Prospetti_CIPE!Z147 -> 0 | Z208: =+Prospetti_CIPE!AA147 -> 0 | AA208: =+Prospetti_CIPE!AB147 -> 0 | AB208: =+Prospetti_CIPE!AC147 -> 0
C209: Finanziamenti a medio-lungo termine | D209: €'000 | E209: 5.11 | I209: 0 | N209: =+N39 -> 0 | O209: 0 | P209: 0 | Q209: 0 | R209: 0 | S209: 0 | T209: 0 | U209: 0 | V209: 0 | W209: 0 | X209: 0 | Y209: 0 | Z209: 0 | AA209: 0 | AB209: 0
C210: Variazione posizione finanziaria a breve | D210: €'000 | E210: 5.12 | I210: -136784.117 | N210: =+N48 -> 68030.99324 | O210: 49028.11065 | P210: -17923.60359 | Q210: 12781.05156 | R210: 6973.909212 | S210: -114340.6566 | T210: -1068.357562 | U210: -6990.505952 | V210: -3531.324362 | W210: 7290.002698 | X210: 594.162308 | Y210: 728.5872776 | Z210: 42861.74463 | AA210: -13623.79424 | AB210: -50535.33242
C212: Totale copertura | D212: €'000 | E212: 5.13 | I212: =+SUM(P212:AB212) -> -136784.117 | N212: =+SUM(N208:N210) -> 68030.99324 | O212: =+SUM(O208:O210) -> 49028.11065 | P212: =+SUM(P208:P210) -> -17923.60359 | Q212: 12781.05156 | R212: 6973.909212 | S212: -114340.6566 | T212: -1068.357562 | U212: -6990.505952 | V212: -3531.324362 | W212: 7290.002698 | X212: 594.162308 | Y212: 728.5872776 | Z212: 42861.74463 | AA212: -13623.79424 | AB212: -50535.33242
G214: =+SUM(N214:AB214) -> 0 | N214: =+ROUND(N212-N204,3) -> 0 | O214: =+ROUND(O212-O204,3) -> 0 | P214: 0 | Q214: 0 | R214: 0 | S214: 0 | T214: 0 | U214: 0 | V214: 0 | W214: 0 | X214: 0 | Y214: 0 | Z214: 0 | AA214: 0 | AB214: 0
C217: Note esplicative | D217: Unit | E217: Codice Dicoter | I217: Tot. 2020/32 | N217: 2018-12-31 | O217: 2019-12-31 | P217: 2020-12-31 | Q217: 2021-12-31 | R217: 2022-12-31 | S217: 2023-12-31 | T217: 2024-12-31 | U217: 2025-12-31 | V217: 2026-12-31 | W217: 2027-12-31 | X217: 2028-12-31 | Y217: 2029-12-31 | Z217: 2030-12-31 | AA217: 2031-12-31 | AB217: 2032-12-31
C219: Saldo altri flussi gestione operativa - 1.12
C220: Utilizzo CRA | D220: €'000 | I220: =+SUM(P220:AB220) -> 27079.81448 | N220: =+Prospetti_CIPE!N128 -> 0 | O220: =+Prospetti_CIPE!O128 -> 0 | P220: =+Prospetti_CIPE!P128 -> 4786 | Q220: =+Prospetti_CIPE!Q128 -> 3280 | R220: =+Prospetti_CIPE!R128 -> 7170 | S220: =+Prospetti_CIPE!S128 -> 5236 | T220: =+Prospetti_CIPE!T128 -> 1960 | U220: =+Prospetti_CIPE!U128 -> 4647.81448 | V220: =+Prospetti_CIPE!V128 -> 0 | W220: =+Prospetti_CIPE!W128 -> 0 | X220: =+Prospetti_CIPE!X128 -> 0 | Y220: =+Prospetti_CIPE!Y128 -> 0 | Z220: =+Prospetti_CIPE!Z128 -> 0 | AA220: =+Prospetti_CIPE!AA128 -> 0 | AB220: =+Prospetti_CIPE!AB128 -> 0
C221: Utilizzo MRA | D221: €'000 | I221: 8693.243323 | N221: =+Prospetti_CIPE!N129 -> 0 | O221: =+Prospetti_CIPE!O129 -> 0 | P221: =+Prospetti_CIPE!P129 -> 0 | Q221: =+Prospetti_CIPE!Q129 -> 0 | R221: =+Prospetti_CIPE!R129 -> 92.01429049 | S221: =+Prospetti_CIPE!S129 -> 0 | T221: =+Prospetti_CIPE!T129 -> 72.67950524 | U221: =+Prospetti_CIPE!U129 -> 0 | V221: =+Prospetti_CIPE!V129 -> 0 | W221: =+Prospetti_CIPE!W129 -> 5.948150116 | X221: =+Prospetti_CIPE!X129 -> 0 | Y221: =+Prospetti_CIPE!Y129 -> 0 | Z221: =+Prospetti_CIPE!Z129 -> 8522.601377 | AA221: =+Prospetti_CIPE!AA129 -> 0 | AB221: =+Prospetti_CIPE!AB129 -> 0
C222: Variazioni DSRA | D222: €'000 | I222: 41047.97515 | N222: =+Prospetti_CIPE!N142 -> 0 | O222: =+Prospetti_CIPE!O142 -> -2577.435 | P222: =+Prospetti_CIPE!P142 -> 3971.875167 | Q222: =+Prospetti_CIPE!Q142 -> -1859.199999 | R222: =+Prospetti_CIPE!R142 -> 3651.999998 | S222: =+Prospetti_CIPE!S142 -> 6100.499997 | T222: =+Prospetti_CIPE!T142 -> -1361.199999 | U222: =+Prospetti_CIPE!U142 -> 821.6999999 | V222: =+Prospetti_CIPE!V142 -> -2083.299999 | W222: =+Prospetti_CIPE!W142 -> -66.39999964 | X222: =+Prospetti_CIPE!X142 -> 796.7999999 | Y222: =+Prospetti_CIPE!Y142 -> -448.1999994 | Z222: =+Prospetti_CIPE!Z142 -> 31523.39998 | AA222: =+Prospetti_CIPE!AA142 -> 0 | AB222: =+Prospetti_CIPE!AB142 -> 0
C223: MRA funding | D223: €'000 | N223: =+Prospetti_CIPE!N143 -> 0 | O223: =+Prospetti_CIPE!O143 -> -57.274 | P223: =+Prospetti_CIPE!P143 -> -3309.522458 | Q223: =+Prospetti_CIPE!Q143 -> -214.7544585 | R223: =+Prospetti_CIPE!R143 -> 0 | S223: =+Prospetti_CIPE!S143 -> -197.3913713 | T223: =+Prospetti_CIPE!T143 -> 0 | U223: =+Prospetti_CIPE!U143 -> -63.10519793 | V223: =+Prospetti_CIPE!V143 -> -302.8868452 | W223: =+Prospetti_CIPE!W143 -> 0 | X223: =+Prospetti_CIPE!X143 -> -65.98554908 | Y223: =+Prospetti_CIPE!Y143 -> -208.4221936 | Z223: =+Prospetti_CIPE!Z143 -> 0 | AA223: =+Prospetti_CIPE!AA143 -> 0 | AB223: =+Prospetti_CIPE!AB143 -> 0
C224: Totale Saldo altri flussi gestione operativa | D224: €'000 | E224: 1.12 | I224: =+SUM(P224:AB224) -> 72458.96488 | N224: =+SUM(N220:N223) -> 0 | O224: =+SUM(O220:O223) -> -2634.709 | P224: 5448.352709 | Q224: 1206.045543 | R224: 10914.01429 | S224: 11139.10863 | T224: 671.4795063 | U224: 5406.409282 | V224: -2386.186844 | W224: -60.45184952 | X224: 730.8144508 | Y224: -656.622193 | Z224: 40046.00136 | AA224: 0 | AB224: 0
G226: =+SUM(N226:AB226) -> 0 | N226: =+N224-N33 -> 0 | O226: =+O224-O33 -> 0 | P226: 0 | Q226: 0 | R226: 0 | S226: 0 | T226: 0 | U226: 0 | V226: 0 | W226: 0 | X226: 0 | Y226: 0 | Z226: 0 | AA226: 0 | AB226: 0
C228: Capitale circolante netto operativo - 3.14
C229: Crediti commerciali | D229: €'000 | I229: =+SUM(P229:AB229) -> 41872.31958 | N229: =+Prospetti_CIPE!N80 -> 2779.57191 | O229: =+Prospetti_CIPE!O80 -> 2727.2514 | P229: =+Prospetti_CIPE!P80 -> 2657.231337 | Q229: =+Prospetti_CIPE!Q80 -> 3011.810893 | R229: =+Prospetti_CIPE!R80 -> 3095.363579 | S229: =+Prospetti_CIPE!S80 -> 3156.060695 | T229: =+Prospetti_CIPE!T80 -> 3211.84263 | U229: =+Prospetti_CIPE!U80 -> 3242.449683 | V229: =+Prospetti_CIPE!V80 -> 3271.287341 | W229: =+Prospetti_CIPE!W80 -> 3299.914577 | X229: =+Prospetti_CIPE!X80 -> 3327.963867 | Y229: =+Prospetti_CIPE!Y80 -> 3356.470042 | Z229: =+Prospetti_CIPE!Z80 -> 3385.124283 | AA229: =+Prospetti_CIPE!AA80 -> 3413.926012 | AB229: =+Prospetti_CIPE!AB80 -> 3442.874636
C230: Rimanenze | D230: €'000 | I230: 15593.17396 | N230: =+Prospetti_CIPE!N81 -> 1159.21413 | O230: =+Prospetti_CIPE!O81 -> 1199.47492 | P230: =+Prospetti_CIPE!P81 -> 1199.47492 | Q230: =+Prospetti_CIPE!Q81 -> 1199.47492 | R230: =+Prospetti_CIPE!R81 -> 1199.47492 | S230: =+Prospetti_CIPE!S81 -> 1199.47492 | T230: =+Prospetti_CIPE!T81 -> 1199.47492 | U230: =+Prospetti_CIPE!U81 -> 1199.47492 | V230: =+Prospetti_CIPE!V81 -> 1199.47492 | W230: =+Prospetti_CIPE!W81 -> 1199.47492 | X230: =+Prospetti_CIPE!X81 -> 1199.47492 | Y230: =+Prospetti_CIPE!Y81 -> 1199.47492 | Z230: =+Prospetti_CIPE!Z81 -> 1199.47492 | AA230: =+Prospetti_CIPE!AA81 -> 1199.47492 | AB230: =+Prospetti_CIPE!AB81 -> 1199.47492
C231: Credito IVA | D231: €'000 | I231: 0 | N231: =+Prospetti_CIPE!N82 -> 40112.71376 | O231: =+Prospetti_CIPE!O82 -> 5006.51892 | P231: =+Prospetti_CIPE!P82 -> 0 | Q231: =+Prospetti_CIPE!Q82 -> 0 | R231: =+Prospetti_CIPE!R82 -> 0 | S231: =+Prospetti_CIPE!S82 -> 0 | T231: =+Prospetti_CIPE!T82 -> 0 | U231: =+Prospetti_CIPE!U82 -> 0 | V231: =+Prospetti_CIPE!V82 -> 0 | W231: =+Prospetti_CIPE!W82 -> 0 | X231: =+Prospetti_CIPE!X82 -> 0 | Y231: =+Prospetti_CIPE!Y82 -> 0 | Z231: =+Prospetti_CIPE!Z82 -> 0 | AA231: =+Prospetti_CIPE!AA82 -> 0 | AB231: =+Prospetti_CIPE!AB82 -> 0
C232: Crediti v/Erario | D232: €'000 | I232: 9326.027554 | N232: =+Prospetti_CIPE!N83 -> 0 | O232: =+Prospetti_CIPE!O83 -> 0 | P232: =+Prospetti_CIPE!P83 -> 9326.027554 | Q232: =+Prospetti_CIPE!Q83 -> 0 | R232: =+Prospetti_CIPE!R83 -> 0 | S232: =+Prospetti_CIPE!S83 -> 0 | T232: =+Prospetti_CIPE!T83 -> 0 | U232: =+Prospetti_CIPE!U83 -> 0 | V232: =+Prospetti_CIPE!V83 -> 0 | W232: =+Prospetti_CIPE!W83 -> 0 | X232: =+Prospetti_CIPE!X83 -> 0 | Y232: =+Prospetti_CIPE!Y83 -> 0 | Z232: =+Prospetti_CIPE!Z83 -> 0 | AA232: =+Prospetti_CIPE!AA83 -> 0 | AB232: =+Prospetti_CIPE!AB83 -> 0
C233: Altri crediti | D233: €'000 | I233: 422414.3492 | N233: =+Prospetti_CIPE!N84 -> 53797.37803 | O233: =+Prospetti_CIPE!O84 -> 46017.5256 | P233: =+Prospetti_CIPE!P84 -> 25743.97456 | Q233: =+Prospetti_CIPE!Q84 -> 31709.18043 | R233: =+Prospetti_CIPE!R84 -> 37420.29748 | S233: =+Prospetti_CIPE!S84 -> 34314.0337 | T233: =+Prospetti_CIPE!T84 -> 35255.94377 | U233: =+Prospetti_CIPE!U84 -> 36982.06541 | V233: =+Prospetti_CIPE!V84 -> 35993.87275 | W233: =+Prospetti_CIPE!W84 -> 36335.52729 | X233: =+Prospetti_CIPE!X84 -> 36662.2765 | Y233: =+Prospetti_CIPE!Y84 -> 36996.72147 | Z233: =+Prospetti_CIPE!Z84 -> 37332.09372 | AA233: =+Prospetti_CIPE!AA84 -> 37668.36215 | AB233: =+Prospetti_CIPE!AB84 -> 0
C234: Debiti commerciali | D234: €'000 | I234: -115302.3706 | N234: =+Prospetti_CIPE!N89 -> -7966.34354 | O234: =+Prospetti_CIPE!O89 -> -8762.88159 | P234: =+Prospetti_CIPE!P89 -> -9084.769602 | Q234: =+Prospetti_CIPE!Q89 -> -8334.237165 | R234: =+Prospetti_CIPE!R89 -> -8512.815585 | S234: =+Prospetti_CIPE!S89 -> -8524.696229 | T234: =+Prospetti_CIPE!T89 -> -8678.555474 | U234: =+Prospetti_CIPE!U89 -> -8682.699917 | V234: =+Prospetti_CIPE!V89 -> -8753.871847 | W234: =+Prospetti_CIPE!W89 -> -8944.991221 | X234: =+Prospetti_CIPE!X89 -> -8981.534263 | Y234: =+Prospetti_CIPE!Y89 -> -9054.4975 | Z234: =+Prospetti_CIPE!Z89 -> -9198.951619 | AA234: =+Prospetti_CIPE!AA89 -> -9202.036732 | AB234: =+Prospetti_CIPE!AB89 -> -9348.713443
C235: Debito IVA | D235: €'000 | I235: -17990.49617 | N235: =+Prospetti_CIPE!N90 -> 0 | O235: =+Prospetti_CIPE!O90 -> 0 | P235: =+Prospetti_CIPE!P90 -> -1051.780374 | Q235: =+Prospetti_CIPE!Q90 -> -1189.86366 | R235: =+Prospetti_CIPE!R90 -> -1307.300467 | S235: =+Prospetti_CIPE!S90 -> -1403.501753 | T235: =+Prospetti_CIPE!T90 -> -1483.450155 | U235: =+Prospetti_CIPE!U90 -> -1544.516626 | V235: =+Prospetti_CIPE!V90 -> -1591.909643 | W235: =+Prospetti_CIPE!W90 -> -1629.714513 | X235: =+Prospetti_CIPE!X90 -> -1660.657562 | Y235: =+Prospetti_CIPE!Y90 -> -1686.94285 | Z235: =+Prospetti_CIPE!Z90 -> -1710.007918 | AA235: =+Prospetti_CIPE!AA90 -> -1730.850646 | AB235: =+Prospetti_CIPE!AB90 -> 0
C236: Debito v/Erario | D236: €'000 | I236: -14062.05459 | N236: =+Prospetti_CIPE!N91 -> -1959.04238 | O236: =+Prospetti_CIPE!O91 -> -2869.10391 | P236: =+Prospetti_CIPE!P91 -> 0 | Q236: =+Prospetti_CIPE!Q91 -> -8287.555013 | R236: =+Prospetti_CIPE!R91 -> -381.0146048 | S236: =+Prospetti_CIPE!S91 -> -1635.128809 | T236: =+Prospetti_CIPE!T91 -> -1138.195742 | U236: =+Prospetti_CIPE!U91 -> -555.1199099 | V236: =+Prospetti_CIPE!V91 -> -211.9609125 | W236: =+Prospetti_CIPE!W91 -> -48.08838458 | X236: =+Prospetti_CIPE!X91 -> -472.6205804 | Y236: =+Prospetti_CIPE!Y91 -> -462.1817608 | Z236: =+Prospetti_CIPE!Z91 -> -441.5546762 | AA236: =+Prospetti_CIPE!AA91 -> -428.634194 | AB236: =+Prospetti_CIPE!AB91 -> 0
C237: Altri debiti | D237: €'000 | I237: -184883.278 | N237: =+Prospetti_CIPE!N93 -> -19988.70215 | O237: =+Prospetti_CIPE!O93 -> -29469.26999 | P237: =+Prospetti_CIPE!P93 -> -20109.33678 | Q237: =+Prospetti_CIPE!Q93 -> -14977.19719 | R237: =+Prospetti_CIPE!R93 -> -19975.0613 | S237: =+Prospetti_CIPE!S93 -> -13883.29782 | T237: =+Prospetti_CIPE!T93 -> -14080.02588 | U237: =+Prospetti_CIPE!U93 -> -14127.38208 | V237: =+Prospetti_CIPE!V93 -> -14242.11147 | W237: =+Prospetti_CIPE!W93 -> -14477.13676 | X237: =+Prospetti_CIPE!X93 -> -14557.93697 | Y237: =+Prospetti_CIPE!Y93 -> -14675.51143 | Z237: =+Prospetti_CIPE!Z93 -> -14864.93366 | AA237: =+Prospetti_CIPE!AA93 -> -14913.34663 | AB237: =+Prospetti_CIPE!AB93 -> 0
C238: Totale Capitale circolante netto operativo | D238: €'000 | E238: 3.14 | I238: =+SUM(P238:AB238) -> 156967.671 | N238: =+SUM(N229:N237) -> 67934.78976 | O238: 13849.51535 | P238: 8680.821618 | Q238: 3131.613215 | R238: 11538.94402 | S238: 13222.9447 | T238: 14287.03407 | U238: 16514.27147 | V238: 15664.78114 | W238: 15734.98591 | X238: 15516.96591 | Y238: 15673.53289 | Z238: 15701.24505 | AA238: 16006.89488 | AB238: -4706.363887
G240: =+SUM(N240:AB240) -> 0 | N240: =+N238-N152 -> 0 | O240: 0 | P240: 0 | Q240: 0 | R240: 0 | S240: 0 | T240: 0 | U240: 0 | V240: 0 | W240: 0 | X240: 0 | Y240: 0 | Z240: 0 | AA240: 0 | AB240: 0
C242: Altri impieghi netti correnti - 3.15
C243: DSRA | D243: €'000 | I243: =+SUM(P243:AB243) -> 327019.9998 | N243: =+Prospetti_CIPE!N74 -> 38470.54015 | O243: =+Prospetti_CIPE!O74 -> 41047.97515 | P243: =+Prospetti_CIPE!P74 -> 37076.09998 | Q243: =+Prospetti_CIPE!Q74 -> 38935.29998 | R243: =+Prospetti_CIPE!R74 -> 35283.29998 | S243: =+Prospetti_CIPE!S74 -> 29182.79999 | T243: =+Prospetti_CIPE!T74 -> 30543.99999 | U243: =+Prospetti_CIPE!U74 -> 29722.29999 | V243: =+Prospetti_CIPE!V74 -> 31805.59998 | W243: =+Prospetti_CIPE!W74 -> 31871.99998 | X243: =+Prospetti_CIPE!X74 -> 31075.19998 | Y243: =+Prospetti_CIPE!Y74 -> 31523.39998 | Z243: =+Prospetti_CIPE!Z74 -> 0 | AA243: =+Prospetti_CIPE!AA74 -> 0 | AB243: =+Prospetti_CIPE!AB74 -> 0
C244: CRA | D244: €'000 | I244: 64407.0724 | N244: =+Prospetti_CIPE!N75 -> 27079.81448 | O244: =+Prospetti_CIPE!O75 -> 27079.81448 | P244: =+Prospetti_CIPE!P75 -> 22293.81448 | Q244: =+Prospetti_CIPE!Q75 -> 19013.81448 | R244: =+Prospetti_CIPE!R75 -> 11843.81448 | S244: =+Prospetti_CIPE!S75 -> 6607.81448 | T244: =+Prospetti_CIPE!T75 -> 4647.81448 | U244: =+Prospetti_CIPE!U75 -> 0 | V244: =+Prospetti_CIPE!V75 -> 0 | W244: =+Prospetti_CIPE!W75 -> 0 | X244: =+Prospetti_CIPE!X75 -> 0 | Y244: =+Prospetti_CIPE!Y75 -> 0 | Z244: =+Prospetti_CIPE!Z75 -> 0 | AA244: =+Prospetti_CIPE!AA75 -> 0 | AB244: =+Prospetti_CIPE!AB75 -> 0
C245: MRA | D245: €'000 | I245: 80398.93766 | N245: =+Prospetti_CIPE!N76 -> 4273.90125 | O245: =+Prospetti_CIPE!O76 -> 4331.17525 | P245: =+Prospetti_CIPE!P76 -> 7640.697708 | Q245: =+Prospetti_CIPE!Q76 -> 7855.452166 | R245: =+Prospetti_CIPE!R76 -> 7763.437875 | S245: =+Prospetti_CIPE!S76 -> 7960.829247 | T245: =+Prospetti_CIPE!T76 -> 7888.149742 | U245: =+Prospetti_CIPE!U76 -> 7951.254939 | V245: =+Prospetti_CIPE!V76 -> 8254.141785 | W245: =+Prospetti_CIPE!W76 -> 8248.193635 | X245: =+Prospetti_CIPE!X76 -> 8314.179184 | Y245: =+Prospetti_CIPE!Y76 -> 8522.601377 | Z245: =+Prospetti_CIPE!Z76 -> 0 | AA245: =+Prospetti_CIPE!AA76 -> 0 | AB245: =+Prospetti_CIPE!AB76 -> 0
C246: Totale Capitale circolante netto operativo | D246: €'000 | E246: 3.15 | I246: =+SUM(P246:AB246) -> 471826.0099 | N246: =+SUM(N243:N245) -> 69824.25588 | O246: =+SUM(O243:O245) -> 72458.96488 | P246: 67010.61217 | Q246: 65804.56663 | R246: 54890.55234 | S246: 43751.44371 | T246: 43079.96421 | U246: 37673.55493 | V246: 40059.74177 | W246: 40120.19362 | X246: 39389.37917 | Y246: 40046.00136 | Z246: 0 | AA246: 0 | AB246: 0
G248: =+SUM(N248:AB248) -> 0 | N248: =+N246-N153 -> 0 | O248: 0 | P248: 0 | Q248: 0 | R248: 0 | S248: 0 | T248: 0 | U248: 0 | V248: 0 | W248: 0 | X248: 0 | Y248: 0 | Z248: 0 | AA248: 0 | AB248: 0
C250: Saldo altri fabbisogni - 5.5
C251: Utili distribuiti | D251: €'000 | I251: =+SUM(P251:AB251) -> -646375.3565 | N251: =+N43 -> 0 | O251: 0 | P251: =+P43 -> 0 | Q251: =+Q43 -> 0 | R251: 0 | S251: -145663.2709 | T251: -34968.72998 | U251: -30748.69817 | V251: -23882.72275 | W251: -25604.06757 | X251: -34378.90851 | Y251: -34396.73593 | Z251: -37394.11079 | AA251: -112128.5652 | AB251: -167209.5467
C252: Saldo altri flussi gestione operativa | D252: €'000 | I252: 72458.96488 | N252: =+N33 -> 0 | O252: -2634.709 | P252: =+P33 -> 5448.352709 | Q252: =+Q33 -> 1206.045543 | R252: 10914.01429 | S252: 11139.10863 | T252: 671.4795063 | U252: 5406.409282 | V252: -2386.186844 | W252: -60.45184952 | X252: 730.8144508 | Y252: -656.622193 | Z252: 40046.00136 | AA252: 0 | AB252: 0
C253: Totale Saldo altri fabbisogni | D253: €'000 | E253: 5.5 | I253: =+SUM(P253:AB253) -> -573916.3916 | N253: =+SUM(N250:N252) -> 0 | O253: =+SUM(O250:O252) -> -2634.709 | P253: =+SUM(P250:P252) -> 5448.352709 | Q253: =+SUM(Q250:Q252) -> 1206.045543 | R253: =+SUM(R250:R252) -> 10914.01429 | S253: =+SUM(S250:S252) -> -134524.1623 | T253: =+SUM(T250:T252) -> -34297.25048 | U253: =+SUM(U250:U252) -> -25342.28889 | V253: =+SUM(V250:V252) -> -26268.9096 | W253: =+SUM(W250:W252) -> -25664.51942 | X253: =+SUM(X250:X252) -> -33648.09406 | Y253: =+SUM(Y250:Y252) -> -35053.35812 | Z253: =+SUM(Z250:Z252) -> 2651.890568 | AA253: =+SUM(AA250:AA252) -> -112128.5652 | AB253: =+SUM(AB250:AB252) -> -167209.5467
G255: =+SUM(N255:AB255) -> 0 | N255: =+N253-N198 -> 0 | O255: =+O253-O198 -> 0 | P255: 0 | Q255: 0 | R255: 0 | S255: 0 | T255: 0 | U255: 0 | V255: 0 | W255: 0 | X255: 0 | Y255: 0 | Z255: 0 | AA255: 0 | AB255: 0
B258: END OF SHEET

Sheet Grafici tariffe (hidden)
K2: Anni
K3: 2020 | L3: =K3+1 -> 2021 | M3: =L3+1 -> 2022 | N3: 2023 | O3: 2024 | P3: 2025 | Q3: 2026 | R3: 2027 | S3: 2028 | T3: 2029 | U3: 2030 | V3: 2031 | W3: 2032
H5: TIR | I5: Tariffa CIPE | K5: 0.07861506512 | L5: 0.078869895 | M5: 0.0791255509 | N5: 0.07938203552 | O5: 0.07963935152 | P5: 0.07887718363 | Q5: 0.07812230986 | R5: 0.07737466042 | S5: 0.07663416617 | T5: 0.07590075863 | U5: 0.07517436997 | V5: 0.07445493303 | W5: 0.07374238128
G6: A | H6: 0.07121104381 | I6: Tariffa ART - con poste figurative | K6: =#REF! ->  | L6: =#REF! ->  | M6: =#REF! ->  | N6: =#REF! ->  | O6: =#REF! ->  | P6: =#REF! ->  | Q6: =#REF! ->  | R6: =#REF! ->  | S6: =#REF! ->  | T6: =#REF! ->  | U6: =#REF! ->  | V6: =#REF! ->  | W6: =#REF! -> 
G7: B | H7: 0.1356026388 | I7: Tariffa ART - caso base con tasso medio pond | K7: 0.0756 | L7: 0.07512 | M7: 0.07465 | N7: 0.07418 | O7: 0.07372 | P7: 0.07326 | Q7: 0.0728 | R7: 0.07234 | S7: 0.07189 | T7: 0.07144 | U7: 0.07099 | V7: 0.07054 | W7: 0.0701
G8: C | H8: 0.1356026383 | I8: Tariffa ART - caso base con WACC | K8: 0.07538 | L8: 0.07469 | M8: 0.074 | N8: 0.07332 | O8: 0.07265 | P8: 0.07199 | Q8: 0.07133 | R8: 0.07068 | S8: 0.07003 | T8: 0.06939 | U8: 0.06875 | V8: 0.06812 | W8: 0.0675
K10: =(K6-K7)/K7 ->  | L10: =(L6-L7)/L7 -> 
K11: =(K6-K8)/K8 ->  | L11: =(L6-L8)/L8 -> 
B13: Covenant ART | C13: A | D13: B | E13: C
B15: N° blocchi alle distribuzioni (Projected DSCR) | C15: 8 | D15: 9 | E15: 9
B17: Semestri | C17: 1°- 2° 2020 | D17: 1°- 2° 2020 | E17: 1°- 2° 2020
C18: 1°- 2° 2021 | D18: 1°- 2° 2021 | E18: 1°- 2° 2021
C19: 1° 2022 | D19: 1° 2022 | E19: 1° 2022
C20: 2° 2024 | D20: 2° 2024 | E20: 2° 2024
C21: 1°- 2° 2025 | D21: 1°- 2° 2025 | E21: 1°- 2° 2025
D22: 1° 2026 | E22: 1° 2026
B25: N° blocchi alle distribuzioni (Projected BLCR) | C25: 0 | D25: 2 | E25: 3
B27: Semestri | D27: 1°- 2° 2020 | E27: 1°- 2° 2020
E28: 1° 2021

Sheet Modello >>

Sheet Input
B2: =+Cover!D26 -> CAV - Sistema tariffario CIPE
B3: Input
I5: Starting date | N5: =+E27 -> 2018-01-01 | O5: =N6+1 -> 2018-07-01 | P5: 2019-01-01 | Q5: 2019-07-01 | R5: 2020-01-01 | S5: 2020-07-01 | T5: 2021-01-01 | U5: 2021-07-01 | V5: 2022-01-01 | W5: 2022-07-01 | X5: 2023-01-01 | Y5: 2023-07-01 | Z5: 2024-01-01 | AA5: 2024-07-01 | AB5: 2025-01-01 | AC5: 2025-07-01 | AD5: 2026-01-01 | AE5: 2026-07-01 | AF5: 2027-01-01 | AG5: 2027-07-01 | AH5: 2028-01-01 | AI5: 2028-07-01 | AJ5: 2029-01-01 | AK5: 2029-07-01 | AL5: 2030-01-01 | AM5: 2030-07-01 | AN5: 2031-01-01 | AO5: 2031-07-01 | AP5: 2032-01-01 | AQ5: 2032-07-01
I6: Ending date | N6: =+EOMONTH(N5,$E$28-1) -> 2018-06-30 | O6: 2018-12-31 | P6: 2019-06-30 | Q6: 2019-12-31 | R6: 2020-06-30 | S6: 2020-12-31 | T6: 2021-06-30 | U6: 2021-12-31 | V6: 2022-06-30 | W6: 2022-12-31 | X6: 2023-06-30 | Y6: 2023-12-31 | Z6: 2024-06-30 | AA6: 2024-12-31 | AB6: 2025-06-30 | AC6: 2025-12-31 | AD6: 2026-06-30 | AE6: 2026-12-31 | AF6: 2027-06-30 | AG6: 2027-12-31 | AH6: 2028-06-30 | AI6: 2028-12-31 | AJ6: 2029-06-30 | AK6: 2029-12-31 | AL6: 2030-06-30 | AM6: 2030-12-31 | AN6: 2031-06-30 | AO6: 2031-12-31 | AP6: 2032-06-30 | AQ6: 2032-12-31
E7: sheet check | F7: =+SUM(G8:G1083) -> 0 | I7: Year | N7: =YEAR(N6) -> 2018 | O7: 2018 | P7: 2019 | Q7: 2019 | R7: 2020 | S7: 2020 | T7: 2021 | U7: 2021 | V7: 2022 | W7: 2022 | X7: 2023 | Y7: 2023 | Z7: 2024 | AA7: 2024 | AB7: 2025 | AC7: 2025 | AD7: 2026 | AE7: 2026 | AF7: 2027 | AG7: 2027 | AH7: 2028 | AI7: 2028 | AJ7: 2029 | AK7: 2029 | AL7: 2030 | AM7: 2030 | AN7: 2031 | AO7: 2031 | AP7: 2032 | AQ7: 2032
I8: Days (in period) | N8: =N6-N5+1 -> 181 | O8: 184 | P8: 181 | Q8: 184 | R8: 182 | S8: 184 | T8: 181 | U8: 184 | V8: 181 | W8: 184 | X8: 181 | Y8: 184 | Z8: 182 | AA8: 184 | AB8: 181 | AC8: 184 | AD8: 181 | AE8: 184 | AF8: 181 | AG8: 184 | AH8: 182 | AI8: 184 | AJ8: 181 | AK8: 184 | AL8: 181 | AM8: 184 | AN8: 181 | AO8: 184 | AP8: 182 | AQ8: 184
I9: Month | N9: =MONTH(N6) -> 6 | O9: 12 | P9: 6 | Q9: 12 | R9: 6 | S9: 12 | T9: 6 | U9: 12 | V9: 6 | W9: 12 | X9: 6 | Y9: 12 | Z9: 6 | AA9: 12 | AB9: 6 | AC9: 12 | AD9: 6 | AE9: 12 | AF9: 6 | AG9: 12 | AH9: 6 | AI9: 12 | AJ9: 6 | AK9: 12 | AL9: 6 | AM9: 12 | AN9: 6 | AO9: 12 | AP9: 6 | AQ9: 12
I10: Period counter | N10: =M10+1 -> 1 | O10: 2 | P10: 3 | Q10: 4 | R10: 5 | S10: 6 | T10: 7 | U10: 8 | V10: 9 | W10: 10 | X10: 11 | Y10: 12 | Z10: 13 | AA10: 14 | AB10: 15 | AC10: 16 | AD10: 17 | AE10: 18 | AF10: 19 | AG10: 20 | AH10: 21 | AI10: 22 | AJ10: 23 | AK10: 24 | AL10: 25 | AM10: 26 | AN10: 27 | AO10: 28 | AP10: 29 | AQ10: 30
I11: End of year | N11: =1*(N9=12) -> 0 | O11: 1 | P11: 0 | Q11: 1 | R11: 0 | S11: 1 | T11: 0 | U11: 1 | V11: 0 | W11: 1 | X11: 0 | Y11: 1 | Z11: 0 | AA11: 1 | AB11: 0 | AC11: 1 | AD11: 0 | AE11: 1 | AF11: 0 | AG11: 1 | AH11: 0 | AI11: 1 | AJ11: 0 | AK11: 1 | AL11: 0 | AM11: 1 | AN11: 0 | AO11: 1 | AP11: 0 | AQ11: 1
I12: End of semester | N12: =1*OR(N9=6,N9=12) -> 1 | O12: 1 | P12: 1 | Q12: 1 | R12: 1 | S12: 1 | T12: 1 | U12: 1 | V12: 1 | W12: 1 | X12: 1 | Y12: 1 | Z12: 1 | AA12: 1 | AB12: 1 | AC12: 1 | AD12: 1 | AE12: 1 | AF12: 1 | AG12: 1 | AH12: 1 | AI12: 1 | AJ12: 1 | AK12: 1 | AL12: 1 | AM12: 1 | AN12: 1 | AO12: 1 | AP12: 1 | AQ12: 1
I13: Fraction of year | N13: =+ROUND(N8/$E$23,1) -> 0.5 | O13: =+ROUND(O8/$E$23,1) -> 0.5 | P13: 0.5 | Q13: 0.5 | R13: 0.5 | S13: 0.5 | T13: 0.5 | U13: 0.5 | V13: 0.5 | W13: 0.5 | X13: 0.5 | Y13: 0.5 | Z13: 0.5 | AA13: 0.5 | AB13: 0.5 | AC13: 0.5 | AD13: 0.5 | AE13: 0.5 | AF13: 0.5 | AG13: 0.5 | AH13: 0.5 | AI13: 0.5 | AJ13: 0.5 | AK13: 0.5 | AL13: 0.5 | AM13: 0.5 | AN13: 0.5 | AO13: 0.5 | AP13: 0.5 | AQ13: 0.5
C16: TIMELINE | D16: Unit | E16: Input 1 | F16: Input 2 | G16: Check | I16: Total
C18: Model timing inputs
C20: Months in year | D20: months | E20: 12
C21: Days in average month | D21: days | E21: 30
C22: Days in semester | D22: days | E22: 180
C23: Days in average year | D23: days | E23: 360
C25: Model duration
C27: Model starting date | D27: date | E27: 2018-01-01
C28: Months in the period | D28: months | E28: 6
C30: Concession timing
C32: 1st regulatory period start date | D32: date | E32: 2020-01-01
C33: Concession duration | D33: years | E33: 30
C34: Concession end date | D34: data | E34: 2032-12-31
C35: Regulatory period duration | D35: years | E35: 5
C38: Model update
C40: Update date | D40: data | E40: 2019-12-31
C41: Forecast period start | D41: data | E41: =+E40+1 -> 2020-01-01
C44: Beneficio ACE update
C46: Last update date | D46: data | E46: 2018-12-31
C47: Forecast period start | D47: data | E47: =+E46+1 -> 2019-01-01
B50: FLAG | D50: Unit | E50: Input 1 | F50: Input 2 | G50: Check | I50: Total
C52: Concession period | D52: flag | I52: =+SUM(N52:AQ52) -> 26 | N52: =1*AND(N$5<=$E34,N$6>=$E32) -> 0 | O52: =1*AND(O$5<=$E34,O$6>=$E32) -> 0 | P52: 0 | Q52: 0 | R52: 1 | S52: 1 | T52: 1 | U52: 1 | V52: 1 | W52: 1 | X52: 1 | Y52: 1 | Z52: 1 | AA52: 1 | AB52: 1 | AC52: 1 | AD52: 1 | AE52: =1*AND(AE$5<=$E34,AE$6>=$E32) -> 1 | AF52: 1 | AG52: 1 | AH52: 1 | AI52: 1 | AJ52: 1 | AK52: 1 | AL52: 1 | AM52: 1 | AN52: 1 | AO52: 1 | AP52: 1 | AQ52: 1
C53: Regulatory period | D53: year | I53: =+SUM(N53:AQ53) -> 48 | N53: =+M53+1*OR(AND(N$5<=$E32,N$6>=$E32),COUNTIF($M53:M53,M53)=$E35*2) -> 0 | O53: =+N53+1*OR(AND(O$5<=$E32,O$6>=$E32),COUNTIF($M53:N53,N53)=$E35*2) -> 0 | P53: =+O53+1*OR(AND(P$5<=$E32,P$6>=$E32),COUNTIF($M53:O53,O53)=$E35*2) -> 0 | Q53: =+P53+1*OR(AND(Q$5<=$E32,Q$6>=$E32),COUNTIF($M53:P53,P53)=$E35*2) -> 0 | R53: =+Q53+1*OR(AND(R$5<=$E32,R$6>=$E32),COUNTIF($M53:Q53,Q53)=$E35*2) -> 1 | S53: =+R53+1*OR(AND(S$5<=$E32,S$6>=$E32),COUNTIF($M53:R53,R53)=$E35*2) -> 1 | T53: =+S53+1*OR(AND(T$5<=$E32,T$6>=$E32),COUNTIF($M53:S53,S53)=$E35*2) -> 1 | U53: =+T53+1*OR(AND(U$5<=$E32,U$6>=$E32),COUNTIF($M53:T53,T53)=$E35*2) -> 1 | V53: =+U53+1*OR(AND(V$5<=$E32,V$6>=$E32),COUNTIF($M53:U53,U53)=$E35*2) -> 1 | W53: =+V53+1*OR(AND(W$5<=$E32,W$6>=$E32),COUNTIF($M53:V53,V53)=$E35*2) -> 1 | X53: =+W53+1*OR(AND(X$5<=$E32,X$6>=$E32),COUNTIF($M53:W53,W53)=$E35*2) -> 1 | Y53: =+X53+1*OR(AND(Y$5<=$E32,Y$6>=$E32),COUNTIF($M53:X53,X53)=$E35*2) -> 1 | Z53: =+Y53+1*OR(AND(Z$5<=$E32,Z$6>=$E32),COUNTIF($M53:Y53,Y53)=$E35*2) -> 1 | AA53: =+Z53+1*OR(AND(AA$5<=$E32,AA$6>=$E32),COUNTIF($M53:Z53,Z53)=$E35*2) -> 1 | AB53: =+AA53+1*OR(AND(AB$5<=$E32,AB$6>=$E32),COUNTIF($M53:AA53,AA53)=$E35*2) -> 2 | AC53: =+AB53+1*OR(AND(AC$5<=$E32,AC$6>=$E32),COUNTIF($M53:AB53,AB53)=$E35*2) -> 2 | AD53: =+AC53+1*OR(AND(AD$5<=$E32,AD$6>=$E32),COUNTIF($M53:AC53,AC53)=$E35*2) -> 2 | AE53: =+AD53+1*OR(AND(AE$5<=$E32,AE$6>=$E32),COUNTIF($M53:AD53,AD53)=$E35*2) -> 2 | AF53: =+AE53+1*OR(AND(AF$5<=$E32,AF$6>=$E32),COUNTIF($M53:AE53,AE53)=$E35*2) -> 2 | AG53: =+AF53+1*OR(AND(AG$5<=$E32,AG$6>=$E32),COUNTIF($M53:AF53,AF53)=$E35*2) -> 2 | AH53: =+AG53+1*OR(AND(AH$5<=$E32,AH$6>=$E32),COUNTIF($M53:AG53,AG53)=$E35*2) -> 2 | AI53: =+AH53+1*OR(AND(AI$5<=$E32,AI$6>=$E32),COUNTIF($M53:AH53,AH53)=$E35*2) -> 2 | AJ53: =+AI53+1*OR(AND(AJ$5<=$E32,AJ$6>=$E32),COUNTIF($M53:AI53,AI53)=$E35*2) -> 2 | AK53: =+AJ53+1*OR(AND(AK$5<=$E32,AK$6>=$E32),COUNTIF($M53:AJ53,AJ53)=$E35*2) -> 2 | AL53: =+AK53+1*OR(AND(AL$5<=$E32,AL$6>=$E32),COUNTIF($M53:AK53,AK53)=$E35*2) -> 3 | AM53: =+AL53+1*OR(AND(AM$5<=$E32,AM$6>=$E32),COUNTIF($M53:AL53,AL53)=$E35*2) -> 3 | AN53: =+AM53+1*OR(AND(AN$5<=$E32,AN$6>=$E32),COUNTIF($M53:AM53,AM53)=$E35*2) -> 3 | AO53: =+AN53+1*OR(AND(AO$5<=$E32,AO$6>=$E32),COUNTIF($M53:AN53,AN53)=$E35*2) -> 3 | AP53: =+AO53+1*OR(AND(AP$5<=$E32,AP$6>=$E32),COUNTIF($M53:AO53,AO53)=$E35*2) -> 3 | AQ53: =+AP53+1*OR(AND(AQ$5<=$E32,AQ$6>=$E32),COUNTIF($M53:AP53,AP53)=$E35*2) -> 3
C54: Regulatory period year | D54: year | I54: =+SUM(N54:AQ54) -> 72 | N54: =IF(N53<>M53,1,M54+1*M11)*(N53<>0) -> 0 | O54: =IF(O53<>N53,1,N54+1*N11)*(O53<>0) -> 0 | P54: =IF(P53<>O53,1,O54+1*O11)*(P53<>0) -> 0 | Q54: =IF(Q53<>P53,1,P54+1*P11)*(Q53<>0) -> 0 | R54: =IF(R53<>Q53,1,Q54+1*Q11)*(R53<>0) -> 1 | S54: =IF(S53<>R53,1,R54+1*R11)*(S53<>0) -> 1 | T54: 2 | U54: 2 | V54: 3 | W54: 3 | X54: 4 | Y54: 4 | Z54: 5 | AA54: 5 | AB54: 1 | AC54: 1 | AD54: 2 | AE54: =IF(AE53<>AD53,1,AD54+1*AD11)*(AE53<>0) -> 2 | AF54: 3 | AG54: 3 | AH54: 4 | AI54: 4 | AJ54: 5 | AK54: 5 | AL54: 1 | AM54: 1 | AN54: 2 | AO54: 2 | AP54: 3 | AQ54: 3
C55: Base year | D55: flag | I55: =+SUM(N55:AQ55) -> 6 | N55: =1*(R54=1) -> 1 | O55: =1*(S54=1) -> 1 | P55: =1*(T54=1) -> 0 | Q55: 0 | R55: 0 | S55: 0 | T55: 0 | U55: 0 | V55: 0 | W55: 0 | X55: 1 | Y55: 1 | Z55: 0 | AA55: 0 | AB55: 0 | AC55: 0 | AD55: 0 | AE55: 0 | AF55: 0 | AG55: 0 | AH55: 1 | AI55: 1 | AJ55: 0 | AK55: 0 | AL55: 0 | AM55: 0 | AN55: =1*(AR54=1) -> 0 | AO55: =1*(AS54=1) -> 0 | AP55: =1*(AT54=1) -> 0 | AQ55: =1*(AU54=1) -> 0
C56: Bridge year | D56: flag | I56: =+SUM(N56:AQ56) -> 6 | N56: =1*(P54=1) -> 0 | O56: =1*(Q54=1) -> 0 | P56: =1*(R54=1) -> 1 | Q56: =1*(S54=1) -> 1 | R56: 0 | S56: 0 | T56: 0 | U56: 0 | V56: 0 | W56: 0 | X56: 0 | Y56: 0 | Z56: 1 | AA56: 1 | AB56: 0 | AC56: 0 | AD56: 0 | AE56: 0 | AF56: 0 | AG56: 0 | AH56: 0 | AI56: 0 | AJ56: 1 | AK56: 1 | AL56: 0 | AM56: 0 | AN56: =1*(AP54=1) -> 0 | AO56: =1*(AQ54=1) -> 0 | AP56: =1*(AR54=1) -> 0 | AQ56: =1*(AS54=1) -> 0
C58: Actual flag | D58: flag | I58: =+SUM(N58:AQ58) -> 4 | N58: =+(N6<=$E40)*1 -> 1 | O58: =+(O6<=$E40)*1 -> 1 | P58: 1 | Q58: 1 | R58: 0 | S58: 0 | T58: 0 | U58: 0 | V58: 0 | W58: 0 | X58: 0 | Y58: 0 | Z58: 0 | AA58: 0 | AB58: 0 | AC58: 0 | AD58: 0 | AE58: 0 | AF58: 0 | AG58: 0 | AH58: 0 | AI58: 0 | AJ58: 0 | AK58: 0 | AL58: 0 | AM58: 0 | AN58: 0 | AO58: 0 | AP58: 0 | AQ58: 0
C59: Forecast flag | D59: flag | I59: =+SUM(N59:AQ59) -> 26 | N59: =+AND(N6>$E40,N6<=$E34)*1 -> 0 | O59: =+AND(O6>$E40,O6<=$E34)*1 -> 0 | P59: 0 | Q59: 0 | R59: 1 | S59: 1 | T59: 1 | U59: 1 | V59: 1 | W59: 1 | X59: 1 | Y59: 1 | Z59: 1 | AA59: 1 | AB59: 1 | AC59: 1 | AD59: 1 | AE59: 1 | AF59: 1 | AG59: 1 | AH59: 1 | AI59: 1 | AJ59: 1 | AK59: 1 | AL59: 1 | AM59: 1 | AN59: 1 | AO59: 1 | AP59: 1 | AQ59: 1
C60: Flag Beneficio ACE forecast | D60: flag | I60: =+SUM(N60:AQ60) -> 28 | N60: =+AND(N6>$E$46,N6<=$E$34)*1 -> 0 | O60: =+AND(O6>$E$46,O6<=$E$34)*1 -> 0 | P60: =+AND(P6>$E$46,P6<=$E$34)*1 -> 1 | Q60: 1 | R60: 1 | S60: 1 | T60: 1 | U60: 1 | V60: 1 | W60: 1 | X60: 1 | Y60: 1 | Z60: 1 | AA60: 1 | AB60: 1 | AC60: 1 | AD60: 1 | AE60: 1 | AF60: 1 | AG60: 1 | AH60: 1 | AI60: 1 | AJ60: 1 | AK60: 1 | AL60: 1 | AM60: 1 | AN60: 1 | AO60: 1 | AP60: 1 | AQ60: 1
B63: GENERAL INPUTS | D63: Unit | E63: Input 1 | F63: Input 2 | G63: Check | I63: Total
B65: =+ROUND(MAX($B$64:B64)+1,0) -> 1 | C65: DRIVERS
C67: Traffic Volumes - Base Scenario
C69: Passante Class A | D69: € / vkm | N69: =+INDEX(Actual!$N21:$AS21,,MATCH(Input!N$7, Actual!$N$7:$AS$7,0))*N$13 -> 223238.5546 | O69: =+INDEX(Actual!$N21:$AS21,,MATCH(Input!O$7, Actual!$N$7:$AS$7,0))*O$13 -> 223238.5546 | P69: =+INDEX(Actual!$N21:$AS21,,MATCH(Input!P$7, Actual!$N$7:$AS$7,0))*P$13 -> 223110.6663 | Q69: =+INDEX(Actual!$N21:$AS21,,MATCH(Input!Q$7, Actual!$N$7:$AS$7,0))*Q$13 -> 223110.6663 | R69: =+INDEX(Actual!$N21:$AS21,,MATCH(Input!R$7, Actual!$N$7:$AS$7,0))*R$13 -> 141038.0319 | S69: =+INDEX(Actual!$N21:$AS21,,MATCH(Input!S$7, Actual!$N$7:$AS$7,0))*S$13 -> 141038.0319 | T69: =+INDEX(Actual!$N21:$AS21,,MATCH(Input!T$7, Actual!$N$7:$AS$7,0))*T$13 -> 204312.4494 | U69: =+INDEX(Actual!$N21:$AS21,,MATCH(Input!U$7, Actual!$N$7:$AS$7,0))*U$13 -> 204312.4494 | V69: =+INDEX(Actual!$N21:$AS21,,MATCH(Input!V$7, Actual!$N$7:$AS$7,0))*V$13 -> 212525.8068 | W69: =+INDEX(Actual!$N21:$AS21,,MATCH(Input!W$7, Actual!$N$7:$AS$7,0))*W$13 -> 212525.8068 | X69: =+INDEX(Actual!$N21:$AS21,,MATCH(Input!X$7, Actual!$N$7:$AS$7,0))*X$13 -> 215906.0637 | Y69: =+INDEX(Actual!$N21:$AS21,,MATCH(Input!Y$7, Actual!$N$7:$AS$7,0))*Y$13 -> 215906.0637 | Z69: =+INDEX(Actual!$N21:$AS21,,MATCH(Input!Z$7, Actual!$N$7:$AS$7,0))*Z$13 -> 218393.066 | AA69: =+INDEX(Actual!$N21:$AS21,,MATCH(Input!AA$7, Actual!$N$7:$AS$7,0))*AA$13 -> 218393.066 | AB69: =+INDEX(Actual!$N21:$AS21,,MATCH(Input!AB$7, Actual!$N$7:$AS$7,0))*AB$13 -> 220524.1189 | AC69: =+INDEX(Actual!$N21:$AS21,,MATCH(Input!AC$7, Actual!$N$7:$AS$7,0))*AC$13 -> 220524.1189 | AD69: =+INDEX(Actual!$N21:$AS21,,MATCH(Input!AD$7, Actual!$N$7:$AS$7,0))*AD$13 -> 222294.4207 | AE69: =+INDEX(Actual!$N21:$AS21,,MATCH(Input!AE$7, Actual!$N$7:$AS$7,0))*AE$13 -> 222294.4207 | AF69: =+INDEX(Actual!$N21:$AS21,,MATCH(Input!AF$7, Actual!$N$7:$AS$7,0))*AF$13 -> 223993.6769 | AG69: =+INDEX(Actual!$N21:$AS21,,MATCH(Input!AG$7, Actual!$N$7:$AS$7,0))*AG$13 -> 223993.6769 | AH69: =+INDEX(Actual!$N21:$AS21,,MATCH(Input!AH$7, Actual!$N$7:$AS$7,0))*AH$13 -> 225534.6905 | AI69: =+INDEX(Actual!$N21:$AS21,,MATCH(Input!AI$7, Actual!$N$7:$AS$7,0))*AI$13 -> 225534.6905 | AJ69: =+INDEX(Actual!$N21:$AS21,,MATCH(Input!AJ$7, Actual!$N$7:$AS$7,0))*AJ$13 -> 227136.7467 | AK69: =+INDEX(Actual!$N21:$AS21,,MATCH(Input!AK$7, Actual!$N$7:$AS$7,0))*AK$13 -> 227136.7467 | AL69: =+INDEX(Actual!$N21:$AS21,,MATCH(Input!AL$7, Actual!$N$7:$AS$7,0))*AL$13 -> 228737.9524 | AM69: =+INDEX(Actual!$N21:$AS21,,MATCH(Input!AM$7, Actual!$N$7:$AS$7,0))*AM$13 -> 228737.9524 | AN69: =+INDEX(Actual!$N21:$AS21,,MATCH(Input!AN$7, Actual!$N$7:$AS$7,0))*AN$13 -> 230338.1292 | AO69: =+INDEX(Actual!$N21:$AS21,,MATCH(Input!AO$7, Actual!$N$7:$AS$7,0))*AO$13 -> 230338.1292 | AP69: =+INDEX(Actual!$N21:$AS21,,MATCH(Input!AP$7, Actual!$N$7:$AS$7,0))*AP$13 -> 231937.0975 | AQ69: =+INDEX(Actual!$N21:$AS21,,MATCH(Input!AQ$7, Actual!$N$7:$AS$7,0))*AQ$13 -> 231937.0975
C70: Passante Class B | D70: € / vkm | N70: =+INDEX(Actual!$N22:$AS22,,MATCH(Input!N$7, Actual!$N$7:$AS$7,0))*N$13 -> 34014.49336 | O70: =+INDEX(Actual!$N22:$AS22,,MATCH(Input!O$7, Actual!$N$7:$AS$7,0))*O$13 -> 34014.49336 | P70: =+INDEX(Actual!$N22:$AS22,,MATCH(Input!P$7, Actual!$N$7:$AS$7,0))*P$13 -> 34706.9905 | Q70: =+INDEX(Actual!$N22:$AS22,,MATCH(Input!Q$7, Actual!$N$7:$AS$7,0))*Q$13 -> 34706.9905 | R70: =+INDEX(Actual!$N22:$AS22,,MATCH(Input!R$7, Actual!$N$7:$AS$7,0))*R$13 -> 25821.2661 | S70: =+INDEX(Actual!$N22:$AS22,,MATCH(Input!S$7, Actual!$N$7:$AS$7,0))*S$13 -> 25821.2661 | T70: =+INDEX(Actual!$N22:$AS22,,MATCH(Input!T$7, Actual!$N$7:$AS$7,0))*T$13 -> 32768.42024 | U70: =+INDEX(Actual!$N22:$AS22,,MATCH(Input!U$7, Actual!$N$7:$AS$7,0))*U$13 -> 32768.42024 | V70: =+INDEX(Actual!$N22:$AS22,,MATCH(Input!V$7, Actual!$N$7:$AS$7,0))*V$13 -> 33675.01306 | W70: =+INDEX(Actual!$N22:$AS22,,MATCH(Input!W$7, Actual!$N$7:$AS$7,0))*W$13 -> 33675.01306 | X70: =+INDEX(Actual!$N22:$AS22,,MATCH(Input!X$7, Actual!$N$7:$AS$7,0))*X$13 -> 34165.91116 | Y70: =+INDEX(Actual!$N22:$AS22,,MATCH(Input!Y$7, Actual!$N$7:$AS$7,0))*Y$13 -> 34165.91116 | Z70: =+INDEX(Actual!$N22:$AS22,,MATCH(Input!Z$7, Actual!$N$7:$AS$7,0))*Z$13 -> 34608.79746 | AA70: =+INDEX(Actual!$N22:$AS22,,MATCH(Input!AA$7, Actual!$N$7:$AS$7,0))*AA$13 -> 34608.79746 | AB70: =+INDEX(Actual!$N22:$AS22,,MATCH(Input!AB$7, Actual!$N$7:$AS$7,0))*AB$13 -> 34994.00464 | AC70: =+INDEX(Actual!$N22:$AS22,,MATCH(Input!AC$7, Actual!$N$7:$AS$7,0))*AC$13 -> 34994.00464 | AD70: =+INDEX(Actual!$N22:$AS22,,MATCH(Input!AD$7, Actual!$N$7:$AS$7,0))*AD$13 -> 35339.71743 | AE70: =+INDEX(Actual!$N22:$AS22,,MATCH(Input!AE$7, Actual!$N$7:$AS$7,0))*AE$13 -> 35339.71743 | AF70: =+INDEX(Actual!$N22:$AS22,,MATCH(Input!AF$7, Actual!$N$7:$AS$7,0))*AF$13 -> 35678.04057 | AG70: =+INDEX(Actual!$N22:$AS22,,MATCH(Input!AG$7, Actual!$N$7:$AS$7,0))*AG$13 -> 35678.04057 | AH70: =+INDEX(Actual!$N22:$AS22,,MATCH(Input!AH$7, Actual!$N$7:$AS$7,0))*AH$13 -> 36011.42887 | AI70: =+INDEX(Actual!$N22:$AS22,,MATCH(Input!AI$7, Actual!$N$7:$AS$7,0))*AI$13 -> 36011.42887 | AJ70: =+INDEX(Actual!$N22:$AS22,,MATCH(Input!AJ$7, Actual!$N$7:$AS$7,0))*AJ$13 -> 36348.84557 | AK70: =+INDEX(Actual!$N22:$AS22,,MATCH(Input!AK$7, Actual!$N$7:$AS$7,0))*AK$13 -> 36348.84557 | AL70: =+INDEX(Actual!$N22:$AS22,,MATCH(Input!AL$7, Actual!$N$7:$AS$7,0))*AL$13 -> 36687.18691 | AM70: =+INDEX(Actual!$N22:$AS22,,MATCH(Input!AM$7, Actual!$N$7:$AS$7,0))*AM$13 -> 36687.18691 | AN70: =+INDEX(Actual!$N22:$AS22,,MATCH(Input!AN$7, Actual!$N$7:$AS$7,0))*AN$13 -> 37026.41992 | AO70: =+INDEX(Actual!$N22:$AS22,,MATCH(Input!AO$7, Actual!$N$7:$AS$7,0))*AO$13 -> 37026.41992 | AP70: =+INDEX(Actual!$N22:$AS22,,MATCH(Input!AP$7, Actual!$N$7:$AS$7,0))*AP$13 -> 37366.51115 | AQ70: =+INDEX(Actual!$N22:$AS22,,MATCH(Input!AQ$7, Actual!$N$7:$AS$7,0))*AQ$13 -> 37366.51115
C71: Passante Class 3 | D71: € / vkm | N71: =+INDEX(Actual!$N23:$AS23,,MATCH(Input!N$7, Actual!$N$7:$AS$7,0))*N$13 -> 6343.315454 | O71: =+INDEX(Actual!$N23:$AS23,,MATCH(Input!O$7, Actual!$N$7:$AS$7,0))*O$13 -> 6343.315454 | P71: =+INDEX(Actual!$N23:$AS23,,MATCH(Input!P$7, Actual!$N$7:$AS$7,0))*P$13 -> 6477.046917 | Q71: =+INDEX(Actual!$N23:$AS23,,MATCH(Input!Q$7, Actual!$N$7:$AS$7,0))*Q$13 -> 6477.046917 | R71: =+INDEX(Actual!$N23:$AS23,,MATCH(Input!R$7, Actual!$N$7:$AS$7,0))*R$13 -> 6024.294638 | S71: =+INDEX(Actual!$N23:$AS23,,MATCH(Input!S$7, Actual!$N$7:$AS$7,0))*S$13 -> 6024.294638 | T71: =+INDEX(Actual!$N23:$AS23,,MATCH(Input!T$7, Actual!$N$7:$AS$7,0))*T$13 -> 6379.888222 | U71: =+INDEX(Actual!$N23:$AS23,,MATCH(Input!U$7, Actual!$N$7:$AS$7,0))*U$13 -> 6379.888222 | V71: =+INDEX(Actual!$N23:$AS23,,MATCH(Input!V$7, Actual!$N$7:$AS$7,0))*V$13 -> 6416.663421 | W71: =+INDEX(Actual!$N23:$AS23,,MATCH(Input!W$7, Actual!$N$7:$AS$7,0))*W$13 -> 6416.663421 | X71: =+INDEX(Actual!$N23:$AS23,,MATCH(Input!X$7, Actual!$N$7:$AS$7,0))*X$13 -> 6464.353939 | Y71: =+INDEX(Actual!$N23:$AS23,,MATCH(Input!Y$7, Actual!$N$7:$AS$7,0))*Y$13 -> 6464.353939 | Z71: =+INDEX(Actual!$N23:$AS23,,MATCH(Input!Z$7, Actual!$N$7:$AS$7,0))*Z$13 -> 6533.370268 | AA71: =+INDEX(Actual!$N23:$AS23,,MATCH(Input!AA$7, Actual!$N$7:$AS$7,0))*AA$13 -> 6533.370268 | AB71: =+INDEX(Actual!$N23:$AS23,,MATCH(Input!AB$7, Actual!$N$7:$AS$7,0))*AB$13 -> 6607.592303 | AC71: =+INDEX(Actual!$N23:$AS23,,MATCH(Input!AC$7, Actual!$N$7:$AS$7,0))*AC$13 -> 6607.592303 | AD71: =+INDEX(Actual!$N23:$AS23,,MATCH(Input!AD$7, Actual!$N$7:$AS$7,0))*AD$13 -> 6680.064655 | AE71: =+INDEX(Actual!$N23:$AS23,,MATCH(Input!AE$7, Actual!$N$7:$AS$7,0))*AE$13 -> 6680.064655 | AF71: =+INDEX(Actual!$N23:$AS23,,MATCH(Input!AF$7, Actual!$N$7:$AS$7,0))*AF$13 -> 6752.690359 | AG71: =+INDEX(Actual!$N23:$AS23,,MATCH(Input!AG$7, Actual!$N$7:$AS$7,0))*AG$13 -> 6752.690359 | AH71: =+INDEX(Actual!$N23:$AS23,,MATCH(Input!AH$7, Actual!$N$7:$AS$7,0))*AH$13 -> 6825.619415 | AI71: =+INDEX(Actual!$N23:$AS23,,MATCH(Input!AI$7, Actual!$N$7:$AS$7,0))*AI$13 -> 6825.619415 | AJ71: =+INDEX(Actual!$N23:$AS23,,MATCH(Input!AJ$7, Actual!$N$7:$AS$7,0))*AJ$13 -> 6899.336104 | AK71: =+INDEX(Actual!$N23:$AS23,,MATCH(Input!AK$7, Actual!$N$7:$AS$7,0))*AK$13 -> 6899.336104 | AL71: =+INDEX(Actual!$N23:$AS23,,MATCH(Input!AL$7, Actual!$N$7:$AS$7,0))*AL$13 -> 6973.371288 | AM71: =+INDEX(Actual!$N23:$AS23,,MATCH(Input!AM$7, Actual!$N$7:$AS$7,0))*AM$13 -> 6973.371288 | AN71: =+INDEX(Actual!$N23:$AS23,,MATCH(Input!AN$7, Actual!$N$7:$AS$7,0))*AN$13 -> 7047.718154 | AO71: =+INDEX(Actual!$N23:$AS23,,MATCH(Input!AO$7, Actual!$N$7:$AS$7,0))*AO$13 -> 7047.718154 | AP71: =+INDEX(Actual!$N23:$AS23,,MATCH(Input!AP$7, Actual!$N$7:$AS$7,0))*AP$13 -> 7122.369753 | AQ71: =+INDEX(Actual!$N23:$AS23,,MATCH(Input!AQ$7, Actual!$N$7:$AS$7,0))*AQ$13 -> 7122.369753
C72: Passante Class 4 | D72: € / vkm | N72: =+INDEX(Actual!$N24:$AS24,,MATCH(Input!N$7, Actual!$N$7:$AS$7,0))*N$13 -> 5358.832025 | O72: =+INDEX(Actual!$N24:$AS24,,MATCH(Input!O$7, Actual!$N$7:$AS$7,0))*O$13 -> 5358.832025 | P72: =+INDEX(Actual!$N24:$AS24,,MATCH(Input!P$7, Actual!$N$7:$AS$7,0))*P$13 -> 5471.808346 | Q72: =+INDEX(Actual!$N24:$AS24,,MATCH(Input!Q$7, Actual!$N$7:$AS$7,0))*Q$13 -> 5471.808346 | R72: =+INDEX(Actual!$N24:$AS24,,MATCH(Input!R$7, Actual!$N$7:$AS$7,0))*R$13 -> 5089.323283 | S72: =+INDEX(Actual!$N24:$AS24,,MATCH(Input!S$7, Actual!$N$7:$AS$7,0))*S$13 -> 5089.323283 | T72: =+INDEX(Actual!$N24:$AS24,,MATCH(Input!T$7, Actual!$N$7:$AS$7,0))*T$13 -> 5389.728694 | U72: =+INDEX(Actual!$N24:$AS24,,MATCH(Input!U$7, Actual!$N$7:$AS$7,0))*U$13 -> 5389.728694 | V72: =+INDEX(Actual!$N24:$AS24,,MATCH(Input!V$7, Actual!$N$7:$AS$7,0))*V$13 -> 5420.796377 | W72: =+INDEX(Actual!$N24:$AS24,,MATCH(Input!W$7, Actual!$N$7:$AS$7,0))*W$13 -> 5420.796377 | X72: =+INDEX(Actual!$N24:$AS24,,MATCH(Input!X$7, Actual!$N$7:$AS$7,0))*X$13 -> 5461.08532 | Y72: =+INDEX(Actual!$N24:$AS24,,MATCH(Input!Y$7, Actual!$N$7:$AS$7,0))*Y$13 -> 5461.08532 | Z72: =+INDEX(Actual!$N24:$AS24,,MATCH(Input!Z$7, Actual!$N$7:$AS$7,0))*Z$13 -> 5519.390306 | AA72: =+INDEX(Actual!$N24:$AS24,,MATCH(Input!AA$7, Actual!$N$7:$AS$7,0))*AA$13 -> 5519.390306 | AB72: =+INDEX(Actual!$N24:$AS24,,MATCH(Input!AB$7, Actual!$N$7:$AS$7,0))*AB$13 -> 5582.093071 | AC72: =+INDEX(Actual!$N24:$AS24,,MATCH(Input!AC$7, Actual!$N$7:$AS$7,0))*AC$13 -> 5582.093071 | AD72: =+INDEX(Actual!$N24:$AS24,,MATCH(Input!AD$7, Actual!$N$7:$AS$7,0))*AD$13 -> 5643.317703 | AE72: =+INDEX(Actual!$N24:$AS24,,MATCH(Input!AE$7, Actual!$N$7:$AS$7,0))*AE$13 -> 5643.317703 | AF72: =+INDEX(Actual!$N24:$AS24,,MATCH(Input!AF$7, Actual!$N$7:$AS$7,0))*AF$13 -> 5704.671888 | AG72: =+INDEX(Actual!$N24:$AS24,,MATCH(Input!AG$7, Actual!$N$7:$AS$7,0))*AG$13 -> 5704.671888 | AH72: =+INDEX(Actual!$N24:$AS24,,MATCH(Input!AH$7, Actual!$N$7:$AS$7,0))*AH$13 -> 5766.282344 | AI72: =+INDEX(Actual!$N24:$AS24,,MATCH(Input!AI$7, Actual!$N$7:$AS$7,0))*AI$13 -> 5766.282344 | AJ72: =+INDEX(Actual!$N24:$AS24,,MATCH(Input!AJ$7, Actual!$N$7:$AS$7,0))*AJ$13 -> 5828.558194 | AK72: =+INDEX(Actual!$N24:$AS24,,MATCH(Input!AK$7, Actual!$N$7:$AS$7,0))*AK$13 -> 5828.558194 | AL72: =+INDEX(Actual!$N24:$AS24,,MATCH(Input!AL$7, Actual!$N$7:$AS$7,0))*AL$13 -> 5891.103107 | AM72: =+INDEX(Actual!$N24:$AS24,,MATCH(Input!AM$7, Actual!$N$7:$AS$7,0))*AM$13 -> 5891.103107 | AN72: =+INDEX(Actual!$N24:$AS24,,MATCH(Input!AN$7, Actual!$N$7:$AS$7,0))*AN$13 -> 5953.911329 | AO72: =+INDEX(Actual!$N24:$AS24,,MATCH(Input!AO$7, Actual!$N$7:$AS$7,0))*AO$13 -> 5953.911329 | AP72: =+INDEX(Actual!$N24:$AS24,,MATCH(Input!AP$7, Actual!$N$7:$AS$7,0))*AP$13 -> 6016.97699 | AQ72: =+INDEX(Actual!$N24:$AS24,,MATCH(Input!AQ$7, Actual!$N$7:$AS$7,0))*AQ$13 -> 6016.97699
C73: Passante Class 5 | D73: € / vkm | N73: =+INDEX(Actual!$N25:$AS25,,MATCH(Input!N$7, Actual!$N$7:$AS$7,0))*N$13 -> 55096.01124 | O73: =+INDEX(Actual!$N25:$AS25,,MATCH(Input!O$7, Actual!$N$7:$AS$7,0))*O$13 -> 55096.01124 | P73: =+INDEX(Actual!$N25:$AS25,,MATCH(Input!P$7, Actual!$N$7:$AS$7,0))*P$13 -> 56257.56 | Q73: =+INDEX(Actual!$N25:$AS25,,MATCH(Input!Q$7, Actual!$N$7:$AS$7,0))*Q$13 -> 56257.56 | R73: =+INDEX(Actual!$N25:$AS25,,MATCH(Input!R$7, Actual!$N$7:$AS$7,0))*R$13 -> 52325.09837 | S73: =+INDEX(Actual!$N25:$AS25,,MATCH(Input!S$7, Actual!$N$7:$AS$7,0))*S$13 -> 52325.09837 | T73: =+INDEX(Actual!$N25:$AS25,,MATCH(Input!T$7, Actual!$N$7:$AS$7,0))*T$13 -> 55413.67061 | U73: =+INDEX(Actual!$N25:$AS25,,MATCH(Input!U$7, Actual!$N$7:$AS$7,0))*U$13 -> 55413.67061 | V73: =+INDEX(Actual!$N25:$AS25,,MATCH(Input!V$7, Actual!$N$7:$AS$7,0))*V$13 -> 55733.08824 | W73: =+INDEX(Actual!$N25:$AS25,,MATCH(Input!W$7, Actual!$N$7:$AS$7,0))*W$13 -> 55733.08824 | X73: =+INDEX(Actual!$N25:$AS25,,MATCH(Input!X$7, Actual!$N$7:$AS$7,0))*X$13 -> 56147.31285 | Y73: =+INDEX(Actual!$N25:$AS25,,MATCH(Input!Y$7, Actual!$N$7:$AS$7,0))*Y$13 -> 56147.31285 | Z73: =+INDEX(Actual!$N25:$AS25,,MATCH(Input!Z$7, Actual!$N$7:$AS$7,0))*Z$13 -> 56746.76663 | AA73: =+INDEX(Actual!$N25:$AS25,,MATCH(Input!AA$7, Actual!$N$7:$AS$7,0))*AA$13 -> 56746.76663 | AB73: =+INDEX(Actual!$N25:$AS25,,MATCH(Input!AB$7, Actual!$N$7:$AS$7,0))*AB$13 -> 57391.43551 | AC73: =+INDEX(Actual!$N25:$AS25,,MATCH(Input!AC$7, Actual!$N$7:$AS$7,0))*AC$13 -> 57391.43551 | AD73: =+INDEX(Actual!$N25:$AS25,,MATCH(Input!AD$7, Actual!$N$7:$AS$7,0))*AD$13 -> 58020.9072 | AE73: =+INDEX(Actual!$N25:$AS25,,MATCH(Input!AE$7, Actual!$N$7:$AS$7,0))*AE$13 -> 58020.9072 | AF73: =+INDEX(Actual!$N25:$AS25,,MATCH(Input!AF$7, Actual!$N$7:$AS$7,0))*AF$13 -> 58651.71086 | AG73: =+INDEX(Actual!$N25:$AS25,,MATCH(Input!AG$7, Actual!$N$7:$AS$7,0))*AG$13 -> 58651.71086 | AH73: =+INDEX(Actual!$N25:$AS25,,MATCH(Input!AH$7, Actual!$N$7:$AS$7,0))*AH$13 -> 59285.14934 | AI73: =+INDEX(Actual!$N25:$AS25,,MATCH(Input!AI$7, Actual!$N$7:$AS$7,0))*AI$13 -> 59285.14934 | AJ73: =+INDEX(Actual!$N25:$AS25,,MATCH(Input!AJ$7, Actual!$N$7:$AS$7,0))*AJ$13 -> 59925.42895 | AK73: =+INDEX(Actual!$N25:$AS25,,MATCH(Input!AK$7, Actual!$N$7:$AS$7,0))*AK$13 -> 59925.42895 | AL73: =+INDEX(Actual!$N25:$AS25,,MATCH(Input!AL$7, Actual!$N$7:$AS$7,0))*AL$13 -> 60568.4749 | AM73: =+INDEX(Actual!$N25:$AS25,,MATCH(Input!AM$7, Actual!$N$7:$AS$7,0))*AM$13 -> 60568.4749 | AN73: =+INDEX(Actual!$N25:$AS25,,MATCH(Input!AN$7, Actual!$N$7:$AS$7,0))*AN$13 -> 61214.22802 | AO73: =+INDEX(Actual!$N25:$AS25,,MATCH(Input!AO$7, Actual!$N$7:$AS$7,0))*AO$13 -> 61214.22802 | AP73: =+INDEX(Actual!$N25:$AS25,,MATCH(Input!AP$7, Actual!$N$7:$AS$7,0))*AP$13 -> 61862.62796 | AQ73: =+INDEX(Actual!$N25:$AS25,,MATCH(Input!AQ$7, Actual!$N$7:$AS$7,0))*AQ$13 -> 61862.62796
C74: Closed System Class A | D74: € / vkm | N74: =+INDEX(Actual!$N26:$AS26,,MATCH(Input!N$7, Actual!$N$7:$AS$7,0))*N$13 -> 184792.6813 | O74: =+INDEX(Actual!$N26:$AS26,,MATCH(Input!O$7, Actual!$N$7:$AS$7,0))*O$13 -> 184792.6813 | P74: =+INDEX(Actual!$N26:$AS26,,MATCH(Input!P$7, Actual!$N$7:$AS$7,0))*P$13 -> 184148.5742 | Q74: =+INDEX(Actual!$N26:$AS26,,MATCH(Input!Q$7, Actual!$N$7:$AS$7,0))*Q$13 -> 184148.5742 | R74: =+INDEX(Actual!$N26:$AS26,,MATCH(Input!R$7, Actual!$N$7:$AS$7,0))*R$13 -> 115941.2801 | S74: =+INDEX(Actual!$N26:$AS26,,MATCH(Input!S$7, Actual!$N$7:$AS$7,0))*S$13 -> 115941.2801 | T74: =+INDEX(Actual!$N26:$AS26,,MATCH(Input!T$7, Actual!$N$7:$AS$7,0))*T$13 -> 169986.3228 | U74: =+INDEX(Actual!$N26:$AS26,,MATCH(Input!U$7, Actual!$N$7:$AS$7,0))*U$13 -> 169986.3228 | V74: =+INDEX(Actual!$N26:$AS26,,MATCH(Input!V$7, Actual!$N$7:$AS$7,0))*V$13 -> 178049.0933 | W74: =+INDEX(Actual!$N26:$AS26,,MATCH(Input!W$7, Actual!$N$7:$AS$7,0))*W$13 -> 178049.0933 | X74: =+INDEX(Actual!$N26:$AS26,,MATCH(Input!X$7, Actual!$N$7:$AS$7,0))*X$13 -> 181717.3023 | Y74: =+INDEX(Actual!$N26:$AS26,,MATCH(Input!Y$7, Actual!$N$7:$AS$7,0))*Y$13 -> 181717.3023 | Z74: =+INDEX(Actual!$N26:$AS26,,MATCH(Input!Z$7, Actual!$N$7:$AS$7,0))*Z$13 -> 184237.6071 | AA74: =+INDEX(Actual!$N26:$AS26,,MATCH(Input!AA$7, Actual!$N$7:$AS$7,0))*AA$13 -> 184237.6071 | AB74: =+INDEX(Actual!$N26:$AS26,,MATCH(Input!AB$7, Actual!$N$7:$AS$7,0))*AB$13 -> 186039.0088 | AC74: =+INDEX(Actual!$N26:$AS26,,MATCH(Input!AC$7, Actual!$N$7:$AS$7,0))*AC$13 -> 186039.0088 | AD74: =+INDEX(Actual!$N26:$AS26,,MATCH(Input!AD$7, Actual!$N$7:$AS$7,0))*AD$13 -> 187533.9337 | AE74: =+INDEX(Actual!$N26:$AS26,,MATCH(Input!AE$7, Actual!$N$7:$AS$7,0))*AE$13 -> 187533.9337 | AF74: =+INDEX(Actual!$N26:$AS26,,MATCH(Input!AF$7, Actual!$N$7:$AS$7,0))*AF$13 -> 188968.4532 | AG74: =+INDEX(Actual!$N26:$AS26,,MATCH(Input!AG$7, Actual!$N$7:$AS$7,0))*AG$13 -> 188968.4532 | AH74: =+INDEX(Actual!$N26:$AS26,,MATCH(Input!AH$7, Actual!$N$7:$AS$7,0))*AH$13 -> 190268.5031 | AI74: =+INDEX(Actual!$N26:$AS26,,MATCH(Input!AI$7, Actual!$N$7:$AS$7,0))*AI$13 -> 190268.5031 | AJ74: =+INDEX(Actual!$N26:$AS26,,MATCH(Input!AJ$7, Actual!$N$7:$AS$7,0))*AJ$13 -> 191620.0505 | AK74: =+INDEX(Actual!$N26:$AS26,,MATCH(Input!AK$7, Actual!$N$7:$AS$7,0))*AK$13 -> 191620.0505 | AL74: =+INDEX(Actual!$N26:$AS26,,MATCH(Input!AL$7, Actual!$N$7:$AS$7,0))*AL$13 -> 192970.8805 | AM74: =+INDEX(Actual!$N26:$AS26,,MATCH(Input!AM$7, Actual!$N$7:$AS$7,0))*AM$13 -> 192970.8805 | AN74: =+INDEX(Actual!$N26:$AS26,,MATCH(Input!AN$7, Actual!$N$7:$AS$7,0))*AN$13 -> 194320.8424 | AO74: =+INDEX(Actual!$N26:$AS26,,MATCH(Input!AO$7, Actual!$N$7:$AS$7,0))*AO$13 -> 194320.8424 | AP74: =+INDEX(Actual!$N26:$AS26,,MATCH(Input!AP$7, Actual!$N$7:$AS$7,0))*AP$13 -> 195669.7848 | AQ74: =+INDEX(Actual!$N26:$AS26,,MATCH(Input!AQ$7, Actual!$N$7:$AS$7,0))*AQ$13 -> 195669.7848
C75: Closed System Class B | D75: € / vkm | N75: =+INDEX(Actual!$N27:$AS27,,MATCH(Input!N$7, Actual!$N$7:$AS$7,0))*N$13 -> 23823.04487 | O75: =+INDEX(Actual!$N27:$AS27,,MATCH(Input!O$7, Actual!$N$7:$AS$7,0))*O$13 -> 23823.04487 | P75: =+INDEX(Actual!$N27:$AS27,,MATCH(Input!P$7, Actual!$N$7:$AS$7,0))*P$13 -> 24045.66818 | Q75: =+INDEX(Actual!$N27:$AS27,,MATCH(Input!Q$7, Actual!$N$7:$AS$7,0))*Q$13 -> 24045.66818 | R75: =+INDEX(Actual!$N27:$AS27,,MATCH(Input!R$7, Actual!$N$7:$AS$7,0))*R$13 -> 17815.19506 | S75: =+INDEX(Actual!$N27:$AS27,,MATCH(Input!S$7, Actual!$N$7:$AS$7,0))*S$13 -> 17815.19506 | T75: =+INDEX(Actual!$N27:$AS27,,MATCH(Input!T$7, Actual!$N$7:$AS$7,0))*T$13 -> 22818.20228 | U75: =+INDEX(Actual!$N27:$AS27,,MATCH(Input!U$7, Actual!$N$7:$AS$7,0))*U$13 -> 22818.20228 | V75: =+INDEX(Actual!$N27:$AS27,,MATCH(Input!V$7, Actual!$N$7:$AS$7,0))*V$13 -> 23563.81219 | W75: =+INDEX(Actual!$N27:$AS27,,MATCH(Input!W$7, Actual!$N$7:$AS$7,0))*W$13 -> 23563.81219 | X75: =+INDEX(Actual!$N27:$AS27,,MATCH(Input!X$7, Actual!$N$7:$AS$7,0))*X$13 -> 23984.30638 | Y75: =+INDEX(Actual!$N27:$AS27,,MATCH(Input!Y$7, Actual!$N$7:$AS$7,0))*Y$13 -> 23984.30638 | Z75: =+INDEX(Actual!$N27:$AS27,,MATCH(Input!Z$7, Actual!$N$7:$AS$7,0))*Z$13 -> 24334.79636 | AA75: =+INDEX(Actual!$N27:$AS27,,MATCH(Input!AA$7, Actual!$N$7:$AS$7,0))*AA$13 -> 24334.79636 | AB75: =+INDEX(Actual!$N27:$AS27,,MATCH(Input!AB$7, Actual!$N$7:$AS$7,0))*AB$13 -> 24606.15844 | AC75: =+INDEX(Actual!$N27:$AS27,,MATCH(Input!AC$7, Actual!$N$7:$AS$7,0))*AC$13 -> 24606.15844 | AD75: =+INDEX(Actual!$N27:$AS27,,MATCH(Input!AD$7, Actual!$N$7:$AS$7,0))*AD$13 -> 24849.40112 | AE75: =+INDEX(Actual!$N27:$AS27,,MATCH(Input!AE$7, Actual!$N$7:$AS$7,0))*AE$13 -> 24849.40112 | AF75: =+INDEX(Actual!$N27:$AS27,,MATCH(Input!AF$7, Actual!$N$7:$AS$7,0))*AF$13 -> 25087.36208 | AG75: =+INDEX(Actual!$N27:$AS27,,MATCH(Input!AG$7, Actual!$N$7:$AS$7,0))*AG$13 -> 25087.36208 | AH75: =+INDEX(Actual!$N27:$AS27,,MATCH(Input!AH$7, Actual!$N$7:$AS$7,0))*AH$13 -> 25321.78731 | AI75: =+INDEX(Actual!$N27:$AS27,,MATCH(Input!AI$7, Actual!$N$7:$AS$7,0))*AI$13 -> 25321.78731 | AJ75: =+INDEX(Actual!$N27:$AS27,,MATCH(Input!AJ$7, Actual!$N$7:$AS$7,0))*AJ$13 -> 25559.04515 | AK75: =+INDEX(Actual!$N27:$AS27,,MATCH(Input!AK$7, Actual!$N$7:$AS$7,0))*AK$13 -> 25559.04515 | AL75: =+INDEX(Actual!$N27:$AS27,,MATCH(Input!AL$7, Actual!$N$7:$AS$7,0))*AL$13 -> 25796.95317 | AM75: =+INDEX(Actual!$N27:$AS27,,MATCH(Input!AM$7, Actual!$N$7:$AS$7,0))*AM$13 -> 25796.95317 | AN75: =+INDEX(Actual!$N27:$AS27,,MATCH(Input!AN$7, Actual!$N$7:$AS$7,0))*AN$13 -> 26035.48817 | AO75: =+INDEX(Actual!$N27:$AS27,,MATCH(Input!AO$7, Actual!$N$7:$AS$7,0))*AO$13 -> 26035.48817 | AP75: =+INDEX(Actual!$N27:$AS27,,MATCH(Input!AP$7, Actual!$N$7:$AS$7,0))*AP$13 -> 26274.62663 | AQ75: =+INDEX(Actual!$N27:$AS27,,MATCH(Input!AQ$7, Actual!$N$7:$AS$7,0))*AQ$13 -> 26274.62663
C76: Closed System Class 3 | D76: € / vkm | N76: =+INDEX(Actual!$N28:$AS28,,MATCH(Input!N$7, Actual!$N$7:$AS$7,0))*N$13 -> 4079.839111 | O76: =+INDEX(Actual!$N28:$AS28,,MATCH(Input!O$7, Actual!$N$7:$AS$7,0))*O$13 -> 4079.839111 | P76: =+INDEX(Actual!$N28:$AS28,,MATCH(Input!P$7, Actual!$N$7:$AS$7,0))*P$13 -> 4172.993439 | Q76: =+INDEX(Actual!$N28:$AS28,,MATCH(Input!Q$7, Actual!$N$7:$AS$7,0))*Q$13 -> 4172.993439 | R76: =+INDEX(Actual!$N28:$AS28,,MATCH(Input!R$7, Actual!$N$7:$AS$7,0))*R$13 -> 3863.649137 | S76: =+INDEX(Actual!$N28:$AS28,,MATCH(Input!S$7, Actual!$N$7:$AS$7,0))*S$13 -> 3863.649137 | T76: =+INDEX(Actual!$N28:$AS28,,MATCH(Input!T$7, Actual!$N$7:$AS$7,0))*T$13 -> 4132.312954 | U76: =+INDEX(Actual!$N28:$AS28,,MATCH(Input!U$7, Actual!$N$7:$AS$7,0))*U$13 -> 4132.312954 | V76: =+INDEX(Actual!$N28:$AS28,,MATCH(Input!V$7, Actual!$N$7:$AS$7,0))*V$13 -> 4178.498703 | W76: =+INDEX(Actual!$N28:$AS28,,MATCH(Input!W$7, Actual!$N$7:$AS$7,0))*W$13 -> 4178.498703 | X76: =+INDEX(Actual!$N28:$AS28,,MATCH(Input!X$7, Actual!$N$7:$AS$7,0))*X$13 -> 4224.545039 | Y76: =+INDEX(Actual!$N28:$AS28,,MATCH(Input!Y$7, Actual!$N$7:$AS$7,0))*Y$13 -> 4224.545039 | Z76: =+INDEX(Actual!$N28:$AS28,,MATCH(Input!Z$7, Actual!$N$7:$AS$7,0))*Z$13 -> 4277.368271 | AA76: =+INDEX(Actual!$N28:$AS28,,MATCH(Input!AA$7, Actual!$N$7:$AS$7,0))*AA$13 -> 4277.368271 | AB76: =+INDEX(Actual!$N28:$AS28,,MATCH(Input!AB$7, Actual!$N$7:$AS$7,0))*AB$13 -> 4326.082517 | AC76: =+INDEX(Actual!$N28:$AS28,,MATCH(Input!AC$7, Actual!$N$7:$AS$7,0))*AC$13 -> 4326.082517 | AD76: =+INDEX(Actual!$N28:$AS28,,MATCH(Input!AD$7, Actual!$N$7:$AS$7,0))*AD$13 -> 4373.567969 | AE76: =+INDEX(Actual!$N28:$AS28,,MATCH(Input!AE$7, Actual!$N$7:$AS$7,0))*AE$13 -> 4373.567969 | AF76: =+INDEX(Actual!$N28:$AS28,,MATCH(Input!AF$7, Actual!$N$7:$AS$7,0))*AF$13 -> 4421.133364 | AG76: =+INDEX(Actual!$N28:$AS28,,MATCH(Input!AG$7, Actual!$N$7:$AS$7,0))*AG$13 -> 4421.133364 | AH76: =+INDEX(Actual!$N28:$AS28,,MATCH(Input!AH$7, Actual!$N$7:$AS$7,0))*AH$13 -> 4468.881605 | AI76: =+INDEX(Actual!$N28:$AS28,,MATCH(Input!AI$7, Actual!$N$7:$AS$7,0))*AI$13 -> 4468.881605 | AJ76: =+INDEX(Actual!$N28:$AS28,,MATCH(Input!AJ$7, Actual!$N$7:$AS$7,0))*AJ$13 -> 4517.145526 | AK76: =+INDEX(Actual!$N28:$AS28,,MATCH(Input!AK$7, Actual!$N$7:$AS$7,0))*AK$13 -> 4517.145526 | AL76: =+INDEX(Actual!$N28:$AS28,,MATCH(Input!AL$7, Actual!$N$7:$AS$7,0))*AL$13 -> 4565.617972 | AM76: =+INDEX(Actual!$N28:$AS28,,MATCH(Input!AM$7, Actual!$N$7:$AS$7,0))*AM$13 -> 4565.617972 | AN76: =+INDEX(Actual!$N28:$AS28,,MATCH(Input!AN$7, Actual!$N$7:$AS$7,0))*AN$13 -> 4614.294484 | AO76: =+INDEX(Actual!$N28:$AS28,,MATCH(Input!AO$7, Actual!$N$7:$AS$7,0))*AO$13 -> 4614.294484 | AP76: =+INDEX(Actual!$N28:$AS28,,MATCH(Input!AP$7, Actual!$N$7:$AS$7,0))*AP$13 -> 4663.170511 | AQ76: =+INDEX(Actual!$N28:$AS28,,MATCH(Input!AQ$7, Actual!$N$7:$AS$7,0))*AQ$13 -> 4663.170511
C77: Closed System Class 4 | D77: € / vkm | N77: =+INDEX(Actual!$N29:$AS29,,MATCH(Input!N$7, Actual!$N$7:$AS$7,0))*N$13 -> 2919.357866 | O77: =+INDEX(Actual!$N29:$AS29,,MATCH(Input!O$7, Actual!$N$7:$AS$7,0))*O$13 -> 2919.357866 | P77: =+INDEX(Actual!$N29:$AS29,,MATCH(Input!P$7, Actual!$N$7:$AS$7,0))*P$13 -> 2986.015107 | Q77: =+INDEX(Actual!$N29:$AS29,,MATCH(Input!Q$7, Actual!$N$7:$AS$7,0))*Q$13 -> 2986.015107 | R77: =+INDEX(Actual!$N29:$AS29,,MATCH(Input!R$7, Actual!$N$7:$AS$7,0))*R$13 -> 2764.661594 | S77: =+INDEX(Actual!$N29:$AS29,,MATCH(Input!S$7, Actual!$N$7:$AS$7,0))*S$13 -> 2764.661594 | T77: =+INDEX(Actual!$N29:$AS29,,MATCH(Input!T$7, Actual!$N$7:$AS$7,0))*T$13 -> 2956.905897 | U77: =+INDEX(Actual!$N29:$AS29,,MATCH(Input!U$7, Actual!$N$7:$AS$7,0))*U$13 -> 2956.905897 | V77: =+INDEX(Actual!$N29:$AS29,,MATCH(Input!V$7, Actual!$N$7:$AS$7,0))*V$13 -> 2989.954438 | W77: =+INDEX(Actual!$N29:$AS29,,MATCH(Input!W$7, Actual!$N$7:$AS$7,0))*W$13 -> 2989.954438 | X77: =+INDEX(Actual!$N29:$AS29,,MATCH(Input!X$7, Actual!$N$7:$AS$7,0))*X$13 -> 3022.903221 | Y77: =+INDEX(Actual!$N29:$AS29,,MATCH(Input!Y$7, Actual!$N$7:$AS$7,0))*Y$13 -> 3022.903221 | Z77: =+INDEX(Actual!$N29:$AS29,,MATCH(Input!Z$7, Actual!$N$7:$AS$7,0))*Z$13 -> 3060.701259 | AA77: =+INDEX(Actual!$N29:$AS29,,MATCH(Input!AA$7, Actual!$N$7:$AS$7,0))*AA$13 -> 3060.701259 | AB77: =+INDEX(Actual!$N29:$AS29,,MATCH(Input!AB$7, Actual!$N$7:$AS$7,0))*AB$13 -> 3095.559084 | AC77: =+INDEX(Actual!$N29:$AS29,,MATCH(Input!AC$7, Actual!$N$7:$AS$7,0))*AC$13 -> 3095.559084 | AD77: =+INDEX(Actual!$N29:$AS29,,MATCH(Input!AD$7, Actual!$N$7:$AS$7,0))*AD$13 -> 3129.537637 | AE77: =+INDEX(Actual!$N29:$AS29,,MATCH(Input!AE$7, Actual!$N$7:$AS$7,0))*AE$13 -> 3129.537637 | AF77: =+INDEX(Actual!$N29:$AS29,,MATCH(Input!AF$7, Actual!$N$7:$AS$7,0))*AF$13 -> 3163.573394 | AG77: =+INDEX(Actual!$N29:$AS29,,MATCH(Input!AG$7, Actual!$N$7:$AS$7,0))*AG$13 -> 3163.573394 | AH77: =+INDEX(Actual!$N29:$AS29,,MATCH(Input!AH$7, Actual!$N$7:$AS$7,0))*AH$13 -> 3197.739986 | AI77: =+INDEX(Actual!$N29:$AS29,,MATCH(Input!AI$7, Actual!$N$7:$AS$7,0))*AI$13 -> 3197.739986 | AJ77: =+INDEX(Actual!$N29:$AS29,,MATCH(Input!AJ$7, Actual!$N$7:$AS$7,0))*AJ$13 -> 3232.275578 | AK77: =+INDEX(Actual!$N29:$AS29,,MATCH(Input!AK$7, Actual!$N$7:$AS$7,0))*AK$13 -> 3232.275578 | AL77: =+INDEX(Actual!$N29:$AS29,,MATCH(Input!AL$7, Actual!$N$7:$AS$7,0))*AL$13 -> 3266.960382 | AM77: =+INDEX(Actual!$N29:$AS29,,MATCH(Input!AM$7, Actual!$N$7:$AS$7,0))*AM$13 -> 3266.960382 | AN77: =+INDEX(Actual!$N29:$AS29,,MATCH(Input!AN$7, Actual!$N$7:$AS$7,0))*AN$13 -> 3301.791205 | AO77: =+INDEX(Actual!$N29:$AS29,,MATCH(Input!AO$7, Actual!$N$7:$AS$7,0))*AO$13 -> 3301.791205 | AP77: =+INDEX(Actual!$N29:$AS29,,MATCH(Input!AP$7, Actual!$N$7:$AS$7,0))*AP$13 -> 3336.764794 | AQ77: =+INDEX(Actual!$N29:$AS29,,MATCH(Input!AQ$7, Actual!$N$7:$AS$7,0))*AQ$13 -> 3336.764794
C78: Closed System Class 5 | D78: € / vkm | N78: =+INDEX(Actual!$N30:$AS30,,MATCH(Input!N$7, Actual!$N$7:$AS$7,0))*N$13 -> 31064.67767 | O78: =+INDEX(Actual!$N30:$AS30,,MATCH(Input!O$7, Actual!$N$7:$AS$7,0))*O$13 -> 31064.67767 | P78: =+INDEX(Actual!$N30:$AS30,,MATCH(Input!P$7, Actual!$N$7:$AS$7,0))*P$13 -> 31773.9726 | Q78: =+INDEX(Actual!$N30:$AS30,,MATCH(Input!Q$7, Actual!$N$7:$AS$7,0))*Q$13 -> 31773.9726 | R78: =+INDEX(Actual!$N30:$AS30,,MATCH(Input!R$7, Actual!$N$7:$AS$7,0))*R$13 -> 29418.56574 | S78: =+INDEX(Actual!$N30:$AS30,,MATCH(Input!S$7, Actual!$N$7:$AS$7,0))*S$13 -> 29418.56574 | T78: =+INDEX(Actual!$N30:$AS30,,MATCH(Input!T$7, Actual!$N$7:$AS$7,0))*T$13 -> 31464.22358 | U78: =+INDEX(Actual!$N30:$AS30,,MATCH(Input!U$7, Actual!$N$7:$AS$7,0))*U$13 -> 31464.22358 | V78: =+INDEX(Actual!$N30:$AS30,,MATCH(Input!V$7, Actual!$N$7:$AS$7,0))*V$13 -> 31815.89073 | W78: =+INDEX(Actual!$N30:$AS30,,MATCH(Input!W$7, Actual!$N$7:$AS$7,0))*W$13 -> 31815.89073 | X78: =+INDEX(Actual!$N30:$AS30,,MATCH(Input!X$7, Actual!$N$7:$AS$7,0))*X$13 -> 32166.49637 | Y78: =+INDEX(Actual!$N30:$AS30,,MATCH(Input!Y$7, Actual!$N$7:$AS$7,0))*Y$13 -> 32166.49637 | Z78: =+INDEX(Actual!$N30:$AS30,,MATCH(Input!Z$7, Actual!$N$7:$AS$7,0))*Z$13 -> 32568.70259 | AA78: =+INDEX(Actual!$N30:$AS30,,MATCH(Input!AA$7, Actual!$N$7:$AS$7,0))*AA$13 -> 32568.70259 | AB78: =+INDEX(Actual!$N30:$AS30,,MATCH(Input!AB$7, Actual!$N$7:$AS$7,0))*AB$13 -> 32939.6222 | AC78: =+INDEX(Actual!$N30:$AS30,,MATCH(Input!AC$7, Actual!$N$7:$AS$7,0))*AC$13 -> 32939.6222 | AD78: =+INDEX(Actual!$N30:$AS30,,MATCH(Input!AD$7, Actual!$N$7:$AS$7,0))*AD$13 -> 33301.18555 | AE78: =+INDEX(Actual!$N30:$AS30,,MATCH(Input!AE$7, Actual!$N$7:$AS$7,0))*AE$13 -> 33301.18555 | AF78: =+INDEX(Actual!$N30:$AS30,,MATCH(Input!AF$7, Actual!$N$7:$AS$7,0))*AF$13 -> 33663.35759 | AG78: =+INDEX(Actual!$N30:$AS30,,MATCH(Input!AG$7, Actual!$N$7:$AS$7,0))*AG$13 -> 33663.35759 | AH78: =+INDEX(Actual!$N30:$AS30,,MATCH(Input!AH$7, Actual!$N$7:$AS$7,0))*AH$13 -> 34026.92185 | AI78: =+INDEX(Actual!$N30:$AS30,,MATCH(Input!AI$7, Actual!$N$7:$AS$7,0))*AI$13 -> 34026.92185 | AJ78: =+INDEX(Actual!$N30:$AS30,,MATCH(Input!AJ$7, Actual!$N$7:$AS$7,0))*AJ$13 -> 34394.41261 | AK78: =+INDEX(Actual!$N30:$AS30,,MATCH(Input!AK$7, Actual!$N$7:$AS$7,0))*AK$13 -> 34394.41261 | AL78: =+INDEX(Actual!$N30:$AS30,,MATCH(Input!AL$7, Actual!$N$7:$AS$7,0))*AL$13 -> 34763.49112 | AM78: =+INDEX(Actual!$N30:$AS30,,MATCH(Input!AM$7, Actual!$N$7:$AS$7,0))*AM$13 -> 34763.49112 | AN78: =+INDEX(Actual!$N30:$AS30,,MATCH(Input!AN$7, Actual!$N$7:$AS$7,0))*AN$13 -> 35134.12341 | AO78: =+INDEX(Actual!$N30:$AS30,,MATCH(Input!AO$7, Actual!$N$7:$AS$7,0))*AO$13 -> 35134.12341 | AP78: =+INDEX(Actual!$N30:$AS30,,MATCH(Input!AP$7, Actual!$N$7:$AS$7,0))*AP$13 -> 35506.27486 | AQ78: =+INDEX(Actual!$N30:$AS30,,MATCH(Input!AQ$7, Actual!$N$7:$AS$7,0))*AQ$13 -> 35506.27486
C80: Sistema Aperto - CIPE
C81: Barriers Class A | D81: € / vkm | N81: =+INDEX(Actual!$N33:$AS33,,MATCH(Input!N$7, Actual!$N$7:$AS$7,0))*N$13 -> 265875.5666 | O81: =+INDEX(Actual!$N33:$AS33,,MATCH(Input!O$7, Actual!$N$7:$AS$7,0))*O$13 -> 265875.5666 | P81: =+INDEX(Actual!$N33:$AS33,,MATCH(Input!P$7, Actual!$N$7:$AS$7,0))*P$13 -> 288000.2532 | Q81: =+INDEX(Actual!$N33:$AS33,,MATCH(Input!Q$7, Actual!$N$7:$AS$7,0))*Q$13 -> 288000.2532 | R81: =+INDEX(Actual!$N33:$AS33,,MATCH(Input!R$7, Actual!$N$7:$AS$7,0))*R$13 -> 178021.9213 | S81: =+INDEX(Actual!$N33:$AS33,,MATCH(Input!S$7, Actual!$N$7:$AS$7,0))*S$13 -> 178021.9213 | T81: =+INDEX(Actual!$N33:$AS33,,MATCH(Input!T$7, Actual!$N$7:$AS$7,0))*T$13 -> 272455.7248 | U81: =+INDEX(Actual!$N33:$AS33,,MATCH(Input!U$7, Actual!$N$7:$AS$7,0))*U$13 -> 272455.7248 | V81: =+INDEX(Actual!$N33:$AS33,,MATCH(Input!V$7, Actual!$N$7:$AS$7,0))*V$13 -> 291102.2581 | W81: =+INDEX(Actual!$N33:$AS33,,MATCH(Input!W$7, Actual!$N$7:$AS$7,0))*W$13 -> 291102.2581 | X81: =+INDEX(Actual!$N33:$AS33,,MATCH(Input!X$7, Actual!$N$7:$AS$7,0))*X$13 -> 301351.8188 | Y81: =+INDEX(Actual!$N33:$AS33,,MATCH(Input!Y$7, Actual!$N$7:$AS$7,0))*Y$13 -> 301351.8188 | Z81: =+INDEX(Actual!$N33:$AS33,,MATCH(Input!Z$7, Actual!$N$7:$AS$7,0))*Z$13 -> 308430.4138 | AA81: =+INDEX(Actual!$N33:$AS33,,MATCH(Input!AA$7, Actual!$N$7:$AS$7,0))*AA$13 -> 308430.4138 | AB81: =+INDEX(Actual!$N33:$AS33,,MATCH(Input!AB$7, Actual!$N$7:$AS$7,0))*AB$13 -> 311765.1799 | AC81: =+INDEX(Actual!$N33:$AS33,,MATCH(Input!AC$7, Actual!$N$7:$AS$7,0))*AC$13 -> 311765.1799 | AD81: =+INDEX(Actual!$N33:$AS33,,MATCH(Input!AD$7, Actual!$N$7:$AS$7,0))*AD$13 -> 314571.1628 | AE81: =+INDEX(Actual!$N33:$AS33,,MATCH(Input!AE$7, Actual!$N$7:$AS$7,0))*AE$13 -> 314571.1628 | AF81: =+INDEX(Actual!$N33:$AS33,,MATCH(Input!AF$7, Actual!$N$7:$AS$7,0))*AF$13 -> 317275.9472 | AG81: =+INDEX(Actual!$N33:$AS33,,MATCH(Input!AG$7, Actual!$N$7:$AS$7,0))*AG$13 -> 317275.9472 | AH81: =+INDEX(Actual!$N33:$AS33,,MATCH(Input!AH$7, Actual!$N$7:$AS$7,0))*AH$13 -> 319749.9861 | AI81: =+INDEX(Actual!$N33:$AS33,,MATCH(Input!AI$7, Actual!$N$7:$AS$7,0))*AI$13 -> 319749.9861 | AJ81: =+INDEX(Actual!$N33:$AS33,,MATCH(Input!AJ$7, Actual!$N$7:$AS$7,0))*AJ$13 -> 322280.6914 | AK81: =+INDEX(Actual!$N33:$AS33,,MATCH(Input!AK$7, Actual!$N$7:$AS$7,0))*AK$13 -> 322280.6914 | AL81: =+INDEX(Actual!$N33:$AS33,,MATCH(Input!AL$7, Actual!$N$7:$AS$7,0))*AL$13 -> 324813.897 | AM81: =+INDEX(Actual!$N33:$AS33,,MATCH(Input!AM$7, Actual!$N$7:$AS$7,0))*AM$13 -> 324813.897 | AN81: =+INDEX(Actual!$N33:$AS33,,MATCH(Input!AN$7, Actual!$N$7:$AS$7,0))*AN$13 -> 327349.3474 | AO81: =+INDEX(Actual!$N33:$AS33,,MATCH(Input!AO$7, Actual!$N$7:$AS$7,0))*AO$13 -> 327349.3474 | AP81: =+INDEX(Actual!$N33:$AS33,,MATCH(Input!AP$7, Actual!$N$7:$AS$7,0))*AP$13 -> 329886.7845 | AQ81: =+INDEX(Actual!$N33:$AS33,,MATCH(Input!AQ$7, Actual!$N$7:$AS$7,0))*AQ$13 -> 329886.7845
C82: Barriers Class B | D82: € / vkm | N82: =+INDEX(Actual!$N34:$AS34,,MATCH(Input!N$7, Actual!$N$7:$AS$7,0))*N$13 -> 32282.88713 | O82: =+INDEX(Actual!$N34:$AS34,,MATCH(Input!O$7, Actual!$N$7:$AS$7,0))*O$13 -> 32282.88713 | P82: =+INDEX(Actual!$N34:$AS34,,MATCH(Input!P$7, Actual!$N$7:$AS$7,0))*P$13 -> 35200.38724 | Q82: =+INDEX(Actual!$N34:$AS34,,MATCH(Input!Q$7, Actual!$N$7:$AS$7,0))*Q$13 -> 35200.38724 | R82: =+INDEX(Actual!$N34:$AS34,,MATCH(Input!R$7, Actual!$N$7:$AS$7,0))*R$13 -> 25493.97111 | S82: =+INDEX(Actual!$N34:$AS34,,MATCH(Input!S$7, Actual!$N$7:$AS$7,0))*S$13 -> 25493.97111 | T82: =+INDEX(Actual!$N34:$AS34,,MATCH(Input!T$7, Actual!$N$7:$AS$7,0))*T$13 -> 34219.14857 | U82: =+INDEX(Actual!$N34:$AS34,,MATCH(Input!U$7, Actual!$N$7:$AS$7,0))*U$13 -> 34219.14857 | V82: =+INDEX(Actual!$N34:$AS34,,MATCH(Input!V$7, Actual!$N$7:$AS$7,0))*V$13 -> 36129.61762 | W82: =+INDEX(Actual!$N34:$AS34,,MATCH(Input!W$7, Actual!$N$7:$AS$7,0))*W$13 -> 36129.61762 | X82: =+INDEX(Actual!$N34:$AS34,,MATCH(Input!X$7, Actual!$N$7:$AS$7,0))*X$13 -> 37335.87701 | Y82: =+INDEX(Actual!$N34:$AS34,,MATCH(Input!Y$7, Actual!$N$7:$AS$7,0))*Y$13 -> 37335.87701 | Z82: =+INDEX(Actual!$N34:$AS34,,MATCH(Input!Z$7, Actual!$N$7:$AS$7,0))*Z$13 -> 38212.37327 | AA82: =+INDEX(Actual!$N34:$AS34,,MATCH(Input!AA$7, Actual!$N$7:$AS$7,0))*AA$13 -> 38212.37327 | AB82: =+INDEX(Actual!$N34:$AS34,,MATCH(Input!AB$7, Actual!$N$7:$AS$7,0))*AB$13 -> 38600.07903 | AC82: =+INDEX(Actual!$N34:$AS34,,MATCH(Input!AC$7, Actual!$N$7:$AS$7,0))*AC$13 -> 38600.07903 | AD82: =+INDEX(Actual!$N34:$AS34,,MATCH(Input!AD$7, Actual!$N$7:$AS$7,0))*AD$13 -> 38939.65509 | AE82: =+INDEX(Actual!$N34:$AS34,,MATCH(Input!AE$7, Actual!$N$7:$AS$7,0))*AE$13 -> 38939.65509 | AF82: =+INDEX(Actual!$N34:$AS34,,MATCH(Input!AF$7, Actual!$N$7:$AS$7,0))*AF$13 -> 39269.36979 | AG82: =+INDEX(Actual!$N34:$AS34,,MATCH(Input!AG$7, Actual!$N$7:$AS$7,0))*AG$13 -> 39269.36979 | AH82: =+INDEX(Actual!$N34:$AS34,,MATCH(Input!AH$7, Actual!$N$7:$AS$7,0))*AH$13 -> 39592.16262 | AI82: =+INDEX(Actual!$N34:$AS34,,MATCH(Input!AI$7, Actual!$N$7:$AS$7,0))*AI$13 -> 39592.16262 | AJ82: =+INDEX(Actual!$N34:$AS34,,MATCH(Input!AJ$7, Actual!$N$7:$AS$7,0))*AJ$13 -> 39923.77719 | AK82: =+INDEX(Actual!$N34:$AS34,,MATCH(Input!AK$7, Actual!$N$7:$AS$7,0))*AK$13 -> 39923.77719 | AL82: =+INDEX(Actual!$N34:$AS34,,MATCH(Input!AL$7, Actual!$N$7:$AS$7,0))*AL$13 -> 40255.69059 | AM82: =+INDEX(Actual!$N34:$AS34,,MATCH(Input!AM$7, Actual!$N$7:$AS$7,0))*AM$13 -> 40255.69059 | AN82: =+INDEX(Actual!$N34:$AS34,,MATCH(Input!AN$7, Actual!$N$7:$AS$7,0))*AN$13 -> 40587.86414 | AO82: =+INDEX(Actual!$N34:$AS34,,MATCH(Input!AO$7, Actual!$N$7:$AS$7,0))*AO$13 -> 40587.86414 | AP82: =+INDEX(Actual!$N34:$AS34,,MATCH(Input!AP$7, Actual!$N$7:$AS$7,0))*AP$13 -> 40920.25879 | AQ82: =+INDEX(Actual!$N34:$AS34,,MATCH(Input!AQ$7, Actual!$N$7:$AS$7,0))*AQ$13 -> 40920.25879
C83: Barriers Class 3 | D83: € / vkm | N83: =+INDEX(Actual!$N35:$AS35,,MATCH(Input!N$7, Actual!$N$7:$AS$7,0))*N$13 -> 5095.960504 | O83: =+INDEX(Actual!$N35:$AS35,,MATCH(Input!O$7, Actual!$N$7:$AS$7,0))*O$13 -> 5095.960504 | P83: =+INDEX(Actual!$N35:$AS35,,MATCH(Input!P$7, Actual!$N$7:$AS$7,0))*P$13 -> 5620.37988 | Q83: =+INDEX(Actual!$N35:$AS35,,MATCH(Input!Q$7, Actual!$N$7:$AS$7,0))*Q$13 -> 5620.37988 | R83: =+INDEX(Actual!$N35:$AS35,,MATCH(Input!R$7, Actual!$N$7:$AS$7,0))*R$13 -> 5413.342413 | S83: =+INDEX(Actual!$N35:$AS35,,MATCH(Input!S$7, Actual!$N$7:$AS$7,0))*S$13 -> 5413.342413 | T83: =+INDEX(Actual!$N35:$AS35,,MATCH(Input!T$7, Actual!$N$7:$AS$7,0))*T$13 -> 5772.811627 | U83: =+INDEX(Actual!$N35:$AS35,,MATCH(Input!U$7, Actual!$N$7:$AS$7,0))*U$13 -> 5772.811627 | V83: =+INDEX(Actual!$N35:$AS35,,MATCH(Input!V$7, Actual!$N$7:$AS$7,0))*V$13 -> 5940.171605 | W83: =+INDEX(Actual!$N35:$AS35,,MATCH(Input!W$7, Actual!$N$7:$AS$7,0))*W$13 -> 5940.171605 | X83: =+INDEX(Actual!$N35:$AS35,,MATCH(Input!X$7, Actual!$N$7:$AS$7,0))*X$13 -> 6088.774036 | Y83: =+INDEX(Actual!$N35:$AS35,,MATCH(Input!Y$7, Actual!$N$7:$AS$7,0))*Y$13 -> 6088.774036 | Z83: =+INDEX(Actual!$N35:$AS35,,MATCH(Input!Z$7, Actual!$N$7:$AS$7,0))*Z$13 -> 6214.046459 | AA83: =+INDEX(Actual!$N35:$AS35,,MATCH(Input!AA$7, Actual!$N$7:$AS$7,0))*AA$13 -> 6214.046459 | AB83: =+INDEX(Actual!$N35:$AS35,,MATCH(Input!AB$7, Actual!$N$7:$AS$7,0))*AB$13 -> 6274.602503 | AC83: =+INDEX(Actual!$N35:$AS35,,MATCH(Input!AC$7, Actual!$N$7:$AS$7,0))*AC$13 -> 6274.602503 | AD83: =+INDEX(Actual!$N35:$AS35,,MATCH(Input!AD$7, Actual!$N$7:$AS$7,0))*AD$13 -> 6334.26798 | AE83: =+INDEX(Actual!$N35:$AS35,,MATCH(Input!AE$7, Actual!$N$7:$AS$7,0))*AE$13 -> 6334.26798 | AF83: =+INDEX(Actual!$N35:$AS35,,MATCH(Input!AF$7, Actual!$N$7:$AS$7,0))*AF$13 -> 6394.132328 | AG83: =+INDEX(Actual!$N35:$AS35,,MATCH(Input!AG$7, Actual!$N$7:$AS$7,0))*AG$13 -> 6394.132328 | AH83: =+INDEX(Actual!$N35:$AS35,,MATCH(Input!AH$7, Actual!$N$7:$AS$7,0))*AH$13 -> 6454.28266 | AI83: =+INDEX(Actual!$N35:$AS35,,MATCH(Input!AI$7, Actual!$N$7:$AS$7,0))*AI$13 -> 6454.28266 | AJ83: =+INDEX(Actual!$N35:$AS35,,MATCH(Input!AJ$7, Actual!$N$7:$AS$7,0))*AJ$13 -> 6516.01277 | AK83: =+INDEX(Actual!$N35:$AS35,,MATCH(Input!AK$7, Actual!$N$7:$AS$7,0))*AK$13 -> 6516.01277 | AL83: =+INDEX(Actual!$N35:$AS35,,MATCH(Input!AL$7, Actual!$N$7:$AS$7,0))*AL$13 -> 6577.878592 | AM83: =+INDEX(Actual!$N35:$AS35,,MATCH(Input!AM$7, Actual!$N$7:$AS$7,0))*AM$13 -> 6577.878592 | AN83: =+INDEX(Actual!$N35:$AS35,,MATCH(Input!AN$7, Actual!$N$7:$AS$7,0))*AN$13 -> 6639.872795 | AO83: =+INDEX(Actual!$N35:$AS35,,MATCH(Input!AO$7, Actual!$N$7:$AS$7,0))*AO$13 -> 6639.872795 | AP83: =+INDEX(Actual!$N35:$AS35,,MATCH(Input!AP$7, Actual!$N$7:$AS$7,0))*AP$13 -> 6701.987952 | AQ83: =+INDEX(Actual!$N35:$AS35,,MATCH(Input!AQ$7, Actual!$N$7:$AS$7,0))*AQ$13 -> 6701.987952
C84: Barriers Class 4 | D84: € / vkm | N84: =+INDEX(Actual!$N36:$AS36,,MATCH(Input!N$7, Actual!$N$7:$AS$7,0))*N$13 -> 3038.70542 | O84: =+INDEX(Actual!$N36:$AS36,,MATCH(Input!O$7, Actual!$N$7:$AS$7,0))*O$13 -> 3038.70542 | P84: =+INDEX(Actual!$N36:$AS36,,MATCH(Input!P$7, Actual!$N$7:$AS$7,0))*P$13 -> 3343.673981 | Q84: =+INDEX(Actual!$N36:$AS36,,MATCH(Input!Q$7, Actual!$N$7:$AS$7,0))*Q$13 -> 3343.673981 | R84: =+INDEX(Actual!$N36:$AS36,,MATCH(Input!R$7, Actual!$N$7:$AS$7,0))*R$13 -> 3220.503341 | S84: =+INDEX(Actual!$N36:$AS36,,MATCH(Input!S$7, Actual!$N$7:$AS$7,0))*S$13 -> 3220.503341 | T84: =+INDEX(Actual!$N36:$AS36,,MATCH(Input!T$7, Actual!$N$7:$AS$7,0))*T$13 -> 3432.361467 | U84: =+INDEX(Actual!$N36:$AS36,,MATCH(Input!U$7, Actual!$N$7:$AS$7,0))*U$13 -> 3432.361467 | V84: =+INDEX(Actual!$N36:$AS36,,MATCH(Input!V$7, Actual!$N$7:$AS$7,0))*V$13 -> 3530.337759 | W84: =+INDEX(Actual!$N36:$AS36,,MATCH(Input!W$7, Actual!$N$7:$AS$7,0))*W$13 -> 3530.337759 | X84: =+INDEX(Actual!$N36:$AS36,,MATCH(Input!X$7, Actual!$N$7:$AS$7,0))*X$13 -> 3617.612681 | Y84: =+INDEX(Actual!$N36:$AS36,,MATCH(Input!Y$7, Actual!$N$7:$AS$7,0))*Y$13 -> 3617.612681 | Z84: =+INDEX(Actual!$N36:$AS36,,MATCH(Input!Z$7, Actual!$N$7:$AS$7,0))*Z$13 -> 3691.512419 | AA84: =+INDEX(Actual!$N36:$AS36,,MATCH(Input!AA$7, Actual!$N$7:$AS$7,0))*AA$13 -> 3691.512419 | AB84: =+INDEX(Actual!$N36:$AS36,,MATCH(Input!AB$7, Actual!$N$7:$AS$7,0))*AB$13 -> 3727.486303 | AC84: =+INDEX(Actual!$N36:$AS36,,MATCH(Input!AC$7, Actual!$N$7:$AS$7,0))*AC$13 -> 3727.486303 | AD84: =+INDEX(Actual!$N36:$AS36,,MATCH(Input!AD$7, Actual!$N$7:$AS$7,0))*AD$13 -> 3762.931138 | AE84: =+INDEX(Actual!$N36:$AS36,,MATCH(Input!AE$7, Actual!$N$7:$AS$7,0))*AE$13 -> 3762.931138 | AF84: =+INDEX(Actual!$N36:$AS36,,MATCH(Input!AF$7, Actual!$N$7:$AS$7,0))*AF$13 -> 3798.494114 | AG84: =+INDEX(Actual!$N36:$AS36,,MATCH(Input!AG$7, Actual!$N$7:$AS$7,0))*AG$13 -> 3798.494114 | AH84: =+INDEX(Actual!$N36:$AS36,,MATCH(Input!AH$7, Actual!$N$7:$AS$7,0))*AH$13 -> 3834.226982 | AI84: =+INDEX(Actual!$N36:$AS36,,MATCH(Input!AI$7, Actual!$N$7:$AS$7,0))*AI$13 -> 3834.226982 | AJ84: =+INDEX(Actual!$N36:$AS36,,MATCH(Input!AJ$7, Actual!$N$7:$AS$7,0))*AJ$13 -> 3870.898331 | AK84: =+INDEX(Actual!$N36:$AS36,,MATCH(Input!AK$7, Actual!$N$7:$AS$7,0))*AK$13 -> 3870.898331 | AL84: =+INDEX(Actual!$N36:$AS36,,MATCH(Input!AL$7, Actual!$N$7:$AS$7,0))*AL$13 -> 3907.650301 | AM84: =+INDEX(Actual!$N36:$AS36,,MATCH(Input!AM$7, Actual!$N$7:$AS$7,0))*AM$13 -> 3907.650301 | AN84: =+INDEX(Actual!$N36:$AS36,,MATCH(Input!AN$7, Actual!$N$7:$AS$7,0))*AN$13 -> 3944.478537 | AO84: =+INDEX(Actual!$N36:$AS36,,MATCH(Input!AO$7, Actual!$N$7:$AS$7,0))*AO$13 -> 3944.478537 | AP84: =+INDEX(Actual!$N36:$AS36,,MATCH(Input!AP$7, Actual!$N$7:$AS$7,0))*AP$13 -> 3981.378627 | AQ84: =+INDEX(Actual!$N36:$AS36,,MATCH(Input!AQ$7, Actual!$N$7:$AS$7,0))*AQ$13 -> 3981.378627
C85: Barriers Class 5 | D85: € / vkm | N85: =+INDEX(Actual!$N37:$AS37,,MATCH(Input!N$7, Actual!$N$7:$AS$7,0))*N$13 -> 32213.36991 | O85: =+INDEX(Actual!$N37:$AS37,,MATCH(Input!O$7, Actual!$N$7:$AS$7,0))*O$13 -> 32213.36991 | P85: =+INDEX(Actual!$N37:$AS37,,MATCH(Input!P$7, Actual!$N$7:$AS$7,0))*P$13 -> 35476.65462 | Q85: =+INDEX(Actual!$N37:$AS37,,MATCH(Input!Q$7, Actual!$N$7:$AS$7,0))*Q$13 -> 35476.65462 | R85: =+INDEX(Actual!$N37:$AS37,,MATCH(Input!R$7, Actual!$N$7:$AS$7,0))*R$13 -> 34169.80405 | S85: =+INDEX(Actual!$N37:$AS37,,MATCH(Input!S$7, Actual!$N$7:$AS$7,0))*S$13 -> 34169.80405 | T85: =+INDEX(Actual!$N37:$AS37,,MATCH(Input!T$7, Actual!$N$7:$AS$7,0))*T$13 -> 36419.83963 | U85: =+INDEX(Actual!$N37:$AS37,,MATCH(Input!U$7, Actual!$N$7:$AS$7,0))*U$13 -> 36419.83963 | V85: =+INDEX(Actual!$N37:$AS37,,MATCH(Input!V$7, Actual!$N$7:$AS$7,0))*V$13 -> 37461.12978 | W85: =+INDEX(Actual!$N37:$AS37,,MATCH(Input!W$7, Actual!$N$7:$AS$7,0))*W$13 -> 37461.12978 | X85: =+INDEX(Actual!$N37:$AS37,,MATCH(Input!X$7, Actual!$N$7:$AS$7,0))*X$13 -> 38388.37235 | Y85: =+INDEX(Actual!$N37:$AS37,,MATCH(Input!Y$7, Actual!$N$7:$AS$7,0))*Y$13 -> 38388.37235 | Z85: =+INDEX(Actual!$N37:$AS37,,MATCH(Input!Z$7, Actual!$N$7:$AS$7,0))*Z$13 -> 39173.14672 | AA85: =+INDEX(Actual!$N37:$AS37,,MATCH(Input!AA$7, Actual!$N$7:$AS$7,0))*AA$13 -> 39173.14672 | AB85: =+INDEX(Actual!$N37:$AS37,,MATCH(Input!AB$7, Actual!$N$7:$AS$7,0))*AB$13 -> 39554.89005 | AC85: =+INDEX(Actual!$N37:$AS37,,MATCH(Input!AC$7, Actual!$N$7:$AS$7,0))*AC$13 -> 39554.89005 | AD85: =+INDEX(Actual!$N37:$AS37,,MATCH(Input!AD$7, Actual!$N$7:$AS$7,0))*AD$13 -> 39931.01928 | AE85: =+INDEX(Actual!$N37:$AS37,,MATCH(Input!AE$7, Actual!$N$7:$AS$7,0))*AE$13 -> 39931.01928 | AF85: =+INDEX(Actual!$N37:$AS37,,MATCH(Input!AF$7, Actual!$N$7:$AS$7,0))*AF$13 -> 40308.40219 | AG85: =+INDEX(Actual!$N37:$AS37,,MATCH(Input!AG$7, Actual!$N$7:$AS$7,0))*AG$13 -> 40308.40219 | AH85: =+INDEX(Actual!$N37:$AS37,,MATCH(Input!AH$7, Actual!$N$7:$AS$7,0))*AH$13 -> 40687.58792 | AI85: =+INDEX(Actual!$N37:$AS37,,MATCH(Input!AI$7, Actual!$N$7:$AS$7,0))*AI$13 -> 40687.58792 | AJ85: =+INDEX(Actual!$N37:$AS37,,MATCH(Input!AJ$7, Actual!$N$7:$AS$7,0))*AJ$13 -> 41076.73252 | AK85: =+INDEX(Actual!$N37:$AS37,,MATCH(Input!AK$7, Actual!$N$7:$AS$7,0))*AK$13 -> 41076.73252 | AL85: =+INDEX(Actual!$N37:$AS37,,MATCH(Input!AL$7, Actual!$N$7:$AS$7,0))*AL$13 -> 41466.73265 | AM85: =+INDEX(Actual!$N37:$AS37,,MATCH(Input!AM$7, Actual!$N$7:$AS$7,0))*AM$13 -> 41466.73265 | AN85: =+INDEX(Actual!$N37:$AS37,,MATCH(Input!AN$7, Actual!$N$7:$AS$7,0))*AN$13 -> 41857.54209 | AO85: =+INDEX(Actual!$N37:$AS37,,MATCH(Input!AO$7, Actual!$N$7:$AS$7,0))*AO$13 -> 41857.54209 | AP85: =+INDEX(Actual!$N37:$AS37,,MATCH(Input!AP$7, Actual!$N$7:$AS$7,0))*AP$13 -> 42249.11402 | AQ85: =+INDEX(Actual!$N37:$AS37,,MATCH(Input!AQ$7, Actual!$N$7:$AS$7,0))*AQ$13 -> 42249.11402
C87: Tariff
C89: Passante Class A | D89: € / vkm | N89: =+INDEX(Actual!$N51:$AS51,,MATCH(Input!N$7, Actual!$N$7:$AS$7,0)) -> 0.09507 | O89: =+INDEX(Actual!$N51:$AS51,,MATCH(Input!O$7, Actual!$N$7:$AS$7,0)) -> 0.09507 | P89: =+INDEX(Actual!$N51:$AS51,,MATCH(Input!P$7, Actual!$N$7:$AS$7,0)) -> 0.09703 | Q89: =+INDEX(Actual!$N51:$AS51,,MATCH(Input!Q$7, Actual!$N$7:$AS$7,0)) -> 0.09703 | R89: =+INDEX(Actual!$N51:$AS51,,MATCH(Input!R$7, Actual!$N$7:$AS$7,0)) -> 0.09819 | S89: =+INDEX(Actual!$N51:$AS51,,MATCH(Input!S$7, Actual!$N$7:$AS$7,0)) -> 0.09819 | T89: =+INDEX(Actual!$N51:$AS51,,MATCH(Input!T$7, Actual!$N$7:$AS$7,0)) -> 0 | U89: =+INDEX(Actual!$N51:$AS51,,MATCH(Input!U$7, Actual!$N$7:$AS$7,0)) -> 0 | V89: =+INDEX(Actual!$N51:$AS51,,MATCH(Input!V$7, Actual!$N$7:$AS$7,0)) -> 0 | W89: =+INDEX(Actual!$N51:$AS51,,MATCH(Input!W$7, Actual!$N$7:$AS$7,0)) -> 0 | X89: =+INDEX(Actual!$N51:$AS51,,MATCH(Input!X$7, Actual!$N$7:$AS$7,0)) -> 0 | Y89: =+INDEX(Actual!$N51:$AS51,,MATCH(Input!Y$7, Actual!$N$7:$AS$7,0)) -> 0 | Z89: =+INDEX(Actual!$N51:$AS51,,MATCH(Input!Z$7, Actual!$N$7:$AS$7,0)) -> 0 | AA89: =+INDEX(Actual!$N51:$AS51,,MATCH(Input!AA$7, Actual!$N$7:$AS$7,0)) -> 0 | AB89: =+INDEX(Actual!$N51:$AS51,,MATCH(Input!AB$7, Actual!$N$7:$AS$7,0)) -> 0 | AC89: =+INDEX(Actual!$N51:$AS51,,MATCH(Input!AC$7, Actual!$N$7:$AS$7,0)) -> 0 | AD89: =+INDEX(Actual!$N51:$AS51,,MATCH(Input!AD$7, Actual!$N$7:$AS$7,0)) -> 0 | AE89: =+INDEX(Actual!$N51:$AS51,,MATCH(Input!AE$7, Actual!$N$7:$AS$7,0)) -> 0 | AF89: =+INDEX(Actual!$N51:$AS51,,MATCH(Input!AF$7, Actual!$N$7:$AS$7,0)) -> 0 | AG89: =+INDEX(Actual!$N51:$AS51,,MATCH(Input!AG$7, Actual!$N$7:$AS$7,0)) -> 0 | AH89: =+INDEX(Actual!$N51:$AS51,,MATCH(Input!AH$7, Actual!$N$7:$AS$7,0)) -> 0 | AI89: =+INDEX(Actual!$N51:$AS51,,MATCH(Input!AI$7, Actual!$N$7:$AS$7,0)) -> 0 | AJ89: =+INDEX(Actual!$N51:$AS51,,MATCH(Input!AJ$7, Actual!$N$7:$AS$7,0)) -> 0 | AK89: =+INDEX(Actual!$N51:$AS51,,MATCH(Input!AK$7, Actual!$N$7:$AS$7,0)) -> 0 | AL89: =+INDEX(Actual!$N51:$AS51,,MATCH(Input!AL$7, Actual!$N$7:$AS$7,0)) -> 0 | AM89: =+INDEX(Actual!$N51:$AS51,,MATCH(Input!AM$7, Actual!$N$7:$AS$7,0)) -> 0 | AN89: =+INDEX(Actual!$N51:$AS51,,MATCH(Input!AN$7, Actual!$N$7:$AS$7,0)) -> 0 | AO89: =+INDEX(Actual!$N51:$AS51,,MATCH(Input!AO$7, Actual!$N$7:$AS$7,0)) -> 0 | AP89: =+INDEX(Actual!$N51:$AS51,,MATCH(Input!AP$7, Actual!$N$7:$AS$7,0)) -> 0 | AQ89: =+INDEX(Actual!$N51:$AS51,,MATCH(Input!AQ$7, Actual!$N$7:$AS$7,0)) -> 0
C90: Passante Class B | D90: € / vkm | N90: =+INDEX(Actual!$N52:$AS52,,MATCH(Input!N$7, Actual!$N$7:$AS$7,0)) -> 0.09745 | O90: =+INDEX(Actual!$N52:$AS52,,MATCH(Input!O$7, Actual!$N$7:$AS$7,0)) -> 0.09745 | P90: =+INDEX(Actual!$N52:$AS52,,MATCH(Input!P$7, Actual!$N$7:$AS$7,0)) -> 0.09946 | Q90: =+INDEX(Actual!$N52:$AS52,,MATCH(Input!Q$7, Actual!$N$7:$AS$7,0)) -> 0.09946 | R90: =+INDEX(Actual!$N52:$AS52,,MATCH(Input!R$7, Actual!$N$7:$AS$7,0)) -> 0.10065 | S90: =+INDEX(Actual!$N52:$AS52,,MATCH(Input!S$7, Actual!$N$7:$AS$7,0)) -> 0.10065 | T90: =+INDEX(Actual!$N52:$AS52,,MATCH(Input!T$7, Actual!$N$7:$AS$7,0)) -> 0 | U90: =+INDEX(Actual!$N52:$AS52,,MATCH(Input!U$7, Actual!$N$7:$AS$7,0)) -> 0 | V90: =+INDEX(Actual!$N52:$AS52,,MATCH(Input!V$7, Actual!$N$7:$AS$7,0)) -> 0 | W90: =+INDEX(Actual!$N52:$AS52,,MATCH(Input!W$7, Actual!$N$7:$AS$7,0)) -> 0 | X90: =+INDEX(Actual!$N52:$AS52,,MATCH(Input!X$7, Actual!$N$7:$AS$7,0)) -> 0 | Y90: =+INDEX(Actual!$N52:$AS52,,MATCH(Input!Y$7, Actual!$N$7:$AS$7,0)) -> 0 | Z90: =+INDEX(Actual!$N52:$AS52,,MATCH(Input!Z$7, Actual!$N$7:$AS$7,0)) -> 0 | AA90: =+INDEX(Actual!$N52:$AS52,,MATCH(Input!AA$7, Actual!$N$7:$AS$7,0)) -> 0 | AB90: =+INDEX(Actual!$N52:$AS52,,MATCH(Input!AB$7, Actual!$N$7:$AS$7,0)) -> 0 | AC90: =+INDEX(Actual!$N52:$AS52,,MATCH(Input!AC$7, Actual!$N$7:$AS$7,0)) -> 0 | AD90: =+INDEX(Actual!$N52:$AS52,,MATCH(Input!AD$7, Actual!$N$7:$AS$7,0)) -> 0 | AE90: =+INDEX(Actual!$N52:$AS52,,MATCH(Input!AE$7, Actual!$N$7:$AS$7,0)) -> 0 | AF90: =+INDEX(Actual!$N52:$AS52,,MATCH(Input!AF$7, Actual!$N$7:$AS$7,0)) -> 0 | AG90: =+INDEX(Actual!$N52:$AS52,,MATCH(Input!AG$7, Actual!$N$7:$AS$7,0)) -> 0 | AH90: =+INDEX(Actual!$N52:$AS52,,MATCH(Input!AH$7, Actual!$N$7:$AS$7,0)) -> 0 | AI90: =+INDEX(Actual!$N52:$AS52,,MATCH(Input!AI$7, Actual!$N$7:$AS$7,0)) -> 0 | AJ90: =+INDEX(Actual!$N52:$AS52,,MATCH(Input!AJ$7, Actual!$N$7:$AS$7,0)) -> 0 | AK90: =+INDEX(Actual!$N52:$AS52,,MATCH(Input!AK$7, Actual!$N$7:$AS$7,0)) -> 0 | AL90: =+INDEX(Actual!$N52:$AS52,,MATCH(Input!AL$7, Actual!$N$7:$AS$7,0)) -> 0 | AM90: =+INDEX(Actual!$N52:$AS52,,MATCH(Input!AM$7, Actual!$N$7:$AS$7,0)) -> 0 | AN90: =+INDEX(Actual!$N52:$AS52,,MATCH(Input!AN$7, Actual!$N$7:$AS$7,0)) -> 0 | AO90: =+INDEX(Actual!$N52:$AS52,,MATCH(Input!AO$7, Actual!$N$7:$AS$7,0)) -> 0 | AP90: =+INDEX(Actual!$N52:$AS52,,MATCH(Input!AP$7, Actual!$N$7:$AS$7,0)) -> 0 | AQ90: =+INDEX(Actual!$N52:$AS52,,MATCH(Input!AQ$7, Actual!$N$7:$AS$7,0)) -> 0
C91: Passante Class 3 | D91: € / vkm | N91: =+INDEX(Actual!$N53:$AS53,,MATCH(Input!N$7, Actual!$N$7:$AS$7,0)) -> 0.11886 | O91: =+INDEX(Actual!$N53:$AS53,,MATCH(Input!O$7, Actual!$N$7:$AS$7,0)) -> 0.11886 | P91: =+INDEX(Actual!$N53:$AS53,,MATCH(Input!P$7, Actual!$N$7:$AS$7,0)) -> 0.12131 | Q91: =+INDEX(Actual!$N53:$AS53,,MATCH(Input!Q$7, Actual!$N$7:$AS$7,0)) -> 0.12131 | R91: =+INDEX(Actual!$N53:$AS53,,MATCH(Input!R$7, Actual!$N$7:$AS$7,0)) -> 0.12277 | S91: =+INDEX(Actual!$N53:$AS53,,MATCH(Input!S$7, Actual!$N$7:$AS$7,0)) -> 0.12277 | T91: =+INDEX(Actual!$N53:$AS53,,MATCH(Input!T$7, Actual!$N$7:$AS$7,0)) -> 0 | U91: =+INDEX(Actual!$N53:$AS53,,MATCH(Input!U$7, Actual!$N$7:$AS$7,0)) -> 0 | V91: =+INDEX(Actual!$N53:$AS53,,MATCH(Input!V$7, Actual!$N$7:$AS$7,0)) -> 0 | W91: =+INDEX(Actual!$N53:$AS53,,MATCH(Input!W$7, Actual!$N$7:$AS$7,0)) -> 0 | X91: =+INDEX(Actual!$N53:$AS53,,MATCH(Input!X$7, Actual!$N$7:$AS$7,0)) -> 0 | Y91: =+INDEX(Actual!$N53:$AS53,,MATCH(Input!Y$7, Actual!$N$7:$AS$7,0)) -> 0 | Z91: =+INDEX(Actual!$N53:$AS53,,MATCH(Input!Z$7, Actual!$N$7:$AS$7,0)) -> 0 | AA91: =+INDEX(Actual!$N53:$AS53,,MATCH(Input!AA$7, Actual!$N$7:$AS$7,0)) -> 0 | AB91: =+INDEX(Actual!$N53:$AS53,,MATCH(Input!AB$7, Actual!$N$7:$AS$7,0)) -> 0 | AC91: =+INDEX(Actual!$N53:$AS53,,MATCH(Input!AC$7, Actual!$N$7:$AS$7,0)) -> 0 | AD91: =+INDEX(Actual!$N53:$AS53,,MATCH(Input!AD$7, Actual!$N$7:$AS$7,0)) -> 0 | AE91: =+INDEX(Actual!$N53:$AS53,,MATCH(Input!AE$7, Actual!$N$7:$AS$7,0)) -> 0 | AF91: =+INDEX(Actual!$N53:$AS53,,MATCH(Input!AF$7, Actual!$N$7:$AS$7,0)) -> 0 | AG91: =+INDEX(Actual!$N53:$AS53,,MATCH(Input!AG$7, Actual!$N$7:$AS$7,0)) -> 0 | AH91: =+INDEX(Actual!$N53:$AS53,,MATCH(Input!AH$7, Actual!$N$7:$AS$7,0)) -> 0 | AI91: =+INDEX(Actual!$N53:$AS53,,MATCH(Input!AI$7, Actual!$N$7:$AS$7,0)) -> 0 | AJ91: =+INDEX(Actual!$N53:$AS53,,MATCH(Input!AJ$7, Actual!$N$7:$AS$7,0)) -> 0 | AK91: =+INDEX(Actual!$N53:$AS53,,MATCH(Input!AK$7, Actual!$N$7:$AS$7,0)) -> 0 | AL91: =+INDEX(Actual!$N53:$AS53,,MATCH(Input!AL$7, Actual!$N$7:$AS$7,0)) -> 0 | AM91: =+INDEX(Actual!$N53:$AS53,,MATCH(Input!AM$7, Actual!$N$7:$AS$7,0)) -> 0 | AN91: =+INDEX(Actual!$N53:$AS53,,MATCH(Input!AN$7, Actual!$N$7:$AS$7,0)) -> 0 | AO91: =+INDEX(Actual!$N53:$AS53,,MATCH(Input!AO$7, Actual!$N$7:$AS$7,0)) -> 0 | AP91: =+INDEX(Actual!$N53:$AS53,,MATCH(Input!AP$7, Actual!$N$7:$AS$7,0)) -> 0 | AQ91: =+INDEX(Actual!$N53:$AS53,,MATCH(Input!AQ$7, Actual!$N$7:$AS$7,0)) -> 0
C92: Passante Class 4 | D92: € / vkm | N92: =+INDEX(Actual!$N54:$AS54,,MATCH(Input!N$7, Actual!$N$7:$AS$7,0)) -> 0.18912 | O92: =+INDEX(Actual!$N54:$AS54,,MATCH(Input!O$7, Actual!$N$7:$AS$7,0)) -> 0.18912 | P92: =+INDEX(Actual!$N54:$AS54,,MATCH(Input!P$7, Actual!$N$7:$AS$7,0)) -> 0.19302 | Q92: =+INDEX(Actual!$N54:$AS54,,MATCH(Input!Q$7, Actual!$N$7:$AS$7,0)) -> 0.19302 | R92: =+INDEX(Actual!$N54:$AS54,,MATCH(Input!R$7, Actual!$N$7:$AS$7,0)) -> 0.19534 | S92: =+INDEX(Actual!$N54:$AS54,,MATCH(Input!S$7, Actual!$N$7:$AS$7,0)) -> 0.19534 | T92: =+INDEX(Actual!$N54:$AS54,,MATCH(Input!T$7, Actual!$N$7:$AS$7,0)) -> 0 | U92: =+INDEX(Actual!$N54:$AS54,,MATCH(Input!U$7, Actual!$N$7:$AS$7,0)) -> 0 | V92: =+INDEX(Actual!$N54:$AS54,,MATCH(Input!V$7, Actual!$N$7:$AS$7,0)) -> 0 | W92: =+INDEX(Actual!$N54:$AS54,,MATCH(Input!W$7, Actual!$N$7:$AS$7,0)) -> 0 | X92: =+INDEX(Actual!$N54:$AS54,,MATCH(Input!X$7, Actual!$N$7:$AS$7,0)) -> 0 | Y92: =+INDEX(Actual!$N54:$AS54,,MATCH(Input!Y$7, Actual!$N$7:$AS$7,0)) -> 0 | Z92: =+INDEX(Actual!$N54:$AS54,,MATCH(Input!Z$7, Actual!$N$7:$AS$7,0)) -> 0 | AA92: =+INDEX(Actual!$N54:$AS54,,MATCH(Input!AA$7, Actual!$N$7:$AS$7,0)) -> 0 | AB92: =+INDEX(Actual!$N54:$AS54,,MATCH(Input!AB$7, Actual!$N$7:$AS$7,0)) -> 0 | AC92: =+INDEX(Actual!$N54:$AS54,,MATCH(Input!AC$7, Actual!$N$7:$AS$7,0)) -> 0 | AD92: =+INDEX(Actual!$N54:$AS54,,MATCH(Input!AD$7, Actual!$N$7:$AS$7,0)) -> 0 | AE92: =+INDEX(Actual!$N54:$AS54,,MATCH(Input!AE$7, Actual!$N$7:$AS$7,0)) -> 0 | AF92: =+INDEX(Actual!$N54:$AS54,,MATCH(Input!AF$7, Actual!$N$7:$AS$7,0)) -> 0 | AG92: =+INDEX(Actual!$N54:$AS54,,MATCH(Input!AG$7, Actual!$N$7:$AS$7,0)) -> 0 | AH92: =+INDEX(Actual!$N54:$AS54,,MATCH(Input!AH$7, Actual!$N$7:$AS$7,0)) -> 0 | AI92: =+INDEX(Actual!$N54:$AS54,,MATCH(Input!AI$7, Actual!$N$7:$AS$7,0)) -> 0 | AJ92: =+INDEX(Actual!$N54:$AS54,,MATCH(Input!AJ$7, Actual!$N$7:$AS$7,0)) -> 0 | AK92: =+INDEX(Actual!$N54:$AS54,,MATCH(Input!AK$7, Actual!$N$7:$AS$7,0)) -> 0 | AL92: =+INDEX(Actual!$N54:$AS54,,MATCH(Input!AL$7, Actual!$N$7:$AS$7,0)) -> 0 | AM92: =+INDEX(Actual!$N54:$AS54,,MATCH(Input!AM$7, Actual!$N$7:$AS$7,0)) -> 0 | AN92: =+INDEX(Actual!$N54:$AS54,,MATCH(Input!AN$7, Actual!$N$7:$AS$7,0)) -> 0 | AO92: =+INDEX(Actual!$N54:$AS54,,MATCH(Input!AO$7, Actual!$N$7:$AS$7,0)) -> 0 | AP92: =+INDEX(Actual!$N54:$AS54,,MATCH(Input!AP$7, Actual!$N$7:$AS$7,0)) -> 0 | AQ92: =+INDEX(Actual!$N54:$AS54,,MATCH(Input!AQ$7, Actual!$N$7:$AS$7,0)) -> 0
C93: Passante Class 5 | D93: € / vkm | N93: =+INDEX(Actual!$N55:$AS55,,MATCH(Input!N$7, Actual!$N$7:$AS$7,0)) -> 0.22662 | O93: =+INDEX(Actual!$N55:$AS55,,MATCH(Input!O$7, Actual!$N$7:$AS$7,0)) -> 0.22662 | P93: =+INDEX(Actual!$N55:$AS55,,MATCH(Input!P$7, Actual!$N$7:$AS$7,0)) -> 0.23129 | Q93: =+INDEX(Actual!$N55:$AS55,,MATCH(Input!Q$7, Actual!$N$7:$AS$7,0)) -> 0.23129 | R93: =+INDEX(Actual!$N55:$AS55,,MATCH(Input!R$7, Actual!$N$7:$AS$7,0)) -> 0.23407 | S93: =+INDEX(Actual!$N55:$AS55,,MATCH(Input!S$7, Actual!$N$7:$AS$7,0)) -> 0.23407 | T93: =+INDEX(Actual!$N55:$AS55,,MATCH(Input!T$7, Actual!$N$7:$AS$7,0)) -> 0 | U93: =+INDEX(Actual!$N55:$AS55,,MATCH(Input!U$7, Actual!$N$7:$AS$7,0)) -> 0 | V93: =+INDEX(Actual!$N55:$AS55,,MATCH(Input!V$7, Actual!$N$7:$AS$7,0)) -> 0 | W93: =+INDEX(Actual!$N55:$AS55,,MATCH(Input!W$7, Actual!$N$7:$AS$7,0)) -> 0 | X93: =+INDEX(Actual!$N55:$AS55,,MATCH(Input!X$7, Actual!$N$7:$AS$7,0)) -> 0 | Y93: =+INDEX(Actual!$N55:$AS55,,MATCH(Input!Y$7, Actual!$N$7:$AS$7,0)) -> 0 | Z93: =+INDEX(Actual!$N55:$AS55,,MATCH(Input!Z$7, Actual!$N$7:$AS$7,0)) -> 0 | AA93: =+INDEX(Actual!$N55:$AS55,,MATCH(Input!AA$7, Actual!$N$7:$AS$7,0)) -> 0 | AB93: =+INDEX(Actual!$N55:$AS55,,MATCH(Input!AB$7, Actual!$N$7:$AS$7,0)) -> 0 | AC93: =+INDEX(Actual!$N55:$AS55,,MATCH(Input!AC$7, Actual!$N$7:$AS$7,0)) -> 0 | AD93: =+INDEX(Actual!$N55:$AS55,,MATCH(Input!AD$7, Actual!$N$7:$AS$7,0)) -> 0 | AE93: =+INDEX(Actual!$N55:$AS55,,MATCH(Input!AE$7, Actual!$N$7:$AS$7,0)) -> 0 | AF93: =+INDEX(Actual!$N55:$AS55,,MATCH(Input!AF$7, Actual!$N$7:$AS$7,0)) -> 0 | AG93: =+INDEX(Actual!$N55:$AS55,,MATCH(Input!AG$7, Actual!$N$7:$AS$7,0)) -> 0 | AH93: =+INDEX(Actual!$N55:$AS55,,MATCH(Input!AH$7, Actual!$N$7:$AS$7,0)) -> 0 | AI93: =+INDEX(Actual!$N55:$AS55,,MATCH(Input!AI$7, Actual!$N$7:$AS$7,0)) -> 0 | AJ93: =+INDEX(Actual!$N55:$AS55,,MATCH(Input!AJ$7, Actual!$N$7:$AS$7,0)) -> 0 | AK93: =+INDEX(Actual!$N55:$AS55,,MATCH(Input!AK$7, Actual!$N$7:$AS$7,0)) -> 0 | AL93: =+INDEX(Actual!$N55:$AS55,,MATCH(Input!AL$7, Actual!$N$7:$AS$7,0)) -> 0 | AM93: =+INDEX(Actual!$N55:$AS55,,MATCH(Input!AM$7, Actual!$N$7:$AS$7,0)) -> 0 | AN93: =+INDEX(Actual!$N55:$AS55,,MATCH(Input!AN$7, Actual!$N$7:$AS$7,0)) -> 0 | AO93: =+INDEX(Actual!$N55:$AS55,,MATCH(Input!AO$7, Actual!$N$7:$AS$7,0)) -> 0 | AP93: =+INDEX(Actual!$N55:$AS55,,MATCH(Input!AP$7, Actual!$N$7:$AS$7,0)) -> 0 | AQ93: =+INDEX(Actual!$N55:$AS55,,MATCH(Input!AQ$7, Actual!$N$7:$AS$7,0)) -> 0
C94: Closed System Class A | D94: € / vkm | N94: =+INDEX(Actual!$N56:$AS56,,MATCH(Input!N$7, Actual!$N$7:$AS$7,0)) -> 0.04467 | O94: =+INDEX(Actual!$N56:$AS56,,MATCH(Input!O$7, Actual!$N$7:$AS$7,0)) -> 0.04467 | P94: =+INDEX(Actual!$N56:$AS56,,MATCH(Input!P$7, Actual!$N$7:$AS$7,0)) -> 0.04559 | Q94: =+INDEX(Actual!$N56:$AS56,,MATCH(Input!Q$7, Actual!$N$7:$AS$7,0)) -> 0.04559 | R94: =+INDEX(Actual!$N56:$AS56,,MATCH(Input!R$7, Actual!$N$7:$AS$7,0)) -> 0.04614 | S94: =+INDEX(Actual!$N56:$AS56,,MATCH(Input!S$7, Actual!$N$7:$AS$7,0)) -> 0.04614 | T94: =+INDEX(Actual!$N56:$AS56,,MATCH(Input!T$7, Actual!$N$7:$AS$7,0)) -> 0 | U94: =+INDEX(Actual!$N56:$AS56,,MATCH(Input!U$7, Actual!$N$7:$AS$7,0)) -> 0 | V94: =+INDEX(Actual!$N56:$AS56,,MATCH(Input!V$7, Actual!$N$7:$AS$7,0)) -> 0 | W94: =+INDEX(Actual!$N56:$AS56,,MATCH(Input!W$7, Actual!$N$7:$AS$7,0)) -> 0 | X94: =+INDEX(Actual!$N56:$AS56,,MATCH(Input!X$7, Actual!$N$7:$AS$7,0)) -> 0 | Y94: =+INDEX(Actual!$N56:$AS56,,MATCH(Input!Y$7, Actual!$N$7:$AS$7,0)) -> 0 | Z94: =+INDEX(Actual!$N56:$AS56,,MATCH(Input!Z$7, Actual!$N$7:$AS$7,0)) -> 0 | AA94: =+INDEX(Actual!$N56:$AS56,,MATCH(Input!AA$7, Actual!$N$7:$AS$7,0)) -> 0 | AB94: =+INDEX(Actual!$N56:$AS56,,MATCH(Input!AB$7, Actual!$N$7:$AS$7,0)) -> 0 | AC94: =+INDEX(Actual!$N56:$AS56,,MATCH(Input!AC$7, Actual!$N$7:$AS$7,0)) -> 0 | AD94: =+INDEX(Actual!$N56:$AS56,,MATCH(Input!AD$7, Actual!$N$7:$AS$7,0)) -> 0 | AE94: =+INDEX(Actual!$N56:$AS56,,MATCH(Input!AE$7, Actual!$N$7:$AS$7,0)) -> 0 | AF94: =+INDEX(Actual!$N56:$AS56,,MATCH(Input!AF$7, Actual!$N$7:$AS$7,0)) -> 0 | AG94: =+INDEX(Actual!$N56:$AS56,,MATCH(Input!AG$7, Actual!$N$7:$AS$7,0)) -> 0 | AH94: =+INDEX(Actual!$N56:$AS56,,MATCH(Input!AH$7, Actual!$N$7:$AS$7,0)) -> 0 | AI94: =+INDEX(Actual!$N56:$AS56,,MATCH(Input!AI$7, Actual!$N$7:$AS$7,0)) -> 0 | AJ94: =+INDEX(Actual!$N56:$AS56,,MATCH(Input!AJ$7, Actual!$N$7:$AS$7,0)) -> 0 | AK94: =+INDEX(Actual!$N56:$AS56,,MATCH(Input!AK$7, Actual!$N$7:$AS$7,0)) -> 0 | AL94: =+INDEX(Actual!$N56:$AS56,,MATCH(Input!AL$7, Actual!$N$7:$AS$7,0)) -> 0 | AM94: =+INDEX(Actual!$N56:$AS56,,MATCH(Input!AM$7, Actual!$N$7:$AS$7,0)) -> 0 | AN94: =+INDEX(Actual!$N56:$AS56,,MATCH(Input!AN$7, Actual!$N$7:$AS$7,0)) -> 0 | AO94: =+INDEX(Actual!$N56:$AS56,,MATCH(Input!AO$7, Actual!$N$7:$AS$7,0)) -> 0 | AP94: =+INDEX(Actual!$N56:$AS56,,MATCH(Input!AP$7, Actual!$N$7:$AS$7,0)) -> 0 | AQ94: =+INDEX(Actual!$N56:$AS56,,MATCH(Input!AQ$7, Actual!$N$7:$AS$7,0)) -> 0
C95: Closed System Class B | D95: € / vkm | N95: =+INDEX(Actual!$N57:$AS57,,MATCH(Input!N$7, Actual!$N$7:$AS$7,0)) -> 0.04579 | O95: =+INDEX(Actual!$N57:$AS57,,MATCH(Input!O$7, Actual!$N$7:$AS$7,0)) -> 0.04579 | P95: =+INDEX(Actual!$N57:$AS57,,MATCH(Input!P$7, Actual!$N$7:$AS$7,0)) -> 0.04673 | Q95: =+INDEX(Actual!$N57:$AS57,,MATCH(Input!Q$7, Actual!$N$7:$AS$7,0)) -> 0.04673 | R95: =+INDEX(Actual!$N57:$AS57,,MATCH(Input!R$7, Actual!$N$7:$AS$7,0)) -> 0.04729 | S95: =+INDEX(Actual!$N57:$AS57,,MATCH(Input!S$7, Actual!$N$7:$AS$7,0)) -> 0.04729 | T95: =+INDEX(Actual!$N57:$AS57,,MATCH(Input!T$7, Actual!$N$7:$AS$7,0)) -> 0 | U95: =+INDEX(Actual!$N57:$AS57,,MATCH(Input!U$7, Actual!$N$7:$AS$7,0)) -> 0 | V95: =+INDEX(Actual!$N57:$AS57,,MATCH(Input!V$7, Actual!$N$7:$AS$7,0)) -> 0 | W95: =+INDEX(Actual!$N57:$AS57,,MATCH(Input!W$7, Actual!$N$7:$AS$7,0)) -> 0 | X95: =+INDEX(Actual!$N57:$AS57,,MATCH(Input!X$7, Actual!$N$7:$AS$7,0)) -> 0 | Y95: =+INDEX(Actual!$N57:$AS57,,MATCH(Input!Y$7, Actual!$N$7:$AS$7,0)) -> 0 | Z95: =+INDEX(Actual!$N57:$AS57,,MATCH(Input!Z$7, Actual!$N$7:$AS$7,0)) -> 0 | AA95: =+INDEX(Actual!$N57:$AS57,,MATCH(Input!AA$7, Actual!$N$7:$AS$7,0)) -> 0 | AB95: =+INDEX(Actual!$N57:$AS57,,MATCH(Input!AB$7, Actual!$N$7:$AS$7,0)) -> 0 | AC95: =+INDEX(Actual!$N57:$AS57,,MATCH(Input!AC$7, Actual!$N$7:$AS$7,0)) -> 0 | AD95: =+INDEX(Actual!$N57:$AS57,,MATCH(Input!AD$7, Actual!$N$7:$AS$7,0)) -> 0 | AE95: =+INDEX(Actual!$N57:$AS57,,MATCH(Input!AE$7, Actual!$N$7:$AS$7,0)) -> 0 | AF95: =+INDEX(Actual!$N57:$AS57,,MATCH(Input!AF$7, Actual!$N$7:$AS$7,0)) -> 0 | AG95: =+INDEX(Actual!$N57:$AS57,,MATCH(Input!AG$7, Actual!$N$7:$AS$7,0)) -> 0 | AH95: =+INDEX(Actual!$N57:$AS57,,MATCH(Input!AH$7, Actual!$N$7:$AS$7,0)) -> 0 | AI95: =+INDEX(Actual!$N57:$AS57,,MATCH(Input!AI$7, Actual!$N$7:$AS$7,0)) -> 0 | AJ95: =+INDEX(Actual!$N57:$AS57,,MATCH(Input!AJ$7, Actual!$N$7:$AS$7,0)) -> 0 | AK95: =+INDEX(Actual!$N57:$AS57,,MATCH(Input!AK$7, Actual!$N$7:$AS$7,0)) -> 0 | AL95: =+INDEX(Actual!$N57:$AS57,,MATCH(Input!AL$7, Actual!$N$7:$AS$7,0)) -> 0 | AM95: =+INDEX(Actual!$N57:$AS57,,MATCH(Input!AM$7, Actual!$N$7:$AS$7,0)) -> 0 | AN95: =+INDEX(Actual!$N57:$AS57,,MATCH(Input!AN$7, Actual!$N$7:$AS$7,0)) -> 0 | AO95: =+INDEX(Actual!$N57:$AS57,,MATCH(Input!AO$7, Actual!$N$7:$AS$7,0)) -> 0 | AP95: =+INDEX(Actual!$N57:$AS57,,MATCH(Input!AP$7, Actual!$N$7:$AS$7,0)) -> 0 | AQ95: =+INDEX(Actual!$N57:$AS57,,MATCH(Input!AQ$7, Actual!$N$7:$AS$7,0)) -> 0
C96: Closed System Class 3 | D96: € / vkm | N96: =+INDEX(Actual!$N58:$AS58,,MATCH(Input!N$7, Actual!$N$7:$AS$7,0)) -> 0.05268 | O96: =+INDEX(Actual!$N58:$AS58,,MATCH(Input!O$7, Actual!$N$7:$AS$7,0)) -> 0.05268 | P96: =+INDEX(Actual!$N58:$AS58,,MATCH(Input!P$7, Actual!$N$7:$AS$7,0)) -> 0.05377 | Q96: =+INDEX(Actual!$N58:$AS58,,MATCH(Input!Q$7, Actual!$N$7:$AS$7,0)) -> 0.05377 | R96: =+INDEX(Actual!$N58:$AS58,,MATCH(Input!R$7, Actual!$N$7:$AS$7,0)) -> 0.05442 | S96: =+INDEX(Actual!$N58:$AS58,,MATCH(Input!S$7, Actual!$N$7:$AS$7,0)) -> 0.05442 | T96: =+INDEX(Actual!$N58:$AS58,,MATCH(Input!T$7, Actual!$N$7:$AS$7,0)) -> 0 | U96: =+INDEX(Actual!$N58:$AS58,,MATCH(Input!U$7, Actual!$N$7:$AS$7,0)) -> 0 | V96: =+INDEX(Actual!$N58:$AS58,,MATCH(Input!V$7, Actual!$N$7:$AS$7,0)) -> 0 | W96: =+INDEX(Actual!$N58:$AS58,,MATCH(Input!W$7, Actual!$N$7:$AS$7,0)) -> 0 | X96: =+INDEX(Actual!$N58:$AS58,,MATCH(Input!X$7, Actual!$N$7:$AS$7,0)) -> 0 | Y96: =+INDEX(Actual!$N58:$AS58,,MATCH(Input!Y$7, Actual!$N$7:$AS$7,0)) -> 0 | Z96: =+INDEX(Actual!$N58:$AS58,,MATCH(Input!Z$7, Actual!$N$7:$AS$7,0)) -> 0 | AA96: =+INDEX(Actual!$N58:$AS58,,MATCH(Input!AA$7, Actual!$N$7:$AS$7,0)) -> 0 | AB96: =+INDEX(Actual!$N58:$AS58,,MATCH(Input!AB$7, Actual!$N$7:$AS$7,0)) -> 0 | AC96: =+INDEX(Actual!$N58:$AS58,,MATCH(Input!AC$7, Actual!$N$7:$AS$7,0)) -> 0 | AD96: =+INDEX(Actual!$N58:$AS58,,MATCH(Input!AD$7, Actual!$N$7:$AS$7,0)) -> 0 | AE96: =+INDEX(Actual!$N58:$AS58,,MATCH(Input!AE$7, Actual!$N$7:$AS$7,0)) -> 0 | AF96: =+INDEX(Actual!$N58:$AS58,,MATCH(Input!AF$7, Actual!$N$7:$AS$7,0)) -> 0 | AG96: =+INDEX(Actual!$N58:$AS58,,MATCH(Input!AG$7, Actual!$N$7:$AS$7,0)) -> 0 | AH96: =+INDEX(Actual!$N58:$AS58,,MATCH(Input!AH$7, Actual!$N$7:$AS$7,0)) -> 0 | AI96: =+INDEX(Actual!$N58:$AS58,,MATCH(Input!AI$7, Actual!$N$7:$AS$7,0)) -> 0 | AJ96: =+INDEX(Actual!$N58:$AS58,,MATCH(Input!AJ$7, Actual!$N$7:$AS$7,0)) -> 0 | AK96: =+INDEX(Actual!$N58:$AS58,,MATCH(Input!AK$7, Actual!$N$7:$AS$7,0)) -> 0 | AL96: =+INDEX(Actual!$N58:$AS58,,MATCH(Input!AL$7, Actual!$N$7:$AS$7,0)) -> 0 | AM96: =+INDEX(Actual!$N58:$AS58,,MATCH(Input!AM$7, Actual!$N$7:$AS$7,0)) -> 0 | AN96: =+INDEX(Actual!$N58:$AS58,,MATCH(Input!AN$7, Actual!$N$7:$AS$7,0)) -> 0 | AO96: =+INDEX(Actual!$N58:$AS58,,MATCH(Input!AO$7, Actual!$N$7:$AS$7,0)) -> 0 | AP96: =+INDEX(Actual!$N58:$AS58,,MATCH(Input!AP$7, Actual!$N$7:$AS$7,0)) -> 0 | AQ96: =+INDEX(Actual!$N58:$AS58,,MATCH(Input!AQ$7, Actual!$N$7:$AS$7,0)) -> 0
C97: Closed System Class 4 | D97: € / vkm | N97: =+INDEX(Actual!$N59:$AS59,,MATCH(Input!N$7, Actual!$N$7:$AS$7,0)) -> 0.08704 | O97: =+INDEX(Actual!$N59:$AS59,,MATCH(Input!O$7, Actual!$N$7:$AS$7,0)) -> 0.08704 | P97: =+INDEX(Actual!$N59:$AS59,,MATCH(Input!P$7, Actual!$N$7:$AS$7,0)) -> 0.08883 | Q97: =+INDEX(Actual!$N59:$AS59,,MATCH(Input!Q$7, Actual!$N$7:$AS$7,0)) -> 0.08883 | R97: =+INDEX(Actual!$N59:$AS59,,MATCH(Input!R$7, Actual!$N$7:$AS$7,0)) -> 0.0899 | S97: =+INDEX(Actual!$N59:$AS59,,MATCH(Input!S$7, Actual!$N$7:$AS$7,0)) -> 0.0899 | T97: =+INDEX(Actual!$N59:$AS59,,MATCH(Input!T$7, Actual!$N$7:$AS$7,0)) -> 0 | U97: =+INDEX(Actual!$N59:$AS59,,MATCH(Input!U$7, Actual!$N$7:$AS$7,0)) -> 0 | V97: =+INDEX(Actual!$N59:$AS59,,MATCH(Input!V$7, Actual!$N$7:$AS$7,0)) -> 0 | W97: =+INDEX(Actual!$N59:$AS59,,MATCH(Input!W$7, Actual!$N$7:$AS$7,0)) -> 0 | X97: =+INDEX(Actual!$N59:$AS59,,MATCH(Input!X$7, Actual!$N$7:$AS$7,0)) -> 0 | Y97: =+INDEX(Actual!$N59:$AS59,,MATCH(Input!Y$7, Actual!$N$7:$AS$7,0)) -> 0 | Z97: =+INDEX(Actual!$N59:$AS59,,MATCH(Input!Z$7, Actual!$N$7:$AS$7,0)) -> 0 | AA97: =+INDEX(Actual!$N59:$AS59,,MATCH(Input!AA$7, Actual!$N$7:$AS$7,0)) -> 0 | AB97: =+INDEX(Actual!$N59:$AS59,,MATCH(Input!AB$7, Actual!$N$7:$AS$7,0)) -> 0 | AC97: =+INDEX(Actual!$N59:$AS59,,MATCH(Input!AC$7, Actual!$N$7:$AS$7,0)) -> 0 | AD97: =+INDEX(Actual!$N59:$AS59,,MATCH(Input!AD$7, Actual!$N$7:$AS$7,0)) -> 0 | AE97: =+INDEX(Actual!$N59:$AS59,,MATCH(Input!AE$7, Actual!$N$7:$AS$7,0)) -> 0 | AF97: =+INDEX(Actual!$N59:$AS59,,MATCH(Input!AF$7, Actual!$N$7:$AS$7,0)) -> 0 | AG97: =+INDEX(Actual!$N59:$AS59,,MATCH(Input!AG$7, Actual!$N$7:$AS$7,0)) -> 0 | AH97: =+INDEX(Actual!$N59:$AS59,,MATCH(Input!AH$7, Actual!$N$7:$AS$7,0)) -> 0 | AI97: =+INDEX(Actual!$N59:$AS59,,MATCH(Input!AI$7, Actual!$N$7:$AS$7,0)) -> 0 | AJ97: =+INDEX(Actual!$N59:$AS59,,MATCH(Input!AJ$7, Actual!$N$7:$AS$7,0)) -> 0 | AK97: =+INDEX(Actual!$N59:$AS59,,MATCH(Input!AK$7, Actual!$N$7:$AS$7,0)) -> 0 | AL97: =+INDEX(Actual!$N59:$AS59,,MATCH(Input!AL$7, Actual!$N$7:$AS$7,0)) -> 0 | AM97: =+INDEX(Actual!$N59:$AS59,,MATCH(Input!AM$7, Actual!$N$7:$AS$7,0)) -> 0 | AN97: =+INDEX(Actual!$N59:$AS59,,MATCH(Input!AN$7, Actual!$N$7:$AS$7,0)) -> 0 | AO97: =+INDEX(Actual!$N59:$AS59,,MATCH(Input!AO$7, Actual!$N$7:$AS$7,0)) -> 0 | AP97: =+INDEX(Actual!$N59:$AS59,,MATCH(Input!AP$7, Actual!$N$7:$AS$7,0)) -> 0 | AQ97: =+INDEX(Actual!$N59:$AS59,,MATCH(Input!AQ$7, Actual!$N$7:$AS$7,0)) -> 0
C98: Closed System Class 5 | D98: € / vkm | N98: =+INDEX(Actual!$N60:$AS60,,MATCH(Input!N$7, Actual!$N$7:$AS$7,0)) -> 0.10537 | O98: =+INDEX(Actual!$N60:$AS60,,MATCH(Input!O$7, Actual!$N$7:$AS$7,0)) -> 0.10537 | P98: =+INDEX(Actual!$N60:$AS60,,MATCH(Input!P$7, Actual!$N$7:$AS$7,0)) -> 0.10754 | Q98: =+INDEX(Actual!$N60:$AS60,,MATCH(Input!Q$7, Actual!$N$7:$AS$7,0)) -> 0.10754 | R98: =+INDEX(Actual!$N60:$AS60,,MATCH(Input!R$7, Actual!$N$7:$AS$7,0)) -> 0.10883 | S98: =+INDEX(Actual!$N60:$AS60,,MATCH(Input!S$7, Actual!$N$7:$AS$7,0)) -> 0.10883 | T98: =+INDEX(Actual!$N60:$AS60,,MATCH(Input!T$7, Actual!$N$7:$AS$7,0)) -> 0 | U98: =+INDEX(Actual!$N60:$AS60,,MATCH(Input!U$7, Actual!$N$7:$AS$7,0)) -> 0 | V98: =+INDEX(Actual!$N60:$AS60,,MATCH(Input!V$7, Actual!$N$7:$AS$7,0)) -> 0 | W98: =+INDEX(Actual!$N60:$AS60,,MATCH(Input!W$7, Actual!$N$7:$AS$7,0)) -> 0 | X98: =+INDEX(Actual!$N60:$AS60,,MATCH(Input!X$7, Actual!$N$7:$AS$7,0)) -> 0 | Y98: =+INDEX(Actual!$N60:$AS60,,MATCH(Input!Y$7, Actual!$N$7:$AS$7,0)) -> 0 | Z98: =+INDEX(Actual!$N60:$AS60,,MATCH(Input!Z$7, Actual!$N$7:$AS$7,0)) -> 0 | AA98: =+INDEX(Actual!$N60:$AS60,,MATCH(Input!AA$7, Actual!$N$7:$AS$7,0)) -> 0 | AB98: =+INDEX(Actual!$N60:$AS60,,MATCH(Input!AB$7, Actual!$N$7:$AS$7,0)) -> 0 | AC98: =+INDEX(Actual!$N60:$AS60,,MATCH(Input!AC$7, Actual!$N$7:$AS$7,0)) -> 0 | AD98: =+INDEX(Actual!$N60:$AS60,,MATCH(Input!AD$7, Actual!$N$7:$AS$7,0)) -> 0 | AE98: =+INDEX(Actual!$N60:$AS60,,MATCH(Input!AE$7, Actual!$N$7:$AS$7,0)) -> 0 | AF98: =+INDEX(Actual!$N60:$AS60,,MATCH(Input!AF$7, Actual!$N$7:$AS$7,0)) -> 0 | AG98: =+INDEX(Actual!$N60:$AS60,,MATCH(Input!AG$7, Actual!$N$7:$AS$7,0)) -> 0 | AH98: =+INDEX(Actual!$N60:$AS60,,MATCH(Input!AH$7, Actual!$N$7:$AS$7,0)) -> 0 | AI98: =+INDEX(Actual!$N60:$AS60,,MATCH(Input!AI$7, Actual!$N$7:$AS$7,0)) -> 0 | AJ98: =+INDEX(Actual!$N60:$AS60,,MATCH(Input!AJ$7, Actual!$N$7:$AS$7,0)) -> 0 | AK98: =+INDEX(Actual!$N60:$AS60,,MATCH(Input!AK$7, Actual!$N$7:$AS$7,0)) -> 0 | AL98: =+INDEX(Actual!$N60:$AS60,,MATCH(Input!AL$7, Actual!$N$7:$AS$7,0)) -> 0 | AM98: =+INDEX(Actual!$N60:$AS60,,MATCH(Input!AM$7, Actual!$N$7:$AS$7,0)) -> 0 | AN98: =+INDEX(Actual!$N60:$AS60,,MATCH(Input!AN$7, Actual!$N$7:$AS$7,0)) -> 0 | AO98: =+INDEX(Actual!$N60:$AS60,,MATCH(Input!AO$7, Actual!$N$7:$AS$7,0)) -> 0 | AP98: =+INDEX(Actual!$N60:$AS60,,MATCH(Input!AP$7, Actual!$N$7:$AS$7,0)) -> 0 | AQ98: =+INDEX(Actual!$N60:$AS60,,MATCH(Input!AQ$7, Actual!$N$7:$AS$7,0)) -> 0
C99: Barriers Class A | D99: € / vkm | N99: =+INDEX(Actual!$N61:$AS61,,MATCH(Input!N$7, Actual!$N$7:$AS$7,0)) -> 0.04634 | O99: =+INDEX(Actual!$N61:$AS61,,MATCH(Input!O$7, Actual!$N$7:$AS$7,0)) -> 0.04634 | P99: =+INDEX(Actual!$N61:$AS61,,MATCH(Input!P$7, Actual!$N$7:$AS$7,0)) -> 0.04729 | Q99: =+INDEX(Actual!$N61:$AS61,,MATCH(Input!Q$7, Actual!$N$7:$AS$7,0)) -> 0.04729 | R99: =+INDEX(Actual!$N61:$AS61,,MATCH(Input!R$7, Actual!$N$7:$AS$7,0)) -> 0.04786 | S99: =+INDEX(Actual!$N61:$AS61,,MATCH(Input!S$7, Actual!$N$7:$AS$7,0)) -> 0.04786 | T99: =+INDEX(Actual!$N61:$AS61,,MATCH(Input!T$7, Actual!$N$7:$AS$7,0)) -> 0 | U99: =+INDEX(Actual!$N61:$AS61,,MATCH(Input!U$7, Actual!$N$7:$AS$7,0)) -> 0 | V99: =+INDEX(Actual!$N61:$AS61,,MATCH(Input!V$7, Actual!$N$7:$AS$7,0)) -> 0 | W99: =+INDEX(Actual!$N61:$AS61,,MATCH(Input!W$7, Actual!$N$7:$AS$7,0)) -> 0 | X99: =+INDEX(Actual!$N61:$AS61,,MATCH(Input!X$7, Actual!$N$7:$AS$7,0)) -> 0 | Y99: =+INDEX(Actual!$N61:$AS61,,MATCH(Input!Y$7, Actual!$N$7:$AS$7,0)) -> 0 | Z99: =+INDEX(Actual!$N61:$AS61,,MATCH(Input!Z$7, Actual!$N$7:$AS$7,0)) -> 0 | AA99: =+INDEX(Actual!$N61:$AS61,,MATCH(Input!AA$7, Actual!$N$7:$AS$7,0)) -> 0 | AB99: =+INDEX(Actual!$N61:$AS61,,MATCH(Input!AB$7, Actual!$N$7:$AS$7,0)) -> 0 | AC99: =+INDEX(Actual!$N61:$AS61,,MATCH(Input!AC$7, Actual!$N$7:$AS$7,0)) -> 0 | AD99: =+INDEX(Actual!$N61:$AS61,,MATCH(Input!AD$7, Actual!$N$7:$AS$7,0)) -> 0 | AE99: =+INDEX(Actual!$N61:$AS61,,MATCH(Input!AE$7, Actual!$N$7:$AS$7,0)) -> 0 | AF99: =+INDEX(Actual!$N61:$AS61,,MATCH(Input!AF$7, Actual!$N$7:$AS$7,0)) -> 0 | AG99: =+INDEX(Actual!$N61:$AS61,,MATCH(Input!AG$7, Actual!$N$7:$AS$7,0)) -> 0 | AH99: =+INDEX(Actual!$N61:$AS61,,MATCH(Input!AH$7, Actual!$N$7:$AS$7,0)) -> 0 | AI99: =+INDEX(Actual!$N61:$AS61,,MATCH(Input!AI$7, Actual!$N$7:$AS$7,0)) -> 0 | AJ99: =+INDEX(Actual!$N61:$AS61,,MATCH(Input!AJ$7, Actual!$N$7:$AS$7,0)) -> 0 | AK99: =+INDEX(Actual!$N61:$AS61,,MATCH(Input!AK$7, Actual!$N$7:$AS$7,0)) -> 0 | AL99: =+INDEX(Actual!$N61:$AS61,,MATCH(Input!AL$7, Actual!$N$7:$AS$7,0)) -> 0 | AM99: =+INDEX(Actual!$N61:$AS61,,MATCH(Input!AM$7, Actual!$N$7:$AS$7,0)) -> 0 | AN99: =+INDEX(Actual!$N61:$AS61,,MATCH(Input!AN$7, Actual!$N$7:$AS$7,0)) -> 0 | AO99: =+INDEX(Actual!$N61:$AS61,,MATCH(Input!AO$7, Actual!$N$7:$AS$7,0)) -> 0 | AP99: =+INDEX(Actual!$N61:$AS61,,MATCH(Input!AP$7, Actual!$N$7:$AS$7,0)) -> 0 | AQ99: =+INDEX(Actual!$N61:$AS61,,MATCH(Input!AQ$7, Actual!$N$7:$AS$7,0)) -> 0
C100: Barriers Class B | D100: € / vkm | N100: =+INDEX(Actual!$N62:$AS62,,MATCH(Input!N$7, Actual!$N$7:$AS$7,0)) -> 0.04754 | O100: =+INDEX(Actual!$N62:$AS62,,MATCH(Input!O$7, Actual!$N$7:$AS$7,0)) -> 0.04754 | P100: =+INDEX(Actual!$N62:$AS62,,MATCH(Input!P$7, Actual!$N$7:$AS$7,0)) -> 0.04852 | Q100: =+INDEX(Actual!$N62:$AS62,,MATCH(Input!Q$7, Actual!$N$7:$AS$7,0)) -> 0.04852 | R100: =+INDEX(Actual!$N62:$AS62,,MATCH(Input!R$7, Actual!$N$7:$AS$7,0)) -> 0.0491 | S100: =+INDEX(Actual!$N62:$AS62,,MATCH(Input!S$7, Actual!$N$7:$AS$7,0)) -> 0.0491 | T100: =+INDEX(Actual!$N62:$AS62,,MATCH(Input!T$7, Actual!$N$7:$AS$7,0)) -> 0 | U100: =+INDEX(Actual!$N62:$AS62,,MATCH(Input!U$7, Actual!$N$7:$AS$7,0)) -> 0 | V100: =+INDEX(Actual!$N62:$AS62,,MATCH(Input!V$7, Actual!$N$7:$AS$7,0)) -> 0 | W100: =+INDEX(Actual!$N62:$AS62,,MATCH(Input!W$7, Actual!$N$7:$AS$7,0)) -> 0 | X100: =+INDEX(Actual!$N62:$AS62,,MATCH(Input!X$7, Actual!$N$7:$AS$7,0)) -> 0 | Y100: =+INDEX(Actual!$N62:$AS62,,MATCH(Input!Y$7, Actual!$N$7:$AS$7,0)) -> 0 | Z100: =+INDEX(Actual!$N62:$AS62,,MATCH(Input!Z$7, Actual!$N$7:$AS$7,0)) -> 0 | AA100: =+INDEX(Actual!$N62:$AS62,,MATCH(Input!AA$7, Actual!$N$7:$AS$7,0)) -> 0 | AB100: =+INDEX(Actual!$N62:$AS62,,MATCH(Input!AB$7, Actual!$N$7:$AS$7,0)) -> 0 | AC100: =+INDEX(Actual!$N62:$AS62,,MATCH(Input!AC$7, Actual!$N$7:$AS$7,0)) -> 0 | AD100: =+INDEX(Actual!$N62:$AS62,,MATCH(Input!AD$7, Actual!$N$7:$AS$7,0)) -> 0 | AE100: =+INDEX(Actual!$N62:$AS62,,MATCH(Input!AE$7, Actual!$N$7:$AS$7,0)) -> 0 | AF100: =+INDEX(Actual!$N62:$AS62,,MATCH(Input!AF$7, Actual!$N$7:$AS$7,0)) -> 0 | AG100: =+INDEX(Actual!$N62:$AS62,,MATCH(Input!AG$7, Actual!$N$7:$AS$7,0)) -> 0 | AH100: =+INDEX(Actual!$N62:$AS62,,MATCH(Input!AH$7, Actual!$N$7:$AS$7,0)) -> 0 | AI100: =+INDEX(Actual!$N62:$AS62,,MATCH(Input!AI$7, Actual!$N$7:$AS$7,0)) -> 0 | AJ100: =+INDEX(Actual!$N62:$AS62,,MATCH(Input!AJ$7, Actual!$N$7:$AS$7,0)) -> 0 | AK100: =+INDEX(Actual!$N62:$AS62,,MATCH(Input!AK$7, Actual!$N$7:$AS$7,0)) -> 0 | AL100: =+INDEX(Actual!$N62:$AS62,,MATCH(Input!AL$7, Actual!$N$7:$AS$7,0)) -> 0 | AM100: =+INDEX(Actual!$N62:$AS62,,MATCH(Input!AM$7, Actual!$N$7:$AS$7,0)) -> 0 | AN100: =+INDEX(Actual!$N62:$AS62,,MATCH(Input!AN$7, Actual!$N$7:$AS$7,0)) -> 0 | AO100: =+INDEX(Actual!$N62:$AS62,,MATCH(Input!AO$7, Actual!$N$7:$AS$7,0)) -> 0 | AP100: =+INDEX(Actual!$N62:$AS62,,MATCH(Input!AP$7, Actual!$N$7:$AS$7,0)) -> 0 | AQ100: =+INDEX(Actual!$N62:$AS62,,MATCH(Input!AQ$7, Actual!$N$7:$AS$7,0)) -> 0
C101: Barriers Class 3 | D101: € / vkm | N101: =+INDEX(Actual!$N63:$AS63,,MATCH(Input!N$7, Actual!$N$7:$AS$7,0)) -> 0.05466 | O101: =+INDEX(Actual!$N63:$AS63,,MATCH(Input!O$7, Actual!$N$7:$AS$7,0)) -> 0.05466 | P101: =+INDEX(Actual!$N63:$AS63,,MATCH(Input!P$7, Actual!$N$7:$AS$7,0)) -> 0.05579 | Q101: =+INDEX(Actual!$N63:$AS63,,MATCH(Input!Q$7, Actual!$N$7:$AS$7,0)) -> 0.05579 | R101: =+INDEX(Actual!$N63:$AS63,,MATCH(Input!R$7, Actual!$N$7:$AS$7,0)) -> 0.05646 | S101: =+INDEX(Actual!$N63:$AS63,,MATCH(Input!S$7, Actual!$N$7:$AS$7,0)) -> 0.05646 | T101: =+INDEX(Actual!$N63:$AS63,,MATCH(Input!T$7, Actual!$N$7:$AS$7,0)) -> 0 | U101: =+INDEX(Actual!$N63:$AS63,,MATCH(Input!U$7, Actual!$N$7:$AS$7,0)) -> 0 | V101: =+INDEX(Actual!$N63:$AS63,,MATCH(Input!V$7, Actual!$N$7:$AS$7,0)) -> 0 | W101: =+INDEX(Actual!$N63:$AS63,,MATCH(Input!W$7, Actual!$N$7:$AS$7,0)) -> 0 | X101: =+INDEX(Actual!$N63:$AS63,,MATCH(Input!X$7, Actual!$N$7:$AS$7,0)) -> 0 | Y101: =+INDEX(Actual!$N63:$AS63,,MATCH(Input!Y$7, Actual!$N$7:$AS$7,0)) -> 0 | Z101: =+INDEX(Actual!$N63:$AS63,,MATCH(Input!Z$7, Actual!$N$7:$AS$7,0)) -> 0 | AA101: =+INDEX(Actual!$N63:$AS63,,MATCH(Input!AA$7, Actual!$N$7:$AS$7,0)) -> 0 | AB101: =+INDEX(Actual!$N63:$AS63,,MATCH(Input!AB$7, Actual!$N$7:$AS$7,0)) -> 0 | AC101: =+INDEX(Actual!$N63:$AS63,,MATCH(Input!AC$7, Actual!$N$7:$AS$7,0)) -> 0 | AD101: =+INDEX(Actual!$N63:$AS63,,MATCH(Input!AD$7, Actual!$N$7:$AS$7,0)) -> 0 | AE101: =+INDEX(Actual!$N63:$AS63,,MATCH(Input!AE$7, Actual!$N$7:$AS$7,0)) -> 0 | AF101: =+INDEX(Actual!$N63:$AS63,,MATCH(Input!AF$7, Actual!$N$7:$AS$7,0)) -> 0 | AG101: =+INDEX(Actual!$N63:$AS63,,MATCH(Input!AG$7, Actual!$N$7:$AS$7,0)) -> 0 | AH101: =+INDEX(Actual!$N63:$AS63,,MATCH(Input!AH$7, Actual!$N$7:$AS$7,0)) -> 0 | AI101: =+INDEX(Actual!$N63:$AS63,,MATCH(Input!AI$7, Actual!$N$7:$AS$7,0)) -> 0 | AJ101: =+INDEX(Actual!$N63:$AS63,,MATCH(Input!AJ$7, Actual!$N$7:$AS$7,0)) -> 0 | AK101: =+INDEX(Actual!$N63:$AS63,,MATCH(Input!AK$7, Actual!$N$7:$AS$7,0)) -> 0 | AL101: =+INDEX(Actual!$N63:$AS63,,MATCH(Input!AL$7, Actual!$N$7:$AS$7,0)) -> 0 | AM101: =+INDEX(Actual!$N63:$AS63,,MATCH(Input!AM$7, Actual!$N$7:$AS$7,0)) -> 0 | AN101: =+INDEX(Actual!$N63:$AS63,,MATCH(Input!AN$7, Actual!$N$7:$AS$7,0)) -> 0 | AO101: =+INDEX(Actual!$N63:$AS63,,MATCH(Input!AO$7, Actual!$N$7:$AS$7,0)) -> 0 | AP101: =+INDEX(Actual!$N63:$AS63,,MATCH(Input!AP$7, Actual!$N$7:$AS$7,0)) -> 0 | AQ101: =+INDEX(Actual!$N63:$AS63,,MATCH(Input!AQ$7, Actual!$N$7:$AS$7,0)) -> 0
C102: Barriers Class 4 | D102: € / vkm | N102: =+INDEX(Actual!$N64:$AS64,,MATCH(Input!N$7, Actual!$N$7:$AS$7,0)) -> 0.09029 | O102: =+INDEX(Actual!$N64:$AS64,,MATCH(Input!O$7, Actual!$N$7:$AS$7,0)) -> 0.09029 | P102: =+INDEX(Actual!$N64:$AS64,,MATCH(Input!P$7, Actual!$N$7:$AS$7,0)) -> 0.09215 | Q102: =+INDEX(Actual!$N64:$AS64,,MATCH(Input!Q$7, Actual!$N$7:$AS$7,0)) -> 0.09215 | R102: =+INDEX(Actual!$N64:$AS64,,MATCH(Input!R$7, Actual!$N$7:$AS$7,0)) -> 0.09326 | S102: =+INDEX(Actual!$N64:$AS64,,MATCH(Input!S$7, Actual!$N$7:$AS$7,0)) -> 0.09326 | T102: =+INDEX(Actual!$N64:$AS64,,MATCH(Input!T$7, Actual!$N$7:$AS$7,0)) -> 0 | U102: =+INDEX(Actual!$N64:$AS64,,MATCH(Input!U$7, Actual!$N$7:$AS$7,0)) -> 0 | V102: =+INDEX(Actual!$N64:$AS64,,MATCH(Input!V$7, Actual!$N$7:$AS$7,0)) -> 0 | W102: =+INDEX(Actual!$N64:$AS64,,MATCH(Input!W$7, Actual!$N$7:$AS$7,0)) -> 0 | X102: =+INDEX(Actual!$N64:$AS64,,MATCH(Input!X$7, Actual!$N$7:$AS$7,0)) -> 0 | Y102: =+INDEX(Actual!$N64:$AS64,,MATCH(Input!Y$7, Actual!$N$7:$AS$7,0)) -> 0 | Z102: =+INDEX(Actual!$N64:$AS64,,MATCH(Input!Z$7, Actual!$N$7:$AS$7,0)) -> 0 | AA102: =+INDEX(Actual!$N64:$AS64,,MATCH(Input!AA$7, Actual!$N$7:$AS$7,0)) -> 0 | AB102: =+INDEX(Actual!$N64:$AS64,,MATCH(Input!AB$7, Actual!$N$7:$AS$7,0)) -> 0 | AC102: =+INDEX(Actual!$N64:$AS64,,MATCH(Input!AC$7, Actual!$N$7:$AS$7,0)) -> 0 | AD102: =+INDEX(Actual!$N64:$AS64,,MATCH(Input!AD$7, Actual!$N$7:$AS$7,0)) -> 0 | AE102: =+INDEX(Actual!$N64:$AS64,,MATCH(Input!AE$7, Actual!$N$7:$AS$7,0)) -> 0 | AF102: =+INDEX(Actual!$N64:$AS64,,MATCH(Input!AF$7, Actual!$N$7:$AS$7,0)) -> 0 | AG102: =+INDEX(Actual!$N64:$AS64,,MATCH(Input!AG$7, Actual!$N$7:$AS$7,0)) -> 0 | AH102: =+INDEX(Actual!$N64:$AS64,,MATCH(Input!AH$7, Actual!$N$7:$AS$7,0)) -> 0 | AI102: =+INDEX(Actual!$N64:$AS64,,MATCH(Input!AI$7, Actual!$N$7:$AS$7,0)) -> 0 | AJ102: =+INDEX(Actual!$N64:$AS64,,MATCH(Input!AJ$7, Actual!$N$7:$AS$7,0)) -> 0 | AK102: =+INDEX(Actual!$N64:$AS64,,MATCH(Input!AK$7, Actual!$N$7:$AS$7,0)) -> 0 | AL102: =+INDEX(Actual!$N64:$AS64,,MATCH(Input!AL$7, Actual!$N$7:$AS$7,0)) -> 0 | AM102: =+INDEX(Actual!$N64:$AS64,,MATCH(Input!AM$7, Actual!$N$7:$AS$7,0)) -> 0 | AN102: =+INDEX(Actual!$N64:$AS64,,MATCH(Input!AN$7, Actual!$N$7:$AS$7,0)) -> 0 | AO102: =+INDEX(Actual!$N64:$AS64,,MATCH(Input!AO$7, Actual!$N$7:$AS$7,0)) -> 0 | AP102: =+INDEX(Actual!$N64:$AS64,,MATCH(Input!AP$7, Actual!$N$7:$AS$7,0)) -> 0 | AQ102: =+INDEX(Actual!$N64:$AS64,,MATCH(Input!AQ$7, Actual!$N$7:$AS$7,0)) -> 0
C103: Barriers Class 5 | D103: € / vkm | N103: =+INDEX(Actual!$N65:$AS65,,MATCH(Input!N$7, Actual!$N$7:$AS$7,0)) -> 0.1093 | O103: =+INDEX(Actual!$N65:$AS65,,MATCH(Input!O$7, Actual!$N$7:$AS$7,0)) -> 0.1093 | P103: =+INDEX(Actual!$N65:$AS65,,MATCH(Input!P$7, Actual!$N$7:$AS$7,0)) -> 0.11155 | Q103: =+INDEX(Actual!$N65:$AS65,,MATCH(Input!Q$7, Actual!$N$7:$AS$7,0)) -> 0.11155 | R103: =+INDEX(Actual!$N65:$AS65,,MATCH(Input!R$7, Actual!$N$7:$AS$7,0)) -> 0.11289 | S103: =+INDEX(Actual!$N65:$AS65,,MATCH(Input!S$7, Actual!$N$7:$AS$7,0)) -> 0.11289 | T103: =+INDEX(Actual!$N65:$AS65,,MATCH(Input!T$7, Actual!$N$7:$AS$7,0)) -> 0 | U103: =+INDEX(Actual!$N65:$AS65,,MATCH(Input!U$7, Actual!$N$7:$AS$7,0)) -> 0 | V103: =+INDEX(Actual!$N65:$AS65,,MATCH(Input!V$7, Actual!$N$7:$AS$7,0)) -> 0 | W103: =+INDEX(Actual!$N65:$AS65,,MATCH(Input!W$7, Actual!$N$7:$AS$7,0)) -> 0 | X103: =+INDEX(Actual!$N65:$AS65,,MATCH(Input!X$7, Actual!$N$7:$AS$7,0)) -> 0 | Y103: =+INDEX(Actual!$N65:$AS65,,MATCH(Input!Y$7, Actual!$N$7:$AS$7,0)) -> 0 | Z103: =+INDEX(Actual!$N65:$AS65,,MATCH(Input!Z$7, Actual!$N$7:$AS$7,0)) -> 0 | AA103: =+INDEX(Actual!$N65:$AS65,,MATCH(Input!AA$7, Actual!$N$7:$AS$7,0)) -> 0 | AB103: =+INDEX(Actual!$N65:$AS65,,MATCH(Input!AB$7, Actual!$N$7:$AS$7,0)) -> 0 | AC103: =+INDEX(Actual!$N65:$AS65,,MATCH(Input!AC$7, Actual!$N$7:$AS$7,0)) -> 0 | AD103: =+INDEX(Actual!$N65:$AS65,,MATCH(Input!AD$7, Actual!$N$7:$AS$7,0)) -> 0 | AE103: =+INDEX(Actual!$N65:$AS65,,MATCH(Input!AE$7, Actual!$N$7:$AS$7,0)) -> 0 | AF103: =+INDEX(Actual!$N65:$AS65,,MATCH(Input!AF$7, Actual!$N$7:$AS$7,0)) -> 0 | AG103: =+INDEX(Actual!$N65:$AS65,,MATCH(Input!AG$7, Actual!$N$7:$AS$7,0)) -> 0 | AH103: =+INDEX(Actual!$N65:$AS65,,MATCH(Input!AH$7, Actual!$N$7:$AS$7,0)) -> 0 | AI103: =+INDEX(Actual!$N65:$AS65,,MATCH(Input!AI$7, Actual!$N$7:$AS$7,0)) -> 0 | AJ103: =+INDEX(Actual!$N65:$AS65,,MATCH(Input!AJ$7, Actual!$N$7:$AS$7,0)) -> 0 | AK103: =+INDEX(Actual!$N65:$AS65,,MATCH(Input!AK$7, Actual!$N$7:$AS$7,0)) -> 0 | AL103: =+INDEX(Actual!$N65:$AS65,,MATCH(Input!AL$7, Actual!$N$7:$AS$7,0)) -> 0 | AM103: =+INDEX(Actual!$N65:$AS65,,MATCH(Input!AM$7, Actual!$N$7:$AS$7,0)) -> 0 | AN103: =+INDEX(Actual!$N65:$AS65,,MATCH(Input!AN$7, Actual!$N$7:$AS$7,0)) -> 0 | AO103: =+INDEX(Actual!$N65:$AS65,,MATCH(Input!AO$7, Actual!$N$7:$AS$7,0)) -> 0 | AP103: =+INDEX(Actual!$N65:$AS65,,MATCH(Input!AP$7, Actual!$N$7:$AS$7,0)) -> 0 | AQ103: =+INDEX(Actual!$N65:$AS65,,MATCH(Input!AQ$7, Actual!$N$7:$AS$7,0)) -> 0
B106: =+ROUND(MAX($B$64:B105)+1,0) -> 2 | C106: PFR ART Macro Inputs
C108: Inflation PEF CIPE - PFR CIPE | D108: % | P108: 0.012 | Q108: 0.012 | R108: 0.008 | S108: 0.008 | T108: 0.008 | U108: 0.008 | V108: 0.008 | W108: 0.008 | X108: 0.008 | Y108: 0.008 | Z108: 0.008 | AA108: 0.008 | AB108: 0.008 | AC108: 0.008 | AD108: 0.008 | AE108: 0.008 | AF108: 0.008 | AG108: 0.008 | AH108: 0.008 | AI108: 0.008 | AJ108: 0.008 | AK108: 0.008 | AL108: 0.008 | AM108: 0.008 | AN108: 0.008 | AO108: 0.008 | AP108: 0.008 | AQ108: 0.008
C110: X - Efficiency factor
C111: X - Efficiency factor after first period | D111: % | E111: 0
C112: X - Efficiency factors application periods after first | D112: periods | E112: 0
C114: 1 | D114: % | E114: 0
C115: =+C114+1 -> 2 | D115: % | E115: =+E$111*((C115-1)<=E$112) -> 0
C116: 3 | D116: % | E116: 0
C117: 4 | D117: % | E117: 0
C118: 5 | D118: % | E118: 0
C119: 6 | D119: % | E119: 0
C120: 7 | D120: % | E120: 0
C121: X - Efficiency factor | N121: =+IFERROR(INDEX($E$114:$E$120,MATCH(N$53,$C$114:$C$120,0)),0) -> 0 | O121: 0 | P121: 0 | Q121: 0 | R121: 0 | S121: 0 | T121: 0 | U121: 0 | V121: 0 | W121: 0 | X121: 0 | Y121: 0 | Z121: 0 | AA121: 0 | AB121: 0 | AC121: 0 | AD121: 0 | AE121: 0 | AF121: 0 | AG121: 0 | AH121: 0 | AI121: 0 | AJ121: 0 | AK121: 0 | AL121: 0 | AM121: 0 | AN121: 0 | AO121: 0 | AP121: 0 | AQ121: 0
C123: X - Efficiency factor nell'anno ponte | D123: flag | E123: 0
B127: =+ROUND(MAX($B$64:B125)+1,0) -> 3 | C127: PFR CIPE Macro Inputs
C129: WACC | D129: % | E129: 1 | R129: =+WACC_CIPE!$E$31 -> 0.0707830847 | S129: =+WACC_CIPE!$E$31 -> 0.0707830847 | T129: =+WACC_CIPE!$E$31 -> 0.0707830847 | U129: =+WACC_CIPE!$E$31 -> 0.0707830847 | V129: =+WACC_CIPE!$E$31 -> 0.0707830847 | W129: =+WACC_CIPE!$E$31 -> 0.0707830847 | X129: =+WACC_CIPE!$E$31 -> 0.0707830847 | Y129: =+WACC_CIPE!$E$31 -> 0.0707830847 | Z129: =+WACC_CIPE!$E$31 -> 0.0707830847 | AA129: =+WACC_CIPE!$E$31 -> 0.0707830847 | AB129: =+WACC_CIPE!$E$31 -> 0.0707830847 | AC129: =+WACC_CIPE!$E$31 -> 0.0707830847 | AD129: =+WACC_CIPE!$E$31 -> 0.0707830847 | AE129: =+WACC_CIPE!$E$31 -> 0.0707830847 | AF129: =+WACC_CIPE!$E$31 -> 0.0707830847 | AG129: =+WACC_CIPE!$E$31 -> 0.0707830847 | AH129: =+WACC_CIPE!$E$31 -> 0.0707830847 | AI129: =+WACC_CIPE!$E$31 -> 0.0707830847 | AJ129: =+WACC_CIPE!$E$31 -> 0.0707830847 | AK129: =+WACC_CIPE!$E$31 -> 0.0707830847 | AL129: =+WACC_CIPE!$E$31 -> 0.0707830847 | AM129: =+WACC_CIPE!$E$31 -> 0.0707830847 | AN129: =+WACC_CIPE!$E$31 -> 0.0707830847 | AO129: =+WACC_CIPE!$E$31 -> 0.0707830847 | AP129: =+WACC_CIPE!$E$31 -> 0.0707830847 | AQ129: =+WACC_CIPE!$E$31 -> 0.0707830847
C130: Inflazione CIPE | D130: % | R130: 0.0134 | S130: 0.0134 | T130: 0.0134 | U130: 0.0134 | V130: 0.0134 | W130: 0.0134 | X130: 0.0134 | Y130: 0.0134 | Z130: 0.0134 | AA130: 0.0134 | AB130: 0.0134 | AC130: 0.0134 | AD130: 0.0134 | AE130: 0.0134 | AF130: 0.0134 | AG130: 0.0134 | AH130: 0.0134 | AI130: 0.0134 | AJ130: 0.0134 | AK130: 0.0134 | AL130: 0.0134 | AM130: 0.0134 | AN130: 0.0134 | AO130: 0.0134 | AP130: 0.0134 | AQ130: 0.0134
C131: Inflazione adottata | D131: flag | E131: =1-Dashboard!H56 -> 0
C132: α | D132: n | R132: 0.7 | S132: 0.7 | T132: 0.7 | U132: 0.7 | V132: 0.7 | W132: 0.7 | X132: 0.7 | Y132: 0.7 | Z132: 0.7 | AA132: 0.7 | AB132: 0.7 | AC132: 0.7 | AD132: 0.7 | AE132: 0.7 | AF132: 0.7 | AG132: 0.7 | AH132: 0.7 | AI132: 0.7 | AJ132: 0.7 | AK132: 0.7 | AL132: 0.7 | AM132: 0.7 | AN132: 0.7 | AO132: 0.7 | AP132: 0.7 | AQ132: 0.7
C133: Input Costi Ammessi | D133: flag | E133: =1-Dashboard!H57 -> 0
C134: Efficientamento costi ART | D134: flag | E134: =+Dashboard!H58 -> 0
C135: Volumi di traffico | D135: flag | E135: =1-Dashboard!H55 -> 0
C136: Credito Poste Figurative 31.12.2019 | D136: €'000 | E136: 317199.1959
C137: Recupero del Beneficio | D137: €'000 | E137: ='Calcolo Beneficio 2016'!M83*1000 -> -85276.90473
C138: Fattore X iniziale | D138: % | E138: -0.009107903446
C139: Fattore K iniziale | D139: % | E139: 0.01270790345
C142: ATTIVO FISSO | D142: Unit | E142: Input 1 | F142: Input 2 | G142: Check | I142: Total
B145: =+ROUND(MAX($B$144:B144)+1,0) -> 1 | C145: Immobilizzazioni Reversibili Actual
C147: Immobilizzazioni Reversibili ACTUAL
C148: Immobilizzazioni Reversibili in corso Nette - Actual | D148: €'000 | I148: =+SUM(N148:AQ148) -> 1853.69952 | O148: 577.11284 | P148: 591.25684 | Q148: =685329.84/1000 -> 685.32984
C149: Immobilizzazioni Reversibili in uso Nette - Actual | D149: €'000 | I149: =+SUM(N149:AQ149) -> 1819843.676 | O149: 627190.6782 | P149: 604790.976 | Q149: 587862.0215
C150: Immobilizzazioni Reversibili in uso Lorde - Actual | D150: €'000 | I150: =+SUM(N150:AQ150) -> 3922407.098 | O150: =283654.002+1021926.865 -> 1305580.867 | P150: =1021926.86552+113116.5+70537.502+100000 -> 1305580.868 | Q150: =1027591.36129+113116.5+70537.502+100000 -> 1311245.363
C151: Fondo Ammortamento Imm. Reversibili - Actual | D151: €'000 | I151: =+SUM(N151:AQ151) -> -2102563.423 | O151: =-394736.188-283654.002 -> -678390.19 | P151: =-417135.88954-113116.5-70537.502-100000 -> -700789.8915 | Q151: =-439729.33984-113116.5-70537.502-100000 -> -723383.3418
B153: =+ROUND(MAX($B$144:B152)+1,0) -> 2 | C153: Piano di Investimenti
C155: Piano di Investimenti in Immobilizzazioni Reversibili
B156: c | C156: Impianti stoccaggio cloruri | D156: €'000 | I156: =+SUM(P156:AQ156) -> 192 | P156: =+SUMIF(Actual!$N$7:$AB$7,P$7,Actual!$N123:$AB123)*P$13 -> 0 | Q156: =+SUMIF(Actual!$N$7:$AB$7,Q$7,Actual!$N123:$AB123)*Q$13 -> 0 | R156: =+SUMIF(Actual!$N$7:$AB$7,R$7,Actual!$N123:$AB123)*R$13 -> 0 | S156: =+SUMIF(Actual!$N$7:$AB$7,S$7,Actual!$N123:$AB123)*S$13 -> 0 | T156: =+SUMIF(Actual!$N$7:$AB$7,T$7,Actual!$N123:$AB123)*T$13 -> 96 | U156: =+SUMIF(Actual!$N$7:$AB$7,U$7,Actual!$N123:$AB123)*U$13 -> 96 | V156: =+SUMIF(Actual!$N$7:$AB$7,V$7,Actual!$N123:$AB123)*V$13 -> 0 | W156: =+SUMIF(Actual!$N$7:$AB$7,W$7,Actual!$N123:$AB123)*W$13 -> 0 | X156: =+SUMIF(Actual!$N$7:$AB$7,X$7,Actual!$N123:$AB123)*X$13 -> 0 | Y156: =+SUMIF(Actual!$N$7:$AB$7,Y$7,Actual!$N123:$AB123)*Y$13 -> 0 | Z156: =+SUMIF(Actual!$N$7:$AB$7,Z$7,Actual!$N123:$AB123)*Z$13 -> 0 | AA156: =+SUMIF(Actual!$N$7:$AB$7,AA$7,Actual!$N123:$AB123)*AA$13 -> 0 | AB156: =+SUMIF(Actual!$N$7:$AB$7,AB$7,Actual!$N123:$AB123)*AB$13 -> 0 | AC156: =+SUMIF(Actual!$N$7:$AB$7,AC$7,Actual!$N123:$AB123)*AC$13 -> 0 | AD156: =+SUMIF(Actual!$N$7:$AB$7,AD$7,Actual!$N123:$AB123)*AD$13 -> 0 | AE156: =+SUMIF(Actual!$N$7:$AB$7,AE$7,Actual!$N123:$AB123)*AE$13 -> 0 | AF156: =+SUMIF(Actual!$N$7:$AB$7,AF$7,Actual!$N123:$AB123)*AF$13 -> 0 | AG156: =+SUMIF(Actual!$N$7:$AB$7,AG$7,Actual!$N123:$AB123)*AG$13 -> 0 | AH156: =+SUMIF(Actual!$N$7:$AB$7,AH$7,Actual!$N123:$AB123)*AH$13 -> 0 | AI156: =+SUMIF(Actual!$N$7:$AB$7,AI$7,Actual!$N123:$AB123)*AI$13 -> 0 | AJ156: =+SUMIF(Actual!$N$7:$AB$7,AJ$7,Actual!$N123:$AB123)*AJ$13 -> 0 | AK156: =+SUMIF(Actual!$N$7:$AB$7,AK$7,Actual!$N123:$AB123)*AK$13 -> 0 | AL156: =+SUMIF(Actual!$N$7:$AB$7,AL$7,Actual!$N123:$AB123)*AL$13 -> 0 | AM156: =+SUMIF(Actual!$N$7:$AB$7,AM$7,Actual!$N123:$AB123)*AM$13 -> 0 | AN156: =+SUMIF(Actual!$N$7:$AB$7,AN$7,Actual!$N123:$AB123)*AN$13 -> 0 | AO156: =+SUMIF(Actual!$N$7:$AB$7,AO$7,Actual!$N123:$AB123)*AO$13 -> 0 | AP156: =+SUMIF(Actual!$N$7:$AB$7,AP$7,Actual!$N123:$AB123)*AP$13 -> 0 | AQ156: =+SUMIF(Actual!$N$7:$AB$7,AQ$7,Actual!$N123:$AB123)*AQ$13 -> 0
B157: d | C157: Automazione impianti di esazione pedaggio | D157: €'000 | I157: =+SUM(P157:AQ157) -> 565 | P157: =+SUMIF(Actual!$N$7:$AB$7,P$7,Actual!$N124:$AB124)*P$13 -> 0 | Q157: =+SUMIF(Actual!$N$7:$AB$7,Q$7,Actual!$N124:$AB124)*Q$13 -> 0 | R157: =+SUMIF(Actual!$N$7:$AB$7,R$7,Actual!$N124:$AB124)*R$13 -> 0 | S157: =+SUMIF(Actual!$N$7:$AB$7,S$7,Actual!$N124:$AB124)*S$13 -> 0 | T157: =+SUMIF(Actual!$N$7:$AB$7,T$7,Actual!$N124:$AB124)*T$13 -> 282.5 | U157: =+SUMIF(Actual!$N$7:$AB$7,U$7,Actual!$N124:$AB124)*U$13 -> 282.5 | V157: =+SUMIF(Actual!$N$7:$AB$7,V$7,Actual!$N124:$AB124)*V$13 -> 0 | W157: =+SUMIF(Actual!$N$7:$AB$7,W$7,Actual!$N124:$AB124)*W$13 -> 0 | X157: =+SUMIF(Actual!$N$7:$AB$7,X$7,Actual!$N124:$AB124)*X$13 -> 0 | Y157: =+SUMIF(Actual!$N$7:$AB$7,Y$7,Actual!$N124:$AB124)*Y$13 -> 0 | Z157: =+SUMIF(Actual!$N$7:$AB$7,Z$7,Actual!$N124:$AB124)*Z$13 -> 0 | AA157: =+SUMIF(Actual!$N$7:$AB$7,AA$7,Actual!$N124:$AB124)*AA$13 -> 0 | AB157: =+SUMIF(Actual!$N$7:$AB$7,AB$7,Actual!$N124:$AB124)*AB$13 -> 0 | AC157: =+SUMIF(Actual!$N$7:$AB$7,AC$7,Actual!$N124:$AB124)*AC$13 -> 0 | AD157: =+SUMIF(Actual!$N$7:$AB$7,AD$7,Actual!$N124:$AB124)*AD$13 -> 0 | AE157: =+SUMIF(Actual!$N$7:$AB$7,AE$7,Actual!$N124:$AB124)*AE$13 -> 0 | AF157: =+SUMIF(Actual!$N$7:$AB$7,AF$7,Actual!$N124:$AB124)*AF$13 -> 0 | AG157: =+SUMIF(Actual!$N$7:$AB$7,AG$7,Actual!$N124:$AB124)*AG$13 -> 0 | AH157: =+SUMIF(Actual!$N$7:$AB$7,AH$7,Actual!$N124:$AB124)*AH$13 -> 0 | AI157: =+SUMIF(Actual!$N$7:$AB$7,AI$7,Actual!$N124:$AB124)*AI$13 -> 0 | AJ157: =+SUMIF(Actual!$N$7:$AB$7,AJ$7,Actual!$N124:$AB124)*AJ$13 -> 0 | AK157: =+SUMIF(Actual!$N$7:$AB$7,AK$7,Actual!$N124:$AB124)*AK$13 -> 0 | AL157: =+SUMIF(Actual!$N$7:$AB$7,AL$7,Actual!$N124:$AB124)*AL$13 -> 0 | AM157: =+SUMIF(Actual!$N$7:$AB$7,AM$7,Actual!$N124:$AB124)*AM$13 -> 0 | AN157: =+SUMIF(Actual!$N$7:$AB$7,AN$7,Actual!$N124:$AB124)*AN$13 -> 0 | AO157: =+SUMIF(Actual!$N$7:$AB$7,AO$7,Actual!$N124:$AB124)*AO$13 -> 0 | AP157: =+SUMIF(Actual!$N$7:$AB$7,AP$7,Actual!$N124:$AB124)*AP$13 -> 0 | AQ157: =+SUMIF(Actual!$N$7:$AB$7,AQ$7,Actual!$N124:$AB124)*AQ$13 -> 0
B158: g | C158: Varie + Manutenzioni Straordinarie | D158: €'000 | I158: 4066 | P158: =+SUMIF(Actual!$N$7:$AB$7,P$7,Actual!$N125:$AB125)*P$13 -> 0 | Q158: =+SUMIF(Actual!$N$7:$AB$7,Q$7,Actual!$N125:$AB125)*Q$13 -> 0 | R158: =+SUMIF(Actual!$N$7:$AB$7,R$7,Actual!$N125:$AB125)*R$13 -> 293 | S158: =+SUMIF(Actual!$N$7:$AB$7,S$7,Actual!$N125:$AB125)*S$13 -> 293 | T158: =+SUMIF(Actual!$N$7:$AB$7,T$7,Actual!$N125:$AB125)*T$13 -> 145 | U158: =+SUMIF(Actual!$N$7:$AB$7,U$7,Actual!$N125:$AB125)*U$13 -> 145 | V158: =+SUMIF(Actual!$N$7:$AB$7,V$7,Actual!$N125:$AB125)*V$13 -> 145 | W158: =+SUMIF(Actual!$N$7:$AB$7,W$7,Actual!$N125:$AB125)*W$13 -> 145 | X158: =+SUMIF(Actual!$N$7:$AB$7,X$7,Actual!$N125:$AB125)*X$13 -> 145 | Y158: =+SUMIF(Actual!$N$7:$AB$7,Y$7,Actual!$N125:$AB125)*Y$13 -> 145 | Z158: =+SUMIF(Actual!$N$7:$AB$7,Z$7,Actual!$N125:$AB125)*Z$13 -> 145 | AA158: =+SUMIF(Actual!$N$7:$AB$7,AA$7,Actual!$N125:$AB125)*AA$13 -> 145 | AB158: =+SUMIF(Actual!$N$7:$AB$7,AB$7,Actual!$N125:$AB125)*AB$13 -> 145 | AC158: =+SUMIF(Actual!$N$7:$AB$7,AC$7,Actual!$N125:$AB125)*AC$13 -> 145 | AD158: =+SUMIF(Actual!$N$7:$AB$7,AD$7,Actual!$N125:$AB125)*AD$13 -> 145 | AE158: =+SUMIF(Actual!$N$7:$AB$7,AE$7,Actual!$N125:$AB125)*AE$13 -> 145 | AF158: =+SUMIF(Actual!$N$7:$AB$7,AF$7,Actual!$N125:$AB125)*AF$13 -> 145 | AG158: =+SUMIF(Actual!$N$7:$AB$7,AG$7,Actual!$N125:$AB125)*AG$13 -> 145 | AH158: =+SUMIF(Actual!$N$7:$AB$7,AH$7,Actual!$N125:$AB125)*AH$13 -> 145 | AI158: =+SUMIF(Actual!$N$7:$AB$7,AI$7,Actual!$N125:$AB125)*AI$13 -> 145 | AJ158: =+SUMIF(Actual!$N$7:$AB$7,AJ$7,Actual!$N125:$AB125)*AJ$13 -> 145 | AK158: =+SUMIF(Actual!$N$7:$AB$7,AK$7,Actual!$N125:$AB125)*AK$13 -> 145 | AL158: =+SUMIF(Actual!$N$7:$AB$7,AL$7,Actual!$N125:$AB125)*AL$13 -> 145 | AM158: =+SUMIF(Actual!$N$7:$AB$7,AM$7,Actual!$N125:$AB125)*AM$13 -> 145 | AN158: =+SUMIF(Actual!$N$7:$AB$7,AN$7,Actual!$N125:$AB125)*AN$13 -> 145 | AO158: =+SUMIF(Actual!$N$7:$AB$7,AO$7,Actual!$N125:$AB125)*AO$13 -> 145 | AP158: =+SUMIF(Actual!$N$7:$AB$7,AP$7,Actual!$N125:$AB125)*AP$13 -> 145 | AQ158: =+SUMIF(Actual!$N$7:$AB$7,AQ$7,Actual!$N125:$AB125)*AQ$13 -> 145
B159: n | C159: Aree di servizio (una per direzione) ed aree di sosta per conducenti mezzi pesanti | D159: €'000 | I159: 0 | P159: =+SUMIF(Actual!$N$7:$AB$7,P$7,Actual!$N126:$AB126)*P$13 -> 0 | Q159: =+SUMIF(Actual!$N$7:$AB$7,Q$7,Actual!$N126:$AB126)*Q$13 -> 0 | R159: =+SUMIF(Actual!$N$7:$AB$7,R$7,Actual!$N126:$AB126)*R$13 -> 0 | S159: =+SUMIF(Actual!$N$7:$AB$7,S$7,Actual!$N126:$AB126)*S$13 -> 0 | T159: =+SUMIF(Actual!$N$7:$AB$7,T$7,Actual!$N126:$AB126)*T$13 -> 0 | U159: =+SUMIF(Actual!$N$7:$AB$7,U$7,Actual!$N126:$AB126)*U$13 -> 0 | V159: =+SUMIF(Actual!$N$7:$AB$7,V$7,Actual!$N126:$AB126)*V$13 -> 0 | W159: =+SUMIF(Actual!$N$7:$AB$7,W$7,Actual!$N126:$AB126)*W$13 -> 0 | X159: =+SUMIF(Actual!$N$7:$AB$7,X$7,Actual!$N126:$AB126)*X$13 -> 0 | Y159: =+SUMIF(Actual!$N$7:$AB$7,Y$7,Actual!$N126:$AB126)*Y$13 -> 0 | Z159: =+SUMIF(Actual!$N$7:$AB$7,Z$7,Actual!$N126:$AB126)*Z$13 -> 0 | AA159: =+SUMIF(Actual!$N$7:$AB$7,AA$7,Actual!$N126:$AB126)*AA$13 -> 0 | AB159: =+SUMIF(Actual!$N$7:$AB$7,AB$7,Actual!$N126:$AB126)*AB$13 -> 0 | AC159: =+SUMIF(Actual!$N$7:$AB$7,AC$7,Actual!$N126:$AB126)*AC$13 -> 0 | AD159: =+SUMIF(Actual!$N$7:$AB$7,AD$7,Actual!$N126:$AB126)*AD$13 -> 0 | AE159: =+SUMIF(Actual!$N$7:$AB$7,AE$7,Actual!$N126:$AB126)*AE$13 -> 0 | AF159: =+SUMIF(Actual!$N$7:$AB$7,AF$7,Actual!$N126:$AB126)*AF$13 -> 0 | AG159: =+SUMIF(Actual!$N$7:$AB$7,AG$7,Actual!$N126:$AB126)*AG$13 -> 0 | AH159: =+SUMIF(Actual!$N$7:$AB$7,AH$7,Actual!$N126:$AB126)*AH$13 -> 0 | AI159: =+SUMIF(Actual!$N$7:$AB$7,AI$7,Actual!$N126:$AB126)*AI$13 -> 0 | AJ159: =+SUMIF(Actual!$N$7:$AB$7,AJ$7,Actual!$N126:$AB126)*AJ$13 -> 0 | AK159: =+SUMIF(Actual!$N$7:$AB$7,AK$7,Actual!$N126:$AB126)*AK$13 -> 0 | AL159: =+SUMIF(Actual!$N$7:$AB$7,AL$7,Actual!$N126:$AB126)*AL$13 -> 0 | AM159: =+SUMIF(Actual!$N$7:$AB$7,AM$7,Actual!$N126:$AB126)*AM$13 -> 0 | AN159: =+SUMIF(Actual!$N$7:$AB$7,AN$7,Actual!$N126:$AB126)*AN$13 -> 0 | AO159: =+SUMIF(Actual!$N$7:$AB$7,AO$7,Actual!$N126:$AB126)*AO$13 -> 0 | AP159: =+SUMIF(Actual!$N$7:$AB$7,AP$7,Actual!$N126:$AB126)*AP$13 -> 0 | AQ159: =+SUMIF(Actual!$N$7:$AB$7,AQ$7,Actual!$N126:$AB126)*AQ$13 -> 0
B160: s | C160: Opere complementari passante di Mestre | D160: €'000 | I160: 11334 | P160: =+SUMIF(Actual!$N$7:$AB$7,P$7,Actual!$N127:$AB127)*P$13 -> 0 | Q160: =+SUMIF(Actual!$N$7:$AB$7,Q$7,Actual!$N127:$AB127)*Q$13 -> 0 | R160: =+SUMIF(Actual!$N$7:$AB$7,R$7,Actual!$N127:$AB127)*R$13 -> 1150 | S160: =+SUMIF(Actual!$N$7:$AB$7,S$7,Actual!$N127:$AB127)*S$13 -> 1150 | T160: =+SUMIF(Actual!$N$7:$AB$7,T$7,Actual!$N127:$AB127)*T$13 -> 316.5 | U160: =+SUMIF(Actual!$N$7:$AB$7,U$7,Actual!$N127:$AB127)*U$13 -> 316.5 | V160: =+SUMIF(Actual!$N$7:$AB$7,V$7,Actual!$N127:$AB127)*V$13 -> 2875 | W160: =+SUMIF(Actual!$N$7:$AB$7,W$7,Actual!$N127:$AB127)*W$13 -> 2875 | X160: =+SUMIF(Actual!$N$7:$AB$7,X$7,Actual!$N127:$AB127)*X$13 -> 1325.5 | Y160: =+SUMIF(Actual!$N$7:$AB$7,Y$7,Actual!$N127:$AB127)*Y$13 -> 1325.5 | Z160: =+SUMIF(Actual!$N$7:$AB$7,Z$7,Actual!$N127:$AB127)*Z$13 -> 0 | AA160: =+SUMIF(Actual!$N$7:$AB$7,AA$7,Actual!$N127:$AB127)*AA$13 -> 0 | AB160: =+SUMIF(Actual!$N$7:$AB$7,AB$7,Actual!$N127:$AB127)*AB$13 -> 0 | AC160: =+SUMIF(Actual!$N$7:$AB$7,AC$7,Actual!$N127:$AB127)*AC$13 -> 0 | AD160: =+SUMIF(Actual!$N$7:$AB$7,AD$7,Actual!$N127:$AB127)*AD$13 -> 0 | AE160: =+SUMIF(Actual!$N$7:$AB$7,AE$7,Actual!$N127:$AB127)*AE$13 -> 0 | AF160: =+SUMIF(Actual!$N$7:$AB$7,AF$7,Actual!$N127:$AB127)*AF$13 -> 0 | AG160: =+SUMIF(Actual!$N$7:$AB$7,AG$7,Actual!$N127:$AB127)*AG$13 -> 0 | AH160: =+SUMIF(Actual!$N$7:$AB$7,AH$7,Actual!$N127:$AB127)*AH$13 -> 0 | AI160: =+SUMIF(Actual!$N$7:$AB$7,AI$7,Actual!$N127:$AB127)*AI$13 -> 0 | AJ160: =+SUMIF(Actual!$N$7:$AB$7,AJ$7,Actual!$N127:$AB127)*AJ$13 -> 0 | AK160: =+SUMIF(Actual!$N$7:$AB$7,AK$7,Actual!$N127:$AB127)*AK$13 -> 0 | AL160: =+SUMIF(Actual!$N$7:$AB$7,AL$7,Actual!$N127:$AB127)*AL$13 -> 0 | AM160: =+SUMIF(Actual!$N$7:$AB$7,AM$7,Actual!$N127:$AB127)*AM$13 -> 0 | AN160: =+SUMIF(Actual!$N$7:$AB$7,AN$7,Actual!$N127:$AB127)*AN$13 -> 0 | AO160: =+SUMIF(Actual!$N$7:$AB$7,AO$7,Actual!$N127:$AB127)*AO$13 -> 0 | AP160: =+SUMIF(Actual!$N$7:$AB$7,AP$7,Actual!$N127:$AB127)*AP$13 -> 0 | AQ160: =+SUMIF(Actual!$N$7:$AB$7,AQ$7,Actual!$N127:$AB127)*AQ$13 -> 0
B161: t | C161: Rivalutazione ambientale dei territori attraversati dal Passante di Mestre e ulteriori interventi di mitigazione ambientale | D161: €'000 | I161: 5569 | P161: =+SUMIF(Actual!$N$7:$AB$7,P$7,Actual!$N128:$AB128)*P$13 -> 0 | Q161: =+SUMIF(Actual!$N$7:$AB$7,Q$7,Actual!$N128:$AB128)*Q$13 -> 0 | R161: =+SUMIF(Actual!$N$7:$AB$7,R$7,Actual!$N128:$AB128)*R$13 -> 250 | S161: =+SUMIF(Actual!$N$7:$AB$7,S$7,Actual!$N128:$AB128)*S$13 -> 250 | T161: =+SUMIF(Actual!$N$7:$AB$7,T$7,Actual!$N128:$AB128)*T$13 -> 250 | U161: =+SUMIF(Actual!$N$7:$AB$7,U$7,Actual!$N128:$AB128)*U$13 -> 250 | V161: =+SUMIF(Actual!$N$7:$AB$7,V$7,Actual!$N128:$AB128)*V$13 -> 0 | W161: =+SUMIF(Actual!$N$7:$AB$7,W$7,Actual!$N128:$AB128)*W$13 -> 0 | X161: =+SUMIF(Actual!$N$7:$AB$7,X$7,Actual!$N128:$AB128)*X$13 -> 397.5 | Y161: =+SUMIF(Actual!$N$7:$AB$7,Y$7,Actual!$N128:$AB128)*Y$13 -> 397.5 | Z161: =+SUMIF(Actual!$N$7:$AB$7,Z$7,Actual!$N128:$AB128)*Z$13 -> 0 | AA161: =+SUMIF(Actual!$N$7:$AB$7,AA$7,Actual!$N128:$AB128)*AA$13 -> 0 | AB161: =+SUMIF(Actual!$N$7:$AB$7,AB$7,Actual!$N128:$AB128)*AB$13 -> 1176.5 | AC161: =+SUMIF(Actual!$N$7:$AB$7,AC$7,Actual!$N128:$AB128)*AC$13 -> 1176.5 | AD161: =+SUMIF(Actual!$N$7:$AB$7,AD$7,Actual!$N128:$AB128)*AD$13 -> 710.5 | AE161: =+SUMIF(Actual!$N$7:$AB$7,AE$7,Actual!$N128:$AB128)*AE$13 -> 710.5 | AF161: =+SUMIF(Actual!$N$7:$AB$7,AF$7,Actual!$N128:$AB128)*AF$13 -> 0 | AG161: =+SUMIF(Actual!$N$7:$AB$7,AG$7,Actual!$N128:$AB128)*AG$13 -> 0 | AH161: =+SUMIF(Actual!$N$7:$AB$7,AH$7,Actual!$N128:$AB128)*AH$13 -> 0 | AI161: =+SUMIF(Actual!$N$7:$AB$7,AI$7,Actual!$N128:$AB128)*AI$13 -> 0 | AJ161: =+SUMIF(Actual!$N$7:$AB$7,AJ$7,Actual!$N128:$AB128)*AJ$13 -> 0 | AK161: =+SUMIF(Actual!$N$7:$AB$7,AK$7,Actual!$N128:$AB128)*AK$13 -> 0 | AL161: =+SUMIF(Actual!$N$7:$AB$7,AL$7,Actual!$N128:$AB128)*AL$13 -> 0 | AM161: =+SUMIF(Actual!$N$7:$AB$7,AM$7,Actual!$N128:$AB128)*AM$13 -> 0 | AN161: =+SUMIF(Actual!$N$7:$AB$7,AN$7,Actual!$N128:$AB128)*AN$13 -> 0 | AO161: =+SUMIF(Actual!$N$7:$AB$7,AO$7,Actual!$N128:$AB128)*AO$13 -> 0 | AP161: =+SUMIF(Actual!$N$7:$AB$7,AP$7,Actual!$N128:$AB128)*AP$13 -> 0 | AQ161: =+SUMIF(Actual!$N$7:$AB$7,AQ$7,Actual!$N128:$AB128)*AQ$13 -> 0
B162: u | C162: Nuovo COA Venezia Ovest e aggiornamento impianti infomatici | D162: €'000 | I162: 300 | P162: =+SUMIF(Actual!$N$7:$AB$7,P$7,Actual!$N129:$AB129)*P$13 -> 0 | Q162: =+SUMIF(Actual!$N$7:$AB$7,Q$7,Actual!$N129:$AB129)*Q$13 -> 0 | R162: =+SUMIF(Actual!$N$7:$AB$7,R$7,Actual!$N129:$AB129)*R$13 -> 150 | S162: =+SUMIF(Actual!$N$7:$AB$7,S$7,Actual!$N129:$AB129)*S$13 -> 150 | T162: =+SUMIF(Actual!$N$7:$AB$7,T$7,Actual!$N129:$AB129)*T$13 -> 0 | U162: =+SUMIF(Actual!$N$7:$AB$7,U$7,Actual!$N129:$AB129)*U$13 -> 0 | V162: =+SUMIF(Actual!$N$7:$AB$7,V$7,Actual!$N129:$AB129)*V$13 -> 0 | W162: =+SUMIF(Actual!$N$7:$AB$7,W$7,Actual!$N129:$AB129)*W$13 -> 0 | X162: =+SUMIF(Actual!$N$7:$AB$7,X$7,Actual!$N129:$AB129)*X$13 -> 0 | Y162: =+SUMIF(Actual!$N$7:$AB$7,Y$7,Actual!$N129:$AB129)*Y$13 -> 0 | Z162: =+SUMIF(Actual!$N$7:$AB$7,Z$7,Actual!$N129:$AB129)*Z$13 -> 0 | AA162: =+SUMIF(Actual!$N$7:$AB$7,AA$7,Actual!$N129:$AB129)*AA$13 -> 0 | AB162: =+SUMIF(Actual!$N$7:$AB$7,AB$7,Actual!$N129:$AB129)*AB$13 -> 0 | AC162: =+SUMIF(Actual!$N$7:$AB$7,AC$7,Actual!$N129:$AB129)*AC$13 -> 0 | AD162: =+SUMIF(Actual!$N$7:$AB$7,AD$7,Actual!$N129:$AB129)*AD$13 -> 0 | AE162: =+SUMIF(Actual!$N$7:$AB$7,AE$7,Actual!$N129:$AB129)*AE$13 -> 0 | AF162: =+SUMIF(Actual!$N$7:$AB$7,AF$7,Actual!$N129:$AB129)*AF$13 -> 0 | AG162: =+SUMIF(Actual!$N$7:$AB$7,AG$7,Actual!$N129:$AB129)*AG$13 -> 0 | AH162: =+SUMIF(Actual!$N$7:$AB$7,AH$7,Actual!$N129:$AB129)*AH$13 -> 0 | AI162: =+SUMIF(Actual!$N$7:$AB$7,AI$7,Actual!$N129:$AB129)*AI$13 -> 0 | AJ162: =+SUMIF(Actual!$N$7:$AB$7,AJ$7,Actual!$N129:$AB129)*AJ$13 -> 0 | AK162: =+SUMIF(Actual!$N$7:$AB$7,AK$7,Actual!$N129:$AB129)*AK$13 -> 0 | AL162: =+SUMIF(Actual!$N$7:$AB$7,AL$7,Actual!$N129:$AB129)*AL$13 -> 0 | AM162: =+SUMIF(Actual!$N$7:$AB$7,AM$7,Actual!$N129:$AB129)*AM$13 -> 0 | AN162: =+SUMIF(Actual!$N$7:$AB$7,AN$7,Actual!$N129:$AB129)*AN$13 -> 0 | AO162: =+SUMIF(Actual!$N$7:$AB$7,AO$7,Actual!$N129:$AB129)*AO$13 -> 0 | AP162: =+SUMIF(Actual!$N$7:$AB$7,AP$7,Actual!$N129:$AB129)*AP$13 -> 0 | AQ162: =+SUMIF(Actual!$N$7:$AB$7,AQ$7,Actual!$N129:$AB129)*AQ$13 -> 0
B163: v | C163: Fabbricato ad uso direzionali/logistici e/o stazione Venezia Ovest | D163: €'000 | I163: 1200 | P163: =+SUMIF(Actual!$N$7:$AB$7,P$7,Actual!$N130:$AB130)*P$13 -> 0 | Q163: =+SUMIF(Actual!$N$7:$AB$7,Q$7,Actual!$N130:$AB130)*Q$13 -> 0 | R163: =+SUMIF(Actual!$N$7:$AB$7,R$7,Actual!$N130:$AB130)*R$13 -> 0 | S163: =+SUMIF(Actual!$N$7:$AB$7,S$7,Actual!$N130:$AB130)*S$13 -> 0 | T163: =+SUMIF(Actual!$N$7:$AB$7,T$7,Actual!$N130:$AB130)*T$13 -> 0 | U163: =+SUMIF(Actual!$N$7:$AB$7,U$7,Actual!$N130:$AB130)*U$13 -> 0 | V163: =+SUMIF(Actual!$N$7:$AB$7,V$7,Actual!$N130:$AB130)*V$13 -> 15 | W163: =+SUMIF(Actual!$N$7:$AB$7,W$7,Actual!$N130:$AB130)*W$13 -> 15 | X163: =+SUMIF(Actual!$N$7:$AB$7,X$7,Actual!$N130:$AB130)*X$13 -> 250 | Y163: =+SUMIF(Actual!$N$7:$AB$7,Y$7,Actual!$N130:$AB130)*Y$13 -> 250 | Z163: =+SUMIF(Actual!$N$7:$AB$7,Z$7,Actual!$N130:$AB130)*Z$13 -> 335 | AA163: =+SUMIF(Actual!$N$7:$AB$7,AA$7,Actual!$N130:$AB130)*AA$13 -> 335 | AB163: =+SUMIF(Actual!$N$7:$AB$7,AB$7,Actual!$N130:$AB130)*AB$13 -> 0 | AC163: =+SUMIF(Actual!$N$7:$AB$7,AC$7,Actual!$N130:$AB130)*AC$13 -> 0 | AD163: =+SUMIF(Actual!$N$7:$AB$7,AD$7,Actual!$N130:$AB130)*AD$13 -> 0 | AE163: =+SUMIF(Actual!$N$7:$AB$7,AE$7,Actual!$N130:$AB130)*AE$13 -> 0 | AF163: =+SUMIF(Actual!$N$7:$AB$7,AF$7,Actual!$N130:$AB130)*AF$13 -> 0 | AG163: =+SUMIF(Actual!$N$7:$AB$7,AG$7,Actual!$N130:$AB130)*AG$13 -> 0 | AH163: =+SUMIF(Actual!$N$7:$AB$7,AH$7,Actual!$N130:$AB130)*AH$13 -> 0 | AI163: =+SUMIF(Actual!$N$7:$AB$7,AI$7,Actual!$N130:$AB130)*AI$13 -> 0 | AJ163: =+SUMIF(Actual!$N$7:$AB$7,AJ$7,Actual!$N130:$AB130)*AJ$13 -> 0 | AK163: =+SUMIF(Actual!$N$7:$AB$7,AK$7,Actual!$N130:$AB130)*AK$13 -> 0 | AL163: =+SUMIF(Actual!$N$7:$AB$7,AL$7,Actual!$N130:$AB130)*AL$13 -> 0 | AM163: =+SUMIF(Actual!$N$7:$AB$7,AM$7,Actual!$N130:$AB130)*AM$13 -> 0 | AN163: =+SUMIF(Actual!$N$7:$AB$7,AN$7,Actual!$N130:$AB130)*AN$13 -> 0 | AO163: =+SUMIF(Actual!$N$7:$AB$7,AO$7,Actual!$N130:$AB130)*AO$13 -> 0 | AP163: =+SUMIF(Actual!$N$7:$AB$7,AP$7,Actual!$N130:$AB130)*AP$13 -> 0 | AQ163: =+SUMIF(Actual!$N$7:$AB$7,AQ$7,Actual!$N130:$AB130)*AQ$13 -> 0
B164: w | C164: Nuovo fabbricato stazione e pensilina stazione di Milano - Dolo | D164: €'000 | I164: 0 | P164: =+SUMIF(Actual!$N$7:$AB$7,P$7,Actual!$N131:$AB131)*P$13 -> 0 | Q164: =+SUMIF(Actual!$N$7:$AB$7,Q$7,Actual!$N131:$AB131)*Q$13 -> 0 | R164: =+SUMIF(Actual!$N$7:$AB$7,R$7,Actual!$N131:$AB131)*R$13 -> 0 | S164: =+SUMIF(Actual!$N$7:$AB$7,S$7,Actual!$N131:$AB131)*S$13 -> 0 | T164: =+SUMIF(Actual!$N$7:$AB$7,T$7,Actual!$N131:$AB131)*T$13 -> 0 | U164: =+SUMIF(Actual!$N$7:$AB$7,U$7,Actual!$N131:$AB131)*U$13 -> 0 | V164: =+SUMIF(Actual!$N$7:$AB$7,V$7,Actual!$N131:$AB131)*V$13 -> 0 | W164: =+SUMIF(Actual!$N$7:$AB$7,W$7,Actual!$N131:$AB131)*W$13 -> 0 | X164: =+SUMIF(Actual!$N$7:$AB$7,X$7,Actual!$N131:$AB131)*X$13 -> 0 | Y164: =+SUMIF(Actual!$N$7:$AB$7,Y$7,Actual!$N131:$AB131)*Y$13 -> 0 | Z164: =+SUMIF(Actual!$N$7:$AB$7,Z$7,Actual!$N131:$AB131)*Z$13 -> 0 | AA164: =+SUMIF(Actual!$N$7:$AB$7,AA$7,Actual!$N131:$AB131)*AA$13 -> 0 | AB164: =+SUMIF(Actual!$N$7:$AB$7,AB$7,Actual!$N131:$AB131)*AB$13 -> 0 | AC164: =+SUMIF(Actual!$N$7:$AB$7,AC$7,Actual!$N131:$AB131)*AC$13 -> 0 | AD164: =+SUMIF(Actual!$N$7:$AB$7,AD$7,Actual!$N131:$AB131)*AD$13 -> 0 | AE164: =+SUMIF(Actual!$N$7:$AB$7,AE$7,Actual!$N131:$AB131)*AE$13 -> 0 | AF164: =+SUMIF(Actual!$N$7:$AB$7,AF$7,Actual!$N131:$AB131)*AF$13 -> 0 | AG164: =+SUMIF(Actual!$N$7:$AB$7,AG$7,Actual!$N131:$AB131)*AG$13 -> 0 | AH164: =+SUMIF(Actual!$N$7:$AB$7,AH$7,Actual!$N131:$AB131)*AH$13 -> 0 | AI164: =+SUMIF(Actual!$N$7:$AB$7,AI$7,Actual!$N131:$AB131)*AI$13 -> 0 | AJ164: =+SUMIF(Actual!$N$7:$AB$7,AJ$7,Actual!$N131:$AB131)*AJ$13 -> 0 | AK164: =+SUMIF(Actual!$N$7:$AB$7,AK$7,Actual!$N131:$AB131)*AK$13 -> 0 | AL164: =+SUMIF(Actual!$N$7:$AB$7,AL$7,Actual!$N131:$AB131)*AL$13 -> 0 | AM164: =+SUMIF(Actual!$N$7:$AB$7,AM$7,Actual!$N131:$AB131)*AM$13 -> 0 | AN164: =+SUMIF(Actual!$N$7:$AB$7,AN$7,Actual!$N131:$AB131)*AN$13 -> 0 | AO164: =+SUMIF(Actual!$N$7:$AB$7,AO$7,Actual!$N131:$AB131)*AO$13 -> 0 | AP164: =+SUMIF(Actual!$N$7:$AB$7,AP$7,Actual!$N131:$AB131)*AP$13 -> 0 | AQ164: =+SUMIF(Actual!$N$7:$AB$7,AQ$7,Actual!$N131:$AB131)*AQ$13 -> 0
B165: z | C165: Sistemazione ai fini della sicurezza dell'innesto A27 con la A57 (contributo a terzi) | D165: €'000 | I165: 0 | P165: =+SUMIF(Actual!$N$7:$AB$7,P$7,Actual!$N132:$AB132)*P$13 -> 0 | Q165: =+SUMIF(Actual!$N$7:$AB$7,Q$7,Actual!$N132:$AB132)*Q$13 -> 0 | R165: =+SUMIF(Actual!$N$7:$AB$7,R$7,Actual!$N132:$AB132)*R$13 -> 0 | S165: =+SUMIF(Actual!$N$7:$AB$7,S$7,Actual!$N132:$AB132)*S$13 -> 0 | T165: =+SUMIF(Actual!$N$7:$AB$7,T$7,Actual!$N132:$AB132)*T$13 -> 0 | U165: =+SUMIF(Actual!$N$7:$AB$7,U$7,Actual!$N132:$AB132)*U$13 -> 0 | V165: =+SUMIF(Actual!$N$7:$AB$7,V$7,Actual!$N132:$AB132)*V$13 -> 0 | W165: =+SUMIF(Actual!$N$7:$AB$7,W$7,Actual!$N132:$AB132)*W$13 -> 0 | X165: =+SUMIF(Actual!$N$7:$AB$7,X$7,Actual!$N132:$AB132)*X$13 -> 0 | Y165: =+SUMIF(Actual!$N$7:$AB$7,Y$7,Actual!$N132:$AB132)*Y$13 -> 0 | Z165: =+SUMIF(Actual!$N$7:$AB$7,Z$7,Actual!$N132:$AB132)*Z$13 -> 0 | AA165: =+SUMIF(Actual!$N$7:$AB$7,AA$7,Actual!$N132:$AB132)*AA$13 -> 0 | AB165: =+SUMIF(Actual!$N$7:$AB$7,AB$7,Actual!$N132:$AB132)*AB$13 -> 0 | AC165: =+SUMIF(Actual!$N$7:$AB$7,AC$7,Actual!$N132:$AB132)*AC$13 -> 0 | AD165: =+SUMIF(Actual!$N$7:$AB$7,AD$7,Actual!$N132:$AB132)*AD$13 -> 0 | AE165: =+SUMIF(Actual!$N$7:$AB$7,AE$7,Actual!$N132:$AB132)*AE$13 -> 0 | AF165: =+SUMIF(Actual!$N$7:$AB$7,AF$7,Actual!$N132:$AB132)*AF$13 -> 0 | AG165: =+SUMIF(Actual!$N$7:$AB$7,AG$7,Actual!$N132:$AB132)*AG$13 -> 0 | AH165: =+SUMIF(Actual!$N$7:$AB$7,AH$7,Actual!$N132:$AB132)*AH$13 -> 0 | AI165: =+SUMIF(Actual!$N$7:$AB$7,AI$7,Actual!$N132:$AB132)*AI$13 -> 0 | AJ165: =+SUMIF(Actual!$N$7:$AB$7,AJ$7,Actual!$N132:$AB132)*AJ$13 -> 0 | AK165: =+SUMIF(Actual!$N$7:$AB$7,AK$7,Actual!$N132:$AB132)*AK$13 -> 0 | AL165: =+SUMIF(Actual!$N$7:$AB$7,AL$7,Actual!$N132:$AB132)*AL$13 -> 0 | AM165: =+SUMIF(Actual!$N$7:$AB$7,AM$7,Actual!$N132:$AB132)*AM$13 -> 0 | AN165: =+SUMIF(Actual!$N$7:$AB$7,AN$7,Actual!$N132:$AB132)*AN$13 -> 0 | AO165: =+SUMIF(Actual!$N$7:$AB$7,AO$7,Actual!$N132:$AB132)*AO$13 -> 0 | AP165: =+SUMIF(Actual!$N$7:$AB$7,AP$7,Actual!$N132:$AB132)*AP$13 -> 0 | AQ165: =+SUMIF(Actual!$N$7:$AB$7,AQ$7,Actual!$N132:$AB132)*AQ$13 -> 0
B166: n1 | C166: e ROAD | D166: €'000 | I166: 2500 | P166: =+SUMIF(Actual!$N$7:$AB$7,P$7,Actual!$N133:$AB133)*P$13 -> 0 | Q166: =+SUMIF(Actual!$N$7:$AB$7,Q$7,Actual!$N133:$AB133)*Q$13 -> 0 | R166: =+SUMIF(Actual!$N$7:$AB$7,R$7,Actual!$N133:$AB133)*R$13 -> 0 | S166: =+SUMIF(Actual!$N$7:$AB$7,S$7,Actual!$N133:$AB133)*S$13 -> 0 | T166: =+SUMIF(Actual!$N$7:$AB$7,T$7,Actual!$N133:$AB133)*T$13 -> 0 | U166: =+SUMIF(Actual!$N$7:$AB$7,U$7,Actual!$N133:$AB133)*U$13 -> 0 | V166: =+SUMIF(Actual!$N$7:$AB$7,V$7,Actual!$N133:$AB133)*V$13 -> 0 | W166: =+SUMIF(Actual!$N$7:$AB$7,W$7,Actual!$N133:$AB133)*W$13 -> 0 | X166: =+SUMIF(Actual!$N$7:$AB$7,X$7,Actual!$N133:$AB133)*X$13 -> 0 | Y166: =+SUMIF(Actual!$N$7:$AB$7,Y$7,Actual!$N133:$AB133)*Y$13 -> 0 | Z166: =+SUMIF(Actual!$N$7:$AB$7,Z$7,Actual!$N133:$AB133)*Z$13 -> 0 | AA166: =+SUMIF(Actual!$N$7:$AB$7,AA$7,Actual!$N133:$AB133)*AA$13 -> 0 | AB166: =+SUMIF(Actual!$N$7:$AB$7,AB$7,Actual!$N133:$AB133)*AB$13 -> 0 | AC166: =+SUMIF(Actual!$N$7:$AB$7,AC$7,Actual!$N133:$AB133)*AC$13 -> 0 | AD166: =+SUMIF(Actual!$N$7:$AB$7,AD$7,Actual!$N133:$AB133)*AD$13 -> 0 | AE166: =+SUMIF(Actual!$N$7:$AB$7,AE$7,Actual!$N133:$AB133)*AE$13 -> 0 | AF166: =+SUMIF(Actual!$N$7:$AB$7,AF$7,Actual!$N133:$AB133)*AF$13 -> 0 | AG166: =+SUMIF(Actual!$N$7:$AB$7,AG$7,Actual!$N133:$AB133)*AG$13 -> 0 | AH166: =+SUMIF(Actual!$N$7:$AB$7,AH$7,Actual!$N133:$AB133)*AH$13 -> 250 | AI166: =+SUMIF(Actual!$N$7:$AB$7,AI$7,Actual!$N133:$AB133)*AI$13 -> 250 | AJ166: =+SUMIF(Actual!$N$7:$AB$7,AJ$7,Actual!$N133:$AB133)*AJ$13 -> 250 | AK166: =+SUMIF(Actual!$N$7:$AB$7,AK$7,Actual!$N133:$AB133)*AK$13 -> 250 | AL166: =+SUMIF(Actual!$N$7:$AB$7,AL$7,Actual!$N133:$AB133)*AL$13 -> 250 | AM166: =+SUMIF(Actual!$N$7:$AB$7,AM$7,Actual!$N133:$AB133)*AM$13 -> 250 | AN166: =+SUMIF(Actual!$N$7:$AB$7,AN$7,Actual!$N133:$AB133)*AN$13 -> 250 | AO166: =+SUMIF(Actual!$N$7:$AB$7,AO$7,Actual!$N133:$AB133)*AO$13 -> 250 | AP166: =+SUMIF(Actual!$N$7:$AB$7,AP$7,Actual!$N133:$AB133)*AP$13 -> 250 | AQ166: =+SUMIF(Actual!$N$7:$AB$7,AQ$7,Actual!$N133:$AB133)*AQ$13 -> 250
B167: n2 | C167: Riqualificazione dell'uscita di Padova Est in carreggiata Ovest | D167: €'000 | I167: 6000 | P167: =+SUMIF(Actual!$N$7:$AB$7,P$7,Actual!$N134:$AB134)*P$13 -> 0 | Q167: =+SUMIF(Actual!$N$7:$AB$7,Q$7,Actual!$N134:$AB134)*Q$13 -> 0 | R167: =+SUMIF(Actual!$N$7:$AB$7,R$7,Actual!$N134:$AB134)*R$13 -> 0 | S167: =+SUMIF(Actual!$N$7:$AB$7,S$7,Actual!$N134:$AB134)*S$13 -> 0 | T167: =+SUMIF(Actual!$N$7:$AB$7,T$7,Actual!$N134:$AB134)*T$13 -> 50 | U167: =+SUMIF(Actual!$N$7:$AB$7,U$7,Actual!$N134:$AB134)*U$13 -> 50 | V167: =+SUMIF(Actual!$N$7:$AB$7,V$7,Actual!$N134:$AB134)*V$13 -> 50 | W167: =+SUMIF(Actual!$N$7:$AB$7,W$7,Actual!$N134:$AB134)*W$13 -> 50 | X167: =+SUMIF(Actual!$N$7:$AB$7,X$7,Actual!$N134:$AB134)*X$13 -> 0 | Y167: =+SUMIF(Actual!$N$7:$AB$7,Y$7,Actual!$N134:$AB134)*Y$13 -> 0 | Z167: =+SUMIF(Actual!$N$7:$AB$7,Z$7,Actual!$N134:$AB134)*Z$13 -> 0 | AA167: =+SUMIF(Actual!$N$7:$AB$7,AA$7,Actual!$N134:$AB134)*AA$13 -> 0 | AB167: =+SUMIF(Actual!$N$7:$AB$7,AB$7,Actual!$N134:$AB134)*AB$13 -> 507.5 | AC167: =+SUMIF(Actual!$N$7:$AB$7,AC$7,Actual!$N134:$AB134)*AC$13 -> 507.5 | AD167: =+SUMIF(Actual!$N$7:$AB$7,AD$7,Actual!$N134:$AB134)*AD$13 -> 1740 | AE167: =+SUMIF(Actual!$N$7:$AB$7,AE$7,Actual!$N134:$AB134)*AE$13 -> 1740 | AF167: =+SUMIF(Actual!$N$7:$AB$7,AF$7,Actual!$N134:$AB134)*AF$13 -> 652.5 | AG167: =+SUMIF(Actual!$N$7:$AB$7,AG$7,Actual!$N134:$AB134)*AG$13 -> 652.5 | AH167: =+SUMIF(Actual!$N$7:$AB$7,AH$7,Actual!$N134:$AB134)*AH$13 -> 0 | AI167: =+SUMIF(Actual!$N$7:$AB$7,AI$7,Actual!$N134:$AB134)*AI$13 -> 0 | AJ167: =+SUMIF(Actual!$N$7:$AB$7,AJ$7,Actual!$N134:$AB134)*AJ$13 -> 0 | AK167: =+SUMIF(Actual!$N$7:$AB$7,AK$7,Actual!$N134:$AB134)*AK$13 -> 0 | AL167: =+SUMIF(Actual!$N$7:$AB$7,AL$7,Actual!$N134:$AB134)*AL$13 -> 0 | AM167: =+SUMIF(Actual!$N$7:$AB$7,AM$7,Actual!$N134:$AB134)*AM$13 -> 0 | AN167: =+SUMIF(Actual!$N$7:$AB$7,AN$7,Actual!$N134:$AB134)*AN$13 -> 0 | AO167: =+SUMIF(Actual!$N$7:$AB$7,AO$7,Actual!$N134:$AB134)*AO$13 -> 0 | AP167: =+SUMIF(Actual!$N$7:$AB$7,AP$7,Actual!$N134:$AB134)*AP$13 -> 0 | AQ167: =+SUMIF(Actual!$N$7:$AB$7,AQ$7,Actual!$N134:$AB134)*AQ$13 -> 0
B168: n3 | C168: Arretramento barriera di Venezia Ovest e nuovo svincolo in A57 per la Riviera | D168: €'000 | I168: 0 | P168: =+SUMIF(Actual!$N$7:$AB$7,P$7,Actual!$N135:$AB135)*P$13 -> 0 | Q168: =+SUMIF(Actual!$N$7:$AB$7,Q$7,Actual!$N135:$AB135)*Q$13 -> 0 | R168: =+SUMIF(Actual!$N$7:$AB$7,R$7,Actual!$N135:$AB135)*R$13 -> 0 | S168: =+SUMIF(Actual!$N$7:$AB$7,S$7,Actual!$N135:$AB135)*S$13 -> 0 | T168: =+SUMIF(Actual!$N$7:$AB$7,T$7,Actual!$N135:$AB135)*T$13 -> 0 | U168: =+SUMIF(Actual!$N$7:$AB$7,U$7,Actual!$N135:$AB135)*U$13 -> 0 | V168: =+SUMIF(Actual!$N$7:$AB$7,V$7,Actual!$N135:$AB135)*V$13 -> 0 | W168: =+SUMIF(Actual!$N$7:$AB$7,W$7,Actual!$N135:$AB135)*W$13 -> 0 | X168: =+SUMIF(Actual!$N$7:$AB$7,X$7,Actual!$N135:$AB135)*X$13 -> 0 | Y168: =+SUMIF(Actual!$N$7:$AB$7,Y$7,Actual!$N135:$AB135)*Y$13 -> 0 | Z168: =+SUMIF(Actual!$N$7:$AB$7,Z$7,Actual!$N135:$AB135)*Z$13 -> 0 | AA168: =+SUMIF(Actual!$N$7:$AB$7,AA$7,Actual!$N135:$AB135)*AA$13 -> 0 | AB168: =+SUMIF(Actual!$N$7:$AB$7,AB$7,Actual!$N135:$AB135)*AB$13 -> 0 | AC168: =+SUMIF(Actual!$N$7:$AB$7,AC$7,Actual!$N135:$AB135)*AC$13 -> 0 | AD168: =+SUMIF(Actual!$N$7:$AB$7,AD$7,Actual!$N135:$AB135)*AD$13 -> 0 | AE168: =+SUMIF(Actual!$N$7:$AB$7,AE$7,Actual!$N135:$AB135)*AE$13 -> 0 | AF168: =+SUMIF(Actual!$N$7:$AB$7,AF$7,Actual!$N135:$AB135)*AF$13 -> 0 | AG168: =+SUMIF(Actual!$N$7:$AB$7,AG$7,Actual!$N135:$AB135)*AG$13 -> 0 | AH168: =+SUMIF(Actual!$N$7:$AB$7,AH$7,Actual!$N135:$AB135)*AH$13 -> 0 | AI168: =+SUMIF(Actual!$N$7:$AB$7,AI$7,Actual!$N135:$AB135)*AI$13 -> 0 | AJ168: =+SUMIF(Actual!$N$7:$AB$7,AJ$7,Actual!$N135:$AB135)*AJ$13 -> 0 | AK168: =+SUMIF(Actual!$N$7:$AB$7,AK$7,Actual!$N135:$AB135)*AK$13 -> 0 | AL168: =+SUMIF(Actual!$N$7:$AB$7,AL$7,Actual!$N135:$AB135)*AL$13 -> 0 | AM168: =+SUMIF(Actual!$N$7:$AB$7,AM$7,Actual!$N135:$AB135)*AM$13 -> 0 | AN168: =+SUMIF(Actual!$N$7:$AB$7,AN$7,Actual!$N135:$AB135)*AN$13 -> 0 | AO168: =+SUMIF(Actual!$N$7:$AB$7,AO$7,Actual!$N135:$AB135)*AO$13 -> 0 | AP168: =+SUMIF(Actual!$N$7:$AB$7,AP$7,Actual!$N135:$AB135)*AP$13 -> 0 | AQ168: =+SUMIF(Actual!$N$7:$AB$7,AQ$7,Actual!$N135:$AB135)*AQ$13 -> 0
B169: n4 | C169: Manutenzioni straordinarie - Opere d'arte | D169: €'000 | I169: 13100 | P169: =+SUMIF(Actual!$N$7:$AB$7,P$7,Actual!$N136:$AB136)*P$13 -> 0 | Q169: =+SUMIF(Actual!$N$7:$AB$7,Q$7,Actual!$N136:$AB136)*Q$13 -> 0 | R169: =+SUMIF(Actual!$N$7:$AB$7,R$7,Actual!$N136:$AB136)*R$13 -> 550 | S169: =+SUMIF(Actual!$N$7:$AB$7,S$7,Actual!$N136:$AB136)*S$13 -> 550 | T169: =+SUMIF(Actual!$N$7:$AB$7,T$7,Actual!$N136:$AB136)*T$13 -> 500 | U169: =+SUMIF(Actual!$N$7:$AB$7,U$7,Actual!$N136:$AB136)*U$13 -> 500 | V169: =+SUMIF(Actual!$N$7:$AB$7,V$7,Actual!$N136:$AB136)*V$13 -> 500 | W169: =+SUMIF(Actual!$N$7:$AB$7,W$7,Actual!$N136:$AB136)*W$13 -> 500 | X169: =+SUMIF(Actual!$N$7:$AB$7,X$7,Actual!$N136:$AB136)*X$13 -> 500 | Y169: =+SUMIF(Actual!$N$7:$AB$7,Y$7,Actual!$N136:$AB136)*Y$13 -> 500 | Z169: =+SUMIF(Actual!$N$7:$AB$7,Z$7,Actual!$N136:$AB136)*Z$13 -> 500 | AA169: =+SUMIF(Actual!$N$7:$AB$7,AA$7,Actual!$N136:$AB136)*AA$13 -> 500 | AB169: =+SUMIF(Actual!$N$7:$AB$7,AB$7,Actual!$N136:$AB136)*AB$13 -> 500 | AC169: =+SUMIF(Actual!$N$7:$AB$7,AC$7,Actual!$N136:$AB136)*AC$13 -> 500 | AD169: =+SUMIF(Actual!$N$7:$AB$7,AD$7,Actual!$N136:$AB136)*AD$13 -> 500 | AE169: =+SUMIF(Actual!$N$7:$AB$7,AE$7,Actual!$N136:$AB136)*AE$13 -> 500 | AF169: =+SUMIF(Actual!$N$7:$AB$7,AF$7,Actual!$N136:$AB136)*AF$13 -> 500 | AG169: =+SUMIF(Actual!$N$7:$AB$7,AG$7,Actual!$N136:$AB136)*AG$13 -> 500 | AH169: =+SUMIF(Actual!$N$7:$AB$7,AH$7,Actual!$N136:$AB136)*AH$13 -> 500 | AI169: =+SUMIF(Actual!$N$7:$AB$7,AI$7,Actual!$N136:$AB136)*AI$13 -> 500 | AJ169: =+SUMIF(Actual!$N$7:$AB$7,AJ$7,Actual!$N136:$AB136)*AJ$13 -> 500 | AK169: =+SUMIF(Actual!$N$7:$AB$7,AK$7,Actual!$N136:$AB136)*AK$13 -> 500 | AL169: =+SUMIF(Actual!$N$7:$AB$7,AL$7,Actual!$N136:$AB136)*AL$13 -> 500 | AM169: =+SUMIF(Actual!$N$7:$AB$7,AM$7,Actual!$N136:$AB136)*AM$13 -> 500 | AN169: =+SUMIF(Actual!$N$7:$AB$7,AN$7,Actual!$N136:$AB136)*AN$13 -> 500 | AO169: =+SUMIF(Actual!$N$7:$AB$7,AO$7,Actual!$N136:$AB136)*AO$13 -> 500 | AP169: =+SUMIF(Actual!$N$7:$AB$7,AP$7,Actual!$N136:$AB136)*AP$13 -> 500 | AQ169: =+SUMIF(Actual!$N$7:$AB$7,AQ$7,Actual!$N136:$AB136)*AQ$13 -> 500
B170: n5 | C170: Manutenzioni straordinarie - Sicurezza | D170: €'000 | I170: 20000 | P170: =+SUMIF(Actual!$N$7:$AB$7,P$7,Actual!$N137:$AB137)*P$13 -> 0 | Q170: =+SUMIF(Actual!$N$7:$AB$7,Q$7,Actual!$N137:$AB137)*Q$13 -> 0 | R170: =+SUMIF(Actual!$N$7:$AB$7,R$7,Actual!$N137:$AB137)*R$13 -> 0 | S170: =+SUMIF(Actual!$N$7:$AB$7,S$7,Actual!$N137:$AB137)*S$13 -> 0 | T170: =+SUMIF(Actual!$N$7:$AB$7,T$7,Actual!$N137:$AB137)*T$13 -> 0 | U170: =+SUMIF(Actual!$N$7:$AB$7,U$7,Actual!$N137:$AB137)*U$13 -> 0 | V170: =+SUMIF(Actual!$N$7:$AB$7,V$7,Actual!$N137:$AB137)*V$13 -> 0 | W170: =+SUMIF(Actual!$N$7:$AB$7,W$7,Actual!$N137:$AB137)*W$13 -> 0 | X170: =+SUMIF(Actual!$N$7:$AB$7,X$7,Actual!$N137:$AB137)*X$13 -> 0 | Y170: =+SUMIF(Actual!$N$7:$AB$7,Y$7,Actual!$N137:$AB137)*Y$13 -> 0 | Z170: =+SUMIF(Actual!$N$7:$AB$7,Z$7,Actual!$N137:$AB137)*Z$13 -> 0 | AA170: =+SUMIF(Actual!$N$7:$AB$7,AA$7,Actual!$N137:$AB137)*AA$13 -> 0 | AB170: =+SUMIF(Actual!$N$7:$AB$7,AB$7,Actual!$N137:$AB137)*AB$13 -> 5000 | AC170: =+SUMIF(Actual!$N$7:$AB$7,AC$7,Actual!$N137:$AB137)*AC$13 -> 5000 | AD170: =+SUMIF(Actual!$N$7:$AB$7,AD$7,Actual!$N137:$AB137)*AD$13 -> 5000 | AE170: =+SUMIF(Actual!$N$7:$AB$7,AE$7,Actual!$N137:$AB137)*AE$13 -> 5000 | AF170: =+SUMIF(Actual!$N$7:$AB$7,AF$7,Actual!$N137:$AB137)*AF$13 -> 0 | AG170: =+SUMIF(Actual!$N$7:$AB$7,AG$7,Actual!$N137:$AB137)*AG$13 -> 0 | AH170: =+SUMIF(Actual!$N$7:$AB$7,AH$7,Actual!$N137:$AB137)*AH$13 -> 0 | AI170: =+SUMIF(Actual!$N$7:$AB$7,AI$7,Actual!$N137:$AB137)*AI$13 -> 0 | AJ170: =+SUMIF(Actual!$N$7:$AB$7,AJ$7,Actual!$N137:$AB137)*AJ$13 -> 0 | AK170: =+SUMIF(Actual!$N$7:$AB$7,AK$7,Actual!$N137:$AB137)*AK$13 -> 0 | AL170: =+SUMIF(Actual!$N$7:$AB$7,AL$7,Actual!$N137:$AB137)*AL$13 -> 0 | AM170: =+SUMIF(Actual!$N$7:$AB$7,AM$7,Actual!$N137:$AB137)*AM$13 -> 0 | AN170: =+SUMIF(Actual!$N$7:$AB$7,AN$7,Actual!$N137:$AB137)*AN$13 -> 0 | AO170: =+SUMIF(Actual!$N$7:$AB$7,AO$7,Actual!$N137:$AB137)*AO$13 -> 0 | AP170: =+SUMIF(Actual!$N$7:$AB$7,AP$7,Actual!$N137:$AB137)*AP$13 -> 0 | AQ170: =+SUMIF(Actual!$N$7:$AB$7,AQ$7,Actual!$N137:$AB137)*AQ$13 -> 0
C171: Piano di Investimenti in Immobilizzazioni Reversibili | D171: €'000 | G171: =+I171-Actual!I138 -> 0 | I171: =+SUM(N171:AQ171) -> 64826 | N171: =+SUM(N156:N167) -> 0 | O171: =+SUM(O156:O167) -> 0 | P171: =+SUM(P156:P170) -> 0 | Q171: =+SUM(Q156:Q170) -> 0 | R171: 2393 | S171: 2393 | T171: 1640 | U171: 1640 | V171: 3585 | W171: 3585 | X171: 2618 | Y171: 2618 | Z171: 980 | AA171: 980 | AB171: 7329 | AC171: 7329 | AD171: 8095.5 | AE171: 8095.5 | AF171: 1297.5 | AG171: 1297.5 | AH171: 895 | AI171: 895 | AJ171: 895 | AK171: 895 | AL171: 895 | AM171: 895 | AN171: 895 | AO171: 895 | AP171: 895 | AQ171: 895
C173: Nuove Immobilizzazioni Reversibili IN USO | D173: €'000 | G173: =+ROUND(I173-I171-((O148-N148)+(P148-O148)+(Q148-P148)),3) -> 0 | I173: =+SUM(N173:AQ173) -> 65511.32984 | N173: 0 | O173: 0 | P173: =((M$148-L$148)*M$58)+(P171*P$59) -> 0 | Q173: 0 | R173: 2970.11284 | S173: 2407.144 | T173: 1734.073 | U173: 1640 | V173: 3585 | W173: 3585 | X173: 2618 | Y173: 2618 | Z173: 980 | AA173: 980 | AB173: 7329 | AC173: 7329 | AD173: 8095.5 | AE173: 8095.5 | AF173: 1297.5 | AG173: 1297.5 | AH173: 895 | AI173: 895 | AJ173: 895 | AK173: 895 | AL173: 895 | AM173: 895 | AN173: 895 | AO173: 895 | AP173: 895 | AQ173: 895
B176: =+ROUND(MAX($B$144:B174)+1,0) -> 3 | C176: Immobilizzazioni Non Reversibili
C178: Immobilizzazioni Non reversibili ACTUAL
C179: Immobilizzazioni Materiali Nette | D179: €'000 | I179: =+SUM(N179:AQ179) -> 3566.16067 | O179: 1278.88205 | P179: =1086.76254 -> 1086.76254 | Q179: 1200.51608
C180: Immobilizzazioni Materiali Lorde | D180: €'000 | I180: =+SUM(N180:AQ180) -> 10551.51432 | O180: 3373.05 | P180: 3398.07318 | Q180: 3780.39114
C181: Fondo Ammortamento Immobilizzazioni Materiali | D181: €'000 | I181: -6985.35365 | O181: =+O179-O180 -> -2094.16795 | P181: =(+P179-P180) -> -2311.31064 | Q181: =+Q179-Q180 -> -2579.87506
C182: Immobilizzazioni Immateriali - Software | D182: €'000 | I182: 0 | O182: 0 | P182: 0 | Q182: 0
C183: Immobilizzazioni Immateriali - Altre | D183: €'000 | I183: =+SUM(N183:AQ183) -> 160.18914 | O183: 60.42231 | P183: 59.36599 | Q183: 40.40084
C184: Immobilizzazioni Finanziarie | D184: €'000 | I184: =+SUM(N184:AQ184) -> 3.174 | O184: 1.058 | P184: 1.058 | Q184: 1.058
C186: Piano di Investimenti in Immobilizzazioni Non Reversibili
C187: CAPEX1 - Mobili e Arredi | D187: €'000 | R187: 200 | S187: 200 | T187: 200 | U187: 200
C188: CAPEX2 - Auto | D188: €'000
C189: CAPEX3 - Furgoni | D189: €'000 | R189: 125 | S189: 125 | T189: 125 | U189: 125 | V189: 125 | W189: 125 | X189: 125 | Y189: 125 | Z189: 125 | AA189: 125 | AB189: 125 | AC189: 125 | AD189: 125 | AE189: 125 | AF189: 125 | AG189: 125 | AH189: 125 | AI189: 125 | AJ189: 125 | AK189: 125 | AL189: 125 | AM189: 125 | AN189: 125 | AO189: 125
C190: CAPEX4 - Auto Polizia | D190: €'000 | R190: 62.5 | S190: 62.5 | T190: 87.5 | U190: 87.5 | V190: 87.5 | W190: 87.5 | X190: 87.5 | Y190: 87.5 | Z190: 87.5 | AA190: 87.5 | AB190: 87.5 | AC190: 87.5 | AD190: 87.5 | AE190: 87.5 | AF190: 87.5 | AG190: 87.5 | AH190: 87.5 | AI190: 87.5 | AJ190: 87.5 | AK190: 87.5 | AL190: 87.5 | AM190: 87.5 | AN190: 87.5 | AO190: 87.5 | AP190: 87.5 | AQ190: 87.5
C191: Manutenzioni Straordinarie | D191: €'000
C192: TOT. CAPEX Immobilizzazioni Materiali | D192: €'000 | I192: =+SUM(N192:AQ192) -> 6025 | P192: =+SUM(P187:P191) -> 0 | Q192: =+SUM(Q187:Q191) -> 0 | R192: 387.5 | S192: 387.5 | T192: 412.5 | U192: 412.5 | V192: 212.5 | W192: 212.5 | X192: 212.5 | Y192: 212.5 | Z192: 212.5 | AA192: 212.5 | AB192: 212.5 | AC192: 212.5 | AD192: 212.5 | AE192: 212.5 | AF192: 212.5 | AG192: 212.5 | AH192: 212.5 | AI192: 212.5 | AJ192: 212.5 | AK192: 212.5 | AL192: 212.5 | AM192: 212.5 | AN192: 212.5 | AO192: 212.5 | AP192: 87.5 | AQ192: 87.5
C194: CAPEX Immobilizzazioni Immateriali | E194: Ammortamento (anni)
C195: CAPEX Software (incl. Manutenzioni) | D195: €'000 | E195: 5 | I195: =+SUM(N195:AQ195) -> 3150 | R195: 525 | S195: 525 | T195: 525 | U195: 525 | V195: 525 | W195: 525
C196: CAPEX Altre immobilizzazioni immateriali | D196: €'000 | E196: 2 | I196: =+SUM(N196:AQ196) -> 0
C198: CAPEX Immobilizzazioni Finanziarie | D198: €'000 | I198: =+SUM(N198:AQ198) -> 0 | P198: 0 | Q198: 0 | R198: 0 | S198: 0 | T198: 0 | U198: 0 | V198: 0 | W198: 0 | X198: 0 | Y198: 0 | Z198: 0 | AA198: 0 | AB198: 0 | AC198: 0 | AD198: 0 | AE198: 0 | AF198: 0 | AG198: 0 | AH198: 0 | AI198: 0 | AJ198: 0 | AK198: 0 | AL198: 0 | AM198: 0 | AN198: 0 | AO198: 0 | AP198: 0 | AQ198: 0
B201: COSTI DELLA PRODUZIONE | D201: Unit | E201: Input 1 | F201: Input 2 | G201: Check | I201: Total
C203: Acquisti di materie e beni di consumo | D203: €'000 | N203: =+INDEX(Actual!$N225:$AB225,,MATCH(Input!N$7,Actual!$N$7:$AB$7,0))*N$13 -> -162.633745 | O203: =+INDEX(Actual!$N225:$AB225,,MATCH(Input!O$7,Actual!$N$7:$AB$7,0))*O$13 -> -162.633745 | P203: =+INDEX(Actual!$N225:$AB225,,MATCH(Input!P$7,Actual!$N$7:$AB$7,0))*P$13 -> -232.595575 | Q203: =+INDEX(Actual!$N225:$AB225,,MATCH(Input!Q$7,Actual!$N$7:$AB$7,0))*Q$13 -> -232.595575 | R203: =+INDEX(Actual!$N225:$AB225,,MATCH(Input!R$7,Actual!$N$7:$AB$7,0))*R$13 -> -232.595575 | S203: =+INDEX(Actual!$N225:$AB225,,MATCH(Input!S$7,Actual!$N$7:$AB$7,0))*S$13 -> -232.595575 | T203: =+INDEX(Actual!$N225:$AB225,,MATCH(Input!T$7,Actual!$N$7:$AB$7,0))*T$13 -> -232.595575 | U203: =+INDEX(Actual!$N225:$AB225,,MATCH(Input!U$7,Actual!$N$7:$AB$7,0))*U$13 -> -232.595575 | V203: =+INDEX(Actual!$N225:$AB225,,MATCH(Input!V$7,Actual!$N$7:$AB$7,0))*V$13 -> -232.595575 | W203: =+INDEX(Actual!$N225:$AB225,,MATCH(Input!W$7,Actual!$N$7:$AB$7,0))*W$13 -> -232.595575 | X203: =+INDEX(Actual!$N225:$AB225,,MATCH(Input!X$7,Actual!$N$7:$AB$7,0))*X$13 -> -232.595575 | Y203: =+INDEX(Actual!$N225:$AB225,,MATCH(Input!Y$7,Actual!$N$7:$AB$7,0))*Y$13 -> -232.595575 | Z203: =+INDEX(Actual!$N225:$AB225,,MATCH(Input!Z$7,Actual!$N$7:$AB$7,0))*Z$13 -> -232.595575 | AA203: =+INDEX(Actual!$N225:$AB225,,MATCH(Input!AA$7,Actual!$N$7:$AB$7,0))*AA$13 -> -232.595575 | AB203: =+INDEX(Actual!$N225:$AB225,,MATCH(Input!AB$7,Actual!$N$7:$AB$7,0))*AB$13 -> -232.595575 | AC203: =+INDEX(Actual!$N225:$AB225,,MATCH(Input!AC$7,Actual!$N$7:$AB$7,0))*AC$13 -> -232.595575 | AD203: =+INDEX(Actual!$N225:$AB225,,MATCH(Input!AD$7,Actual!$N$7:$AB$7,0))*AD$13 -> -232.595575 | AE203: =+INDEX(Actual!$N225:$AB225,,MATCH(Input!AE$7,Actual!$N$7:$AB$7,0))*AE$13 -> -232.595575 | AF203: =+INDEX(Actual!$N225:$AB225,,MATCH(Input!AF$7,Actual!$N$7:$AB$7,0))*AF$13 -> -232.595575 | AG203: =+INDEX(Actual!$N225:$AB225,,MATCH(Input!AG$7,Actual!$N$7:$AB$7,0))*AG$13 -> -232.595575 | AH203: =+INDEX(Actual!$N225:$AB225,,MATCH(Input!AH$7,Actual!$N$7:$AB$7,0))*AH$13 -> -232.595575 | AI203: =+INDEX(Actual!$N225:$AB225,,MATCH(Input!AI$7,Actual!$N$7:$AB$7,0))*AI$13 -> -232.595575 | AJ203: =+INDEX(Actual!$N225:$AB225,,MATCH(Input!AJ$7,Actual!$N$7:$AB$7,0))*AJ$13 -> -232.595575 | AK203: =+INDEX(Actual!$N225:$AB225,,MATCH(Input!AK$7,Actual!$N$7:$AB$7,0))*AK$13 -> -232.595575 | AL203: =+INDEX(Actual!$N225:$AB225,,MATCH(Input!AL$7,Actual!$N$7:$AB$7,0))*AL$13 -> -232.595575 | AM203: =+INDEX(Actual!$N225:$AB225,,MATCH(Input!AM$7,Actual!$N$7:$AB$7,0))*AM$13 -> -232.595575 | AN203: =+INDEX(Actual!$N225:$AB225,,MATCH(Input!AN$7,Actual!$N$7:$AB$7,0))*AN$13 -> -232.595575 | AO203: =+INDEX(Actual!$N225:$AB225,,MATCH(Input!AO$7,Actual!$N$7:$AB$7,0))*AO$13 -> -232.595575 | AP203: =+INDEX(Actual!$N225:$AB225,,MATCH(Input!AP$7,Actual!$N$7:$AB$7,0))*AP$13 -> -232.595575 | AQ203: =+INDEX(Actual!$N225:$AB225,,MATCH(Input!AQ$7,Actual!$N$7:$AB$7,0))*AQ$13 -> -232.595575
C204: Prestazioni di servizi | D204: €'000 | N204: =+INDEX(Actual!$N226:$AB226,,MATCH(Input!N$7,Actual!$N$7:$AB$7,0))*N$13 -> -6231.72945 | O204: =+INDEX(Actual!$N226:$AB226,,MATCH(Input!O$7,Actual!$N$7:$AB$7,0))*O$13 -> -6231.72945 | P204: =+INDEX(Actual!$N226:$AB226,,MATCH(Input!P$7,Actual!$N$7:$AB$7,0))*P$13 -> -6924.22655 | Q204: =+INDEX(Actual!$N226:$AB226,,MATCH(Input!Q$7,Actual!$N$7:$AB$7,0))*Q$13 -> -6924.22655 | R204: =+INDEX(Actual!$N226:$AB226,,MATCH(Input!R$7,Actual!$N$7:$AB$7,0))*R$13 -> -6924.22655 | S204: =+INDEX(Actual!$N226:$AB226,,MATCH(Input!S$7,Actual!$N$7:$AB$7,0))*S$13 -> -6924.22655 | T204: =+INDEX(Actual!$N226:$AB226,,MATCH(Input!T$7,Actual!$N$7:$AB$7,0))*T$13 -> -6924.22655 | U204: =+INDEX(Actual!$N226:$AB226,,MATCH(Input!U$7,Actual!$N$7:$AB$7,0))*U$13 -> -6924.22655 | V204: =+INDEX(Actual!$N226:$AB226,,MATCH(Input!V$7,Actual!$N$7:$AB$7,0))*V$13 -> -6924.22655 | W204: =+INDEX(Actual!$N226:$AB226,,MATCH(Input!W$7,Actual!$N$7:$AB$7,0))*W$13 -> -6924.22655 | X204: =+INDEX(Actual!$N226:$AB226,,MATCH(Input!X$7,Actual!$N$7:$AB$7,0))*X$13 -> -6924.22655 | Y204: =+INDEX(Actual!$N226:$AB226,,MATCH(Input!Y$7,Actual!$N$7:$AB$7,0))*Y$13 -> -6924.22655 | Z204: =+INDEX(Actual!$N226:$AB226,,MATCH(Input!Z$7,Actual!$N$7:$AB$7,0))*Z$13 -> -6924.22655 | AA204: =+INDEX(Actual!$N226:$AB226,,MATCH(Input!AA$7,Actual!$N$7:$AB$7,0))*AA$13 -> -6924.22655 | AB204: =+INDEX(Actual!$N226:$AB226,,MATCH(Input!AB$7,Actual!$N$7:$AB$7,0))*AB$13 -> -6924.22655 | AC204: =+INDEX(Actual!$N226:$AB226,,MATCH(Input!AC$7,Actual!$N$7:$AB$7,0))*AC$13 -> -6924.22655 | AD204: =+INDEX(Actual!$N226:$AB226,,MATCH(Input!AD$7,Actual!$N$7:$AB$7,0))*AD$13 -> -6924.22655 | AE204: =+INDEX(Actual!$N226:$AB226,,MATCH(Input!AE$7,Actual!$N$7:$AB$7,0))*AE$13 -> -6924.22655 | AF204: =+INDEX(Actual!$N226:$AB226,,MATCH(Input!AF$7,Actual!$N$7:$AB$7,0))*AF$13 -> -6924.22655 | AG204: =+INDEX(Actual!$N226:$AB226,,MATCH(Input!AG$7,Actual!$N$7:$AB$7,0))*AG$13 -> -6924.22655 | AH204: =+INDEX(Actual!$N226:$AB226,,MATCH(Input!AH$7,Actual!$N$7:$AB$7,0))*AH$13 -> -6924.22655 | AI204: =+INDEX(Actual!$N226:$AB226,,MATCH(Input!AI$7,Actual!$N$7:$AB$7,0))*AI$13 -> -6924.22655 | AJ204: =+INDEX(Actual!$N226:$AB226,,MATCH(Input!AJ$7,Actual!$N$7:$AB$7,0))*AJ$13 -> -6924.22655 | AK204: =+INDEX(Actual!$N226:$AB226,,MATCH(Input!AK$7,Actual!$N$7:$AB$7,0))*AK$13 -> -6924.22655 | AL204: =+INDEX(Actual!$N226:$AB226,,MATCH(Input!AL$7,Actual!$N$7:$AB$7,0))*AL$13 -> -6924.22655 | AM204: =+INDEX(Actual!$N226:$AB226,,MATCH(Input!AM$7,Actual!$N$7:$AB$7,0))*AM$13 -> -6924.22655 | AN204: =+INDEX(Actual!$N226:$AB226,,MATCH(Input!AN$7,Actual!$N$7:$AB$7,0))*AN$13 -> -6924.22655 | AO204: =+INDEX(Actual!$N226:$AB226,,MATCH(Input!AO$7,Actual!$N$7:$AB$7,0))*AO$13 -> -6924.22655 | AP204: =+INDEX(Actual!$N226:$AB226,,MATCH(Input!AP$7,Actual!$N$7:$AB$7,0))*AP$13 -> -6924.22655 | AQ204: =+INDEX(Actual!$N226:$AB226,,MATCH(Input!AQ$7,Actual!$N$7:$AB$7,0))*AQ$13 -> -6924.22655
C205: Manutenzioni | D205: €'000 | N205: =+INDEX(Actual!$N227:$AB227,,MATCH(Input!N$7,Actual!$N$7:$AB$7,0))*N$13 -> -7270.37096 | O205: =+INDEX(Actual!$N227:$AB227,,MATCH(Input!O$7,Actual!$N$7:$AB$7,0))*O$13 -> -7270.37096 | P205: =+INDEX(Actual!$N227:$AB227,,MATCH(Input!P$7,Actual!$N$7:$AB$7,0))*P$13 -> -9210.39477 | Q205: =+INDEX(Actual!$N227:$AB227,,MATCH(Input!Q$7,Actual!$N$7:$AB$7,0))*Q$13 -> -9210.39477 | R205: =+INDEX(Actual!$N227:$AB227,,MATCH(Input!R$7,Actual!$N$7:$AB$7,0))*R$13 -> -9527.498065 | S205: =+INDEX(Actual!$N227:$AB227,,MATCH(Input!S$7,Actual!$N$7:$AB$7,0))*S$13 -> -9527.498065 | T205: =+INDEX(Actual!$N227:$AB227,,MATCH(Input!T$7,Actual!$N$7:$AB$7,0))*T$13 -> -7519.898065 | U205: =+INDEX(Actual!$N227:$AB227,,MATCH(Input!U$7,Actual!$N$7:$AB$7,0))*U$13 -> -7519.898065 | V205: =+INDEX(Actual!$N227:$AB227,,MATCH(Input!V$7,Actual!$N$7:$AB$7,0))*V$13 -> -7669.898065 | W205: =+INDEX(Actual!$N227:$AB227,,MATCH(Input!W$7,Actual!$N$7:$AB$7,0))*W$13 -> -7669.898065 | X205: =+INDEX(Actual!$N227:$AB227,,MATCH(Input!X$7,Actual!$N$7:$AB$7,0))*X$13 -> -7519.898065 | Y205: =+INDEX(Actual!$N227:$AB227,,MATCH(Input!Y$7,Actual!$N$7:$AB$7,0))*Y$13 -> -7519.898065 | Z205: =+INDEX(Actual!$N227:$AB227,,MATCH(Input!Z$7,Actual!$N$7:$AB$7,0))*Z$13 -> -7649.898065 | AA205: =+INDEX(Actual!$N227:$AB227,,MATCH(Input!AA$7,Actual!$N$7:$AB$7,0))*AA$13 -> -7649.898065 | AB205: =+INDEX(Actual!$N227:$AB227,,MATCH(Input!AB$7,Actual!$N$7:$AB$7,0))*AB$13 -> -7519.898065 | AC205: =+INDEX(Actual!$N227:$AB227,,MATCH(Input!AC$7,Actual!$N$7:$AB$7,0))*AC$13 -> -7519.898065 | AD205: =+INDEX(Actual!$N227:$AB227,,MATCH(Input!AD$7,Actual!$N$7:$AB$7,0))*AD$13 -> -7519.898065 | AE205: =+INDEX(Actual!$N227:$AB227,,MATCH(Input!AE$7,Actual!$N$7:$AB$7,0))*AE$13 -> -7519.898065 | AF205: =+INDEX(Actual!$N227:$AB227,,MATCH(Input!AF$7,Actual!$N$7:$AB$7,0))*AF$13 -> -7744.398065 | AG205: =+INDEX(Actual!$N227:$AB227,,MATCH(Input!AG$7,Actual!$N$7:$AB$7,0))*AG$13 -> -7744.398065 | AH205: =+INDEX(Actual!$N227:$AB227,,MATCH(Input!AH$7,Actual!$N$7:$AB$7,0))*AH$13 -> -7677.398065 | AI205: =+INDEX(Actual!$N227:$AB227,,MATCH(Input!AI$7,Actual!$N$7:$AB$7,0))*AI$13 -> -7677.398065 | AJ205: =+INDEX(Actual!$N227:$AB227,,MATCH(Input!AJ$7,Actual!$N$7:$AB$7,0))*AJ$13 -> -7677.398065 | AK205: =+INDEX(Actual!$N227:$AB227,,MATCH(Input!AK$7,Actual!$N$7:$AB$7,0))*AK$13 -> -7677.398065 | AL205: =+INDEX(Actual!$N227:$AB227,,MATCH(Input!AL$7,Actual!$N$7:$AB$7,0))*AL$13 -> -7807.398065 | AM205: =+INDEX(Actual!$N227:$AB227,,MATCH(Input!AM$7,Actual!$N$7:$AB$7,0))*AM$13 -> -7807.398065 | AN205: =+INDEX(Actual!$N227:$AB227,,MATCH(Input!AN$7,Actual!$N$7:$AB$7,0))*AN$13 -> -7677.398065 | AO205: =+INDEX(Actual!$N227:$AB227,,MATCH(Input!AO$7,Actual!$N$7:$AB$7,0))*AO$13 -> -7677.398065 | AP205: =+INDEX(Actual!$N227:$AB227,,MATCH(Input!AP$7,Actual!$N$7:$AB$7,0))*AP$13 -> -7807.398065 | AQ205: =+INDEX(Actual!$N227:$AB227,,MATCH(Input!AQ$7,Actual!$N$7:$AB$7,0))*AQ$13 -> -7807.398065
C206: Costi personale | D206: €'000 | N206: =+INDEX(Actual!$N228:$AB228,,MATCH(Input!N$7,Actual!$N$7:$AB$7,0))*N$13 -> -9622.24007 | O206: =+INDEX(Actual!$N228:$AB228,,MATCH(Input!O$7,Actual!$N$7:$AB$7,0))*O$13 -> -9622.24007 | P206: =+INDEX(Actual!$N228:$AB228,,MATCH(Input!P$7,Actual!$N$7:$AB$7,0))*P$13 -> -9270.64922 | Q206: =+INDEX(Actual!$N228:$AB228,,MATCH(Input!Q$7,Actual!$N$7:$AB$7,0))*Q$13 -> -9270.64922 | R206: =+INDEX(Actual!$N228:$AB228,,MATCH(Input!R$7,Actual!$N$7:$AB$7,0))*R$13 -> -9597.378839 | S206: =+INDEX(Actual!$N228:$AB228,,MATCH(Input!S$7,Actual!$N$7:$AB$7,0))*S$13 -> -9597.378839 | T206: =+INDEX(Actual!$N228:$AB228,,MATCH(Input!T$7,Actual!$N$7:$AB$7,0))*T$13 -> -10127.78784 | U206: =+INDEX(Actual!$N228:$AB228,,MATCH(Input!U$7,Actual!$N$7:$AB$7,0))*U$13 -> -10127.78784 | V206: =+INDEX(Actual!$N228:$AB228,,MATCH(Input!V$7,Actual!$N$7:$AB$7,0))*V$13 -> -10381.00346 | W206: =+INDEX(Actual!$N228:$AB228,,MATCH(Input!W$7,Actual!$N$7:$AB$7,0))*W$13 -> -10381.00346 | X206: =+INDEX(Actual!$N228:$AB228,,MATCH(Input!X$7,Actual!$N$7:$AB$7,0))*X$13 -> -10381.00347 | Y206: =+INDEX(Actual!$N228:$AB228,,MATCH(Input!Y$7,Actual!$N$7:$AB$7,0))*Y$13 -> -10381.00347 | Z206: =+INDEX(Actual!$N228:$AB228,,MATCH(Input!Z$7,Actual!$N$7:$AB$7,0))*Z$13 -> -10381.00347 | AA206: =+INDEX(Actual!$N228:$AB228,,MATCH(Input!AA$7,Actual!$N$7:$AB$7,0))*AA$13 -> -10381.00347 | AB206: =+INDEX(Actual!$N228:$AB228,,MATCH(Input!AB$7,Actual!$N$7:$AB$7,0))*AB$13 -> -10381.00346 | AC206: =+INDEX(Actual!$N228:$AB228,,MATCH(Input!AC$7,Actual!$N$7:$AB$7,0))*AC$13 -> -10381.00346 | AD206: =+INDEX(Actual!$N228:$AB228,,MATCH(Input!AD$7,Actual!$N$7:$AB$7,0))*AD$13 -> -10381.00346 | AE206: =+INDEX(Actual!$N228:$AB228,,MATCH(Input!AE$7,Actual!$N$7:$AB$7,0))*AE$13 -> -10381.00346 | AF206: =+INDEX(Actual!$N228:$AB228,,MATCH(Input!AF$7,Actual!$N$7:$AB$7,0))*AF$13 -> -10381.00347 | AG206: =+INDEX(Actual!$N228:$AB228,,MATCH(Input!AG$7,Actual!$N$7:$AB$7,0))*AG$13 -> -10381.00347 | AH206: =+INDEX(Actual!$N228:$AB228,,MATCH(Input!AH$7,Actual!$N$7:$AB$7,0))*AH$13 -> -10381.00347 | AI206: =+INDEX(Actual!$N228:$AB228,,MATCH(Input!AI$7,Actual!$N$7:$AB$7,0))*AI$13 -> -10381.00347 | AJ206: =+INDEX(Actual!$N228:$AB228,,MATCH(Input!AJ$7,Actual!$N$7:$AB$7,0))*AJ$13 -> -10381.00347 | AK206: =+INDEX(Actual!$N228:$AB228,,MATCH(Input!AK$7,Actual!$N$7:$AB$7,0))*AK$13 -> -10381.00347 | AL206: =+INDEX(Actual!$N228:$AB228,,MATCH(Input!AL$7,Actual!$N$7:$AB$7,0))*AL$13 -> -10381.00347 | AM206: =+INDEX(Actual!$N228:$AB228,,MATCH(Input!AM$7,Actual!$N$7:$AB$7,0))*AM$13 -> -10381.00347 | AN206: =+INDEX(Actual!$N228:$AB228,,MATCH(Input!AN$7,Actual!$N$7:$AB$7,0))*AN$13 -> -10381.00347 | AO206: =+INDEX(Actual!$N228:$AB228,,MATCH(Input!AO$7,Actual!$N$7:$AB$7,0))*AO$13 -> -10381.00347 | AP206: =+INDEX(Actual!$N228:$AB228,,MATCH(Input!AP$7,Actual!$N$7:$AB$7,0))*AP$13 -> -10381.00346 | AQ206: =+INDEX(Actual!$N228:$AB228,,MATCH(Input!AQ$7,Actual!$N$7:$AB$7,0))*AQ$13 -> -10381.00346
C207: Canone di concessione ex art. 10 L. 537/93 e art. 1, comma 1020, L. 296/2006 | D207: €'000 | N207: =+INDEX(Actual!$N230:$AB230,,MATCH(Input!N$7,Actual!$N$7:$AB$7,0))*N$13 -> -1678.904755 | O207: =+INDEX(Actual!$N230:$AB230,,MATCH(Input!O$7,Actual!$N$7:$AB$7,0))*O$13 -> -1678.904755 | P207: =+INDEX(Actual!$N230:$AB230,,MATCH(Input!P$7,Actual!$N$7:$AB$7,0))*P$13 -> -1729.813895 | Q207: =+INDEX(Actual!$N230:$AB230,,MATCH(Input!Q$7,Actual!$N$7:$AB$7,0))*Q$13 -> -1729.813895 | R207: =+INDEX(Actual!$N230:$AB230,,MATCH(Input!R$7,Actual!$N$7:$AB$7,0))*R$13 -> 0 | S207: =+INDEX(Actual!$N230:$AB230,,MATCH(Input!S$7,Actual!$N$7:$AB$7,0))*S$13 -> 0 | T207: =+INDEX(Actual!$N230:$AB230,,MATCH(Input!T$7,Actual!$N$7:$AB$7,0))*T$13 -> 0 | U207: =+INDEX(Actual!$N230:$AB230,,MATCH(Input!U$7,Actual!$N$7:$AB$7,0))*U$13 -> 0 | V207: =+INDEX(Actual!$N230:$AB230,,MATCH(Input!V$7,Actual!$N$7:$AB$7,0))*V$13 -> 0 | W207: =+INDEX(Actual!$N230:$AB230,,MATCH(Input!W$7,Actual!$N$7:$AB$7,0))*W$13 -> 0 | X207: =+INDEX(Actual!$N230:$AB230,,MATCH(Input!X$7,Actual!$N$7:$AB$7,0))*X$13 -> 0 | Y207: =+INDEX(Actual!$N230:$AB230,,MATCH(Input!Y$7,Actual!$N$7:$AB$7,0))*Y$13 -> 0 | Z207: =+INDEX(Actual!$N230:$AB230,,MATCH(Input!Z$7,Actual!$N$7:$AB$7,0))*Z$13 -> 0 | AA207: =+INDEX(Actual!$N230:$AB230,,MATCH(Input!AA$7,Actual!$N$7:$AB$7,0))*AA$13 -> 0 | AB207: =+INDEX(Actual!$N230:$AB230,,MATCH(Input!AB$7,Actual!$N$7:$AB$7,0))*AB$13 -> 0 | AC207: =+INDEX(Actual!$N230:$AB230,,MATCH(Input!AC$7,Actual!$N$7:$AB$7,0))*AC$13 -> 0 | AD207: =+INDEX(Actual!$N230:$AB230,,MATCH(Input!AD$7,Actual!$N$7:$AB$7,0))*AD$13 -> 0 | AE207: =+INDEX(Actual!$N230:$AB230,,MATCH(Input!AE$7,Actual!$N$7:$AB$7,0))*AE$13 -> 0 | AF207: =+INDEX(Actual!$N230:$AB230,,MATCH(Input!AF$7,Actual!$N$7:$AB$7,0))*AF$13 -> 0 | AG207: =+INDEX(Actual!$N230:$AB230,,MATCH(Input!AG$7,Actual!$N$7:$AB$7,0))*AG$13 -> 0 | AH207: =+INDEX(Actual!$N230:$AB230,,MATCH(Input!AH$7,Actual!$N$7:$AB$7,0))*AH$13 -> 0 | AI207: =+INDEX(Actual!$N230:$AB230,,MATCH(Input!AI$7,Actual!$N$7:$AB$7,0))*AI$13 -> 0 | AJ207: =+INDEX(Actual!$N230:$AB230,,MATCH(Input!AJ$7,Actual!$N$7:$AB$7,0))*AJ$13 -> 0 | AK207: =+INDEX(Actual!$N230:$AB230,,MATCH(Input!AK$7,Actual!$N$7:$AB$7,0))*AK$13 -> 0 | AL207: =+INDEX(Actual!$N230:$AB230,,MATCH(Input!AL$7,Actual!$N$7:$AB$7,0))*AL$13 -> 0 | AM207: =+INDEX(Actual!$N230:$AB230,,MATCH(Input!AM$7,Actual!$N$7:$AB$7,0))*AM$13 -> 0 | AN207: =+INDEX(Actual!$N230:$AB230,,MATCH(Input!AN$7,Actual!$N$7:$AB$7,0))*AN$13 -> 0 | AO207: =+INDEX(Actual!$N230:$AB230,,MATCH(Input!AO$7,Actual!$N$7:$AB$7,0))*AO$13 -> 0 | AP207: =+INDEX(Actual!$N230:$AB230,,MATCH(Input!AP$7,Actual!$N$7:$AB$7,0))*AP$13 -> 0 | AQ207: =+INDEX(Actual!$N230:$AB230,,MATCH(Input!AQ$7,Actual!$N$7:$AB$7,0))*AQ$13 -> 0
C208: Canone di sub-concessione ex art. 13 | D208: €'000 | N208: =+INDEX(Actual!$N231:$AB231,,MATCH(Input!N$7,Actual!$N$7:$AB$7,0))*N$13 -> -43.791665 | O208: =+INDEX(Actual!$N231:$AB231,,MATCH(Input!O$7,Actual!$N$7:$AB$7,0))*O$13 -> -43.791665 | P208: =+INDEX(Actual!$N231:$AB231,,MATCH(Input!P$7,Actual!$N$7:$AB$7,0))*P$13 -> -43.0008 | Q208: =+INDEX(Actual!$N231:$AB231,,MATCH(Input!Q$7,Actual!$N$7:$AB$7,0))*Q$13 -> -43.0008 | R208: =+INDEX(Actual!$N231:$AB231,,MATCH(Input!R$7,Actual!$N$7:$AB$7,0))*R$13 -> 0 | S208: =+INDEX(Actual!$N231:$AB231,,MATCH(Input!S$7,Actual!$N$7:$AB$7,0))*S$13 -> 0 | T208: =+INDEX(Actual!$N231:$AB231,,MATCH(Input!T$7,Actual!$N$7:$AB$7,0))*T$13 -> 0 | U208: =+INDEX(Actual!$N231:$AB231,,MATCH(Input!U$7,Actual!$N$7:$AB$7,0))*U$13 -> 0 | V208: =+INDEX(Actual!$N231:$AB231,,MATCH(Input!V$7,Actual!$N$7:$AB$7,0))*V$13 -> 0 | W208: =+INDEX(Actual!$N231:$AB231,,MATCH(Input!W$7,Actual!$N$7:$AB$7,0))*W$13 -> 0 | X208: =+INDEX(Actual!$N231:$AB231,,MATCH(Input!X$7,Actual!$N$7:$AB$7,0))*X$13 -> 0 | Y208: =+INDEX(Actual!$N231:$AB231,,MATCH(Input!Y$7,Actual!$N$7:$AB$7,0))*Y$13 -> 0 | Z208: =+INDEX(Actual!$N231:$AB231,,MATCH(Input!Z$7,Actual!$N$7:$AB$7,0))*Z$13 -> 0 | AA208: =+INDEX(Actual!$N231:$AB231,,MATCH(Input!AA$7,Actual!$N$7:$AB$7,0))*AA$13 -> 0 | AB208: =+INDEX(Actual!$N231:$AB231,,MATCH(Input!AB$7,Actual!$N$7:$AB$7,0))*AB$13 -> 0 | AC208: =+INDEX(Actual!$N231:$AB231,,MATCH(Input!AC$7,Actual!$N$7:$AB$7,0))*AC$13 -> 0 | AD208: =+INDEX(Actual!$N231:$AB231,,MATCH(Input!AD$7,Actual!$N$7:$AB$7,0))*AD$13 -> 0 | AE208: =+INDEX(Actual!$N231:$AB231,,MATCH(Input!AE$7,Actual!$N$7:$AB$7,0))*AE$13 -> 0 | AF208: =+INDEX(Actual!$N231:$AB231,,MATCH(Input!AF$7,Actual!$N$7:$AB$7,0))*AF$13 -> 0 | AG208: =+INDEX(Actual!$N231:$AB231,,MATCH(Input!AG$7,Actual!$N$7:$AB$7,0))*AG$13 -> 0 | AH208: =+INDEX(Actual!$N231:$AB231,,MATCH(Input!AH$7,Actual!$N$7:$AB$7,0))*AH$13 -> 0 | AI208: =+INDEX(Actual!$N231:$AB231,,MATCH(Input!AI$7,Actual!$N$7:$AB$7,0))*AI$13 -> 0 | AJ208: =+INDEX(Actual!$N231:$AB231,,MATCH(Input!AJ$7,Actual!$N$7:$AB$7,0))*AJ$13 -> 0 | AK208: =+INDEX(Actual!$N231:$AB231,,MATCH(Input!AK$7,Actual!$N$7:$AB$7,0))*AK$13 -> 0 | AL208: =+INDEX(Actual!$N231:$AB231,,MATCH(Input!AL$7,Actual!$N$7:$AB$7,0))*AL$13 -> 0 | AM208: =+INDEX(Actual!$N231:$AB231,,MATCH(Input!AM$7,Actual!$N$7:$AB$7,0))*AM$13 -> 0 | AN208: =+INDEX(Actual!$N231:$AB231,,MATCH(Input!AN$7,Actual!$N$7:$AB$7,0))*AN$13 -> 0 | AO208: =+INDEX(Actual!$N231:$AB231,,MATCH(Input!AO$7,Actual!$N$7:$AB$7,0))*AO$13 -> 0 | AP208: =+INDEX(Actual!$N231:$AB231,,MATCH(Input!AP$7,Actual!$N$7:$AB$7,0))*AP$13 -> 0 | AQ208: =+INDEX(Actual!$N231:$AB231,,MATCH(Input!AQ$7,Actual!$N$7:$AB$7,0))*AQ$13 -> 0
C209: Altri Costi | D209: €'000 | N209: =+INDEX(Actual!$N232:$AB232,,MATCH(Input!N$7,Actual!$N$7:$AB$7,0))*N$13 -> 0 | O209: =+INDEX(Actual!$N232:$AB232,,MATCH(Input!O$7,Actual!$N$7:$AB$7,0))*O$13 -> 0 | P209: =+INDEX(Actual!$N232:$AB232,,MATCH(Input!P$7,Actual!$N$7:$AB$7,0))*P$13 -> 0 | Q209: =+INDEX(Actual!$N232:$AB232,,MATCH(Input!Q$7,Actual!$N$7:$AB$7,0))*Q$13 -> 0 | R209: =+INDEX(Actual!$N232:$AB232,,MATCH(Input!R$7,Actual!$N$7:$AB$7,0))*R$13 -> 0 | S209: =+INDEX(Actual!$N232:$AB232,,MATCH(Input!S$7,Actual!$N$7:$AB$7,0))*S$13 -> 0 | T209: =+INDEX(Actual!$N232:$AB232,,MATCH(Input!T$7,Actual!$N$7:$AB$7,0))*T$13 -> 0 | U209: =+INDEX(Actual!$N232:$AB232,,MATCH(Input!U$7,Actual!$N$7:$AB$7,0))*U$13 -> 0 | V209: =+INDEX(Actual!$N232:$AB232,,MATCH(Input!V$7,Actual!$N$7:$AB$7,0))*V$13 -> 0 | W209: =+INDEX(Actual!$N232:$AB232,,MATCH(Input!W$7,Actual!$N$7:$AB$7,0))*W$13 -> 0 | X209: =+INDEX(Actual!$N232:$AB232,,MATCH(Input!X$7,Actual!$N$7:$AB$7,0))*X$13 -> 0 | Y209: =+INDEX(Actual!$N232:$AB232,,MATCH(Input!Y$7,Actual!$N$7:$AB$7,0))*Y$13 -> 0 | Z209: =+INDEX(Actual!$N232:$AB232,,MATCH(Input!Z$7,Actual!$N$7:$AB$7,0))*Z$13 -> 0 | AA209: =+INDEX(Actual!$N232:$AB232,,MATCH(Input!AA$7,Actual!$N$7:$AB$7,0))*AA$13 -> 0 | AB209: =+INDEX(Actual!$N232:$AB232,,MATCH(Input!AB$7,Actual!$N$7:$AB$7,0))*AB$13 -> 0 | AC209: =+INDEX(Actual!$N232:$AB232,,MATCH(Input!AC$7,Actual!$N$7:$AB$7,0))*AC$13 -> 0 | AD209: =+INDEX(Actual!$N232:$AB232,,MATCH(Input!AD$7,Actual!$N$7:$AB$7,0))*AD$13 -> 0 | AE209: =+INDEX(Actual!$N232:$AB232,,MATCH(Input!AE$7,Actual!$N$7:$AB$7,0))*AE$13 -> 0 | AF209: =+INDEX(Actual!$N232:$AB232,,MATCH(Input!AF$7,Actual!$N$7:$AB$7,0))*AF$13 -> 0 | AG209: =+INDEX(Actual!$N232:$AB232,,MATCH(Input!AG$7,Actual!$N$7:$AB$7,0))*AG$13 -> 0 | AH209: =+INDEX(Actual!$N232:$AB232,,MATCH(Input!AH$7,Actual!$N$7:$AB$7,0))*AH$13 -> 0 | AI209: =+INDEX(Actual!$N232:$AB232,,MATCH(Input!AI$7,Actual!$N$7:$AB$7,0))*AI$13 -> 0 | AJ209: =+INDEX(Actual!$N232:$AB232,,MATCH(Input!AJ$7,Actual!$N$7:$AB$7,0))*AJ$13 -> 0 | AK209: =+INDEX(Actual!$N232:$AB232,,MATCH(Input!AK$7,Actual!$N$7:$AB$7,0))*AK$13 -> 0 | AL209: =+INDEX(Actual!$N232:$AB232,,MATCH(Input!AL$7,Actual!$N$7:$AB$7,0))*AL$13 -> 0 | AM209: =+INDEX(Actual!$N232:$AB232,,MATCH(Input!AM$7,Actual!$N$7:$AB$7,0))*AM$13 -> 0 | AN209: =+INDEX(Actual!$N232:$AB232,,MATCH(Input!AN$7,Actual!$N$7:$AB$7,0))*AN$13 -> 0 | AO209: =+INDEX(Actual!$N232:$AB232,,MATCH(Input!AO$7,Actual!$N$7:$AB$7,0))*AO$13 -> 0 | AP209: =+INDEX(Actual!$N232:$AB232,,MATCH(Input!AP$7,Actual!$N$7:$AB$7,0))*AP$13 -> 0 | AQ209: =+INDEX(Actual!$N232:$AB232,,MATCH(Input!AQ$7,Actual!$N$7:$AB$7,0))*AQ$13 -> 0
C210: Accantonamento al fondo per rinnovi | D210: €'000 | N210: =+INDEX(Actual!$N233:$AB233,,MATCH(Input!N$7,Actual!$N$7:$AB$7,0))*N$13 -> -6523.42861 | O210: =+INDEX(Actual!$N233:$AB233,,MATCH(Input!O$7,Actual!$N$7:$AB$7,0))*O$13 -> -6523.42861 | P210: =+INDEX(Actual!$N233:$AB233,,MATCH(Input!P$7,Actual!$N$7:$AB$7,0))*P$13 -> -6523.584 | Q210: =+INDEX(Actual!$N233:$AB233,,MATCH(Input!Q$7,Actual!$N$7:$AB$7,0))*Q$13 -> -6523.584 | R210: =+INDEX(Actual!$N233:$AB233,,MATCH(Input!R$7,Actual!$N$7:$AB$7,0))*R$13 -> 0 | S210: =+INDEX(Actual!$N233:$AB233,,MATCH(Input!S$7,Actual!$N$7:$AB$7,0))*S$13 -> 0 | T210: =+INDEX(Actual!$N233:$AB233,,MATCH(Input!T$7,Actual!$N$7:$AB$7,0))*T$13 -> 0 | U210: =+INDEX(Actual!$N233:$AB233,,MATCH(Input!U$7,Actual!$N$7:$AB$7,0))*U$13 -> 0 | V210: =+INDEX(Actual!$N233:$AB233,,MATCH(Input!V$7,Actual!$N$7:$AB$7,0))*V$13 -> 0 | W210: =+INDEX(Actual!$N233:$AB233,,MATCH(Input!W$7,Actual!$N$7:$AB$7,0))*W$13 -> 0 | X210: =+INDEX(Actual!$N233:$AB233,,MATCH(Input!X$7,Actual!$N$7:$AB$7,0))*X$13 -> 0 | Y210: =+INDEX(Actual!$N233:$AB233,,MATCH(Input!Y$7,Actual!$N$7:$AB$7,0))*Y$13 -> 0 | Z210: =+INDEX(Actual!$N233:$AB233,,MATCH(Input!Z$7,Actual!$N$7:$AB$7,0))*Z$13 -> 0 | AA210: =+INDEX(Actual!$N233:$AB233,,MATCH(Input!AA$7,Actual!$N$7:$AB$7,0))*AA$13 -> 0 | AB210: =+INDEX(Actual!$N233:$AB233,,MATCH(Input!AB$7,Actual!$N$7:$AB$7,0))*AB$13 -> 0 | AC210: =+INDEX(Actual!$N233:$AB233,,MATCH(Input!AC$7,Actual!$N$7:$AB$7,0))*AC$13 -> 0 | AD210: =+INDEX(Actual!$N233:$AB233,,MATCH(Input!AD$7,Actual!$N$7:$AB$7,0))*AD$13 -> 0 | AE210: =+INDEX(Actual!$N233:$AB233,,MATCH(Input!AE$7,Actual!$N$7:$AB$7,0))*AE$13 -> 0 | AF210: =+INDEX(Actual!$N233:$AB233,,MATCH(Input!AF$7,Actual!$N$7:$AB$7,0))*AF$13 -> 0 | AG210: =+INDEX(Actual!$N233:$AB233,,MATCH(Input!AG$7,Actual!$N$7:$AB$7,0))*AG$13 -> 0 | AH210: =+INDEX(Actual!$N233:$AB233,,MATCH(Input!AH$7,Actual!$N$7:$AB$7,0))*AH$13 -> 0 | AI210: =+INDEX(Actual!$N233:$AB233,,MATCH(Input!AI$7,Actual!$N$7:$AB$7,0))*AI$13 -> 0 | AJ210: =+INDEX(Actual!$N233:$AB233,,MATCH(Input!AJ$7,Actual!$N$7:$AB$7,0))*AJ$13 -> 0 | AK210: =+INDEX(Actual!$N233:$AB233,,MATCH(Input!AK$7,Actual!$N$7:$AB$7,0))*AK$13 -> 0 | AL210: =+INDEX(Actual!$N233:$AB233,,MATCH(Input!AL$7,Actual!$N$7:$AB$7,0))*AL$13 -> 0 | AM210: =+INDEX(Actual!$N233:$AB233,,MATCH(Input!AM$7,Actual!$N$7:$AB$7,0))*AM$13 -> 0 | AN210: =+INDEX(Actual!$N233:$AB233,,MATCH(Input!AN$7,Actual!$N$7:$AB$7,0))*AN$13 -> 0 | AO210: =+INDEX(Actual!$N233:$AB233,,MATCH(Input!AO$7,Actual!$N$7:$AB$7,0))*AO$13 -> 0 | AP210: =+INDEX(Actual!$N233:$AB233,,MATCH(Input!AP$7,Actual!$N$7:$AB$7,0))*AP$13 -> 0 | AQ210: =+INDEX(Actual!$N233:$AB233,,MATCH(Input!AQ$7,Actual!$N$7:$AB$7,0))*AQ$13 -> 0
C211: Utilizzo fondo per rinnovi | D211: €'000 | N211: =+INDEX(Actual!$N234:$AB234,,MATCH(Input!N$7,Actual!$N$7:$AB$7,0))*N$13 -> 6934.47913 | O211: =+INDEX(Actual!$N234:$AB234,,MATCH(Input!O$7,Actual!$N$7:$AB$7,0))*O$13 -> 6934.47913 | P211: =+INDEX(Actual!$N234:$AB234,,MATCH(Input!P$7,Actual!$N$7:$AB$7,0))*P$13 -> 8877.382035 | Q211: =+INDEX(Actual!$N234:$AB234,,MATCH(Input!Q$7,Actual!$N$7:$AB$7,0))*Q$13 -> 8877.382035 | R211: =+INDEX(Actual!$N234:$AB234,,MATCH(Input!R$7,Actual!$N$7:$AB$7,0))*R$13 -> 0 | S211: =+INDEX(Actual!$N234:$AB234,,MATCH(Input!S$7,Actual!$N$7:$AB$7,0))*S$13 -> 0 | T211: =+INDEX(Actual!$N234:$AB234,,MATCH(Input!T$7,Actual!$N$7:$AB$7,0))*T$13 -> 0 | U211: =+INDEX(Actual!$N234:$AB234,,MATCH(Input!U$7,Actual!$N$7:$AB$7,0))*U$13 -> 0 | V211: =+INDEX(Actual!$N234:$AB234,,MATCH(Input!V$7,Actual!$N$7:$AB$7,0))*V$13 -> 0 | W211: =+INDEX(Actual!$N234:$AB234,,MATCH(Input!W$7,Actual!$N$7:$AB$7,0))*W$13 -> 0 | X211: =+INDEX(Actual!$N234:$AB234,,MATCH(Input!X$7,Actual!$N$7:$AB$7,0))*X$13 -> 0 | Y211: =+INDEX(Actual!$N234:$AB234,,MATCH(Input!Y$7,Actual!$N$7:$AB$7,0))*Y$13 -> 0 | Z211: =+INDEX(Actual!$N234:$AB234,,MATCH(Input!Z$7,Actual!$N$7:$AB$7,0))*Z$13 -> 0 | AA211: =+INDEX(Actual!$N234:$AB234,,MATCH(Input!AA$7,Actual!$N$7:$AB$7,0))*AA$13 -> 0 | AB211: =+INDEX(Actual!$N234:$AB234,,MATCH(Input!AB$7,Actual!$N$7:$AB$7,0))*AB$13 -> 0 | AC211: =+INDEX(Actual!$N234:$AB234,,MATCH(Input!AC$7,Actual!$N$7:$AB$7,0))*AC$13 -> 0 | AD211: =+INDEX(Actual!$N234:$AB234,,MATCH(Input!AD$7,Actual!$N$7:$AB$7,0))*AD$13 -> 0 | AE211: =+INDEX(Actual!$N234:$AB234,,MATCH(Input!AE$7,Actual!$N$7:$AB$7,0))*AE$13 -> 0 | AF211: =+INDEX(Actual!$N234:$AB234,,MATCH(Input!AF$7,Actual!$N$7:$AB$7,0))*AF$13 -> 0 | AG211: =+INDEX(Actual!$N234:$AB234,,MATCH(Input!AG$7,Actual!$N$7:$AB$7,0))*AG$13 -> 0 | AH211: =+INDEX(Actual!$N234:$AB234,,MATCH(Input!AH$7,Actual!$N$7:$AB$7,0))*AH$13 -> 0 | AI211: =+INDEX(Actual!$N234:$AB234,,MATCH(Input!AI$7,Actual!$N$7:$AB$7,0))*AI$13 -> 0 | AJ211: =+INDEX(Actual!$N234:$AB234,,MATCH(Input!AJ$7,Actual!$N$7:$AB$7,0))*AJ$13 -> 0 | AK211: =+INDEX(Actual!$N234:$AB234,,MATCH(Input!AK$7,Actual!$N$7:$AB$7,0))*AK$13 -> 0 | AL211: =+INDEX(Actual!$N234:$AB234,,MATCH(Input!AL$7,Actual!$N$7:$AB$7,0))*AL$13 -> 0 | AM211: =+INDEX(Actual!$N234:$AB234,,MATCH(Input!AM$7,Actual!$N$7:$AB$7,0))*AM$13 -> 0 | AN211: =+INDEX(Actual!$N234:$AB234,,MATCH(Input!AN$7,Actual!$N$7:$AB$7,0))*AN$13 -> 0 | AO211: =+INDEX(Actual!$N234:$AB234,,MATCH(Input!AO$7,Actual!$N$7:$AB$7,0))*AO$13 -> 0 | AP211: =+INDEX(Actual!$N234:$AB234,,MATCH(Input!AP$7,Actual!$N$7:$AB$7,0))*AP$13 -> 0 | AQ211: =+INDEX(Actual!$N234:$AB234,,MATCH(Input!AQ$7,Actual!$N$7:$AB$7,0))*AQ$13 -> 0
G212: =+ROUND(SUM(N203:AQ211)-SUM(Actual!N225:AB234)+SUM(Actual!N229:AB229),3) -> 0
C214: Canoni di concessione
C215: Canone di concessione | D215: €'000 | E215: 0.024 | F215: % dei ricavi
C216: Canone di sub-concessione | D216: €'000 | E216: 0.02 | F216: % di sub-concessione
C219: Ammortamenti e svalutazioni
C221: Immobilizzazioni Reversibili
C222: Ammortamento delle immobilizzazioni reversibili | D222: €'000 | N222: =+INDEX(Actual!$N242:$AB242,,MATCH(Input!N$7,Actual!$N$7:$AB$7,0))*N$13 -> -22390.4575 | O222: =+INDEX(Actual!$N242:$AB242,,MATCH(Input!O$7,Actual!$N$7:$AB$7,0))*O$13 -> -22390.4575 | P222: =-(SUM(P223:P224)+O222)*P11-SUM(P223:P224)*NOT(P11) -> -22399.701 | Q222: -22593.45127 | R222: 0 | S222: 0 | T222: 0 | U222: 0 | V222: 0 | W222: 0 | X222: 0 | Y222: 0 | Z222: 0 | AA222: 0 | AB222: 0 | AC222: 0 | AD222: 0 | AE222: 0 | AF222: 0 | AG222: 0 | AH222: 0 | AI222: 0 | AJ222: 0 | AK222: 0 | AL222: 0 | AM222: 0 | AN222: 0 | AO222: 0 | AP222: 0 | AQ222: 0
C223: Ammortamento immobilizzazioni reversibili di periodo | D223: €'000 | P223: 22399.701 | Q223: 44993.15227
C224: Decremento amm. immobilizzazioni reversibili per vendite | D224: €'000
C226: Immobilizzazioni Non Reversibili
C227: Ammortamento delle immobilizzazioni immateriali - software | D227: €'000 | N227: =+INDEX(Actual!$N245:$AB245,,MATCH(Input!N$7,Actual!$N$7:$AB$7,0))*N$13 -> -46.4705 | O227: =+INDEX(Actual!$N245:$AB245,,MATCH(Input!O$7,Actual!$N$7:$AB$7,0))*O$13 -> -46.4705 | P227: =-(SUM(P234:P235)+O227)*P11-SUM(P234:P235)*NOT(P11) -> -39.929 | Q227: -60.89411 | R227: 0 | S227: 0 | T227: 0 | U227: 0 | V227: 0 | W227: 0 | X227: 0 | Y227: 0 | Z227: 0 | AA227: 0 | AB227: 0 | AC227: 0 | AD227: 0 | AE227: 0 | AF227: 0 | AG227: 0 | AH227: 0 | AI227: 0 | AJ227: 0 | AK227: 0 | AL227: 0 | AM227: 0 | AN227: 0 | AO227: 0 | AP227: 0 | AQ227: 0
C228: Ammortamento delle immobilizzazioni materiali | D228: €'000 | N228: =+INDEX(Actual!$N246:$AB246,,MATCH(Input!N$7,Actual!$N$7:$AB$7,0))*N$13 -> -187.61019 | O228: =+INDEX(Actual!$N246:$AB246,,MATCH(Input!O$7,Actual!$N$7:$AB$7,0))*O$13 -> -187.61019 | P228: =-(SUM(P231:P232)+O228)*P11-SUM(P231:P232)*NOT(P11) -> -216.272 | Q228: -270.36937 | R228: 0 | S228: 0 | T228: 0 | U228: 0 | V228: 0 | W228: 0 | X228: 0 | Y228: 0 | Z228: 0 | AA228: 0 | AB228: 0 | AC228: 0 | AD228: 0 | AE228: 0 | AF228: 0 | AG228: 0 | AH228: 0 | AI228: 0 | AJ228: 0 | AK228: 0 | AL228: 0 | AM228: 0 | AN228: 0 | AO228: 0 | AP228: 0 | AQ228: 0
C229: Svalutazione dei crediiti compresi nell'attivo circolante e delle disp. Liquide | D229: €'000 | N229: =+INDEX(Actual!$N247:$AB247,,MATCH(Input!N$7,Actual!$N$7:$AB$7,0))*N$13 -> -119.69524 | O229: =+INDEX(Actual!$N247:$AB247,,MATCH(Input!O$7,Actual!$N$7:$AB$7,0))*O$13 -> -119.69524 | P229: =+INDEX(Actual!$N247:$AB247,,MATCH(Input!P$7,Actual!$N$7:$AB$7,0))*P$13 -> -1.75 | Q229: =+INDEX(Actual!$N247:$AB247,,MATCH(Input!Q$7,Actual!$N$7:$AB$7,0))*Q$13 -> -1.75 | R229: =+INDEX(Actual!$N247:$AB247,,MATCH(Input!R$7,Actual!$N$7:$AB$7,0))*R$13 -> 0 | S229: =+INDEX(Actual!$N247:$AB247,,MATCH(Input!S$7,Actual!$N$7:$AB$7,0))*S$13 -> 0 | T229: =+INDEX(Actual!$N247:$AB247,,MATCH(Input!T$7,Actual!$N$7:$AB$7,0))*T$13 -> 0 | U229: =+INDEX(Actual!$N247:$AB247,,MATCH(Input!U$7,Actual!$N$7:$AB$7,0))*U$13 -> 0 | V229: =+INDEX(Actual!$N247:$AB247,,MATCH(Input!V$7,Actual!$N$7:$AB$7,0))*V$13 -> 0 | W229: =+INDEX(Actual!$N247:$AB247,,MATCH(Input!W$7,Actual!$N$7:$AB$7,0))*W$13 -> 0 | X229: =+INDEX(Actual!$N247:$AB247,,MATCH(Input!X$7,Actual!$N$7:$AB$7,0))*X$13 -> 0 | Y229: =+INDEX(Actual!$N247:$AB247,,MATCH(Input!Y$7,Actual!$N$7:$AB$7,0))*Y$13 -> 0 | Z229: =+INDEX(Actual!$N247:$AB247,,MATCH(Input!Z$7,Actual!$N$7:$AB$7,0))*Z$13 -> 0 | AA229: =+INDEX(Actual!$N247:$AB247,,MATCH(Input!AA$7,Actual!$N$7:$AB$7,0))*AA$13 -> 0 | AB229: =+INDEX(Actual!$N247:$AB247,,MATCH(Input!AB$7,Actual!$N$7:$AB$7,0))*AB$13 -> 0 | AC229: =+INDEX(Actual!$N247:$AB247,,MATCH(Input!AC$7,Actual!$N$7:$AB$7,0))*AC$13 -> 0 | AD229: =+INDEX(Actual!$N247:$AB247,,MATCH(Input!AD$7,Actual!$N$7:$AB$7,0))*AD$13 -> 0 | AE229: =+INDEX(Actual!$N247:$AB247,,MATCH(Input!AE$7,Actual!$N$7:$AB$7,0))*AE$13 -> 0 | AF229: =+INDEX(Actual!$N247:$AB247,,MATCH(Input!AF$7,Actual!$N$7:$AB$7,0))*AF$13 -> 0 | AG229: =+INDEX(Actual!$N247:$AB247,,MATCH(Input!AG$7,Actual!$N$7:$AB$7,0))*AG$13 -> 0 | AH229: =+INDEX(Actual!$N247:$AB247,,MATCH(Input!AH$7,Actual!$N$7:$AB$7,0))*AH$13 -> 0 | AI229: =+INDEX(Actual!$N247:$AB247,,MATCH(Input!AI$7,Actual!$N$7:$AB$7,0))*AI$13 -> 0 | AJ229: =+INDEX(Actual!$N247:$AB247,,MATCH(Input!AJ$7,Actual!$N$7:$AB$7,0))*AJ$13 -> 0 | AK229: =+INDEX(Actual!$N247:$AB247,,MATCH(Input!AK$7,Actual!$N$7:$AB$7,0))*AK$13 -> 0 | AL229: =+INDEX(Actual!$N247:$AB247,,MATCH(Input!AL$7,Actual!$N$7:$AB$7,0))*AL$13 -> 0 | AM229: =+INDEX(Actual!$N247:$AB247,,MATCH(Input!AM$7,Actual!$N$7:$AB$7,0))*AM$13 -> 0 | AN229: =+INDEX(Actual!$N247:$AB247,,MATCH(Input!AN$7,Actual!$N$7:$AB$7,0))*AN$13 -> 0 | AO229: =+INDEX(Actual!$N247:$AB247,,MATCH(Input!AO$7,Actual!$N$7:$AB$7,0))*AO$13 -> 0 | AP229: =+INDEX(Actual!$N247:$AB247,,MATCH(Input!AP$7,Actual!$N$7:$AB$7,0))*AP$13 -> 0 | AQ229: =+INDEX(Actual!$N247:$AB247,,MATCH(Input!AQ$7,Actual!$N$7:$AB$7,0))*AQ$13 -> 0
C231: Ammortamento immobilizzazioni materiali di periodo | D231: €'000 | P231: =218.077 -> 218.077 | Q231: =485706.72/1000 -> 485.70672
C232: Decremento amm. immobilizzazioni materiali per vendite | D232: €'000 | P232: -1.805 | Q232: 0.93465
C234: Ammortamento immobilizzazioni immateriali di periodo | D234: €'000 | P234: =39.929 -> 39.929 | Q234: 108.217
C235: Decremento amm. immobilizzazioni immateriali per vendite | D235: €'000 | Q235: -7.39389
B237: NET WORKING CAPITAL
B239: =+ROUND(MAX($B238:B$238)+1,0) -> 1 | C239: CREDITI COMMERCIALI
C241: Aliquota IVA
C242: IVA - Ricavi | D242: % | N242: 0.22 | O242: 0.22 | P242: 0.22 | Q242: 0.22 | R242: 0.22 | S242: 0.22 | T242: 0.22 | U242: 0.22 | V242: 0.22 | W242: 0.22 | X242: 0.22 | Y242: 0.22 | Z242: 0.22 | AA242: 0.22 | AB242: 0.22 | AC242: 0.22 | AD242: 0.22 | AE242: 0.22 | AF242: 0.22 | AG242: 0.22 | AH242: 0.22 | AI242: 0.22 | AJ242: 0.22 | AK242: 0.22 | AL242: 0.22 | AM242: 0.22 | AN242: 0.22 | AO242: 0.22 | AP242: 0.22 | AQ242: 0.22
C245: TERMINI DI PAGAMENTO - DSO
C246: DSO - Ricavi da pedaggio | D246: giorni | N246: 3 | O246: 3 | P246: 3 | Q246: 3 | R246: 3 | S246: 3 | T246: 3 | U246: 3 | V246: 3 | W246: 3 | X246: 3 | Y246: 3 | Z246: 3 | AA246: 3 | AB246: 3 | AC246: 3 | AD246: 3 | AE246: 3 | AF246: 3 | AG246: 3 | AH246: 3 | AI246: 3 | AJ246: 3 | AK246: 3 | AL246: 3 | AM246: 3 | AN246: 3 | AO246: 3 | AP246: 3 | AQ246: 3
C247: DSO - Ricavi Subconcessioni e attività collaterali | D247: giorni | N247: 60 | O247: 60 | P247: 60 | Q247: 60 | R247: 60 | S247: 60 | T247: 60 | U247: 60 | V247: 60 | W247: 60 | X247: 60 | Y247: 60 | Z247: 60 | AA247: 60 | AB247: 60 | AC247: 60 | AD247: 60 | AE247: 60 | AF247: 60 | AG247: 60 | AH247: 60 | AI247: 60 | AJ247: 60 | AK247: 60 | AL247: 60 | AM247: 60 | AN247: 60 | AO247: 60 | AP247: 60 | AQ247: 60
C248: DSO - Altri Ricavi | D248: giorni | N248: 60 | O248: 60 | P248: 60 | Q248: 60 | R248: 60 | S248: 60 | T248: 60 | U248: 60 | V248: 60 | W248: 60 | X248: 60 | Y248: 60 | Z248: 60 | AA248: 60 | AB248: 60 | AC248: 60 | AD248: 60 | AE248: 60 | AF248: 60 | AG248: 60 | AH248: 60 | AI248: 60 | AJ248: 60 | AK248: 60 | AL248: 60 | AM248: 60 | AN248: 60 | AO248: 60 | AP248: 60 | AQ248: 60
B250: =+ROUND(MAX($B$238:B249)+1,0) -> 2 | C250: DEBITI COMMERCIALI
C252: Aliquota IVA
C253: Acquisti di materie e beni di consumo | D253: % | N253: 0.22 | O253: 0.22 | P253: 0.22 | Q253: 0.22 | R253: 0.22 | S253: 0.22 | T253: 0.22 | U253: 0.22 | V253: 0.22 | W253: 0.22 | X253: 0.22 | Y253: 0.22 | Z253: 0.22 | AA253: 0.22 | AB253: 0.22 | AC253: 0.22 | AD253: 0.22 | AE253: 0.22 | AF253: 0.22 | AG253: 0.22 | AH253: 0.22 | AI253: 0.22 | AJ253: 0.22 | AK253: 0.22 | AL253: 0.22 | AM253: 0.22 | AN253: 0.22 | AO253: 0.22 | AP253: 0.22 | AQ253: 0.22
C254: Prestazioni di servizi | D254: % | N254: 0.22 | O254: 0.22 | P254: 0.22 | Q254: 0.22 | R254: 0.22 | S254: 0.22 | T254: 0.22 | U254: 0.22 | V254: 0.22 | W254: 0.22 | X254: 0.22 | Y254: 0.22 | Z254: 0.22 | AA254: 0.22 | AB254: 0.22 | AC254: 0.22 | AD254: 0.22 | AE254: 0.22 | AF254: 0.22 | AG254: 0.22 | AH254: 0.22 | AI254: 0.22 | AJ254: 0.22 | AK254: 0.22 | AL254: 0.22 | AM254: 0.22 | AN254: 0.22 | AO254: 0.22 | AP254: 0.22 | AQ254: 0.22
C255: Manutenzioni | D255: % | N255: 0.22 | O255: 0.22 | P255: 0.22 | Q255: 0.22 | R255: 0.22 | S255: 0.22 | T255: 0.22 | U255: 0.22 | V255: 0.22 | W255: 0.22 | X255: 0.22 | Y255: 0.22 | Z255: 0.22 | AA255: 0.22 | AB255: 0.22 | AC255: 0.22 | AD255: 0.22 | AE255: 0.22 | AF255: 0.22 | AG255: 0.22 | AH255: 0.22 | AI255: 0.22 | AJ255: 0.22 | AK255: 0.22 | AL255: 0.22 | AM255: 0.22 | AN255: 0.22 | AO255: 0.22 | AP255: 0.22 | AQ255: 0.22
C256: Costi personale | D256: % | N256: 0 | O256: 0 | P256: 0 | Q256: 0 | R256: 0 | S256: 0 | T256: 0 | U256: 0 | V256: 0 | W256: 0 | X256: 0 | Y256: 0 | Z256: 0 | AA256: 0 | AB256: 0 | AC256: 0 | AD256: 0 | AE256: 0 | AF256: 0 | AG256: 0 | AH256: 0 | AI256: 0 | AJ256: 0 | AK256: 0 | AL256: 0 | AM256: 0 | AN256: 0 | AO256: 0 | AP256: 0 | AQ256: 0
C257: Canone di concessione ex art. 10 L. 537/93 e art. 1, comma 1020, L. 296/2006 | D257: % | N257: 0.22 | O257: 0.22 | P257: 0.22 | Q257: 0.22 | R257: 0.22 | S257: 0.22 | T257: 0.22 | U257: 0.22 | V257: 0.22 | W257: 0.22 | X257: 0.22 | Y257: 0.22 | Z257: 0.22 | AA257: 0.22 | AB257: 0.22 | AC257: 0.22 | AD257: 0.22 | AE257: 0.22 | AF257: 0.22 | AG257: 0.22 | AH257: 0.22 | AI257: 0.22 | AJ257: 0.22 | AK257: 0.22 | AL257: 0.22 | AM257: 0.22 | AN257: 0.22 | AO257: 0.22 | AP257: 0.22 | AQ257: 0.22
C258: Canone di sub-concessione ex art. 13 | D258: % | N258: 0.22 | O258: 0.22 | P258: 0.22 | Q258: 0.22 | R258: 0.22 | S258: 0.22 | T258: 0.22 | U258: 0.22 | V258: 0.22 | W258: 0.22 | X258: 0.22 | Y258: 0.22 | Z258: 0.22 | AA258: 0.22 | AB258: 0.22 | AC258: 0.22 | AD258: 0.22 | AE258: 0.22 | AF258: 0.22 | AG258: 0.22 | AH258: 0.22 | AI258: 0.22 | AJ258: 0.22 | AK258: 0.22 | AL258: 0.22 | AM258: 0.22 | AN258: 0.22 | AO258: 0.22 | AP258: 0.22 | AQ258: 0.22
C259: Altri Costi | D259: % | N259: 0.22 | O259: 0.22 | P259: 0.22 | Q259: 0.22 | R259: 0.22 | S259: 0.22 | T259: 0.22 | U259: 0.22 | V259: 0.22 | W259: 0.22 | X259: 0.22 | Y259: 0.22 | Z259: 0.22 | AA259: 0.22 | AB259: 0.22 | AC259: 0.22 | AD259: 0.22 | AE259: 0.22 | AF259: 0.22 | AG259: 0.22 | AH259: 0.22 | AI259: 0.22 | AJ259: 0.22 | AK259: 0.22 | AL259: 0.22 | AM259: 0.22 | AN259: 0.22 | AO259: 0.22 | AP259: 0.22 | AQ259: 0.22
C262: TERMINI DI PAGAMENTO COSTI OPERATIVI - DPO
C263: Acquisti di materie e beni di consumo | D263: giorni | N263: 90 | O263: 90 | P263: 90 | Q263: 90 | R263: 90 | S263: 90 | T263: 90 | U263: 90 | V263: 90 | W263: 90 | X263: 90 | Y263: 90 | Z263: 90 | AA263: 90 | AB263: 90 | AC263: 90 | AD263: 90 | AE263: 90 | AF263: 90 | AG263: 90 | AH263: 90 | AI263: 90 | AJ263: 90 | AK263: 90 | AL263: 90 | AM263: 90 | AN263: 90 | AO263: 90 | AP263: 90 | AQ263: 90
C264: Prestazioni di servizi | D264: giorni | N264: 90 | O264: 90 | P264: 90 | Q264: 90 | R264: 90 | S264: 90 | T264: 90 | U264: 90 | V264: 90 | W264: 90 | X264: 90 | Y264: 90 | Z264: 90 | AA264: 90 | AB264: 90 | AC264: 90 | AD264: 90 | AE264: 90 | AF264: 90 | AG264: 90 | AH264: 90 | AI264: 90 | AJ264: 90 | AK264: 90 | AL264: 90 | AM264: 90 | AN264: 90 | AO264: 90 | AP264: 90 | AQ264: 90
C265: Manutenzioni | D265: giorni | N265: 90 | O265: 90 | P265: 90 | Q265: 90 | R265: 90 | S265: 90 | T265: 90 | U265: 90 | V265: 90 | W265: 90 | X265: 90 | Y265: 90 | Z265: 90 | AA265: 90 | AB265: 90 | AC265: 90 | AD265: 90 | AE265: 90 | AF265: 90 | AG265: 90 | AH265: 90 | AI265: 90 | AJ265: 90 | AK265: 90 | AL265: 90 | AM265: 90 | AN265: 90 | AO265: 90 | AP265: 90 | AQ265: 90
C266: Costi personale | D266: giorni | N266: 0 | O266: 0 | P266: 0 | Q266: 0 | R266: 0 | S266: 0 | T266: 0 | U266: 0 | V266: 0 | W266: 0 | X266: 0 | Y266: 0 | Z266: 0 | AA266: 0 | AB266: 0 | AC266: 0 | AD266: 0 | AE266: 0 | AF266: 0 | AG266: 0 | AH266: 0 | AI266: 0 | AJ266: 0 | AK266: 0 | AL266: 0 | AM266: 0 | AN266: 0 | AO266: 0 | AP266: 0 | AQ266: 0
C267: Canone di concessione ex art. 10 L. 537/93 e art. 1, comma 1020, L. 296/2006 | D267: giorni | N267: 90 | O267: 90 | P267: 90 | Q267: 90 | R267: 90 | S267: 90 | T267: 90 | U267: 90 | V267: 90 | W267: 90 | X267: 90 | Y267: 90 | Z267: 90 | AA267: 90 | AB267: 90 | AC267: 90 | AD267: 90 | AE267: 90 | AF267: 90 | AG267: 90 | AH267: 90 | AI267: 90 | AJ267: 90 | AK267: 90 | AL267: 90 | AM267: 90 | AN267: 90 | AO267: 90 | AP267: 90 | AQ267: 90
C268: Canone di sub-concessione ex art. 13 | D268: giorni | N268: 90 | O268: 90 | P268: 90 | Q268: 90 | R268: 90 | S268: 90 | T268: 90 | U268: 90 | V268: 90 | W268: 90 | X268: 90 | Y268: 90 | Z268: 90 | AA268: 90 | AB268: 90 | AC268: 90 | AD268: 90 | AE268: 90 | AF268: 90 | AG268: 90 | AH268: 90 | AI268: 90 | AJ268: 90 | AK268: 90 | AL268: 90 | AM268: 90 | AN268: 90 | AO268: 90 | AP268: 90 | AQ268: 90
C269: Altri Costi | D269: giorni | N269: 90 | O269: 90 | P269: 90 | Q269: 90 | R269: 90 | S269: 90 | T269: 90 | U269: 90 | V269: 90 | W269: 90 | X269: 90 | Y269: 90 | Z269: 90 | AA269: 90 | AB269: 90 | AC269: 90 | AD269: 90 | AE269: 90 | AF269: 90 | AG269: 90 | AH269: 90 | AI269: 90 | AJ269: 90 | AK269: 90 | AL269: 90 | AM269: 90 | AN269: 90 | AO269: 90 | AP269: 90 | AQ269: 90
B272: =+ROUND(MAX($B$238:B271)+1,0) -> 3 | C272: IVA
C274: Aliquota IVA
... 161 more rows

Sheet Working
B2: =+Cover!D26 -> CAV - Sistema tariffario CIPE
B3: Working
I5: Starting date | N5: =+E27 -> 2018-01-01 | O5: =N6+1 -> 2018-07-01 | P5: 2019-01-01 | Q5: 2019-07-01 | R5: 2020-01-01 | S5: 2020-07-01 | T5: 2021-01-01 | U5: 2021-07-01 | V5: 2022-01-01 | W5: 2022-07-01 | X5: 2023-01-01 | Y5: 2023-07-01 | Z5: 2024-01-01 | AA5: 2024-07-01 | AB5: 2025-01-01 | AC5: 2025-07-01 | AD5: 2026-01-01 | AE5: 2026-07-01 | AF5: 2027-01-01 | AG5: 2027-07-01 | AH5: 2028-01-01 | AI5: 2028-07-01 | AJ5: 2029-01-01 | AK5: 2029-07-01 | AL5: 2030-01-01 | AM5: 2030-07-01 | AN5: 2031-01-01 | AO5: 2031-07-01 | AP5: 2032-01-01 | AQ5: 2032-07-01
I6: Ending date | N6: =+EOMONTH(N5,$E$28-1) -> 2018-06-30 | O6: 2018-12-31 | P6: 2019-06-30 | Q6: 2019-12-31 | R6: 2020-06-30 | S6: 2020-12-31 | T6: 2021-06-30 | U6: 2021-12-31 | V6: 2022-06-30 | W6: 2022-12-31 | X6: 2023-06-30 | Y6: 2023-12-31 | Z6: 2024-06-30 | AA6: 2024-12-31 | AB6: 2025-06-30 | AC6: 2025-12-31 | AD6: 2026-06-30 | AE6: 2026-12-31 | AF6: 2027-06-30 | AG6: 2027-12-31 | AH6: 2028-06-30 | AI6: 2028-12-31 | AJ6: 2029-06-30 | AK6: 2029-12-31 | AL6: 2030-06-30 | AM6: 2030-12-31 | AN6: 2031-06-30 | AO6: 2031-12-31 | AP6: 2032-06-30 | AQ6: 2032-12-31
E7: sheet check | F7: =+SUM(G8:G894) -> 0 | I7: Year | N7: =YEAR(N6) -> 2018 | O7: 2018 | P7: 2019 | Q7: 2019 | R7: 2020 | S7: 2020 | T7: 2021 | U7: 2021 | V7: 2022 | W7: 2022 | X7: 2023 | Y7: 2023 | Z7: 2024 | AA7: 2024 | AB7: 2025 | AC7: 2025 | AD7: 2026 | AE7: 2026 | AF7: 2027 | AG7: 2027 | AH7: 2028 | AI7: 2028 | AJ7: 2029 | AK7: 2029 | AL7: 2030 | AM7: 2030 | AN7: 2031 | AO7: 2031 | AP7: 2032 | AQ7: 2032
I8: Days (in period) | N8: =N6-N5+1 -> 181 | O8: 184 | P8: 181 | Q8: 184 | R8: 182 | S8: 184 | T8: 181 | U8: 184 | V8: 181 | W8: 184 | X8: 181 | Y8: 184 | Z8: 182 | AA8: 184 | AB8: 181 | AC8: 184 | AD8: 181 | AE8: 184 | AF8: 181 | AG8: 184 | AH8: 182 | AI8: 184 | AJ8: 181 | AK8: 184 | AL8: 181 | AM8: 184 | AN8: 181 | AO8: 184 | AP8: 182 | AQ8: 184
I9: Month | N9: =MONTH(N6) -> 6 | O9: 12 | P9: 6 | Q9: 12 | R9: 6 | S9: 12 | T9: 6 | U9: 12 | V9: 6 | W9: 12 | X9: 6 | Y9: 12 | Z9: 6 | AA9: 12 | AB9: 6 | AC9: 12 | AD9: 6 | AE9: 12 | AF9: 6 | AG9: 12 | AH9: 6 | AI9: 12 | AJ9: 6 | AK9: 12 | AL9: 6 | AM9: 12 | AN9: 6 | AO9: 12 | AP9: 6 | AQ9: 12
I10: Period counter | N10: =M10+1 -> 1 | O10: 2 | P10: 3 | Q10: 4 | R10: 5 | S10: 6 | T10: 7 | U10: 8 | V10: 9 | W10: 10 | X10: 11 | Y10: 12 | Z10: 13 | AA10: 14 | AB10: 15 | AC10: 16 | AD10: 17 | AE10: 18 | AF10: 19 | AG10: 20 | AH10: 21 | AI10: 22 | AJ10: 23 | AK10: 24 | AL10: 25 | AM10: 26 | AN10: 27 | AO10: 28 | AP10: 29 | AQ10: 30
I11: End of year | N11: =1*(N9=12) -> 0 | O11: 1 | P11: 0 | Q11: 1 | R11: 0 | S11: 1 | T11: 0 | U11: 1 | V11: 0 | W11: 1 | X11: 0 | Y11: 1 | Z11: 0 | AA11: 1 | AB11: 0 | AC11: 1 | AD11: 0 | AE11: 1 | AF11: 0 | AG11: 1 | AH11: 0 | AI11: 1 | AJ11: 0 | AK11: 1 | AL11: 0 | AM11: 1 | AN11: 0 | AO11: 1 | AP11: 0 | AQ11: 1
I12: End of semester | N12: =1*OR(N9=6,N9=12) -> 1 | O12: 1 | P12: 1 | Q12: 1 | R12: 1 | S12: 1 | T12: 1 | U12: 1 | V12: 1 | W12: 1 | X12: 1 | Y12: 1 | Z12: 1 | AA12: 1 | AB12: 1 | AC12: 1 | AD12: 1 | AE12: 1 | AF12: 1 | AG12: 1 | AH12: 1 | AI12: 1 | AJ12: 1 | AK12: 1 | AL12: 1 | AM12: 1 | AN12: 1 | AO12: 1 | AP12: 1 | AQ12: 1
I13: Fraction of year | N13: =+ROUND(N8/$E$23,1) -> 0.5 | O13: =+ROUND(O8/$E$23,1) -> 0.5 | P13: 0.5 | Q13: 0.5 | R13: 0.5 | S13: 0.5 | T13: 0.5 | U13: 0.5 | V13: 0.5 | W13: 0.5 | X13: 0.5 | Y13: 0.5 | Z13: 0.5 | AA13: 0.5 | AB13: 0.5 | AC13: 0.5 | AD13: 0.5 | AE13: 0.5 | AF13: 0.5 | AG13: 0.5 | AH13: 0.5 | AI13: 0.5 | AJ13: 0.5 | AK13: 0.5 | AL13: 0.5 | AM13: 0.5 | AN13: 0.5 | AO13: 0.5 | AP13: 0.5 | AQ13: 0.5
C16: TIMELINE | D16: Unit | E16: Input 1 | F16: Input 2 | G16: Check | I16: Total
C18: Model timing inputs
C20: Months in year | D20: months | E20: 12
C21: Days in average month | D21: days | E21: 30
C22: Days in semester | D22: days | E22: 180
C23: Days in average year | D23: days | E23: 360
C25: Model duration
C27: Model starting date | D27: date | E27: 2018-01-01
C28: Months in the period | D28: months | E28: 6
C30: Concession timing
C32: 1st regulatory period start date | D32: date | E32: 2020-01-01
C33: Concession duration | D33: years | E33: 30
C34: Concession end date | D34: data | E34: 2032-12-31
C35: Regulatory period duration | D35: years | E35: 5
C38: Model update
C40: Update date | D40: data | E40: 2019-12-31
C41: Forecast period start | D41: data | E41: =+E40+1 -> 2020-01-01
C44: Beneficio ACE update
C46: Last update date | D46: data | E46: 2018-12-31
C47: Forecast period start | D47: data | E47: =+E46+1 -> 2019-01-01
C49: Bond
C51: Last repayment date | D51: data | E51: 2030-12-31
C53: Tariffa actual
C55: Last available tariff actual | D55: data | E55: 2020-12-31
B57: FLAG | D57: Unit | E57: Input 1 | F57: Input 2 | G57: Check | I57: Total
C59: Concession period | D59: flag | I59: =+SUM(N59:AQ59) -> 26 | N59: =1*AND(N$5<=$E34,N$6>=$E32) -> 0 | O59: =1*AND(O$5<=$E34,O$6>=$E32) -> 0 | P59: 0 | Q59: 0 | R59: 1 | S59: 1 | T59: 1 | U59: 1 | V59: 1 | W59: 1 | X59: 1 | Y59: 1 | Z59: 1 | AA59: 1 | AB59: 1 | AC59: 1 | AD59: 1 | AE59: 1 | AF59: 1 | AG59: 1 | AH59: 1 | AI59: 1 | AJ59: 1 | AK59: 1 | AL59: 1 | AM59: 1 | AN59: 1 | AO59: 1 | AP59: 1 | AQ59: 1
C60: Regulatory period | D60: year | I60: =+SUM(N60:AQ60) -> 48 | N60: =+M60+1*OR(AND(N$5<=$E32,N$6>=$E32),COUNTIF($M60:M60,M60)=$E35*2) -> 0 | O60: =+N60+1*OR(AND(O$5<=$E32,O$6>=$E32),COUNTIF($M60:N60,N60)=$E35*2) -> 0 | P60: =+O60+1*OR(AND(P$5<=$E32,P$6>=$E32),COUNTIF($M60:O60,O60)=$E35*2) -> 0 | Q60: =+P60+1*OR(AND(Q$5<=$E32,Q$6>=$E32),COUNTIF($M60:P60,P60)=$E35*2) -> 0 | R60: =+Q60+1*OR(AND(R$5<=$E32,R$6>=$E32),COUNTIF($M60:Q60,Q60)=$E35*2) -> 1 | S60: =+R60+1*OR(AND(S$5<=$E32,S$6>=$E32),COUNTIF($M60:R60,R60)=$E35*2) -> 1 | T60: =+S60+1*OR(AND(T$5<=$E32,T$6>=$E32),COUNTIF($M60:S60,S60)=$E35*2) -> 1 | U60: =+T60+1*OR(AND(U$5<=$E32,U$6>=$E32),COUNTIF($M60:T60,T60)=$E35*2) -> 1 | V60: =+U60+1*OR(AND(V$5<=$E32,V$6>=$E32),COUNTIF($M60:U60,U60)=$E35*2) -> 1 | W60: =+V60+1*OR(AND(W$5<=$E32,W$6>=$E32),COUNTIF($M60:V60,V60)=$E35*2) -> 1 | X60: =+W60+1*OR(AND(X$5<=$E32,X$6>=$E32),COUNTIF($M60:W60,W60)=$E35*2) -> 1 | Y60: =+X60+1*OR(AND(Y$5<=$E32,Y$6>=$E32),COUNTIF($M60:X60,X60)=$E35*2) -> 1 | Z60: =+Y60+1*OR(AND(Z$5<=$E32,Z$6>=$E32),COUNTIF($M60:Y60,Y60)=$E35*2) -> 1 | AA60: =+Z60+1*OR(AND(AA$5<=$E32,AA$6>=$E32),COUNTIF($M60:Z60,Z60)=$E35*2) -> 1 | AB60: =+AA60+1*OR(AND(AB$5<=$E32,AB$6>=$E32),COUNTIF($M60:AA60,AA60)=$E35*2) -> 2 | AC60: =+AB60+1*OR(AND(AC$5<=$E32,AC$6>=$E32),COUNTIF($M60:AB60,AB60)=$E35*2) -> 2 | AD60: =+AC60+1*OR(AND(AD$5<=$E32,AD$6>=$E32),COUNTIF($M60:AC60,AC60)=$E35*2) -> 2 | AE60: =+AD60+1*OR(AND(AE$5<=$E32,AE$6>=$E32),COUNTIF($M60:AD60,AD60)=$E35*2) -> 2 | AF60: =+AE60+1*OR(AND(AF$5<=$E32,AF$6>=$E32),COUNTIF($M60:AE60,AE60)=$E35*2) -> 2 | AG60: =+AF60+1*OR(AND(AG$5<=$E32,AG$6>=$E32),COUNTIF($M60:AF60,AF60)=$E35*2) -> 2 | AH60: =+AG60+1*OR(AND(AH$5<=$E32,AH$6>=$E32),COUNTIF($M60:AG60,AG60)=$E35*2) -> 2 | AI60: =+AH60+1*OR(AND(AI$5<=$E32,AI$6>=$E32),COUNTIF($M60:AH60,AH60)=$E35*2) -> 2 | AJ60: =+AI60+1*OR(AND(AJ$5<=$E32,AJ$6>=$E32),COUNTIF($M60:AI60,AI60)=$E35*2) -> 2 | AK60: =+AJ60+1*OR(AND(AK$5<=$E32,AK$6>=$E32),COUNTIF($M60:AJ60,AJ60)=$E35*2) -> 2 | AL60: =+AK60+1*OR(AND(AL$5<=$E32,AL$6>=$E32),COUNTIF($M60:AK60,AK60)=$E35*2) -> 3 | AM60: =+AL60+1*OR(AND(AM$5<=$E32,AM$6>=$E32),COUNTIF($M60:AL60,AL60)=$E35*2) -> 3 | AN60: =+AM60+1*OR(AND(AN$5<=$E32,AN$6>=$E32),COUNTIF($M60:AM60,AM60)=$E35*2) -> 3 | AO60: =+AN60+1*OR(AND(AO$5<=$E32,AO$6>=$E32),COUNTIF($M60:AN60,AN60)=$E35*2) -> 3 | AP60: =+AO60+1*OR(AND(AP$5<=$E32,AP$6>=$E32),COUNTIF($M60:AO60,AO60)=$E35*2) -> 3 | AQ60: =+AP60+1*OR(AND(AQ$5<=$E32,AQ$6>=$E32),COUNTIF($M60:AP60,AP60)=$E35*2) -> 3
C61: Regulatory period year | D61: year | I61: =+SUM(N61:AQ61) -> 72 | N61: =IF(N60<>M60,1,M61+1*M11)*(N60<>0) -> 0 | O61: =IF(O60<>N60,1,N61+1*N11)*(O60<>0) -> 0 | P61: =IF(P60<>O60,1,O61+1*O11)*(P60<>0) -> 0 | Q61: =IF(Q60<>P60,1,P61+1*P11)*(Q60<>0) -> 0 | R61: =IF(R60<>Q60,1,Q61+1*Q11)*(R60<>0) -> 1 | S61: =IF(S60<>R60,1,R61+1*R11)*(S60<>0) -> 1 | T61: 2 | U61: 2 | V61: 3 | W61: 3 | X61: 4 | Y61: 4 | Z61: 5 | AA61: 5 | AB61: 1 | AC61: 1 | AD61: 2 | AE61: 2 | AF61: 3 | AG61: 3 | AH61: 4 | AI61: 4 | AJ61: 5 | AK61: 5 | AL61: 1 | AM61: 1 | AN61: 2 | AO61: 2 | AP61: 3 | AQ61: 3
C62: Base year | D62: flag | I62: =+SUM(N62:AQ62) -> 6 | N62: =1*(R61=1) -> 1 | O62: =1*(S61=1) -> 1 | P62: =1*(T61=1) -> 0 | Q62: 0 | R62: 0 | S62: 0 | T62: 0 | U62: 0 | V62: 0 | W62: 0 | X62: 1 | Y62: 1 | Z62: 0 | AA62: 0 | AB62: 0 | AC62: 0 | AD62: 0 | AE62: 0 | AF62: 0 | AG62: 0 | AH62: 1 | AI62: 1 | AJ62: 0 | AK62: 0 | AL62: 0 | AM62: 0 | AN62: =1*(AR61=1) -> 0 | AO62: =1*(AS61=1) -> 0 | AP62: =1*(AT61=1) -> 0 | AQ62: =1*(AU61=1) -> 0
C63: Bridge year | D63: flag | I63: =+SUM(N63:AQ63) -> 6 | N63: =1*(P61=1) -> 0 | O63: =1*(Q61=1) -> 0 | P63: =1*(R61=1) -> 1 | Q63: =1*(S61=1) -> 1 | R63: 0 | S63: 0 | T63: 0 | U63: 0 | V63: 0 | W63: 0 | X63: 0 | Y63: 0 | Z63: 1 | AA63: 1 | AB63: 0 | AC63: 0 | AD63: 0 | AE63: 0 | AF63: 0 | AG63: 0 | AH63: 0 | AI63: 0 | AJ63: 1 | AK63: 1 | AL63: 0 | AM63: 0 | AN63: 0 | AO63: 0 | AP63: =1*(AR61=1) -> 0 | AQ63: =1*(AS61=1) -> 0
C65: Actual flag | D65: flag | I65: =+SUM(N65:AQ65) -> 4 | N65: =+(N6<=$E40)*1 -> 1 | O65: 1 | P65: 1 | Q65: 1 | R65: 0 | S65: 0 | T65: 0 | U65: 0 | V65: 0 | W65: 0 | X65: 0 | Y65: 0 | Z65: 0 | AA65: 0 | AB65: 0 | AC65: 0 | AD65: 0 | AE65: 0 | AF65: 0 | AG65: 0 | AH65: 0 | AI65: 0 | AJ65: 0 | AK65: 0 | AL65: 0 | AM65: 0 | AN65: 0 | AO65: 0 | AP65: 0 | AQ65: 0
C66: Forecast flag | D66: flag | I66: 26 | N66: =+AND(N6>$E40,N6<=$E34)*1 -> 0 | O66: 0 | P66: 0 | Q66: 0 | R66: 1 | S66: 1 | T66: 1 | U66: 1 | V66: 1 | W66: 1 | X66: 1 | Y66: 1 | Z66: 1 | AA66: 1 | AB66: 1 | AC66: 1 | AD66: 1 | AE66: 1 | AF66: 1 | AG66: 1 | AH66: 1 | AI66: 1 | AJ66: 1 | AK66: 1 | AL66: 1 | AM66: 1 | AN66: 1 | AO66: 1 | AP66: 1 | AQ66: 1
C67: Residual concession semester | D67: semester | I67: 465 | N67: =+COUNT(N59:$AQ$59) -> 30 | O67: =+COUNT(O59:$AQ$59) -> 29 | P67: =+COUNT(P59:$AQ$59) -> 28 | Q67: =+COUNT(Q59:$AQ$59) -> 27 | R67: =+COUNT(R59:$AQ$59) -> 26 | S67: =+COUNT(S59:$AQ$59) -> 25 | T67: =+COUNT(T59:$AQ$59) -> 24 | U67: =+COUNT(U59:$AQ$59) -> 23 | V67: =+COUNT(V59:$AQ$59) -> 22 | W67: =+COUNT(W59:$AQ$59) -> 21 | X67: =+COUNT(X59:$AQ$59) -> 20 | Y67: =+COUNT(Y59:$AQ$59) -> 19 | Z67: =+COUNT(Z59:$AQ$59) -> 18 | AA67: =+COUNT(AA59:$AQ$59) -> 17 | AB67: =+COUNT(AB59:$AQ$59) -> 16 | AC67: =+COUNT(AC59:$AQ$59) -> 15 | AD67: =+COUNT(AD59:$AQ$59) -> 14 | AE67: =+COUNT(AE59:$AQ$59) -> 13 | AF67: =+COUNT(AF59:$AQ$59) -> 12 | AG67: =+COUNT(AG59:$AQ$59) -> 11 | AH67: =+COUNT(AH59:$AQ$59) -> 10 | AI67: =+COUNT(AI59:$AQ$59) -> 9 | AJ67: =+COUNT(AJ59:$AQ$59) -> 8 | AK67: =+COUNT(AK59:$AQ$59) -> 7 | AL67: =+COUNT(AL59:$AQ$59) -> 6 | AM67: =+COUNT(AM59:$AQ$59) -> 5 | AN67: =+COUNT(AN59:$AQ$59) -> 4 | AO67: =+COUNT(AO59:$AQ$59) -> 3 | AP67: =+COUNT(AP59:$AQ$59) -> 2 | AQ67: =+COUNT(AQ59:$AQ$59) -> 1
C68: End of period | D68: flag | I68: 29 | N68: =+NOT(N6=$E$34)*1 -> 1 | O68: 1 | P68: 1 | Q68: 1 | R68: 1 | S68: 1 | T68: 1 | U68: 1 | V68: 1 | W68: 1 | X68: 1 | Y68: 1 | Z68: 1 | AA68: 1 | AB68: 1 | AC68: 1 | AD68: 1 | AE68: 1 | AF68: 1 | AG68: 1 | AH68: 1 | AI68: 1 | AJ68: 1 | AK68: 1 | AL68: 1 | AM68: 1 | AN68: 1 | AO68: 1 | AP68: 1 | AQ68: 0
C69: Flag beneficio ACE forecast | D69: flag | I69: 28 | N69: =+AND(N6>$E46,N6<=$E34)*1 -> 0 | O69: =+AND(O6>$E46,O6<=$E34)*1 -> 0 | P69: 1 | Q69: 1 | R69: 1 | S69: 1 | T69: 1 | U69: 1 | V69: 1 | W69: 1 | X69: 1 | Y69: 1 | Z69: 1 | AA69: 1 | AB69: 1 | AC69: 1 | AD69: 1 | AE69: 1 | AF69: 1 | AG69: 1 | AH69: 1 | AI69: 1 | AJ69: 1 | AK69: 1 | AL69: 1 | AM69: 1 | AN69: 1 | AO69: 1 | AP69: 1 | AQ69: 1
C70: Bond - last repayment | D70: flag | I70: 25 | N70: =IF(N6<$E$51,1,0) -> 1 | O70: 1 | P70: 1 | Q70: 1 | R70: 1 | S70: 1 | T70: 1 | U70: 1 | V70: 1 | W70: 1 | X70: 1 | Y70: 1 | Z70: 1 | AA70: 1 | AB70: 1 | AC70: 1 | AD70: 1 | AE70: 1 | AF70: 1 | AG70: 1 | AH70: 1 | AI70: 1 | AJ70: 1 | AK70: 1 | AL70: 1 | AM70: =IF(AM6<$E$51,1,0) -> 0 | AN70: =IF(AN6<$E$51,1,0) -> 0 | AO70: 0 | AP70: 0 | AQ70: 0
C71: Actual tariffa | D71: flag | I71: 6 | N71: =IF(N6<=$E$55,1,0) -> 1 | O71: 1 | P71: 1 | Q71: 1 | R71: 1 | S71: =IF(S6<=$E$55,1,0) -> 1 | T71: =IF(T6<=$E$55,1,0) -> 0 | U71: 0 | V71: 0 | W71: 0 | X71: 0 | Y71: 0 | Z71: 0 | AA71: 0 | AB71: 0 | AC71: 0 | AD71: 0 | AE71: 0 | AF71: 0 | AG71: 0 | AH71: 0 | AI71: 0 | AJ71: 0 | AK71: 0 | AL71: 0 | AM71: 0 | AN71: 0 | AO71: 0 | AP71: 0 | AQ71: 0
C73: GENERAL INPUT | D73: Unit | E73: Input 1 | F73: Input 2 | G73: Check | I73: Total
C75: Traffico CIPE
C76: Passante Class A | D76: € / vkm | N76: =+Input!N69 -> 223238.5546 | O76: =+Input!O69 -> 223238.5546 | P76: =+Input!P69 -> 223110.6663 | Q76: =+Input!Q69 -> 223110.6663 | R76: =+Input!R69 -> 141038.0319 | S76: =+Input!S69 -> 141038.0319 | T76: =+Input!T69 -> 204312.4494 | U76: =+Input!U69 -> 204312.4494 | V76: =+Input!V69 -> 212525.8068 | W76: =+Input!W69 -> 212525.8068 | X76: =+Input!X69 -> 215906.0637 | Y76: =+Input!Y69 -> 215906.0637 | Z76: =+Input!Z69 -> 218393.066 | AA76: =+Input!AA69 -> 218393.066 | AB76: =+Input!AB69 -> 220524.1189 | AC76: =+Input!AC69 -> 220524.1189 | AD76: =+Input!AD69 -> 222294.4207 | AE76: =+Input!AE69 -> 222294.4207 | AF76: =+Input!AF69 -> 223993.6769 | AG76: =+Input!AG69 -> 223993.6769 | AH76: =+Input!AH69 -> 225534.6905 | AI76: =+Input!AI69 -> 225534.6905 | AJ76: =+Input!AJ69 -> 227136.7467 | AK76: =+Input!AK69 -> 227136.7467 | AL76: =+Input!AL69 -> 228737.9524 | AM76: =+Input!AM69 -> 228737.9524 | AN76: =+Input!AN69 -> 230338.1292 | AO76: =+Input!AO69 -> 230338.1292 | AP76: =+Input!AP69 -> 231937.0975 | AQ76: =+Input!AQ69 -> 231937.0975
C77: Passante Class B | D77: € / vkm | N77: =+Input!N70 -> 34014.49336 | O77: =+Input!O70 -> 34014.49336 | P77: =+Input!P70 -> 34706.9905 | Q77: =+Input!Q70 -> 34706.9905 | R77: =+Input!R70 -> 25821.2661 | S77: =+Input!S70 -> 25821.2661 | T77: =+Input!T70 -> 32768.42024 | U77: =+Input!U70 -> 32768.42024 | V77: =+Input!V70 -> 33675.01306 | W77: =+Input!W70 -> 33675.01306 | X77: =+Input!X70 -> 34165.91116 | Y77: =+Input!Y70 -> 34165.91116 | Z77: =+Input!Z70 -> 34608.79746 | AA77: =+Input!AA70 -> 34608.79746 | AB77: =+Input!AB70 -> 34994.00464 | AC77: =+Input!AC70 -> 34994.00464 | AD77: =+Input!AD70 -> 35339.71743 | AE77: =+Input!AE70 -> 35339.71743 | AF77: =+Input!AF70 -> 35678.04057 | AG77: =+Input!AG70 -> 35678.04057 | AH77: =+Input!AH70 -> 36011.42887 | AI77: =+Input!AI70 -> 36011.42887 | AJ77: =+Input!AJ70 -> 36348.84557 | AK77: =+Input!AK70 -> 36348.84557 | AL77: =+Input!AL70 -> 36687.18691 | AM77: =+Input!AM70 -> 36687.18691 | AN77: =+Input!AN70 -> 37026.41992 | AO77: =+Input!AO70 -> 37026.41992 | AP77: =+Input!AP70 -> 37366.51115 | AQ77: =+Input!AQ70 -> 37366.51115
C78: Passante Class 3 | D78: € / vkm | N78: =+Input!N71 -> 6343.315454 | O78: =+Input!O71 -> 6343.315454 | P78: =+Input!P71 -> 6477.046917 | Q78: =+Input!Q71 -> 6477.046917 | R78: =+Input!R71 -> 6024.294638 | S78: =+Input!S71 -> 6024.294638 | T78: =+Input!T71 -> 6379.888222 | U78: =+Input!U71 -> 6379.888222 | V78: =+Input!V71 -> 6416.663421 | W78: =+Input!W71 -> 6416.663421 | X78: =+Input!X71 -> 6464.353939 | Y78: =+Input!Y71 -> 6464.353939 | Z78: =+Input!Z71 -> 6533.370268 | AA78: =+Input!AA71 -> 6533.370268 | AB78: =+Input!AB71 -> 6607.592303 | AC78: =+Input!AC71 -> 6607.592303 | AD78: =+Input!AD71 -> 6680.064655 | AE78: =+Input!AE71 -> 6680.064655 | AF78: =+Input!AF71 -> 6752.690359 | AG78: =+Input!AG71 -> 6752.690359 | AH78: =+Input!AH71 -> 6825.619415 | AI78: =+Input!AI71 -> 6825.619415 | AJ78: =+Input!AJ71 -> 6899.336104 | AK78: =+Input!AK71 -> 6899.336104 | AL78: =+Input!AL71 -> 6973.371288 | AM78: =+Input!AM71 -> 6973.371288 | AN78: =+Input!AN71 -> 7047.718154 | AO78: =+Input!AO71 -> 7047.718154 | AP78: =+Input!AP71 -> 7122.369753 | AQ78: =+Input!AQ71 -> 7122.369753
C79: Passante Class 4 | D79: € / vkm | N79: =+Input!N72 -> 5358.832025 | O79: =+Input!O72 -> 5358.832025 | P79: =+Input!P72 -> 5471.808346 | Q79: =+Input!Q72 -> 5471.808346 | R79: =+Input!R72 -> 5089.323283 | S79: =+Input!S72 -> 5089.323283 | T79: =+Input!T72 -> 5389.728694 | U79: =+Input!U72 -> 5389.728694 | V79: =+Input!V72 -> 5420.796377 | W79: =+Input!W72 -> 5420.796377 | X79: =+Input!X72 -> 5461.08532 | Y79: =+Input!Y72 -> 5461.08532 | Z79: =+Input!Z72 -> 5519.390306 | AA79: =+Input!AA72 -> 5519.390306 | AB79: =+Input!AB72 -> 5582.093071 | AC79: =+Input!AC72 -> 5582.093071 | AD79: =+Input!AD72 -> 5643.317703 | AE79: =+Input!AE72 -> 5643.317703 | AF79: =+Input!AF72 -> 5704.671888 | AG79: =+Input!AG72 -> 5704.671888 | AH79: =+Input!AH72 -> 5766.282344 | AI79: =+Input!AI72 -> 5766.282344 | AJ79: =+Input!AJ72 -> 5828.558194 | AK79: =+Input!AK72 -> 5828.558194 | AL79: =+Input!AL72 -> 5891.103107 | AM79: =+Input!AM72 -> 5891.103107 | AN79: =+Input!AN72 -> 5953.911329 | AO79: =+Input!AO72 -> 5953.911329 | AP79: =+Input!AP72 -> 6016.97699 | AQ79: =+Input!AQ72 -> 6016.97699
C80: Passante Class 5 | D80: € / vkm | N80: =+Input!N73 -> 55096.01124 | O80: =+Input!O73 -> 55096.01124 | P80: =+Input!P73 -> 56257.56 | Q80: =+Input!Q73 -> 56257.56 | R80: =+Input!R73 -> 52325.09837 | S80: =+Input!S73 -> 52325.09837 | T80: =+Input!T73 -> 55413.67061 | U80: =+Input!U73 -> 55413.67061 | V80: =+Input!V73 -> 55733.08824 | W80: =+Input!W73 -> 55733.08824 | X80: =+Input!X73 -> 56147.31285 | Y80: =+Input!Y73 -> 56147.31285 | Z80: =+Input!Z73 -> 56746.76663 | AA80: =+Input!AA73 -> 56746.76663 | AB80: =+Input!AB73 -> 57391.43551 | AC80: =+Input!AC73 -> 57391.43551 | AD80: =+Input!AD73 -> 58020.9072 | AE80: =+Input!AE73 -> 58020.9072 | AF80: =+Input!AF73 -> 58651.71086 | AG80: =+Input!AG73 -> 58651.71086 | AH80: =+Input!AH73 -> 59285.14934 | AI80: =+Input!AI73 -> 59285.14934 | AJ80: =+Input!AJ73 -> 59925.42895 | AK80: =+Input!AK73 -> 59925.42895 | AL80: =+Input!AL73 -> 60568.4749 | AM80: =+Input!AM73 -> 60568.4749 | AN80: =+Input!AN73 -> 61214.22802 | AO80: =+Input!AO73 -> 61214.22802 | AP80: =+Input!AP73 -> 61862.62796 | AQ80: =+Input!AQ73 -> 61862.62796
C81: Closed System Class A | D81: € / vkm | N81: =+Input!N74 -> 184792.6813 | O81: =+Input!O74 -> 184792.6813 | P81: =+Input!P74 -> 184148.5742 | Q81: =+Input!Q74 -> 184148.5742 | R81: =+Input!R74 -> 115941.2801 | S81: =+Input!S74 -> 115941.2801 | T81: =+Input!T74 -> 169986.3228 | U81: =+Input!U74 -> 169986.3228 | V81: =+Input!V74 -> 178049.0933 | W81: =+Input!W74 -> 178049.0933 | X81: =+Input!X74 -> 181717.3023 | Y81: =+Input!Y74 -> 181717.3023 | Z81: =+Input!Z74 -> 184237.6071 | AA81: =+Input!AA74 -> 184237.6071 | AB81: =+Input!AB74 -> 186039.0088 | AC81: =+Input!AC74 -> 186039.0088 | AD81: =+Input!AD74 -> 187533.9337 | AE81: =+Input!AE74 -> 187533.9337 | AF81: =+Input!AF74 -> 188968.4532 | AG81: =+Input!AG74 -> 188968.4532 | AH81: =+Input!AH74 -> 190268.5031 | AI81: =+Input!AI74 -> 190268.5031 | AJ81: =+Input!AJ74 -> 191620.0505 | AK81: =+Input!AK74 -> 191620.0505 | AL81: =+Input!AL74 -> 192970.8805 | AM81: =+Input!AM74 -> 192970.8805 | AN81: =+Input!AN74 -> 194320.8424 | AO81: =+Input!AO74 -> 194320.8424 | AP81: =+Input!AP74 -> 195669.7848 | AQ81: =+Input!AQ74 -> 195669.7848
C82: Closed System Class B | D82: € / vkm | N82: =+Input!N75 -> 23823.04487 | O82: =+Input!O75 -> 23823.04487 | P82: =+Input!P75 -> 24045.66818 | Q82: =+Input!Q75 -> 24045.66818 | R82: =+Input!R75 -> 17815.19506 | S82: =+Input!S75 -> 17815.19506 | T82: =+Input!T75 -> 22818.20228 | U82: =+Input!U75 -> 22818.20228 | V82: =+Input!V75 -> 23563.81219 | W82: =+Input!W75 -> 23563.81219 | X82: =+Input!X75 -> 23984.30638 | Y82: =+Input!Y75 -> 23984.30638 | Z82: =+Input!Z75 -> 24334.79636 | AA82: =+Input!AA75 -> 24334.79636 | AB82: =+Input!AB75 -> 24606.15844 | AC82: =+Input!AC75 -> 24606.15844 | AD82: =+Input!AD75 -> 24849.40112 | AE82: =+Input!AE75 -> 24849.40112 | AF82: =+Input!AF75 -> 25087.36208 | AG82: =+Input!AG75 -> 25087.36208 | AH82: =+Input!AH75 -> 25321.78731 | AI82: =+Input!AI75 -> 25321.78731 | AJ82: =+Input!AJ75 -> 25559.04515 | AK82: =+Input!AK75 -> 25559.04515 | AL82: =+Input!AL75 -> 25796.95317 | AM82: =+Input!AM75 -> 25796.95317 | AN82: =+Input!AN75 -> 26035.48817 | AO82: =+Input!AO75 -> 26035.48817 | AP82: =+Input!AP75 -> 26274.62663 | AQ82: =+Input!AQ75 -> 26274.62663
C83: Closed System Class 3 | D83: € / vkm | N83: =+Input!N76 -> 4079.839111 | O83: =+Input!O76 -> 4079.839111 | P83: =+Input!P76 -> 4172.993439 | Q83: =+Input!Q76 -> 4172.993439 | R83: =+Input!R76 -> 3863.649137 | S83: =+Input!S76 -> 3863.649137 | T83: =+Input!T76 -> 4132.312954 | U83: =+Input!U76 -> 4132.312954 | V83: =+Input!V76 -> 4178.498703 | W83: =+Input!W76 -> 4178.498703 | X83: =+Input!X76 -> 4224.545039 | Y83: =+Input!Y76 -> 4224.545039 | Z83: =+Input!Z76 -> 4277.368271 | AA83: =+Input!AA76 -> 4277.368271 | AB83: =+Input!AB76 -> 4326.082517 | AC83: =+Input!AC76 -> 4326.082517 | AD83: =+Input!AD76 -> 4373.567969 | AE83: =+Input!AE76 -> 4373.567969 | AF83: =+Input!AF76 -> 4421.133364 | AG83: =+Input!AG76 -> 4421.133364 | AH83: =+Input!AH76 -> 4468.881605 | AI83: =+Input!AI76 -> 4468.881605 | AJ83: =+Input!AJ76 -> 4517.145526 | AK83: =+Input!AK76 -> 4517.145526 | AL83: =+Input!AL76 -> 4565.617972 | AM83: =+Input!AM76 -> 4565.617972 | AN83: =+Input!AN76 -> 4614.294484 | AO83: =+Input!AO76 -> 4614.294484 | AP83: =+Input!AP76 -> 4663.170511 | AQ83: =+Input!AQ76 -> 4663.170511
C84: Closed System Class 4 | D84: € / vkm | N84: =+Input!N77 -> 2919.357866 | O84: =+Input!O77 -> 2919.357866 | P84: =+Input!P77 -> 2986.015107 | Q84: =+Input!Q77 -> 2986.015107 | R84: =+Input!R77 -> 2764.661594 | S84: =+Input!S77 -> 2764.661594 | T84: =+Input!T77 -> 2956.905897 | U84: =+Input!U77 -> 2956.905897 | V84: =+Input!V77 -> 2989.954438 | W84: =+Input!W77 -> 2989.954438 | X84: =+Input!X77 -> 3022.903221 | Y84: =+Input!Y77 -> 3022.903221 | Z84: =+Input!Z77 -> 3060.701259 | AA84: =+Input!AA77 -> 3060.701259 | AB84: =+Input!AB77 -> 3095.559084 | AC84: =+Input!AC77 -> 3095.559084 | AD84: =+Input!AD77 -> 3129.537637 | AE84: =+Input!AE77 -> 3129.537637 | AF84: =+Input!AF77 -> 3163.573394 | AG84: =+Input!AG77 -> 3163.573394 | AH84: =+Input!AH77 -> 3197.739986 | AI84: =+Input!AI77 -> 3197.739986 | AJ84: =+Input!AJ77 -> 3232.275578 | AK84: =+Input!AK77 -> 3232.275578 | AL84: =+Input!AL77 -> 3266.960382 | AM84: =+Input!AM77 -> 3266.960382 | AN84: =+Input!AN77 -> 3301.791205 | AO84: =+Input!AO77 -> 3301.791205 | AP84: =+Input!AP77 -> 3336.764794 | AQ84: =+Input!AQ77 -> 3336.764794
C85: Closed System Class 5 | D85: € / vkm | N85: =+Input!N78 -> 31064.67767 | O85: =+Input!O78 -> 31064.67767 | P85: =+Input!P78 -> 31773.9726 | Q85: =+Input!Q78 -> 31773.9726 | R85: =+Input!R78 -> 29418.56574 | S85: =+Input!S78 -> 29418.56574 | T85: =+Input!T78 -> 31464.22358 | U85: =+Input!U78 -> 31464.22358 | V85: =+Input!V78 -> 31815.89073 | W85: =+Input!W78 -> 31815.89073 | X85: =+Input!X78 -> 32166.49637 | Y85: =+Input!Y78 -> 32166.49637 | Z85: =+Input!Z78 -> 32568.70259 | AA85: =+Input!AA78 -> 32568.70259 | AB85: =+Input!AB78 -> 32939.6222 | AC85: =+Input!AC78 -> 32939.6222 | AD85: =+Input!AD78 -> 33301.18555 | AE85: =+Input!AE78 -> 33301.18555 | AF85: =+Input!AF78 -> 33663.35759 | AG85: =+Input!AG78 -> 33663.35759 | AH85: =+Input!AH78 -> 34026.92185 | AI85: =+Input!AI78 -> 34026.92185 | AJ85: =+Input!AJ78 -> 34394.41261 | AK85: =+Input!AK78 -> 34394.41261 | AL85: =+Input!AL78 -> 34763.49112 | AM85: =+Input!AM78 -> 34763.49112 | AN85: =+Input!AN78 -> 35134.12341 | AO85: =+Input!AO78 -> 35134.12341 | AP85: =+Input!AP78 -> 35506.27486 | AQ85: =+Input!AQ78 -> 35506.27486
C86: Barriers Class A | D86: € / vkm | N86: =+INDEX(Actual!$N33:$AS33,,MATCH(Working!N$7, Actual!$N$7:$AS$7,0))*N$13 -> 265875.5666 | O86: =+INDEX(Actual!$N33:$AS33,,MATCH(Working!O$7, Actual!$N$7:$AS$7,0))*O$13 -> 265875.5666 | P86: =+INDEX(Actual!$N33:$AS33,,MATCH(Working!P$7, Actual!$N$7:$AS$7,0))*P$13 -> 288000.2532 | Q86: =+INDEX(Actual!$N33:$AS33,,MATCH(Working!Q$7, Actual!$N$7:$AS$7,0))*Q$13 -> 288000.2532 | R86: =+INDEX(Actual!$N33:$AS33,,MATCH(Working!R$7, Actual!$N$7:$AS$7,0))*R$13 -> 178021.9213 | S86: =+INDEX(Actual!$N33:$AS33,,MATCH(Working!S$7, Actual!$N$7:$AS$7,0))*S$13 -> 178021.9213 | T86: =+INDEX(Actual!$N33:$AS33,,MATCH(Working!T$7, Actual!$N$7:$AS$7,0))*T$13 -> 272455.7248 | U86: =+INDEX(Actual!$N33:$AS33,,MATCH(Working!U$7, Actual!$N$7:$AS$7,0))*U$13 -> 272455.7248 | V86: =+INDEX(Actual!$N33:$AS33,,MATCH(Working!V$7, Actual!$N$7:$AS$7,0))*V$13 -> 291102.2581 | W86: =+INDEX(Actual!$N33:$AS33,,MATCH(Working!W$7, Actual!$N$7:$AS$7,0))*W$13 -> 291102.2581 | X86: =+INDEX(Actual!$N33:$AS33,,MATCH(Working!X$7, Actual!$N$7:$AS$7,0))*X$13 -> 301351.8188 | Y86: =+INDEX(Actual!$N33:$AS33,,MATCH(Working!Y$7, Actual!$N$7:$AS$7,0))*Y$13 -> 301351.8188 | Z86: =+INDEX(Actual!$N33:$AS33,,MATCH(Working!Z$7, Actual!$N$7:$AS$7,0))*Z$13 -> 308430.4138 | AA86: =+INDEX(Actual!$N33:$AS33,,MATCH(Working!AA$7, Actual!$N$7:$AS$7,0))*AA$13 -> 308430.4138 | AB86: =+INDEX(Actual!$N33:$AS33,,MATCH(Working!AB$7, Actual!$N$7:$AS$7,0))*AB$13 -> 311765.1799 | AC86: =+INDEX(Actual!$N33:$AS33,,MATCH(Working!AC$7, Actual!$N$7:$AS$7,0))*AC$13 -> 311765.1799 | AD86: =+INDEX(Actual!$N33:$AS33,,MATCH(Working!AD$7, Actual!$N$7:$AS$7,0))*AD$13 -> 314571.1628 | AE86: =+INDEX(Actual!$N33:$AS33,,MATCH(Working!AE$7, Actual!$N$7:$AS$7,0))*AE$13 -> 314571.1628 | AF86: =+INDEX(Actual!$N33:$AS33,,MATCH(Working!AF$7, Actual!$N$7:$AS$7,0))*AF$13 -> 317275.9472 | AG86: =+INDEX(Actual!$N33:$AS33,,MATCH(Working!AG$7, Actual!$N$7:$AS$7,0))*AG$13 -> 317275.9472 | AH86: =+INDEX(Actual!$N33:$AS33,,MATCH(Working!AH$7, Actual!$N$7:$AS$7,0))*AH$13 -> 319749.9861 | AI86: =+INDEX(Actual!$N33:$AS33,,MATCH(Working!AI$7, Actual!$N$7:$AS$7,0))*AI$13 -> 319749.9861 | AJ86: =+INDEX(Actual!$N33:$AS33,,MATCH(Working!AJ$7, Actual!$N$7:$AS$7,0))*AJ$13 -> 322280.6914 | AK86: =+INDEX(Actual!$N33:$AS33,,MATCH(Working!AK$7, Actual!$N$7:$AS$7,0))*AK$13 -> 322280.6914 | AL86: =+INDEX(Actual!$N33:$AS33,,MATCH(Working!AL$7, Actual!$N$7:$AS$7,0))*AL$13 -> 324813.897 | AM86: =+INDEX(Actual!$N33:$AS33,,MATCH(Working!AM$7, Actual!$N$7:$AS$7,0))*AM$13 -> 324813.897 | AN86: =+INDEX(Actual!$N33:$AS33,,MATCH(Working!AN$7, Actual!$N$7:$AS$7,0))*AN$13 -> 327349.3474 | AO86: =+INDEX(Actual!$N33:$AS33,,MATCH(Working!AO$7, Actual!$N$7:$AS$7,0))*AO$13 -> 327349.3474 | AP86: =+INDEX(Actual!$N33:$AS33,,MATCH(Working!AP$7, Actual!$N$7:$AS$7,0))*AP$13 -> 329886.7845 | AQ86: =+INDEX(Actual!$N33:$AS33,,MATCH(Working!AQ$7, Actual!$N$7:$AS$7,0))*AQ$13 -> 329886.7845
C87: Barriers Class B | D87: € / vkm | N87: =+INDEX(Actual!$N34:$AS34,,MATCH(Working!N$7, Actual!$N$7:$AS$7,0))*N$13 -> 32282.88713 | O87: =+INDEX(Actual!$N34:$AS34,,MATCH(Working!O$7, Actual!$N$7:$AS$7,0))*O$13 -> 32282.88713 | P87: =+INDEX(Actual!$N34:$AS34,,MATCH(Working!P$7, Actual!$N$7:$AS$7,0))*P$13 -> 35200.38724 | Q87: =+INDEX(Actual!$N34:$AS34,,MATCH(Working!Q$7, Actual!$N$7:$AS$7,0))*Q$13 -> 35200.38724 | R87: =+INDEX(Actual!$N34:$AS34,,MATCH(Working!R$7, Actual!$N$7:$AS$7,0))*R$13 -> 25493.97111 | S87: =+INDEX(Actual!$N34:$AS34,,MATCH(Working!S$7, Actual!$N$7:$AS$7,0))*S$13 -> 25493.97111 | T87: =+INDEX(Actual!$N34:$AS34,,MATCH(Working!T$7, Actual!$N$7:$AS$7,0))*T$13 -> 34219.14857 | U87: =+INDEX(Actual!$N34:$AS34,,MATCH(Working!U$7, Actual!$N$7:$AS$7,0))*U$13 -> 34219.14857 | V87: =+INDEX(Actual!$N34:$AS34,,MATCH(Working!V$7, Actual!$N$7:$AS$7,0))*V$13 -> 36129.61762 | W87: =+INDEX(Actual!$N34:$AS34,,MATCH(Working!W$7, Actual!$N$7:$AS$7,0))*W$13 -> 36129.61762 | X87: =+INDEX(Actual!$N34:$AS34,,MATCH(Working!X$7, Actual!$N$7:$AS$7,0))*X$13 -> 37335.87701 | Y87: =+INDEX(Actual!$N34:$AS34,,MATCH(Working!Y$7, Actual!$N$7:$AS$7,0))*Y$13 -> 37335.87701 | Z87: =+INDEX(Actual!$N34:$AS34,,MATCH(Working!Z$7, Actual!$N$7:$AS$7,0))*Z$13 -> 38212.37327 | AA87: =+INDEX(Actual!$N34:$AS34,,MATCH(Working!AA$7, Actual!$N$7:$AS$7,0))*AA$13 -> 38212.37327 | AB87: =+INDEX(Actual!$N34:$AS34,,MATCH(Working!AB$7, Actual!$N$7:$AS$7,0))*AB$13 -> 38600.07903 | AC87: =+INDEX(Actual!$N34:$AS34,,MATCH(Working!AC$7, Actual!$N$7:$AS$7,0))*AC$13 -> 38600.07903 | AD87: =+INDEX(Actual!$N34:$AS34,,MATCH(Working!AD$7, Actual!$N$7:$AS$7,0))*AD$13 -> 38939.65509 | AE87: =+INDEX(Actual!$N34:$AS34,,MATCH(Working!AE$7, Actual!$N$7:$AS$7,0))*AE$13 -> 38939.65509 | AF87: =+INDEX(Actual!$N34:$AS34,,MATCH(Working!AF$7, Actual!$N$7:$AS$7,0))*AF$13 -> 39269.36979 | AG87: =+INDEX(Actual!$N34:$AS34,,MATCH(Working!AG$7, Actual!$N$7:$AS$7,0))*AG$13 -> 39269.36979 | AH87: =+INDEX(Actual!$N34:$AS34,,MATCH(Working!AH$7, Actual!$N$7:$AS$7,0))*AH$13 -> 39592.16262 | AI87: =+INDEX(Actual!$N34:$AS34,,MATCH(Working!AI$7, Actual!$N$7:$AS$7,0))*AI$13 -> 39592.16262 | AJ87: =+INDEX(Actual!$N34:$AS34,,MATCH(Working!AJ$7, Actual!$N$7:$AS$7,0))*AJ$13 -> 39923.77719 | AK87: =+INDEX(Actual!$N34:$AS34,,MATCH(Working!AK$7, Actual!$N$7:$AS$7,0))*AK$13 -> 39923.77719 | AL87: =+INDEX(Actual!$N34:$AS34,,MATCH(Working!AL$7, Actual!$N$7:$AS$7,0))*AL$13 -> 40255.69059 | AM87: =+INDEX(Actual!$N34:$AS34,,MATCH(Working!AM$7, Actual!$N$7:$AS$7,0))*AM$13 -> 40255.69059 | AN87: =+INDEX(Actual!$N34:$AS34,,MATCH(Working!AN$7, Actual!$N$7:$AS$7,0))*AN$13 -> 40587.86414 | AO87: =+INDEX(Actual!$N34:$AS34,,MATCH(Working!AO$7, Actual!$N$7:$AS$7,0))*AO$13 -> 40587.86414 | AP87: =+INDEX(Actual!$N34:$AS34,,MATCH(Working!AP$7, Actual!$N$7:$AS$7,0))*AP$13 -> 40920.25879 | AQ87: =+INDEX(Actual!$N34:$AS34,,MATCH(Working!AQ$7, Actual!$N$7:$AS$7,0))*AQ$13 -> 40920.25879
C88: Barriers Class 3 | D88: € / vkm | N88: =+INDEX(Actual!$N35:$AS35,,MATCH(Working!N$7, Actual!$N$7:$AS$7,0))*N$13 -> 5095.960504 | O88: =+INDEX(Actual!$N35:$AS35,,MATCH(Working!O$7, Actual!$N$7:$AS$7,0))*O$13 -> 5095.960504 | P88: =+INDEX(Actual!$N35:$AS35,,MATCH(Working!P$7, Actual!$N$7:$AS$7,0))*P$13 -> 5620.37988 | Q88: =+INDEX(Actual!$N35:$AS35,,MATCH(Working!Q$7, Actual!$N$7:$AS$7,0))*Q$13 -> 5620.37988 | R88: =+INDEX(Actual!$N35:$AS35,,MATCH(Working!R$7, Actual!$N$7:$AS$7,0))*R$13 -> 5413.342413 | S88: =+INDEX(Actual!$N35:$AS35,,MATCH(Working!S$7, Actual!$N$7:$AS$7,0))*S$13 -> 5413.342413 | T88: =+INDEX(Actual!$N35:$AS35,,MATCH(Working!T$7, Actual!$N$7:$AS$7,0))*T$13 -> 5772.811627 | U88: =+INDEX(Actual!$N35:$AS35,,MATCH(Working!U$7, Actual!$N$7:$AS$7,0))*U$13 -> 5772.811627 | V88: =+INDEX(Actual!$N35:$AS35,,MATCH(Working!V$7, Actual!$N$7:$AS$7,0))*V$13 -> 5940.171605 | W88: =+INDEX(Actual!$N35:$AS35,,MATCH(Working!W$7, Actual!$N$7:$AS$7,0))*W$13 -> 5940.171605 | X88: =+INDEX(Actual!$N35:$AS35,,MATCH(Working!X$7, Actual!$N$7:$AS$7,0))*X$13 -> 6088.774036 | Y88: =+INDEX(Actual!$N35:$AS35,,MATCH(Working!Y$7, Actual!$N$7:$AS$7,0))*Y$13 -> 6088.774036 | Z88: =+INDEX(Actual!$N35:$AS35,,MATCH(Working!Z$7, Actual!$N$7:$AS$7,0))*Z$13 -> 6214.046459 | AA88: =+INDEX(Actual!$N35:$AS35,,MATCH(Working!AA$7, Actual!$N$7:$AS$7,0))*AA$13 -> 6214.046459 | AB88: =+INDEX(Actual!$N35:$AS35,,MATCH(Working!AB$7, Actual!$N$7:$AS$7,0))*AB$13 -> 6274.602503 | AC88: =+INDEX(Actual!$N35:$AS35,,MATCH(Working!AC$7, Actual!$N$7:$AS$7,0))*AC$13 -> 6274.602503 | AD88: =+INDEX(Actual!$N35:$AS35,,MATCH(Working!AD$7, Actual!$N$7:$AS$7,0))*AD$13 -> 6334.26798 | AE88: =+INDEX(Actual!$N35:$AS35,,MATCH(Working!AE$7, Actual!$N$7:$AS$7,0))*AE$13 -> 6334.26798 | AF88: =+INDEX(Actual!$N35:$AS35,,MATCH(Working!AF$7, Actual!$N$7:$AS$7,0))*AF$13 -> 6394.132328 | AG88: =+INDEX(Actual!$N35:$AS35,,MATCH(Working!AG$7, Actual!$N$7:$AS$7,0))*AG$13 -> 6394.132328 | AH88: =+INDEX(Actual!$N35:$AS35,,MATCH(Working!AH$7, Actual!$N$7:$AS$7,0))*AH$13 -> 6454.28266 | AI88: =+INDEX(Actual!$N35:$AS35,,MATCH(Working!AI$7, Actual!$N$7:$AS$7,0))*AI$13 -> 6454.28266 | AJ88: =+INDEX(Actual!$N35:$AS35,,MATCH(Working!AJ$7, Actual!$N$7:$AS$7,0))*AJ$13 -> 6516.01277 | AK88: =+INDEX(Actual!$N35:$AS35,,MATCH(Working!AK$7, Actual!$N$7:$AS$7,0))*AK$13 -> 6516.01277 | AL88: =+INDEX(Actual!$N35:$AS35,,MATCH(Working!AL$7, Actual!$N$7:$AS$7,0))*AL$13 -> 6577.878592 | AM88: =+INDEX(Actual!$N35:$AS35,,MATCH(Working!AM$7, Actual!$N$7:$AS$7,0))*AM$13 -> 6577.878592 | AN88: =+INDEX(Actual!$N35:$AS35,,MATCH(Working!AN$7, Actual!$N$7:$AS$7,0))*AN$13 -> 6639.872795 | AO88: =+INDEX(Actual!$N35:$AS35,,MATCH(Working!AO$7, Actual!$N$7:$AS$7,0))*AO$13 -> 6639.872795 | AP88: =+INDEX(Actual!$N35:$AS35,,MATCH(Working!AP$7, Actual!$N$7:$AS$7,0))*AP$13 -> 6701.987952 | AQ88: =+INDEX(Actual!$N35:$AS35,,MATCH(Working!AQ$7, Actual!$N$7:$AS$7,0))*AQ$13 -> 6701.987952
